{"text_format":"1","workbook":"xlsx","n_sheets":25,"sheets":["START","1. Planning","2. Transcript log sheet","3. Select coding scheme","4(a). Coding scheme","5(a) Coding workspace","drop down lists","6(a). Coding tables","7(a). Quotes","8(a). Grouping codes","4(b). Coding scheme","5(b) Coding workspace","6(b). Coding tables","7(b). Quotes","8(b). Grouping codes","9(b). Building themes","4(c). Coding scheme","5(c) Coding workspace","6(c). Coding tables","7(c). Quotes","8(c). Grouping codes","9(c). Building themes","9(a). Building themes","10. Results & planning ","About us"],"not_rendered":{"charts":6,"images":3,"macros":1,"external_links":0,"defined_names":67,"comments":3,"pivot_tables":12},"unopened":[],"bounds":{"document_bytes":16777216,"sheet_cells":100000,"rows_first":2000,"rows_last":500,"rows_between":2000,"halvings":0,"cell_chars":16384,"cell_head_chars":4096},"cells_cut":0,"cells_raw":0,"read":"whole","date_system":"1900"}

{"sheet":"START","index":0,"n_rows":23,"n_cols":12,"rows_kept":23,"cut":false,"hidden":false,"merged":[[0,11,0,12],[7,11,7,12],[8,11,8,12],[1,11,1,12],[3,11,3,12],[4,11,4,12],[5,11,5,12],[6,11,6,12]]}
[null,null,null,null,null,null,null,null,null,null,null,"CDC Excel Tool \nfor Thematic Analysis      "]
[null,null,null,null,null,null,null,null,null,null,null," Steps and worksheets"]
[null,null,null,null,null,null,null,null,null,null,null,"Set up \n  "]
[null,null,null,null,null,null,null,null,null,null,null,"  1.    Planning the inquiry"]
[null,null,null,null,null,null,null,null,null,null,null,"2.   Organizing transcripts and notes"]
[null,null,null,null,null,null,null,null,null,null,null,"3.    Selecting coding scheme:"]
[null,null,null,null,null,null,null,null,null,null,null,"      a.  Epidemics "]
[null,null,null,null,null,null,null,null,null,null,null,"      b.  Other health emergencies (natural disasters, etc.)"]
[null,null,null,null,null,null,null,null,null,null,null,"      c.  Blank – design your own"]
[null,null,null,null,null,null,null,null,null,null,null,"   4.   Viewing/editing coding scheme "]
[null,null,null,null,null,null,null,null,null,null,null,"   5.    Importing text into coding workspace "]
[]
[null,null,null,null,null,null,null,null,null,null,null,"Coding"]
[null,null,null,null,null,null,null,null,null,null,null,"   5.     Coding text segments in coding workspace"]
[null,null,null,null,null,null,null,null,null,null,null,"   6.     Displaying codes in tables and charts"]
[null,null,null,null,null,null,null,null,null,null,null,"   7.     Displaying important quotes"]
[]
[null,null,null,null,null,null,null,null,null,null,null,"Thematic analysis"]
[null,null,null,null,null,null,null,null,null,null,null,"   8.     Grouping codes"]
[null,null,null,null,null,null,null,null,null,null,null,"   9.     Building themes"]
[null,null,null,null,null,null,null,null,null,null,null,"  10.     Results and action planning"]
[]
[null,null,null,null,null,null,null,null,null,null,null,"About the authors"]

{"sheet":"1. Planning","index":1,"n_rows":14,"n_cols":6,"rows_kept":14,"cut":false,"hidden":false,"merged":[[0,2,0,5],[4,0,14,0]]}
[null,null,"1. Inquiry planning"]
[]
[]
[null,"Column1","Write your questions","List uses for this information to improve response efforts","Name the pillars, teams, partners, agencies who can take each action","Describe the communication with these groups. Is this information in demand? "]
["Strategic informaiton Needs",null,"Questions","Uses","Implementors ","Demand for information"]
[null,null,"1. example: what are the most common questions people have about the situation? ","example: create a document of answers to frequently asked questions for dissemination","example: MOH communications team for emergency response","example: we have not been in communications with this team. "]
[null,null,"2. example: what are ways we could share information more effectively?","example: prepare answers for leaders who will be at a \"question and answer\" public meeting","example: UNHCR refugee facility communications specialist","example:  communications specialist (name), has asked us for this information. "]
[]
[]
[]
[]
[]
[]
[null,null,"(right click and select \"insert rows\" to add more rows)"]

{"sheet":"2. Transcript log sheet","index":2,"n_rows":33,"n_cols":9,"rows_kept":33,"cut":false,"hidden":false,"merged":[[0,0,0,6],[1,0,1,6],[3,0,3,2],[4,0,4,2],[2,0,2,8]]}
["2. Transcript log sheet"]
[]
["Use the table below to track information about the various listening text files you plan to code in the next step. This is an optional sheet to help you keep your data organized and add additional context to the coding sheet if needed.  Refer to section 3. Phase I. Set up: preparing for coding and analysis in the user guide for instructions on how to import data into the tool.  See section 2. Examples of different kinds of listening texts.  "]
["Total number of transcripts/ notes",null,null,{"$f":"COUNTIF(Table119[Collection Date], \"<>\")","v":4},null,"Percent formatted",{"$f":"(COUNTIF(Table119[Formatted for Importation?], \"yes\")/D4)","v":1}]
["Total number of participants",null,null,{"$f":"SUM(Table119[Number of Participants])","v":25},null,"Percent coded",{"$f":"(COUNTIF(Table119[Coding complete?], \"yes\")/D4)","v":1}]
[]
["File ID","Collection Date","Type of event","Transcript / Notes","Number of Participants","File Name","Formatted for Importation?","Coding complete?","Participant Type"]
[{"$f":"ROW()-7","v":1},"2023-01-23","focus group","full transcript",9,"Disease_FG","yes","yes","Mothers"]
[{"$f":"ROW()-7","v":2},"2023-01-25","interview","full transcript",1,"Disease_Int","yes","yes","Community leader"]
[3,"2023-02-02","social media post","other ",6,"FB_Post1","yes","yes","Social media users"]
[4,"2023-01-23","focus group","full transcript",9,"GomaFG","yes","yes","Mothers"]
[5]
[6]
[7]
[8]
[9]
[10]
[11]
[12]
[13]
[14]
[15]
[16]
[17]
[18]
[19]
[20]
[21]
[22]
[23]
[24]
[25]
[26]

{"sheet":"3. Select coding scheme","index":3,"n_rows":20,"n_cols":10,"rows_kept":20,"cut":false,"hidden":false,"merged":[[19,5,19,11],[1,0,1,15],[0,0,0,15],[11,6,11,10],[12,5,12,11],[2,0,2,15],[3,9,3,13],[4,8,4,14],[3,2,3,6],[4,1,4,7]]}
["3. Select Coding Scheme "]
["This tool includes two pre-programmed coding schemes that you can use in responding to either an epidemic or humanitarian emergency. Both the epidemic and humanitarian schemes include examples of completed analyses using fake text data. We have also included a blank coding scheme into which users can import their own codes. \n"]
["Use the buttons below to select the most appropriate coding scheme for your purposes."]
[null,null,"Epidemic Coding Scheme",null,null,null,null,null,null,"Other Health Emergency Coding Scheme"]
[null,"Developed for use with data collected during Ebola outbreaks by CDC and IFRC. The codes were then expanded through a search of the literature to be applied to any epidemic and have been tested in prior disease epidemics including COVID-19, Zika, and Mpox. ",null,null,null,null,null,null,"The other health emergency coding scheme was developed after a search of the available literature to determine what issues are most pertinent in humanitarian crises. The codes were then reviewed in collaboration with a panel of experts who suggested additional codes. "]
[]
[]
[]
[]
[]
[]
[null,null,null,null,null,null,"Blank Coding Scheme"]
[null,null,null,null,null,"This tool is adaptable to many situations in which you may want to code and analyze text data outside of epidemic or humanitarian contexts. To allow users to easily include their own coding schemes we have included blank sheets that can be customized. "]
[]
[]
[]
[]
[]
[]
[null,null,null,null,null,"After selecting a coding scheme, DO NOT delete this sheet! \nIf you would like to remove the sheet from view you can right click on the sheet name below and select \"Hide.\" "]

{"sheet":"4(a). Coding scheme","index":4,"n_rows":30,"n_cols":10,"rows_kept":30,"cut":false,"hidden":false,"merged":[[0,1,0,5],[1,1,1,8],[3,2,3,5],[4,2,4,4]]}
[null,"4 (a) Coding scheme"]
[null,"Epidemic Coding Scheme"]
[]
[null,"broad topic codes","Specific codes [continues through column H]",null,null,null,null,null,"Action Flags "]
[null,"To add a new broad topic area with additional specifics codes, see user guide section 7","To add a specific code, right click in the middle of the list, and select,\"insert.\" Then type in the code you want to add. ",null,null,null,null,null,"To modify: select the text and edit.  To add a code: right click on any cell in the list, select \"insert above row\" and type in the new code. The new code must be within the existing list."]
[null,"1.A Basic coding broad topic area","_1_About_the_disease ","_2_About_the_epidemic","_3_About_people_dealing_with_epidemic","_4_About_govt_led_control_efforts","_5_About_experiences_of_the_ill","_6_About_other_community_issues","2. ACTION FLAGS","3. Emotional tone"]
[null,"_1_About_the_disease ","Reality of disease (vs. a hoax)","Compared to previous epidemics","Action - personal self-protective steps","Effectiveness - high","Experiences - about quality of care","Issues - Other health threats","Exploitation/ abuse [notify safety/security]","Positive: General positive"]
[null,"_2_About_the_epidemic","Lethality/severity of disease","Reality of epidemic existence in local area","Action - reporting others' self-protective steps","Effectiveness - medium","Experiences - about seeking care","Issues - Other types of issues","Threats/ reports of violence [notify safety/security]","Positive: Gratitude"]
[null,"_3_About_people_dealing_with_epidemic","Origin of disease","Origin of epidemic in local area ","Action - opposition to response strategy (non-participation)","Effectiveness - low","Experiences - testing/diagnosis","Issues - Political/social conflict","Misinformation/ false information [notify communications]","Positive: Happiness"]
[null,"_4_About_govt_led_control_efforts","Symptoms of disease","Progression of epidemic in local area","Action - opposition to response strategy (active opposition)","Engagement - involving the community","Resources - where to go for treatment","Needs - Economic assistance","Questions to answer, information needs  [notify communications]","Positive: Optimism"]
[null,"_5_About_experiences_of_the_ill","Transmission of disease (human)","Priority of epidemic vs. other issues","Awareness - level of awareness about epidemic","Engagement - listening to community input","Resources - where to go for testing","Needs - Health infrastructure","Response implementation issue - case alerts","Positive: Pride"]
[null,"_6_About_other_community_issues","Transmisssion to or from animals","Impacts - disrupting usual health care","Concern - personal vulnerability or loved ones","Motivation - people profiting from epidemic","Resources - what treatment is available","Needs - Other types of needs","Response implementation issue - testing/diagnosis","Positive: Unity"]
[null,null,"Treatability of disease ","Impacts - social","Concern - reporting others's sense of concern","Motivation - extending epidemic (not ending it)","Strategy - caring for the ill at home","Needs - Safety and security","Response implementation issue - medical care","Neutral: Indifference"]
[null,null,"Vulnerable groups to disease ","Impacts - economic ","Challenges in protecting self or others","Motivation - using epidemic for political gain","Strategy - when to contact health authorities","Needs - Water/sanitation","Response implementation issue - contact tracing ","Neutral: No particular feeling "]
[null,null,"Other - disease facts","Impacts - other types ","Engagement - personal interaction with response ","Motivation - intentionally harming people","Stigma - members of vulnerable populations","Other - Other community issues","Response implementation issue - vaccination","Neutral: Surprise"]
[null,null,"Risk Factors for Contracting Disease","Impacts - political ","Engagement - reporting others' interaction with response ","Strategy - border control or checkpoint","Survivors - long-term health consequences",null,"Response implementation issue - protective materials ","Negative: Sorrow"]
[null,null,null,"Underlying social factors","Information - how/ where people get information","Strategy - contact tracing / community surveillance","Survivors - stigma, social consequences",null,"Response implementation issue - other","Negative: Anger"]
[null,null,null,"Other - epidemic characteristics","Strategy - how to protect oneself ","Strategy - isolation/quarantine","Survivors - other needs",null,"Actionable suggestions ","Negative: Concern (or worry)"]
[null,null,null,null,"Strategy - how to protect others","Strategy - legal mandated self-protection","Other - treatment for the ill ",null,"Other [specify]","Negative: Confusion"]
[null,null,null,null,"Strategy - when self-protection is needed","Strategy - provision of masks/materials ",null,null,null,"Negative: Despair"]
[null,null,null,null,"Other - community response to outbreak","Strategy - provision of water, soap",null,null,null,"Negative: Disappointment"]
[null,null,null,null,null,"Strategy - raising community awareness",null,null,null,"Negative: Doubt/skepticsism"]
[null,null,null,null,null,"Strategy - testing",null,null,null,"Negative: Fear"]
[null,null,null,null,null,"Strategy - vaccination (positive)",null,null,null,"Negative: Mistrust/suspicion"]
[null,null,null,null,null,"Strategy - vaccination (demand)",null,null,null,"No emotion can be identified"]
[null,null,null,null,null,"Strategy - vaccination (opposition)"]
[null,null,null,null,null,"Strategy - vaccination (neutral)"]
[null,null,null,null,null,"Strategy - burying the deceased"]
[null,null,null,null,null,"Strategy - other [add here]"]
[null,null,null,null,null,"Other - govt-led efforts"]

{"sheet":"5(a) Coding workspace","index":5,"n_rows":497,"n_cols":11,"rows_kept":497,"cut":false,"hidden":false,"merged":[[0,0,0,10]]}
["5(a). Coding workspace"]
[]
[null,null,null,null,null,"Total coded strings:",{"$f":"COUNTIF(H5:H497,\"<>\"&\"\")","v":34},null,"Note about adding rows"]
["Line no","File name","Participant Type","File ID","Section headings","Text sentences","Text segments for coding ","Broad code ","Specific code","Action flags","Comments"]
[{"$f":"ROW()-4","v":1},{"$f":"VLOOKUP(Epidemic_Codes[[#This Row],[File ID]],Table119[], MATCH(B$4,Table119[#Headers],0), 0)","v":"Disease_FG"},{"$f":"VLOOKUP(Epidemic_Codes[[#This Row],[File ID]],Table119[], MATCH(C$4,Table119[#Headers],0), 0)","v":"Mothers"},1,null,"[F] What have you heard about Disease X? "]
[2,{"$f":"VLOOKUP(Epidemic_Codes[[#This Row],[File ID]],Table119[], MATCH(B$4,Table119[#Headers],0), 0)","v":"Disease_FG"},{"$f":"VLOOKUP(Epidemic_Codes[[#This Row],[File ID]],Table119[], MATCH(C$4,Table119[#Headers],0), 0)","v":"Mothers"},1,"[F] What have you heard about Disease X? ","[R] 1: Kid will have delays as they get older -- it causes problems for them.","[R] 1: Kid will have delays as they get older -- it causes problems for them.","_5_About_experiences_of_the_ill","Survivors - long-term health consequences","Response implementation issue - medical care"]
[3,{"$f":"VLOOKUP(Epidemic_Codes[[#This Row],[File ID]],Table119[], MATCH(B$4,Table119[#Headers],0), 0)","v":"Disease_FG"},{"$f":"VLOOKUP(Epidemic_Codes[[#This Row],[File ID]],Table119[], MATCH(C$4,Table119[#Headers],0), 0)","v":"Mothers"},1,"[F] What have you heard about Disease X? ","[R] 1: Kid will have delays as they get older -- it causes problems for them.","[R] 1: Kid will have delays as they get older -- it causes problems for them.","_1_About_the_disease ","Vulnerable groups to disease "]
[4,{"$f":"VLOOKUP(Epidemic_Codes[[#This Row],[File ID]],Table119[], MATCH(B$4,Table119[#Headers],0), 0)","v":"Disease_FG"},{"$f":"VLOOKUP(Epidemic_Codes[[#This Row],[File ID]],Table119[], MATCH(C$4,Table119[#Headers],0), 0)","v":"Mothers"},1,"[F] What have you heard about Disease X? ","And I worry about long term effects for adults too because no one seems to know about that","And I worry about long term effects for adults too because no one seems to know about that","_5_About_experiences_of_the_ill","Survivors - long-term health consequences"]
[5,{"$f":"VLOOKUP(Epidemic_Codes[[#This Row],[File ID]],Table119[], MATCH(B$4,Table119[#Headers],0), 0)","v":"Disease_FG"},{"$f":"VLOOKUP(Epidemic_Codes[[#This Row],[File ID]],Table119[], MATCH(C$4,Table119[#Headers],0), 0)","v":"Mothers"},1,"[F] What have you heard about Disease X? ","[R] 2: I learned yesterday that people can get reinfected even after having it one time","[R] 2: I learned yesterday that people can get reinfected even after having it one time","_1_About_the_disease ","Transmission of disease (human)"]
[6,{"$f":"VLOOKUP(Epidemic_Codes[[#This Row],[File ID]],Table119[], MATCH(B$4,Table119[#Headers],0), 0)","v":"Disease_FG"},{"$f":"VLOOKUP(Epidemic_Codes[[#This Row],[File ID]],Table119[], MATCH(C$4,Table119[#Headers],0), 0)","v":"Mothers"},1,"[F] What have you heard about Disease X? ","[R] 3: I didn’t know that. ","[R] 2: I learned yesterday that people can get reinfected even after having it one time [R] 3: I didn’t know that. ","_3_About_people_dealing_with_epidemic","Awareness - level of awareness about epidemic","Questions to answer, information needs  [notify communications]"]
[7,{"$f":"VLOOKUP(Epidemic_Codes[[#This Row],[File ID]],Table119[], MATCH(B$4,Table119[#Headers],0), 0)","v":"Disease_FG"},{"$f":"VLOOKUP(Epidemic_Codes[[#This Row],[File ID]],Table119[], MATCH(C$4,Table119[#Headers],0), 0)","v":"Mothers"},1,"[F] What have you heard about Disease X? ","You know, that kind of thing that makes me really scared. ","[R] 2: I learned yesterday that people can get reinfected even after having it one time. You know, that kind of thing that makes me really scared.","_3_About_people_dealing_with_epidemic","Concern - personal vulnerability or loved ones"]
[8,{"$f":"VLOOKUP(Epidemic_Codes[[#This Row],[File ID]],Table119[], MATCH(B$4,Table119[#Headers],0), 0)","v":"Disease_FG"},{"$f":"VLOOKUP(Epidemic_Codes[[#This Row],[File ID]],Table119[], MATCH(C$4,Table119[#Headers],0), 0)","v":"Mothers"},1,"[F] What have you heard about Disease X? ","I thought it was like the chicken pox.  ","I thought it was like the chicken pox.  ","_1_About_the_disease ","Symptoms of disease","Questions to answer, information needs  [notify communications]"]
[9,{"$f":"VLOOKUP(Epidemic_Codes[[#This Row],[File ID]],Table119[], MATCH(B$4,Table119[#Headers],0), 0)","v":"Disease_FG"},{"$f":"VLOOKUP(Epidemic_Codes[[#This Row],[File ID]],Table119[], MATCH(C$4,Table119[#Headers],0), 0)","v":"Mothers"},1,null,"Facilitator: Do you have any concerns or fears? "]
[10,{"$f":"VLOOKUP(Epidemic_Codes[[#This Row],[File ID]],Table119[], MATCH(B$4,Table119[#Headers],0), 0)","v":"Disease_FG"},{"$f":"VLOOKUP(Epidemic_Codes[[#This Row],[File ID]],Table119[], MATCH(C$4,Table119[#Headers],0), 0)","v":"Mothers"},1,"[F] Do you have any concerns or fears? ","[R] 1: I mean, at first, I did but now that I’m vaccinated and my kids are vaccinated? ","[R] 1: I mean, at first, I did but now that I’m vaccinated and my kids are vaccinated? ","_3_About_people_dealing_with_epidemic","Concern - personal vulnerability or loved ones"]
[11,{"$f":"VLOOKUP(Epidemic_Codes[[#This Row],[File ID]],Table119[], MATCH(B$4,Table119[#Headers],0), 0)","v":"Disease_FG"},{"$f":"VLOOKUP(Epidemic_Codes[[#This Row],[File ID]],Table119[], MATCH(C$4,Table119[#Headers],0), 0)","v":"Mothers"},1,"[F] Do you have any concerns or fears? ","[R] 1: I mean, at first, I did but now that I’m vaccinated and my kids are vaccinated? ","[R] 1: I mean, at first, I did but now that I’m vaccinated and my kids are vaccinated? ","_4_About_govt_led_control_efforts","Strategy - vaccination (positive)"]
[12,{"$f":"VLOOKUP(Epidemic_Codes[[#This Row],[File ID]],Table119[], MATCH(B$4,Table119[#Headers],0), 0)","v":"Disease_FG"},{"$f":"VLOOKUP(Epidemic_Codes[[#This Row],[File ID]],Table119[], MATCH(C$4,Table119[#Headers],0), 0)","v":"Mothers"},1,"[F] Do you have any concerns or fears? ","And we just been home I mean, ninety percent of the time home alone only the kids go to school and we get groceries delivered so we don’t feel a lot of risk. ","And we just been home I mean, ninety percent of the time home alone only the kids go to school and we get groceries delivered so we don’t feel a lot of risk. ","_3_About_people_dealing_with_epidemic","Strategy - how to protect oneself "]
[13,{"$f":"VLOOKUP(Epidemic_Codes[[#This Row],[File ID]],Table119[], MATCH(B$4,Table119[#Headers],0), 0)","v":"Disease_FG"},{"$f":"VLOOKUP(Epidemic_Codes[[#This Row],[File ID]],Table119[], MATCH(C$4,Table119[#Headers],0), 0)","v":"Mothers"},1,"[F] Do you have any concerns or fears? ","[R] 3: I'm less concerned about getting infected but about being treated for it.","[R] 3: I'm less concerned about getting infected but about being treated for it.","_3_About_people_dealing_with_epidemic","Concern - personal vulnerability or loved ones"]
[14,{"$f":"VLOOKUP(Epidemic_Codes[[#This Row],[File ID]],Table119[], MATCH(B$4,Table119[#Headers],0), 0)","v":"Disease_FG"},{"$f":"VLOOKUP(Epidemic_Codes[[#This Row],[File ID]],Table119[], MATCH(C$4,Table119[#Headers],0), 0)","v":"Mothers"},1,null,"Facilitator: What specifically concerns you about treatment? "]
[15,{"$f":"VLOOKUP(Epidemic_Codes[[#This Row],[File ID]],Table119[], MATCH(B$4,Table119[#Headers],0), 0)","v":"Disease_FG"},{"$f":"VLOOKUP(Epidemic_Codes[[#This Row],[File ID]],Table119[], MATCH(C$4,Table119[#Headers],0), 0)","v":"Mothers"},1,"[F] What specifically concerns you about treatment? ","[R] 3: Well I know its very hard to get a doctor's appointment and hospitals are incredibly busy so if we got sick where would we go?","[R] 3: I'm less concerned about getting infected but about being treated for it…. [R] 3: Well I know its very hard to get a doctor's appointment and hospitals are incredibly busy so if we got sick where would we go?","_5_About_experiences_of_the_ill","Resources - what treatment is available"]
[16,{"$f":"VLOOKUP(Epidemic_Codes[[#This Row],[File ID]],Table119[], MATCH(B$4,Table119[#Headers],0), 0)","v":"Disease_FG"},{"$f":"VLOOKUP(Epidemic_Codes[[#This Row],[File ID]],Table119[], MATCH(C$4,Table119[#Headers],0), 0)","v":"Mothers"},1,"[F] What specifically concerns you about treatment? ","[R] 3: Well I know its very hard to get a doctor's appointment and hospitals are incredibly busy so if we got sick where would we go?","[R] 3: I'm less concerned about getting infected but about being treated for it…. [R] 3: Well I know its very hard to get a doctor's appointment and hospitals are incredibly busy so if we got sick where would we go?","_2_About_the_epidemic","Impacts - disrupting usual health care"]
[17,{"$f":"VLOOKUP(Epidemic_Codes[[#This Row],[File ID]],Table119[], MATCH(B$4,Table119[#Headers],0), 0)","v":"Disease_FG"},{"$f":"VLOOKUP(Epidemic_Codes[[#This Row],[File ID]],Table119[], MATCH(C$4,Table119[#Headers],0), 0)","v":"Mothers"},1,"[F] What specifically concerns you about treatment? ","[R]: And how do you know that you're sick enough to need treatment?","And how do you know that you're sick enough to need treatment?","_5_About_experiences_of_the_ill","Strategy - when to contact health authorities"]
[18,{"$f":"VLOOKUP(Epidemic_Codes[[#This Row],[File ID]],Table119[], MATCH(B$4,Table119[#Headers],0), 0)","v":"Disease_FG"},{"$f":"VLOOKUP(Epidemic_Codes[[#This Row],[File ID]],Table119[], MATCH(C$4,Table119[#Headers],0), 0)","v":"Mothers"},1,"[F] What specifically concerns you about treatment? ","There isn't much information available about treatments for milder illness or how to recognize that mild symptoms are becoming severe. ","There isn't much information available about treatments for milder illness or how to recognize that mild symptoms are becoming severe. ","_1_About_the_disease ","Lethality/severity of disease","Questions to answer, information needs  [notify communications]"]
[19,{"$f":"VLOOKUP(Epidemic_Codes[[#This Row],[File ID]],Table119[], MATCH(B$4,Table119[#Headers],0), 0)","v":"Disease_FG"},{"$f":"VLOOKUP(Epidemic_Codes[[#This Row],[File ID]],Table119[], MATCH(C$4,Table119[#Headers],0), 0)","v":"Mothers"},1,null,"Facilitator: And in regards to, Disease X, what you heard about like where did you gather all your information from?"]
[20,{"$f":"VLOOKUP(Epidemic_Codes[[#This Row],[File ID]],Table119[], MATCH(B$4,Table119[#Headers],0), 0)","v":"Disease_FG"},{"$f":"VLOOKUP(Epidemic_Codes[[#This Row],[File ID]],Table119[], MATCH(C$4,Table119[#Headers],0), 0)","v":"Mothers"},1,"[F]: And in regards to Disease X, what you heard about like where did you gather all your information from?"," [R] 1: Every time I -- by the clinic. I pick up the pamphlet and that stuff                             "," [R] 1: Every time I -- by the clinic. I pick up the pamphlet and that stuff                             ","_3_About_people_dealing_with_epidemic","Information - how/ where people get information"]
[21,{"$f":"VLOOKUP(Epidemic_Codes[[#This Row],[File ID]],Table119[], MATCH(B$4,Table119[#Headers],0), 0)","v":"Disease_Int"},{"$f":"VLOOKUP(Epidemic_Codes[[#This Row],[File ID]],Table119[], MATCH(C$4,Table119[#Headers],0), 0)","v":"Community leader"},2,null,"What people are doing to protect selves"]
[22,{"$f":"VLOOKUP(Epidemic_Codes[[#This Row],[File ID]],Table119[], MATCH(B$4,Table119[#Headers],0), 0)","v":"Disease_Int"},{"$f":"VLOOKUP(Epidemic_Codes[[#This Row],[File ID]],Table119[], MATCH(C$4,Table119[#Headers],0), 0)","v":"Community leader"},2,"What people are doing to protect selves","•Hand washing","•Hand washing","_3_About_people_dealing_with_epidemic","Action - personal self-protective steps"]
[23,{"$f":"VLOOKUP(Epidemic_Codes[[#This Row],[File ID]],Table119[], MATCH(B$4,Table119[#Headers],0), 0)","v":"Disease_Int"},{"$f":"VLOOKUP(Epidemic_Codes[[#This Row],[File ID]],Table119[], MATCH(C$4,Table119[#Headers],0), 0)","v":"Community leader"},2,"What people are doing to protect selves","•Hard to get hand sanitizer","•Hard to get hand sanitizer","_3_About_people_dealing_with_epidemic","Challenges in protecting self or others"]
[24,{"$f":"VLOOKUP(Epidemic_Codes[[#This Row],[File ID]],Table119[], MATCH(B$4,Table119[#Headers],0), 0)","v":"Disease_Int"},{"$f":"VLOOKUP(Epidemic_Codes[[#This Row],[File ID]],Table119[], MATCH(C$4,Table119[#Headers],0), 0)","v":"Community leader"},2,"What people are doing to protect selves","•Thinks HS is better than soap","•Thinks HS is better than soap","_3_About_people_dealing_with_epidemic","Strategy - how to protect oneself "]
[25,{"$f":"VLOOKUP(Epidemic_Codes[[#This Row],[File ID]],Table119[], MATCH(B$4,Table119[#Headers],0), 0)","v":"Disease_Int"},{"$f":"VLOOKUP(Epidemic_Codes[[#This Row],[File ID]],Table119[], MATCH(C$4,Table119[#Headers],0), 0)","v":"Community leader"},2,null,"Added: should have videos about hand washing, multiple languages. ","Added: should have videos about hand washing, multiple languages. ","_4_About_govt_led_control_efforts","Strategy - raising community awareness"]
[26,{"$f":"VLOOKUP(Epidemic_Codes[[#This Row],[File ID]],Table119[], MATCH(B$4,Table119[#Headers],0), 0)","v":"Disease_Int"},{"$f":"VLOOKUP(Epidemic_Codes[[#This Row],[File ID]],Table119[], MATCH(C$4,Table119[#Headers],0), 0)","v":"Community leader"},2,null,"Best ways to share information with community"]
[27,{"$f":"VLOOKUP(Epidemic_Codes[[#This Row],[File ID]],Table119[], MATCH(B$4,Table119[#Headers],0), 0)","v":"Disease_Int"},{"$f":"VLOOKUP(Epidemic_Codes[[#This Row],[File ID]],Table119[], MATCH(C$4,Table119[#Headers],0), 0)","v":"Community leader"},2,"Best ways to share information with community","•“Best is to have a very authentic conversation.”  ","•“Best is to have a very authentic conversation.”  ","_4_About_govt_led_control_efforts","Strategy - raising community awareness"]
[28,{"$f":"VLOOKUP(Epidemic_Codes[[#This Row],[File ID]],Table119[], MATCH(B$4,Table119[#Headers],0), 0)","v":"Disease_Int"},{"$f":"VLOOKUP(Epidemic_Codes[[#This Row],[File ID]],Table119[], MATCH(C$4,Table119[#Headers],0), 0)","v":"Community leader"},2,"Best ways to share information with community","•Need one platform where everyone can go and get ALL the information","•Need one platform where everyone can go and get ALL the information","_4_About_govt_led_control_efforts","Strategy - raising community awareness"]
[29,{"$f":"VLOOKUP(Epidemic_Codes[[#This Row],[File ID]],Table119[], MATCH(B$4,Table119[#Headers],0), 0)","v":"Disease_Int"},{"$f":"VLOOKUP(Epidemic_Codes[[#This Row],[File ID]],Table119[], MATCH(C$4,Table119[#Headers],0), 0)","v":"Community leader"},2,"Best ways to share information with community","•Lack of internet problem for some, but bigger problem is not speaking English. Need multiple languages. ","•Lack of internet problem for some,  ","_4_About_govt_led_control_efforts","Strategy - raising community awareness"]
[30,{"$f":"VLOOKUP(Epidemic_Codes[[#This Row],[File ID]],Table119[], MATCH(B$4,Table119[#Headers],0), 0)","v":"Disease_Int"},{"$f":"VLOOKUP(Epidemic_Codes[[#This Row],[File ID]],Table119[], MATCH(C$4,Table119[#Headers],0), 0)","v":"Community leader"},2,"Best ways to share information with community","•Lack of internet problem for some, but bigger problem is not speaking English. Need multiple languages. ","but bigger problem is not speaking English. Need multiple languages.","_4_About_govt_led_control_efforts","Strategy - raising community awareness"]
[31,{"$f":"VLOOKUP(Epidemic_Codes[[#This Row],[File ID]],Table119[], MATCH(B$4,Table119[#Headers],0), 0)","v":"Disease_Int"},{"$f":"VLOOKUP(Epidemic_Codes[[#This Row],[File ID]],Table119[], MATCH(C$4,Table119[#Headers],0), 0)","v":"Community leader"},2,null,"How disease has impacted the community"]
[32,{"$f":"VLOOKUP(Epidemic_Codes[[#This Row],[File ID]],Table119[], MATCH(B$4,Table119[#Headers],0), 0)","v":"Disease_Int"},{"$f":"VLOOKUP(Epidemic_Codes[[#This Row],[File ID]],Table119[], MATCH(C$4,Table119[#Headers],0), 0)","v":"Community leader"},2,"How disease has impacted the community","•“It's hurt everything and everyone. People can't get to their usual doctors because so many of the local doctors have been pulled away to work in hospitals.”","•“It's hurt everything and everyone. ","_2_About_the_epidemic","Impacts - other types "]
[33,{"$f":"VLOOKUP(Epidemic_Codes[[#This Row],[File ID]],Table119[], MATCH(B$4,Table119[#Headers],0), 0)","v":"Disease_Int"},{"$f":"VLOOKUP(Epidemic_Codes[[#This Row],[File ID]],Table119[], MATCH(C$4,Table119[#Headers],0), 0)","v":"Community leader"},2,"How disease has impacted the community","•“It's hurt everything and everyone. People can't get to their usual doctors because so many of the local doctors have been pulled away to work in hospitals.”","•\"People can't get to their usual doctors because so many of the local doctors have been pulled away to work in hospitals.”","_2_About_the_epidemic","Impacts - disrupting usual health care"]
[34,{"$f":"VLOOKUP(Epidemic_Codes[[#This Row],[File ID]],Table119[], MATCH(B$4,Table119[#Headers],0), 0)","v":"Disease_Int"},{"$f":"VLOOKUP(Epidemic_Codes[[#This Row],[File ID]],Table119[], MATCH(C$4,Table119[#Headers],0), 0)","v":"Community leader"},2,"How disease has impacted the community","•“So many people staying home so restaurants and businesses are empty.”","•“So many people staying home so restaurants and businesses are empty.”","_2_About_the_epidemic","Impacts - economic "]
[35,{"$f":"VLOOKUP(Epidemic_Codes[[#This Row],[File ID]],Table119[], MATCH(B$4,Table119[#Headers],0), 0)","v":"Disease_Int"},{"$f":"VLOOKUP(Epidemic_Codes[[#This Row],[File ID]],Table119[], MATCH(C$4,Table119[#Headers],0), 0)","v":"Community leader"},2,"How disease has impacted the community","•People don’t go near each other on sidewalk, fear","•People don’t go near each other on sidewalk, fear","_3_About_people_dealing_with_epidemic","Action - reporting others' self-protective steps"]
[36,{"$f":"VLOOKUP(Epidemic_Codes[[#This Row],[File ID]],Table119[], MATCH(B$4,Table119[#Headers],0), 0)","v":"Disease_Int"},{"$f":"VLOOKUP(Epidemic_Codes[[#This Row],[File ID]],Table119[], MATCH(C$4,Table119[#Headers],0), 0)","v":"Community leader"},2,"How disease has impacted the community","•“I know that we needed these measures to fight the disease but I worry that all the other stuff we're not paying attention to is going to cause problems in the future.” ","•“I know that we needed these measures to fight the disease but I worry that all the other stuff we're not paying attention to is going to cause problems in the future.” ","_4_About_govt_led_control_efforts","Other - govt-led efforts"]
[37,{"$f":"VLOOKUP(Epidemic_Codes[[#This Row],[File ID]],Table119[], MATCH(B$4,Table119[#Headers],0), 0)","v":"FB_Post1"},{"$f":"VLOOKUP(Epidemic_Codes[[#This Row],[File ID]],Table119[], MATCH(C$4,Table119[#Headers],0), 0)","v":"Social media users"},3,null,"[SM Post] Vaccines have been saving lives and preventing illness & disability from devastating diseases for over a century. Today, Disease X vaccines are helping protect people against severe illness, hospitalization, and death. Vaccines are free and available at your local pharmacy, talk to your healthcare provider about getting yourself and your family vaccinated today! "]
[38,{"$f":"VLOOKUP(Epidemic_Codes[[#This Row],[File ID]],Table119[], MATCH(B$4,Table119[#Headers],0), 0)","v":"FB_Post1"},{"$f":"VLOOKUP(Epidemic_Codes[[#This Row],[File ID]],Table119[], MATCH(C$4,Table119[#Headers],0), 0)","v":"Social media users"},3,"Vaccines have been saving lives and preventing illness & disability from devastating diseases for over a century…","The vaccine accelerates certain diseases in the body, that’s why we are afraid ","The vaccine accelerates certain diseases in the body, that’s why we are afraid ","_4_About_govt_led_control_efforts","Strategy - vaccination (opposition)","Misinformation/ false information [notify communications]"]
[39,{"$f":"VLOOKUP(Epidemic_Codes[[#This Row],[File ID]],Table119[], MATCH(B$4,Table119[#Headers],0), 0)","v":"FB_Post1"},{"$f":"VLOOKUP(Epidemic_Codes[[#This Row],[File ID]],Table119[], MATCH(C$4,Table119[#Headers],0), 0)","v":"Social media users"},3,"Vaccines have been saving lives and preventing illness & disability from devastating diseases for over a century…","Disease X will not be eradicated because people who are cured continue to infect others because people are selfish and won’t stay home when they are sick ","Disease X will not be eradicated because people who are cured continue to infect others because people are selfish and won’t stay home when they are sick ","_3_About_people_dealing_with_epidemic","Challenges in protecting self or others"]
[40,{"$f":"VLOOKUP(Epidemic_Codes[[#This Row],[File ID]],Table119[], MATCH(B$4,Table119[#Headers],0), 0)","v":"FB_Post1"},{"$f":"VLOOKUP(Epidemic_Codes[[#This Row],[File ID]],Table119[], MATCH(C$4,Table119[#Headers],0), 0)","v":"Social media users"},3,"Vaccines have been saving lives and preventing illness & disability from devastating diseases for over a century…","Disease X does not exist; it’s a way to control people under unfair government regulations ","Disease X does not exist; it’s a way to control people under unfair government regulations ","_1_About_the_disease ","Reality of disease (vs. a hoax)","Misinformation/ false information [notify communications]"]
[41,{"$f":"VLOOKUP(Epidemic_Codes[[#This Row],[File ID]],Table119[], MATCH(B$4,Table119[#Headers],0), 0)","v":"FB_Post1"},{"$f":"VLOOKUP(Epidemic_Codes[[#This Row],[File ID]],Table119[], MATCH(C$4,Table119[#Headers],0), 0)","v":"Social media users"},3,"Vaccines have been saving lives and preventing illness & disability from devastating diseases for over a century…","What is the point of receiving this vaccine when even people who are vaccinated still die?","What is the point of receiving this vaccine when even people who are vaccinated still die?","_4_About_govt_led_control_efforts","Strategy - vaccination (opposition)","Questions to answer, information needs  [notify communications]"]
[42,{"$f":"VLOOKUP(Epidemic_Codes[[#This Row],[File ID]],Table119[], MATCH(B$4,Table119[#Headers],0), 0)","v":"FB_Post1"},{"$f":"VLOOKUP(Epidemic_Codes[[#This Row],[File ID]],Table119[], MATCH(C$4,Table119[#Headers],0), 0)","v":"Social media users"},3,"Vaccines have been saving lives and preventing illness & disability from devastating diseases for over a century…","When I tried to get my son vaccinated first there were no appointments available and when we finally got an appointment they tried to charge me for it!! ","When I tried to get my son vaccinated first there were no appointments available and when we finally got an appointment they tried to charge me for it!! ","_4_About_govt_led_control_efforts","Strategy - vaccination (demand)","Response implementation issue - vaccination"]
[43,{"$f":"VLOOKUP(Epidemic_Codes[[#This Row],[File ID]],Table119[], MATCH(B$4,Table119[#Headers],0), 0)","v":{"$error":"#N/A"}},{"$f":"VLOOKUP(Epidemic_Codes[[#This Row],[File ID]],Table119[], MATCH(C$4,Table119[#Headers],0), 0)","v":{"$error":"#N/A"}}]
[44,{"$f":"VLOOKUP(Epidemic_Codes[[#This Row],[File ID]],Table119[], MATCH(B$4,Table119[#Headers],0), 0)","v":{"$error":"#N/A"}},{"$f":"VLOOKUP(Epidemic_Codes[[#This Row],[File ID]],Table119[], MATCH(C$4,Table119[#Headers],0), 0)","v":{"$error":"#N/A"}}]
[45,{"$f":"VLOOKUP(Epidemic_Codes[[#This Row],[File ID]],Table119[], MATCH(B$4,Table119[#Headers],0), 0)","v":{"$error":"#N/A"}},{"$f":"VLOOKUP(Epidemic_Codes[[#This Row],[File ID]],Table119[], MATCH(C$4,Table119[#Headers],0), 0)","v":{"$error":"#N/A"}}]
[46,{"$f":"VLOOKUP(Epidemic_Codes[[#This Row],[File ID]],Table119[], MATCH(B$4,Table119[#Headers],0), 0)","v":{"$error":"#N/A"}},{"$f":"VLOOKUP(Epidemic_Codes[[#This Row],[File ID]],Table119[], MATCH(C$4,Table119[#Headers],0), 0)","v":{"$error":"#N/A"}}]
[47,{"$f":"VLOOKUP(Epidemic_Codes[[#This Row],[File ID]],Table119[], MATCH(B$4,Table119[#Headers],0), 0)","v":{"$error":"#N/A"}},{"$f":"VLOOKUP(Epidemic_Codes[[#This Row],[File ID]],Table119[], MATCH(C$4,Table119[#Headers],0), 0)","v":{"$error":"#N/A"}}]
[48,{"$f":"VLOOKUP(Epidemic_Codes[[#This Row],[File ID]],Table119[], MATCH(B$4,Table119[#Headers],0), 0)","v":{"$error":"#N/A"}},{"$f":"VLOOKUP(Epidemic_Codes[[#This Row],[File ID]],Table119[], MATCH(C$4,Table119[#Headers],0), 0)","v":{"$error":"#N/A"}}]
[49,{"$f":"VLOOKUP(Epidemic_Codes[[#This Row],[File ID]],Table119[], MATCH(B$4,Table119[#Headers],0), 0)","v":{"$error":"#N/A"}},{"$f":"VLOOKUP(Epidemic_Codes[[#This Row],[File ID]],Table119[], MATCH(C$4,Table119[#Headers],0), 0)","v":{"$error":"#N/A"}}]
[50,{"$f":"VLOOKUP(Epidemic_Codes[[#This Row],[File ID]],Table119[], MATCH(B$4,Table119[#Headers],0), 0)","v":{"$error":"#N/A"}},{"$f":"VLOOKUP(Epidemic_Codes[[#This Row],[File ID]],Table119[], MATCH(C$4,Table119[#Headers],0), 0)","v":{"$error":"#N/A"}}]
[51,{"$f":"VLOOKUP(Epidemic_Codes[[#This Row],[File ID]],Table119[], MATCH(B$4,Table119[#Headers],0), 0)","v":{"$error":"#N/A"}},{"$f":"VLOOKUP(Epidemic_Codes[[#This Row],[File ID]],Table119[], MATCH(C$4,Table119[#Headers],0), 0)","v":{"$error":"#N/A"}}]
[52,{"$f":"VLOOKUP(Epidemic_Codes[[#This Row],[File ID]],Table119[], MATCH(B$4,Table119[#Headers],0), 0)","v":{"$error":"#N/A"}},{"$f":"VLOOKUP(Epidemic_Codes[[#This Row],[File ID]],Table119[], MATCH(C$4,Table119[#Headers],0), 0)","v":{"$error":"#N/A"}}]
[53,{"$f":"VLOOKUP(Epidemic_Codes[[#This Row],[File ID]],Table119[], MATCH(B$4,Table119[#Headers],0), 0)","v":{"$error":"#N/A"}},{"$f":"VLOOKUP(Epidemic_Codes[[#This Row],[File ID]],Table119[], MATCH(C$4,Table119[#Headers],0), 0)","v":{"$error":"#N/A"}}]
[54,{"$f":"VLOOKUP(Epidemic_Codes[[#This Row],[File ID]],Table119[], MATCH(B$4,Table119[#Headers],0), 0)","v":{"$error":"#N/A"}},{"$f":"VLOOKUP(Epidemic_Codes[[#This Row],[File ID]],Table119[], MATCH(C$4,Table119[#Headers],0), 0)","v":{"$error":"#N/A"}}]
[55,{"$f":"VLOOKUP(Epidemic_Codes[[#This Row],[File ID]],Table119[], MATCH(B$4,Table119[#Headers],0), 0)","v":{"$error":"#N/A"}},{"$f":"VLOOKUP(Epidemic_Codes[[#This Row],[File ID]],Table119[], MATCH(C$4,Table119[#Headers],0), 0)","v":{"$error":"#N/A"}}]
[56,{"$f":"VLOOKUP(Epidemic_Codes[[#This Row],[File ID]],Table119[], MATCH(B$4,Table119[#Headers],0), 0)","v":{"$error":"#N/A"}},{"$f":"VLOOKUP(Epidemic_Codes[[#This Row],[File ID]],Table119[], MATCH(C$4,Table119[#Headers],0), 0)","v":{"$error":"#N/A"}}]
[57,{"$f":"VLOOKUP(Epidemic_Codes[[#This Row],[File ID]],Table119[], MATCH(B$4,Table119[#Headers],0), 0)","v":{"$error":"#N/A"}},{"$f":"VLOOKUP(Epidemic_Codes[[#This Row],[File ID]],Table119[], MATCH(C$4,Table119[#Headers],0), 0)","v":{"$error":"#N/A"}}]
[58,{"$f":"VLOOKUP(Epidemic_Codes[[#This Row],[File ID]],Table119[], MATCH(B$4,Table119[#Headers],0), 0)","v":{"$error":"#N/A"}},{"$f":"VLOOKUP(Epidemic_Codes[[#This Row],[File ID]],Table119[], MATCH(C$4,Table119[#Headers],0), 0)","v":{"$error":"#N/A"}}]
[59,{"$f":"VLOOKUP(Epidemic_Codes[[#This Row],[File ID]],Table119[], MATCH(B$4,Table119[#Headers],0), 0)","v":{"$error":"#N/A"}},{"$f":"VLOOKUP(Epidemic_Codes[[#This Row],[File ID]],Table119[], MATCH(C$4,Table119[#Headers],0), 0)","v":{"$error":"#N/A"}}]
[60,{"$f":"VLOOKUP(Epidemic_Codes[[#This Row],[File ID]],Table119[], MATCH(B$4,Table119[#Headers],0), 0)","v":{"$error":"#N/A"}},{"$f":"VLOOKUP(Epidemic_Codes[[#This Row],[File ID]],Table119[], MATCH(C$4,Table119[#Headers],0), 0)","v":{"$error":"#N/A"}}]
[61,{"$f":"VLOOKUP(Epidemic_Codes[[#This Row],[File ID]],Table119[], MATCH(B$4,Table119[#Headers],0), 0)","v":{"$error":"#N/A"}},{"$f":"VLOOKUP(Epidemic_Codes[[#This Row],[File ID]],Table119[], MATCH(C$4,Table119[#Headers],0), 0)","v":{"$error":"#N/A"}}]
[62,{"$f":"VLOOKUP(Epidemic_Codes[[#This Row],[File ID]],Table119[], MATCH(B$4,Table119[#Headers],0), 0)","v":{"$error":"#N/A"}},{"$f":"VLOOKUP(Epidemic_Codes[[#This Row],[File ID]],Table119[], MATCH(C$4,Table119[#Headers],0), 0)","v":{"$error":"#N/A"}}]
[63,{"$f":"VLOOKUP(Epidemic_Codes[[#This Row],[File ID]],Table119[], MATCH(B$4,Table119[#Headers],0), 0)","v":{"$error":"#N/A"}},{"$f":"VLOOKUP(Epidemic_Codes[[#This Row],[File ID]],Table119[], MATCH(C$4,Table119[#Headers],0), 0)","v":{"$error":"#N/A"}}]
[64,{"$f":"VLOOKUP(Epidemic_Codes[[#This Row],[File ID]],Table119[], MATCH(B$4,Table119[#Headers],0), 0)","v":{"$error":"#N/A"}},{"$f":"VLOOKUP(Epidemic_Codes[[#This Row],[File ID]],Table119[], MATCH(C$4,Table119[#Headers],0), 0)","v":{"$error":"#N/A"}}]
[{"$f":"ROW()-4","v":65},{"$f":"VLOOKUP(Epidemic_Codes[[#This Row],[File ID]],Table119[], MATCH(B$4,Table119[#Headers],0), 0)","v":{"$error":"#N/A"}},{"$f":"VLOOKUP(Epidemic_Codes[[#This Row],[File ID]],Table119[], MATCH(C$4,Table119[#Headers],0), 0)","v":{"$error":"#N/A"}}]
[66,{"$f":"VLOOKUP(Epidemic_Codes[[#This Row],[File ID]],Table119[], MATCH(B$4,Table119[#Headers],0), 0)","v":{"$error":"#N/A"}},{"$f":"VLOOKUP(Epidemic_Codes[[#This Row],[File ID]],Table119[], MATCH(C$4,Table119[#Headers],0), 0)","v":{"$error":"#N/A"}}]
[67,{"$f":"VLOOKUP(Epidemic_Codes[[#This Row],[File ID]],Table119[], MATCH(B$4,Table119[#Headers],0), 0)","v":{"$error":"#N/A"}},{"$f":"VLOOKUP(Epidemic_Codes[[#This Row],[File ID]],Table119[], MATCH(C$4,Table119[#Headers],0), 0)","v":{"$error":"#N/A"}}]
[68,{"$f":"VLOOKUP(Epidemic_Codes[[#This Row],[File ID]],Table119[], MATCH(B$4,Table119[#Headers],0), 0)","v":{"$error":"#N/A"}},{"$f":"VLOOKUP(Epidemic_Codes[[#This Row],[File ID]],Table119[], MATCH(C$4,Table119[#Headers],0), 0)","v":{"$error":"#N/A"}}]
[69,{"$f":"VLOOKUP(Epidemic_Codes[[#This Row],[File ID]],Table119[], MATCH(B$4,Table119[#Headers],0), 0)","v":{"$error":"#N/A"}},{"$f":"VLOOKUP(Epidemic_Codes[[#This Row],[File ID]],Table119[], MATCH(C$4,Table119[#Headers],0), 0)","v":{"$error":"#N/A"}}]
[70,{"$f":"VLOOKUP(Epidemic_Codes[[#This Row],[File ID]],Table119[], MATCH(B$4,Table119[#Headers],0), 0)","v":{"$error":"#N/A"}},{"$f":"VLOOKUP(Epidemic_Codes[[#This Row],[File ID]],Table119[], MATCH(C$4,Table119[#Headers],0), 0)","v":{"$error":"#N/A"}}]
[71,{"$f":"VLOOKUP(Epidemic_Codes[[#This Row],[File ID]],Table119[], MATCH(B$4,Table119[#Headers],0), 0)","v":{"$error":"#N/A"}},{"$f":"VLOOKUP(Epidemic_Codes[[#This Row],[File ID]],Table119[], MATCH(C$4,Table119[#Headers],0), 0)","v":{"$error":"#N/A"}}]
[72,{"$f":"VLOOKUP(Epidemic_Codes[[#This Row],[File ID]],Table119[], MATCH(B$4,Table119[#Headers],0), 0)","v":{"$error":"#N/A"}},{"$f":"VLOOKUP(Epidemic_Codes[[#This Row],[File ID]],Table119[], MATCH(C$4,Table119[#Headers],0), 0)","v":{"$error":"#N/A"}}]
[73,{"$f":"VLOOKUP(Epidemic_Codes[[#This Row],[File ID]],Table119[], MATCH(B$4,Table119[#Headers],0), 0)","v":{"$error":"#N/A"}},{"$f":"VLOOKUP(Epidemic_Codes[[#This Row],[File ID]],Table119[], MATCH(C$4,Table119[#Headers],0), 0)","v":{"$error":"#N/A"}}]
[74,{"$f":"VLOOKUP(Epidemic_Codes[[#This Row],[File ID]],Table119[], MATCH(B$4,Table119[#Headers],0), 0)","v":{"$error":"#N/A"}},{"$f":"VLOOKUP(Epidemic_Codes[[#This Row],[File ID]],Table119[], MATCH(C$4,Table119[#Headers],0), 0)","v":{"$error":"#N/A"}}]
[75,{"$f":"VLOOKUP(Epidemic_Codes[[#This Row],[File ID]],Table119[], MATCH(B$4,Table119[#Headers],0), 0)","v":{"$error":"#N/A"}},{"$f":"VLOOKUP(Epidemic_Codes[[#This Row],[File ID]],Table119[], MATCH(C$4,Table119[#Headers],0), 0)","v":{"$error":"#N/A"}}]
[76,{"$f":"VLOOKUP(Epidemic_Codes[[#This Row],[File ID]],Table119[], MATCH(B$4,Table119[#Headers],0), 0)","v":{"$error":"#N/A"}},{"$f":"VLOOKUP(Epidemic_Codes[[#This Row],[File ID]],Table119[], MATCH(C$4,Table119[#Headers],0), 0)","v":{"$error":"#N/A"}}]
[77,{"$f":"VLOOKUP(Epidemic_Codes[[#This Row],[File ID]],Table119[], MATCH(B$4,Table119[#Headers],0), 0)","v":{"$error":"#N/A"}},{"$f":"VLOOKUP(Epidemic_Codes[[#This Row],[File ID]],Table119[], MATCH(C$4,Table119[#Headers],0), 0)","v":{"$error":"#N/A"}}]
[78,{"$f":"VLOOKUP(Epidemic_Codes[[#This Row],[File ID]],Table119[], MATCH(B$4,Table119[#Headers],0), 0)","v":{"$error":"#N/A"}},{"$f":"VLOOKUP(Epidemic_Codes[[#This Row],[File ID]],Table119[], MATCH(C$4,Table119[#Headers],0), 0)","v":{"$error":"#N/A"}}]
[79,{"$f":"VLOOKUP(Epidemic_Codes[[#This Row],[File ID]],Table119[], MATCH(B$4,Table119[#Headers],0), 0)","v":{"$error":"#N/A"}},{"$f":"VLOOKUP(Epidemic_Codes[[#This Row],[File ID]],Table119[], MATCH(C$4,Table119[#Headers],0), 0)","v":{"$error":"#N/A"}}]
[80,{"$f":"VLOOKUP(Epidemic_Codes[[#This Row],[File ID]],Table119[], MATCH(B$4,Table119[#Headers],0), 0)","v":{"$error":"#N/A"}},{"$f":"VLOOKUP(Epidemic_Codes[[#This Row],[File ID]],Table119[], MATCH(C$4,Table119[#Headers],0), 0)","v":{"$error":"#N/A"}}]
[81,{"$f":"VLOOKUP(Epidemic_Codes[[#This Row],[File ID]],Table119[], MATCH(B$4,Table119[#Headers],0), 0)","v":{"$error":"#N/A"}},{"$f":"VLOOKUP(Epidemic_Codes[[#This Row],[File ID]],Table119[], MATCH(C$4,Table119[#Headers],0), 0)","v":{"$error":"#N/A"}}]
[82,{"$f":"VLOOKUP(Epidemic_Codes[[#This Row],[File ID]],Table119[], MATCH(B$4,Table119[#Headers],0), 0)","v":{"$error":"#N/A"}},{"$f":"VLOOKUP(Epidemic_Codes[[#This Row],[File ID]],Table119[], MATCH(C$4,Table119[#Headers],0), 0)","v":{"$error":"#N/A"}}]
[83,{"$f":"VLOOKUP(Epidemic_Codes[[#This Row],[File ID]],Table119[], MATCH(B$4,Table119[#Headers],0), 0)","v":{"$error":"#N/A"}},{"$f":"VLOOKUP(Epidemic_Codes[[#This Row],[File ID]],Table119[], MATCH(C$4,Table119[#Headers],0), 0)","v":{"$error":"#N/A"}}]
[84,{"$f":"VLOOKUP(Epidemic_Codes[[#This Row],[File ID]],Table119[], MATCH(B$4,Table119[#Headers],0), 0)","v":{"$error":"#N/A"}},{"$f":"VLOOKUP(Epidemic_Codes[[#This Row],[File ID]],Table119[], MATCH(C$4,Table119[#Headers],0), 0)","v":{"$error":"#N/A"}}]
[85,{"$f":"VLOOKUP(Epidemic_Codes[[#This Row],[File ID]],Table119[], MATCH(B$4,Table119[#Headers],0), 0)","v":{"$error":"#N/A"}},{"$f":"VLOOKUP(Epidemic_Codes[[#This Row],[File ID]],Table119[], MATCH(C$4,Table119[#Headers],0), 0)","v":{"$error":"#N/A"}}]
[86,{"$f":"VLOOKUP(Epidemic_Codes[[#This Row],[File ID]],Table119[], MATCH(B$4,Table119[#Headers],0), 0)","v":{"$error":"#N/A"}},{"$f":"VLOOKUP(Epidemic_Codes[[#This Row],[File ID]],Table119[], MATCH(C$4,Table119[#Headers],0), 0)","v":{"$error":"#N/A"}}]
[87,{"$f":"VLOOKUP(Epidemic_Codes[[#This Row],[File ID]],Table119[], MATCH(B$4,Table119[#Headers],0), 0)","v":{"$error":"#N/A"}},{"$f":"VLOOKUP(Epidemic_Codes[[#This Row],[File ID]],Table119[], MATCH(C$4,Table119[#Headers],0), 0)","v":{"$error":"#N/A"}}]
[88,{"$f":"VLOOKUP(Epidemic_Codes[[#This Row],[File ID]],Table119[], MATCH(B$4,Table119[#Headers],0), 0)","v":{"$error":"#N/A"}},{"$f":"VLOOKUP(Epidemic_Codes[[#This Row],[File ID]],Table119[], MATCH(C$4,Table119[#Headers],0), 0)","v":{"$error":"#N/A"}}]
[89,{"$f":"VLOOKUP(Epidemic_Codes[[#This Row],[File ID]],Table119[], MATCH(B$4,Table119[#Headers],0), 0)","v":{"$error":"#N/A"}},{"$f":"VLOOKUP(Epidemic_Codes[[#This Row],[File ID]],Table119[], MATCH(C$4,Table119[#Headers],0), 0)","v":{"$error":"#N/A"}}]
[90,{"$f":"VLOOKUP(Epidemic_Codes[[#This Row],[File ID]],Table119[], MATCH(B$4,Table119[#Headers],0), 0)","v":{"$error":"#N/A"}},{"$f":"VLOOKUP(Epidemic_Codes[[#This Row],[File ID]],Table119[], MATCH(C$4,Table119[#Headers],0), 0)","v":{"$error":"#N/A"}}]
[91,{"$f":"VLOOKUP(Epidemic_Codes[[#This Row],[File ID]],Table119[], MATCH(B$4,Table119[#Headers],0), 0)","v":{"$error":"#N/A"}},{"$f":"VLOOKUP(Epidemic_Codes[[#This Row],[File ID]],Table119[], MATCH(C$4,Table119[#Headers],0), 0)","v":{"$error":"#N/A"}}]
[92,{"$f":"VLOOKUP(Epidemic_Codes[[#This Row],[File ID]],Table119[], MATCH(B$4,Table119[#Headers],0), 0)","v":{"$error":"#N/A"}},{"$f":"VLOOKUP(Epidemic_Codes[[#This Row],[File ID]],Table119[], MATCH(C$4,Table119[#Headers],0), 0)","v":{"$error":"#N/A"}}]
[93,{"$f":"VLOOKUP(Epidemic_Codes[[#This Row],[File ID]],Table119[], MATCH(B$4,Table119[#Headers],0), 0)","v":{"$error":"#N/A"}},{"$f":"VLOOKUP(Epidemic_Codes[[#This Row],[File ID]],Table119[], MATCH(C$4,Table119[#Headers],0), 0)","v":{"$error":"#N/A"}}]
[94,{"$f":"VLOOKUP(Epidemic_Codes[[#This Row],[File ID]],Table119[], MATCH(B$4,Table119[#Headers],0), 0)","v":{"$error":"#N/A"}},{"$f":"VLOOKUP(Epidemic_Codes[[#This Row],[File ID]],Table119[], MATCH(C$4,Table119[#Headers],0), 0)","v":{"$error":"#N/A"}}]
[95,{"$f":"VLOOKUP(Epidemic_Codes[[#This Row],[File ID]],Table119[], MATCH(B$4,Table119[#Headers],0), 0)","v":{"$error":"#N/A"}},{"$f":"VLOOKUP(Epidemic_Codes[[#This Row],[File ID]],Table119[], MATCH(C$4,Table119[#Headers],0), 0)","v":{"$error":"#N/A"}}]
[96,{"$f":"VLOOKUP(Epidemic_Codes[[#This Row],[File ID]],Table119[], MATCH(B$4,Table119[#Headers],0), 0)","v":{"$error":"#N/A"}},{"$f":"VLOOKUP(Epidemic_Codes[[#This Row],[File ID]],Table119[], MATCH(C$4,Table119[#Headers],0), 0)","v":{"$error":"#N/A"}}]
[97,{"$f":"VLOOKUP(Epidemic_Codes[[#This Row],[File ID]],Table119[], MATCH(B$4,Table119[#Headers],0), 0)","v":{"$error":"#N/A"}},{"$f":"VLOOKUP(Epidemic_Codes[[#This Row],[File ID]],Table119[], MATCH(C$4,Table119[#Headers],0), 0)","v":{"$error":"#N/A"}}]
[98,{"$f":"VLOOKUP(Epidemic_Codes[[#This Row],[File ID]],Table119[], MATCH(B$4,Table119[#Headers],0), 0)","v":{"$error":"#N/A"}},{"$f":"VLOOKUP(Epidemic_Codes[[#This Row],[File ID]],Table119[], MATCH(C$4,Table119[#Headers],0), 0)","v":{"$error":"#N/A"}}]
[99,{"$f":"VLOOKUP(Epidemic_Codes[[#This Row],[File ID]],Table119[], MATCH(B$4,Table119[#Headers],0), 0)","v":{"$error":"#N/A"}},{"$f":"VLOOKUP(Epidemic_Codes[[#This Row],[File ID]],Table119[], MATCH(C$4,Table119[#Headers],0), 0)","v":{"$error":"#N/A"}}]
[100,{"$f":"VLOOKUP(Epidemic_Codes[[#This Row],[File ID]],Table119[], MATCH(B$4,Table119[#Headers],0), 0)","v":{"$error":"#N/A"}},{"$f":"VLOOKUP(Epidemic_Codes[[#This Row],[File ID]],Table119[], MATCH(C$4,Table119[#Headers],0), 0)","v":{"$error":"#N/A"}}]
[101,{"$f":"VLOOKUP(Epidemic_Codes[[#This Row],[File ID]],Table119[], MATCH(B$4,Table119[#Headers],0), 0)","v":{"$error":"#N/A"}},{"$f":"VLOOKUP(Epidemic_Codes[[#This Row],[File ID]],Table119[], MATCH(C$4,Table119[#Headers],0), 0)","v":{"$error":"#N/A"}}]
[102,{"$f":"VLOOKUP(Epidemic_Codes[[#This Row],[File ID]],Table119[], MATCH(B$4,Table119[#Headers],0), 0)","v":{"$error":"#N/A"}},{"$f":"VLOOKUP(Epidemic_Codes[[#This Row],[File ID]],Table119[], MATCH(C$4,Table119[#Headers],0), 0)","v":{"$error":"#N/A"}}]
[103,{"$f":"VLOOKUP(Epidemic_Codes[[#This Row],[File ID]],Table119[], MATCH(B$4,Table119[#Headers],0), 0)","v":{"$error":"#N/A"}},{"$f":"VLOOKUP(Epidemic_Codes[[#This Row],[File ID]],Table119[], MATCH(C$4,Table119[#Headers],0), 0)","v":{"$error":"#N/A"}}]
[104,{"$f":"VLOOKUP(Epidemic_Codes[[#This Row],[File ID]],Table119[], MATCH(B$4,Table119[#Headers],0), 0)","v":{"$error":"#N/A"}},{"$f":"VLOOKUP(Epidemic_Codes[[#This Row],[File ID]],Table119[], MATCH(C$4,Table119[#Headers],0), 0)","v":{"$error":"#N/A"}}]
[105,{"$f":"VLOOKUP(Epidemic_Codes[[#This Row],[File ID]],Table119[], MATCH(B$4,Table119[#Headers],0), 0)","v":{"$error":"#N/A"}},{"$f":"VLOOKUP(Epidemic_Codes[[#This Row],[File ID]],Table119[], MATCH(C$4,Table119[#Headers],0), 0)","v":{"$error":"#N/A"}}]
[106,{"$f":"VLOOKUP(Epidemic_Codes[[#This Row],[File ID]],Table119[], MATCH(B$4,Table119[#Headers],0), 0)","v":{"$error":"#N/A"}},{"$f":"VLOOKUP(Epidemic_Codes[[#This Row],[File ID]],Table119[], MATCH(C$4,Table119[#Headers],0), 0)","v":{"$error":"#N/A"}}]
[107,{"$f":"VLOOKUP(Epidemic_Codes[[#This Row],[File ID]],Table119[], MATCH(B$4,Table119[#Headers],0), 0)","v":{"$error":"#N/A"}},{"$f":"VLOOKUP(Epidemic_Codes[[#This Row],[File ID]],Table119[], MATCH(C$4,Table119[#Headers],0), 0)","v":{"$error":"#N/A"}}]
[108,{"$f":"VLOOKUP(Epidemic_Codes[[#This Row],[File ID]],Table119[], MATCH(B$4,Table119[#Headers],0), 0)","v":{"$error":"#N/A"}},{"$f":"VLOOKUP(Epidemic_Codes[[#This Row],[File ID]],Table119[], MATCH(C$4,Table119[#Headers],0), 0)","v":{"$error":"#N/A"}}]
[109,{"$f":"VLOOKUP(Epidemic_Codes[[#This Row],[File ID]],Table119[], MATCH(B$4,Table119[#Headers],0), 0)","v":{"$error":"#N/A"}},{"$f":"VLOOKUP(Epidemic_Codes[[#This Row],[File ID]],Table119[], MATCH(C$4,Table119[#Headers],0), 0)","v":{"$error":"#N/A"}}]
[110,{"$f":"VLOOKUP(Epidemic_Codes[[#This Row],[File ID]],Table119[], MATCH(B$4,Table119[#Headers],0), 0)","v":{"$error":"#N/A"}},{"$f":"VLOOKUP(Epidemic_Codes[[#This Row],[File ID]],Table119[], MATCH(C$4,Table119[#Headers],0), 0)","v":{"$error":"#N/A"}}]
[111,{"$f":"VLOOKUP(Epidemic_Codes[[#This Row],[File ID]],Table119[], MATCH(B$4,Table119[#Headers],0), 0)","v":{"$error":"#N/A"}},{"$f":"VLOOKUP(Epidemic_Codes[[#This Row],[File ID]],Table119[], MATCH(C$4,Table119[#Headers],0), 0)","v":{"$error":"#N/A"}}]
[112,{"$f":"VLOOKUP(Epidemic_Codes[[#This Row],[File ID]],Table119[], MATCH(B$4,Table119[#Headers],0), 0)","v":{"$error":"#N/A"}},{"$f":"VLOOKUP(Epidemic_Codes[[#This Row],[File ID]],Table119[], MATCH(C$4,Table119[#Headers],0), 0)","v":{"$error":"#N/A"}}]
[113,{"$f":"VLOOKUP(Epidemic_Codes[[#This Row],[File ID]],Table119[], MATCH(B$4,Table119[#Headers],0), 0)","v":{"$error":"#N/A"}},{"$f":"VLOOKUP(Epidemic_Codes[[#This Row],[File ID]],Table119[], MATCH(C$4,Table119[#Headers],0), 0)","v":{"$error":"#N/A"}}]
[114,{"$f":"VLOOKUP(Epidemic_Codes[[#This Row],[File ID]],Table119[], MATCH(B$4,Table119[#Headers],0), 0)","v":{"$error":"#N/A"}},{"$f":"VLOOKUP(Epidemic_Codes[[#This Row],[File ID]],Table119[], MATCH(C$4,Table119[#Headers],0), 0)","v":{"$error":"#N/A"}}]
[115,{"$f":"VLOOKUP(Epidemic_Codes[[#This Row],[File ID]],Table119[], MATCH(B$4,Table119[#Headers],0), 0)","v":{"$error":"#N/A"}},{"$f":"VLOOKUP(Epidemic_Codes[[#This Row],[File ID]],Table119[], MATCH(C$4,Table119[#Headers],0), 0)","v":{"$error":"#N/A"}}]
[116,{"$f":"VLOOKUP(Epidemic_Codes[[#This Row],[File ID]],Table119[], MATCH(B$4,Table119[#Headers],0), 0)","v":{"$error":"#N/A"}},{"$f":"VLOOKUP(Epidemic_Codes[[#This Row],[File ID]],Table119[], MATCH(C$4,Table119[#Headers],0), 0)","v":{"$error":"#N/A"}}]
[117,{"$f":"VLOOKUP(Epidemic_Codes[[#This Row],[File ID]],Table119[], MATCH(B$4,Table119[#Headers],0), 0)","v":{"$error":"#N/A"}},{"$f":"VLOOKUP(Epidemic_Codes[[#This Row],[File ID]],Table119[], MATCH(C$4,Table119[#Headers],0), 0)","v":{"$error":"#N/A"}}]
[118,{"$f":"VLOOKUP(Epidemic_Codes[[#This Row],[File ID]],Table119[], MATCH(B$4,Table119[#Headers],0), 0)","v":{"$error":"#N/A"}},{"$f":"VLOOKUP(Epidemic_Codes[[#This Row],[File ID]],Table119[], MATCH(C$4,Table119[#Headers],0), 0)","v":{"$error":"#N/A"}}]
[119,{"$f":"VLOOKUP(Epidemic_Codes[[#This Row],[File ID]],Table119[], MATCH(B$4,Table119[#Headers],0), 0)","v":{"$error":"#N/A"}},{"$f":"VLOOKUP(Epidemic_Codes[[#This Row],[File ID]],Table119[], MATCH(C$4,Table119[#Headers],0), 0)","v":{"$error":"#N/A"}}]
[120,{"$f":"VLOOKUP(Epidemic_Codes[[#This Row],[File ID]],Table119[], MATCH(B$4,Table119[#Headers],0), 0)","v":{"$error":"#N/A"}},{"$f":"VLOOKUP(Epidemic_Codes[[#This Row],[File ID]],Table119[], MATCH(C$4,Table119[#Headers],0), 0)","v":{"$error":"#N/A"}}]
[121,{"$f":"VLOOKUP(Epidemic_Codes[[#This Row],[File ID]],Table119[], MATCH(B$4,Table119[#Headers],0), 0)","v":{"$error":"#N/A"}},{"$f":"VLOOKUP(Epidemic_Codes[[#This Row],[File ID]],Table119[], MATCH(C$4,Table119[#Headers],0), 0)","v":{"$error":"#N/A"}}]
[122,{"$f":"VLOOKUP(Epidemic_Codes[[#This Row],[File ID]],Table119[], MATCH(B$4,Table119[#Headers],0), 0)","v":{"$error":"#N/A"}},{"$f":"VLOOKUP(Epidemic_Codes[[#This Row],[File ID]],Table119[], MATCH(C$4,Table119[#Headers],0), 0)","v":{"$error":"#N/A"}}]
[123,{"$f":"VLOOKUP(Epidemic_Codes[[#This Row],[File ID]],Table119[], MATCH(B$4,Table119[#Headers],0), 0)","v":{"$error":"#N/A"}},{"$f":"VLOOKUP(Epidemic_Codes[[#This Row],[File ID]],Table119[], MATCH(C$4,Table119[#Headers],0), 0)","v":{"$error":"#N/A"}}]
[124,{"$f":"VLOOKUP(Epidemic_Codes[[#This Row],[File ID]],Table119[], MATCH(B$4,Table119[#Headers],0), 0)","v":{"$error":"#N/A"}},{"$f":"VLOOKUP(Epidemic_Codes[[#This Row],[File ID]],Table119[], MATCH(C$4,Table119[#Headers],0), 0)","v":{"$error":"#N/A"}}]
[125,{"$f":"VLOOKUP(Epidemic_Codes[[#This Row],[File ID]],Table119[], MATCH(B$4,Table119[#Headers],0), 0)","v":{"$error":"#N/A"}},{"$f":"VLOOKUP(Epidemic_Codes[[#This Row],[File ID]],Table119[], MATCH(C$4,Table119[#Headers],0), 0)","v":{"$error":"#N/A"}}]
[126,{"$f":"VLOOKUP(Epidemic_Codes[[#This Row],[File ID]],Table119[], MATCH(B$4,Table119[#Headers],0), 0)","v":{"$error":"#N/A"}},{"$f":"VLOOKUP(Epidemic_Codes[[#This Row],[File ID]],Table119[], MATCH(C$4,Table119[#Headers],0), 0)","v":{"$error":"#N/A"}}]
[127,{"$f":"VLOOKUP(Epidemic_Codes[[#This Row],[File ID]],Table119[], MATCH(B$4,Table119[#Headers],0), 0)","v":{"$error":"#N/A"}},{"$f":"VLOOKUP(Epidemic_Codes[[#This Row],[File ID]],Table119[], MATCH(C$4,Table119[#Headers],0), 0)","v":{"$error":"#N/A"}}]
[128,{"$f":"VLOOKUP(Epidemic_Codes[[#This Row],[File ID]],Table119[], MATCH(B$4,Table119[#Headers],0), 0)","v":{"$error":"#N/A"}},{"$f":"VLOOKUP(Epidemic_Codes[[#This Row],[File ID]],Table119[], MATCH(C$4,Table119[#Headers],0), 0)","v":{"$error":"#N/A"}}]
[{"$f":"ROW()-4","v":129},{"$f":"VLOOKUP(Epidemic_Codes[[#This Row],[File ID]],Table119[], MATCH(B$4,Table119[#Headers],0), 0)","v":{"$error":"#N/A"}},{"$f":"VLOOKUP(Epidemic_Codes[[#This Row],[File ID]],Table119[], MATCH(C$4,Table119[#Headers],0), 0)","v":{"$error":"#N/A"}}]
[130,{"$f":"VLOOKUP(Epidemic_Codes[[#This Row],[File ID]],Table119[], MATCH(B$4,Table119[#Headers],0), 0)","v":{"$error":"#N/A"}},{"$f":"VLOOKUP(Epidemic_Codes[[#This Row],[File ID]],Table119[], MATCH(C$4,Table119[#Headers],0), 0)","v":{"$error":"#N/A"}}]
[131,{"$f":"VLOOKUP(Epidemic_Codes[[#This Row],[File ID]],Table119[], MATCH(B$4,Table119[#Headers],0), 0)","v":{"$error":"#N/A"}},{"$f":"VLOOKUP(Epidemic_Codes[[#This Row],[File ID]],Table119[], MATCH(C$4,Table119[#Headers],0), 0)","v":{"$error":"#N/A"}}]
[132,{"$f":"VLOOKUP(Epidemic_Codes[[#This Row],[File ID]],Table119[], MATCH(B$4,Table119[#Headers],0), 0)","v":{"$error":"#N/A"}},{"$f":"VLOOKUP(Epidemic_Codes[[#This Row],[File ID]],Table119[], MATCH(C$4,Table119[#Headers],0), 0)","v":{"$error":"#N/A"}}]
[133,{"$f":"VLOOKUP(Epidemic_Codes[[#This Row],[File ID]],Table119[], MATCH(B$4,Table119[#Headers],0), 0)","v":{"$error":"#N/A"}},{"$f":"VLOOKUP(Epidemic_Codes[[#This Row],[File ID]],Table119[], MATCH(C$4,Table119[#Headers],0), 0)","v":{"$error":"#N/A"}}]
[134,{"$f":"VLOOKUP(Epidemic_Codes[[#This Row],[File ID]],Table119[], MATCH(B$4,Table119[#Headers],0), 0)","v":{"$error":"#N/A"}},{"$f":"VLOOKUP(Epidemic_Codes[[#This Row],[File ID]],Table119[], MATCH(C$4,Table119[#Headers],0), 0)","v":{"$error":"#N/A"}}]
[135,{"$f":"VLOOKUP(Epidemic_Codes[[#This Row],[File ID]],Table119[], MATCH(B$4,Table119[#Headers],0), 0)","v":{"$error":"#N/A"}},{"$f":"VLOOKUP(Epidemic_Codes[[#This Row],[File ID]],Table119[], MATCH(C$4,Table119[#Headers],0), 0)","v":{"$error":"#N/A"}}]
[136,{"$f":"VLOOKUP(Epidemic_Codes[[#This Row],[File ID]],Table119[], MATCH(B$4,Table119[#Headers],0), 0)","v":{"$error":"#N/A"}},{"$f":"VLOOKUP(Epidemic_Codes[[#This Row],[File ID]],Table119[], MATCH(C$4,Table119[#Headers],0), 0)","v":{"$error":"#N/A"}}]
[137,{"$f":"VLOOKUP(Epidemic_Codes[[#This Row],[File ID]],Table119[], MATCH(B$4,Table119[#Headers],0), 0)","v":{"$error":"#N/A"}},{"$f":"VLOOKUP(Epidemic_Codes[[#This Row],[File ID]],Table119[], MATCH(C$4,Table119[#Headers],0), 0)","v":{"$error":"#N/A"}}]
[138,{"$f":"VLOOKUP(Epidemic_Codes[[#This Row],[File ID]],Table119[], MATCH(B$4,Table119[#Headers],0), 0)","v":{"$error":"#N/A"}},{"$f":"VLOOKUP(Epidemic_Codes[[#This Row],[File ID]],Table119[], MATCH(C$4,Table119[#Headers],0), 0)","v":{"$error":"#N/A"}}]
[139,{"$f":"VLOOKUP(Epidemic_Codes[[#This Row],[File ID]],Table119[], MATCH(B$4,Table119[#Headers],0), 0)","v":{"$error":"#N/A"}},{"$f":"VLOOKUP(Epidemic_Codes[[#This Row],[File ID]],Table119[], MATCH(C$4,Table119[#Headers],0), 0)","v":{"$error":"#N/A"}}]
[140,{"$f":"VLOOKUP(Epidemic_Codes[[#This Row],[File ID]],Table119[], MATCH(B$4,Table119[#Headers],0), 0)","v":{"$error":"#N/A"}},{"$f":"VLOOKUP(Epidemic_Codes[[#This Row],[File ID]],Table119[], MATCH(C$4,Table119[#Headers],0), 0)","v":{"$error":"#N/A"}}]
[141,{"$f":"VLOOKUP(Epidemic_Codes[[#This Row],[File ID]],Table119[], MATCH(B$4,Table119[#Headers],0), 0)","v":{"$error":"#N/A"}},{"$f":"VLOOKUP(Epidemic_Codes[[#This Row],[File ID]],Table119[], MATCH(C$4,Table119[#Headers],0), 0)","v":{"$error":"#N/A"}}]
[142,{"$f":"VLOOKUP(Epidemic_Codes[[#This Row],[File ID]],Table119[], MATCH(B$4,Table119[#Headers],0), 0)","v":{"$error":"#N/A"}},{"$f":"VLOOKUP(Epidemic_Codes[[#This Row],[File ID]],Table119[], MATCH(C$4,Table119[#Headers],0), 0)","v":{"$error":"#N/A"}}]
[143,{"$f":"VLOOKUP(Epidemic_Codes[[#This Row],[File ID]],Table119[], MATCH(B$4,Table119[#Headers],0), 0)","v":{"$error":"#N/A"}},{"$f":"VLOOKUP(Epidemic_Codes[[#This Row],[File ID]],Table119[], MATCH(C$4,Table119[#Headers],0), 0)","v":{"$error":"#N/A"}}]
[144,{"$f":"VLOOKUP(Epidemic_Codes[[#This Row],[File ID]],Table119[], MATCH(B$4,Table119[#Headers],0), 0)","v":{"$error":"#N/A"}},{"$f":"VLOOKUP(Epidemic_Codes[[#This Row],[File ID]],Table119[], MATCH(C$4,Table119[#Headers],0), 0)","v":{"$error":"#N/A"}}]
[145,{"$f":"VLOOKUP(Epidemic_Codes[[#This Row],[File ID]],Table119[], MATCH(B$4,Table119[#Headers],0), 0)","v":{"$error":"#N/A"}},{"$f":"VLOOKUP(Epidemic_Codes[[#This Row],[File ID]],Table119[], MATCH(C$4,Table119[#Headers],0), 0)","v":{"$error":"#N/A"}}]
[146,{"$f":"VLOOKUP(Epidemic_Codes[[#This Row],[File ID]],Table119[], MATCH(B$4,Table119[#Headers],0), 0)","v":{"$error":"#N/A"}},{"$f":"VLOOKUP(Epidemic_Codes[[#This Row],[File ID]],Table119[], MATCH(C$4,Table119[#Headers],0), 0)","v":{"$error":"#N/A"}}]
[147,{"$f":"VLOOKUP(Epidemic_Codes[[#This Row],[File ID]],Table119[], MATCH(B$4,Table119[#Headers],0), 0)","v":{"$error":"#N/A"}},{"$f":"VLOOKUP(Epidemic_Codes[[#This Row],[File ID]],Table119[], MATCH(C$4,Table119[#Headers],0), 0)","v":{"$error":"#N/A"}}]
[148,{"$f":"VLOOKUP(Epidemic_Codes[[#This Row],[File ID]],Table119[], MATCH(B$4,Table119[#Headers],0), 0)","v":{"$error":"#N/A"}},{"$f":"VLOOKUP(Epidemic_Codes[[#This Row],[File ID]],Table119[], MATCH(C$4,Table119[#Headers],0), 0)","v":{"$error":"#N/A"}}]
[149,{"$f":"VLOOKUP(Epidemic_Codes[[#This Row],[File ID]],Table119[], MATCH(B$4,Table119[#Headers],0), 0)","v":{"$error":"#N/A"}},{"$f":"VLOOKUP(Epidemic_Codes[[#This Row],[File ID]],Table119[], MATCH(C$4,Table119[#Headers],0), 0)","v":{"$error":"#N/A"}}]
[150,{"$f":"VLOOKUP(Epidemic_Codes[[#This Row],[File ID]],Table119[], MATCH(B$4,Table119[#Headers],0), 0)","v":{"$error":"#N/A"}},{"$f":"VLOOKUP(Epidemic_Codes[[#This Row],[File ID]],Table119[], MATCH(C$4,Table119[#Headers],0), 0)","v":{"$error":"#N/A"}}]
[151,{"$f":"VLOOKUP(Epidemic_Codes[[#This Row],[File ID]],Table119[], MATCH(B$4,Table119[#Headers],0), 0)","v":{"$error":"#N/A"}},{"$f":"VLOOKUP(Epidemic_Codes[[#This Row],[File ID]],Table119[], MATCH(C$4,Table119[#Headers],0), 0)","v":{"$error":"#N/A"}}]
[152,{"$f":"VLOOKUP(Epidemic_Codes[[#This Row],[File ID]],Table119[], MATCH(B$4,Table119[#Headers],0), 0)","v":{"$error":"#N/A"}},{"$f":"VLOOKUP(Epidemic_Codes[[#This Row],[File ID]],Table119[], MATCH(C$4,Table119[#Headers],0), 0)","v":{"$error":"#N/A"}}]
[153,{"$f":"VLOOKUP(Epidemic_Codes[[#This Row],[File ID]],Table119[], MATCH(B$4,Table119[#Headers],0), 0)","v":{"$error":"#N/A"}},{"$f":"VLOOKUP(Epidemic_Codes[[#This Row],[File ID]],Table119[], MATCH(C$4,Table119[#Headers],0), 0)","v":{"$error":"#N/A"}}]
[154,{"$f":"VLOOKUP(Epidemic_Codes[[#This Row],[File ID]],Table119[], MATCH(B$4,Table119[#Headers],0), 0)","v":{"$error":"#N/A"}},{"$f":"VLOOKUP(Epidemic_Codes[[#This Row],[File ID]],Table119[], MATCH(C$4,Table119[#Headers],0), 0)","v":{"$error":"#N/A"}}]
[155,{"$f":"VLOOKUP(Epidemic_Codes[[#This Row],[File ID]],Table119[], MATCH(B$4,Table119[#Headers],0), 0)","v":{"$error":"#N/A"}},{"$f":"VLOOKUP(Epidemic_Codes[[#This Row],[File ID]],Table119[], MATCH(C$4,Table119[#Headers],0), 0)","v":{"$error":"#N/A"}}]
[156,{"$f":"VLOOKUP(Epidemic_Codes[[#This Row],[File ID]],Table119[], MATCH(B$4,Table119[#Headers],0), 0)","v":{"$error":"#N/A"}},{"$f":"VLOOKUP(Epidemic_Codes[[#This Row],[File ID]],Table119[], MATCH(C$4,Table119[#Headers],0), 0)","v":{"$error":"#N/A"}}]
[157,{"$f":"VLOOKUP(Epidemic_Codes[[#This Row],[File ID]],Table119[], MATCH(B$4,Table119[#Headers],0), 0)","v":{"$error":"#N/A"}},{"$f":"VLOOKUP(Epidemic_Codes[[#This Row],[File ID]],Table119[], MATCH(C$4,Table119[#Headers],0), 0)","v":{"$error":"#N/A"}}]
[158,{"$f":"VLOOKUP(Epidemic_Codes[[#This Row],[File ID]],Table119[], MATCH(B$4,Table119[#Headers],0), 0)","v":{"$error":"#N/A"}},{"$f":"VLOOKUP(Epidemic_Codes[[#This Row],[File ID]],Table119[], MATCH(C$4,Table119[#Headers],0), 0)","v":{"$error":"#N/A"}}]
[159,{"$f":"VLOOKUP(Epidemic_Codes[[#This Row],[File ID]],Table119[], MATCH(B$4,Table119[#Headers],0), 0)","v":{"$error":"#N/A"}},{"$f":"VLOOKUP(Epidemic_Codes[[#This Row],[File ID]],Table119[], MATCH(C$4,Table119[#Headers],0), 0)","v":{"$error":"#N/A"}}]
[160,{"$f":"VLOOKUP(Epidemic_Codes[[#This Row],[File ID]],Table119[], MATCH(B$4,Table119[#Headers],0), 0)","v":{"$error":"#N/A"}},{"$f":"VLOOKUP(Epidemic_Codes[[#This Row],[File ID]],Table119[], MATCH(C$4,Table119[#Headers],0), 0)","v":{"$error":"#N/A"}}]
[161,{"$f":"VLOOKUP(Epidemic_Codes[[#This Row],[File ID]],Table119[], MATCH(B$4,Table119[#Headers],0), 0)","v":{"$error":"#N/A"}},{"$f":"VLOOKUP(Epidemic_Codes[[#This Row],[File ID]],Table119[], MATCH(C$4,Table119[#Headers],0), 0)","v":{"$error":"#N/A"}}]
[162,{"$f":"VLOOKUP(Epidemic_Codes[[#This Row],[File ID]],Table119[], MATCH(B$4,Table119[#Headers],0), 0)","v":{"$error":"#N/A"}},{"$f":"VLOOKUP(Epidemic_Codes[[#This Row],[File ID]],Table119[], MATCH(C$4,Table119[#Headers],0), 0)","v":{"$error":"#N/A"}}]
[163,{"$f":"VLOOKUP(Epidemic_Codes[[#This Row],[File ID]],Table119[], MATCH(B$4,Table119[#Headers],0), 0)","v":{"$error":"#N/A"}},{"$f":"VLOOKUP(Epidemic_Codes[[#This Row],[File ID]],Table119[], MATCH(C$4,Table119[#Headers],0), 0)","v":{"$error":"#N/A"}}]
[164,{"$f":"VLOOKUP(Epidemic_Codes[[#This Row],[File ID]],Table119[], MATCH(B$4,Table119[#Headers],0), 0)","v":{"$error":"#N/A"}},{"$f":"VLOOKUP(Epidemic_Codes[[#This Row],[File ID]],Table119[], MATCH(C$4,Table119[#Headers],0), 0)","v":{"$error":"#N/A"}}]
[165,{"$f":"VLOOKUP(Epidemic_Codes[[#This Row],[File ID]],Table119[], MATCH(B$4,Table119[#Headers],0), 0)","v":{"$error":"#N/A"}},{"$f":"VLOOKUP(Epidemic_Codes[[#This Row],[File ID]],Table119[], MATCH(C$4,Table119[#Headers],0), 0)","v":{"$error":"#N/A"}}]
[166,{"$f":"VLOOKUP(Epidemic_Codes[[#This Row],[File ID]],Table119[], MATCH(B$4,Table119[#Headers],0), 0)","v":{"$error":"#N/A"}},{"$f":"VLOOKUP(Epidemic_Codes[[#This Row],[File ID]],Table119[], MATCH(C$4,Table119[#Headers],0), 0)","v":{"$error":"#N/A"}}]
[167,{"$f":"VLOOKUP(Epidemic_Codes[[#This Row],[File ID]],Table119[], MATCH(B$4,Table119[#Headers],0), 0)","v":{"$error":"#N/A"}},{"$f":"VLOOKUP(Epidemic_Codes[[#This Row],[File ID]],Table119[], MATCH(C$4,Table119[#Headers],0), 0)","v":{"$error":"#N/A"}}]
[168,{"$f":"VLOOKUP(Epidemic_Codes[[#This Row],[File ID]],Table119[], MATCH(B$4,Table119[#Headers],0), 0)","v":{"$error":"#N/A"}},{"$f":"VLOOKUP(Epidemic_Codes[[#This Row],[File ID]],Table119[], MATCH(C$4,Table119[#Headers],0), 0)","v":{"$error":"#N/A"}}]
[169,{"$f":"VLOOKUP(Epidemic_Codes[[#This Row],[File ID]],Table119[], MATCH(B$4,Table119[#Headers],0), 0)","v":{"$error":"#N/A"}},{"$f":"VLOOKUP(Epidemic_Codes[[#This Row],[File ID]],Table119[], MATCH(C$4,Table119[#Headers],0), 0)","v":{"$error":"#N/A"}}]
[170,{"$f":"VLOOKUP(Epidemic_Codes[[#This Row],[File ID]],Table119[], MATCH(B$4,Table119[#Headers],0), 0)","v":{"$error":"#N/A"}},{"$f":"VLOOKUP(Epidemic_Codes[[#This Row],[File ID]],Table119[], MATCH(C$4,Table119[#Headers],0), 0)","v":{"$error":"#N/A"}}]
[171,{"$f":"VLOOKUP(Epidemic_Codes[[#This Row],[File ID]],Table119[], MATCH(B$4,Table119[#Headers],0), 0)","v":{"$error":"#N/A"}},{"$f":"VLOOKUP(Epidemic_Codes[[#This Row],[File ID]],Table119[], MATCH(C$4,Table119[#Headers],0), 0)","v":{"$error":"#N/A"}}]
[172,{"$f":"VLOOKUP(Epidemic_Codes[[#This Row],[File ID]],Table119[], MATCH(B$4,Table119[#Headers],0), 0)","v":{"$error":"#N/A"}},{"$f":"VLOOKUP(Epidemic_Codes[[#This Row],[File ID]],Table119[], MATCH(C$4,Table119[#Headers],0), 0)","v":{"$error":"#N/A"}}]
[173,{"$f":"VLOOKUP(Epidemic_Codes[[#This Row],[File ID]],Table119[], MATCH(B$4,Table119[#Headers],0), 0)","v":{"$error":"#N/A"}},{"$f":"VLOOKUP(Epidemic_Codes[[#This Row],[File ID]],Table119[], MATCH(C$4,Table119[#Headers],0), 0)","v":{"$error":"#N/A"}}]
[174,{"$f":"VLOOKUP(Epidemic_Codes[[#This Row],[File ID]],Table119[], MATCH(B$4,Table119[#Headers],0), 0)","v":{"$error":"#N/A"}},{"$f":"VLOOKUP(Epidemic_Codes[[#This Row],[File ID]],Table119[], MATCH(C$4,Table119[#Headers],0), 0)","v":{"$error":"#N/A"}}]
[175,{"$f":"VLOOKUP(Epidemic_Codes[[#This Row],[File ID]],Table119[], MATCH(B$4,Table119[#Headers],0), 0)","v":{"$error":"#N/A"}},{"$f":"VLOOKUP(Epidemic_Codes[[#This Row],[File ID]],Table119[], MATCH(C$4,Table119[#Headers],0), 0)","v":{"$error":"#N/A"}}]
[176,{"$f":"VLOOKUP(Epidemic_Codes[[#This Row],[File ID]],Table119[], MATCH(B$4,Table119[#Headers],0), 0)","v":{"$error":"#N/A"}},{"$f":"VLOOKUP(Epidemic_Codes[[#This Row],[File ID]],Table119[], MATCH(C$4,Table119[#Headers],0), 0)","v":{"$error":"#N/A"}}]
[177,{"$f":"VLOOKUP(Epidemic_Codes[[#This Row],[File ID]],Table119[], MATCH(B$4,Table119[#Headers],0), 0)","v":{"$error":"#N/A"}},{"$f":"VLOOKUP(Epidemic_Codes[[#This Row],[File ID]],Table119[], MATCH(C$4,Table119[#Headers],0), 0)","v":{"$error":"#N/A"}}]
[178,{"$f":"VLOOKUP(Epidemic_Codes[[#This Row],[File ID]],Table119[], MATCH(B$4,Table119[#Headers],0), 0)","v":{"$error":"#N/A"}},{"$f":"VLOOKUP(Epidemic_Codes[[#This Row],[File ID]],Table119[], MATCH(C$4,Table119[#Headers],0), 0)","v":{"$error":"#N/A"}}]
[179,{"$f":"VLOOKUP(Epidemic_Codes[[#This Row],[File ID]],Table119[], MATCH(B$4,Table119[#Headers],0), 0)","v":{"$error":"#N/A"}},{"$f":"VLOOKUP(Epidemic_Codes[[#This Row],[File ID]],Table119[], MATCH(C$4,Table119[#Headers],0), 0)","v":{"$error":"#N/A"}}]
[180,{"$f":"VLOOKUP(Epidemic_Codes[[#This Row],[File ID]],Table119[], MATCH(B$4,Table119[#Headers],0), 0)","v":{"$error":"#N/A"}},{"$f":"VLOOKUP(Epidemic_Codes[[#This Row],[File ID]],Table119[], MATCH(C$4,Table119[#Headers],0), 0)","v":{"$error":"#N/A"}}]
[181,{"$f":"VLOOKUP(Epidemic_Codes[[#This Row],[File ID]],Table119[], MATCH(B$4,Table119[#Headers],0), 0)","v":{"$error":"#N/A"}},{"$f":"VLOOKUP(Epidemic_Codes[[#This Row],[File ID]],Table119[], MATCH(C$4,Table119[#Headers],0), 0)","v":{"$error":"#N/A"}}]
[182,{"$f":"VLOOKUP(Epidemic_Codes[[#This Row],[File ID]],Table119[], MATCH(B$4,Table119[#Headers],0), 0)","v":{"$error":"#N/A"}},{"$f":"VLOOKUP(Epidemic_Codes[[#This Row],[File ID]],Table119[], MATCH(C$4,Table119[#Headers],0), 0)","v":{"$error":"#N/A"}}]
[183,{"$f":"VLOOKUP(Epidemic_Codes[[#This Row],[File ID]],Table119[], MATCH(B$4,Table119[#Headers],0), 0)","v":{"$error":"#N/A"}},{"$f":"VLOOKUP(Epidemic_Codes[[#This Row],[File ID]],Table119[], MATCH(C$4,Table119[#Headers],0), 0)","v":{"$error":"#N/A"}}]
[184,{"$f":"VLOOKUP(Epidemic_Codes[[#This Row],[File ID]],Table119[], MATCH(B$4,Table119[#Headers],0), 0)","v":{"$error":"#N/A"}},{"$f":"VLOOKUP(Epidemic_Codes[[#This Row],[File ID]],Table119[], MATCH(C$4,Table119[#Headers],0), 0)","v":{"$error":"#N/A"}}]
[185,{"$f":"VLOOKUP(Epidemic_Codes[[#This Row],[File ID]],Table119[], MATCH(B$4,Table119[#Headers],0), 0)","v":{"$error":"#N/A"}},{"$f":"VLOOKUP(Epidemic_Codes[[#This Row],[File ID]],Table119[], MATCH(C$4,Table119[#Headers],0), 0)","v":{"$error":"#N/A"}}]
[186,{"$f":"VLOOKUP(Epidemic_Codes[[#This Row],[File ID]],Table119[], MATCH(B$4,Table119[#Headers],0), 0)","v":{"$error":"#N/A"}},{"$f":"VLOOKUP(Epidemic_Codes[[#This Row],[File ID]],Table119[], MATCH(C$4,Table119[#Headers],0), 0)","v":{"$error":"#N/A"}}]
[187,{"$f":"VLOOKUP(Epidemic_Codes[[#This Row],[File ID]],Table119[], MATCH(B$4,Table119[#Headers],0), 0)","v":{"$error":"#N/A"}},{"$f":"VLOOKUP(Epidemic_Codes[[#This Row],[File ID]],Table119[], MATCH(C$4,Table119[#Headers],0), 0)","v":{"$error":"#N/A"}}]
[188,{"$f":"VLOOKUP(Epidemic_Codes[[#This Row],[File ID]],Table119[], MATCH(B$4,Table119[#Headers],0), 0)","v":{"$error":"#N/A"}},{"$f":"VLOOKUP(Epidemic_Codes[[#This Row],[File ID]],Table119[], MATCH(C$4,Table119[#Headers],0), 0)","v":{"$error":"#N/A"}}]
[189,{"$f":"VLOOKUP(Epidemic_Codes[[#This Row],[File ID]],Table119[], MATCH(B$4,Table119[#Headers],0), 0)","v":{"$error":"#N/A"}},{"$f":"VLOOKUP(Epidemic_Codes[[#This Row],[File ID]],Table119[], MATCH(C$4,Table119[#Headers],0), 0)","v":{"$error":"#N/A"}}]
[190,{"$f":"VLOOKUP(Epidemic_Codes[[#This Row],[File ID]],Table119[], MATCH(B$4,Table119[#Headers],0), 0)","v":{"$error":"#N/A"}},{"$f":"VLOOKUP(Epidemic_Codes[[#This Row],[File ID]],Table119[], MATCH(C$4,Table119[#Headers],0), 0)","v":{"$error":"#N/A"}}]
[191,{"$f":"VLOOKUP(Epidemic_Codes[[#This Row],[File ID]],Table119[], MATCH(B$4,Table119[#Headers],0), 0)","v":{"$error":"#N/A"}},{"$f":"VLOOKUP(Epidemic_Codes[[#This Row],[File ID]],Table119[], MATCH(C$4,Table119[#Headers],0), 0)","v":{"$error":"#N/A"}}]
[192,{"$f":"VLOOKUP(Epidemic_Codes[[#This Row],[File ID]],Table119[], MATCH(B$4,Table119[#Headers],0), 0)","v":{"$error":"#N/A"}},{"$f":"VLOOKUP(Epidemic_Codes[[#This Row],[File ID]],Table119[], MATCH(C$4,Table119[#Headers],0), 0)","v":{"$error":"#N/A"}}]
[{"$f":"ROW()-4","v":193},{"$f":"VLOOKUP(Epidemic_Codes[[#This Row],[File ID]],Table119[], MATCH(B$4,Table119[#Headers],0), 0)","v":{"$error":"#N/A"}},{"$f":"VLOOKUP(Epidemic_Codes[[#This Row],[File ID]],Table119[], MATCH(C$4,Table119[#Headers],0), 0)","v":{"$error":"#N/A"}}]
[194,{"$f":"VLOOKUP(Epidemic_Codes[[#This Row],[File ID]],Table119[], MATCH(B$4,Table119[#Headers],0), 0)","v":{"$error":"#N/A"}},{"$f":"VLOOKUP(Epidemic_Codes[[#This Row],[File ID]],Table119[], MATCH(C$4,Table119[#Headers],0), 0)","v":{"$error":"#N/A"}}]
[195,{"$f":"VLOOKUP(Epidemic_Codes[[#This Row],[File ID]],Table119[], MATCH(B$4,Table119[#Headers],0), 0)","v":{"$error":"#N/A"}},{"$f":"VLOOKUP(Epidemic_Codes[[#This Row],[File ID]],Table119[], MATCH(C$4,Table119[#Headers],0), 0)","v":{"$error":"#N/A"}}]
[196,{"$f":"VLOOKUP(Epidemic_Codes[[#This Row],[File ID]],Table119[], MATCH(B$4,Table119[#Headers],0), 0)","v":{"$error":"#N/A"}},{"$f":"VLOOKUP(Epidemic_Codes[[#This Row],[File ID]],Table119[], MATCH(C$4,Table119[#Headers],0), 0)","v":{"$error":"#N/A"}}]
[197,{"$f":"VLOOKUP(Epidemic_Codes[[#This Row],[File ID]],Table119[], MATCH(B$4,Table119[#Headers],0), 0)","v":{"$error":"#N/A"}},{"$f":"VLOOKUP(Epidemic_Codes[[#This Row],[File ID]],Table119[], MATCH(C$4,Table119[#Headers],0), 0)","v":{"$error":"#N/A"}}]
[198,{"$f":"VLOOKUP(Epidemic_Codes[[#This Row],[File ID]],Table119[], MATCH(B$4,Table119[#Headers],0), 0)","v":{"$error":"#N/A"}},{"$f":"VLOOKUP(Epidemic_Codes[[#This Row],[File ID]],Table119[], MATCH(C$4,Table119[#Headers],0), 0)","v":{"$error":"#N/A"}}]
[199,{"$f":"VLOOKUP(Epidemic_Codes[[#This Row],[File ID]],Table119[], MATCH(B$4,Table119[#Headers],0), 0)","v":{"$error":"#N/A"}},{"$f":"VLOOKUP(Epidemic_Codes[[#This Row],[File ID]],Table119[], MATCH(C$4,Table119[#Headers],0), 0)","v":{"$error":"#N/A"}}]
[200,{"$f":"VLOOKUP(Epidemic_Codes[[#This Row],[File ID]],Table119[], MATCH(B$4,Table119[#Headers],0), 0)","v":{"$error":"#N/A"}},{"$f":"VLOOKUP(Epidemic_Codes[[#This Row],[File ID]],Table119[], MATCH(C$4,Table119[#Headers],0), 0)","v":{"$error":"#N/A"}}]
[201,{"$f":"VLOOKUP(Epidemic_Codes[[#This Row],[File ID]],Table119[], MATCH(B$4,Table119[#Headers],0), 0)","v":{"$error":"#N/A"}},{"$f":"VLOOKUP(Epidemic_Codes[[#This Row],[File ID]],Table119[], MATCH(C$4,Table119[#Headers],0), 0)","v":{"$error":"#N/A"}}]
[202,{"$f":"VLOOKUP(Epidemic_Codes[[#This Row],[File ID]],Table119[], MATCH(B$4,Table119[#Headers],0), 0)","v":{"$error":"#N/A"}},{"$f":"VLOOKUP(Epidemic_Codes[[#This Row],[File ID]],Table119[], MATCH(C$4,Table119[#Headers],0), 0)","v":{"$error":"#N/A"}}]
[203,{"$f":"VLOOKUP(Epidemic_Codes[[#This Row],[File ID]],Table119[], MATCH(B$4,Table119[#Headers],0), 0)","v":{"$error":"#N/A"}},{"$f":"VLOOKUP(Epidemic_Codes[[#This Row],[File ID]],Table119[], MATCH(C$4,Table119[#Headers],0), 0)","v":{"$error":"#N/A"}}]
[204,{"$f":"VLOOKUP(Epidemic_Codes[[#This Row],[File ID]],Table119[], MATCH(B$4,Table119[#Headers],0), 0)","v":{"$error":"#N/A"}},{"$f":"VLOOKUP(Epidemic_Codes[[#This Row],[File ID]],Table119[], MATCH(C$4,Table119[#Headers],0), 0)","v":{"$error":"#N/A"}}]
[205,{"$f":"VLOOKUP(Epidemic_Codes[[#This Row],[File ID]],Table119[], MATCH(B$4,Table119[#Headers],0), 0)","v":{"$error":"#N/A"}},{"$f":"VLOOKUP(Epidemic_Codes[[#This Row],[File ID]],Table119[], MATCH(C$4,Table119[#Headers],0), 0)","v":{"$error":"#N/A"}}]
[206,{"$f":"VLOOKUP(Epidemic_Codes[[#This Row],[File ID]],Table119[], MATCH(B$4,Table119[#Headers],0), 0)","v":{"$error":"#N/A"}},{"$f":"VLOOKUP(Epidemic_Codes[[#This Row],[File ID]],Table119[], MATCH(C$4,Table119[#Headers],0), 0)","v":{"$error":"#N/A"}}]
[207,{"$f":"VLOOKUP(Epidemic_Codes[[#This Row],[File ID]],Table119[], MATCH(B$4,Table119[#Headers],0), 0)","v":{"$error":"#N/A"}},{"$f":"VLOOKUP(Epidemic_Codes[[#This Row],[File ID]],Table119[], MATCH(C$4,Table119[#Headers],0), 0)","v":{"$error":"#N/A"}}]
[208,{"$f":"VLOOKUP(Epidemic_Codes[[#This Row],[File ID]],Table119[], MATCH(B$4,Table119[#Headers],0), 0)","v":{"$error":"#N/A"}},{"$f":"VLOOKUP(Epidemic_Codes[[#This Row],[File ID]],Table119[], MATCH(C$4,Table119[#Headers],0), 0)","v":{"$error":"#N/A"}}]
[209,{"$f":"VLOOKUP(Epidemic_Codes[[#This Row],[File ID]],Table119[], MATCH(B$4,Table119[#Headers],0), 0)","v":{"$error":"#N/A"}},{"$f":"VLOOKUP(Epidemic_Codes[[#This Row],[File ID]],Table119[], MATCH(C$4,Table119[#Headers],0), 0)","v":{"$error":"#N/A"}}]
[210,{"$f":"VLOOKUP(Epidemic_Codes[[#This Row],[File ID]],Table119[], MATCH(B$4,Table119[#Headers],0), 0)","v":{"$error":"#N/A"}},{"$f":"VLOOKUP(Epidemic_Codes[[#This Row],[File ID]],Table119[], MATCH(C$4,Table119[#Headers],0), 0)","v":{"$error":"#N/A"}}]
[211,{"$f":"VLOOKUP(Epidemic_Codes[[#This Row],[File ID]],Table119[], MATCH(B$4,Table119[#Headers],0), 0)","v":{"$error":"#N/A"}},{"$f":"VLOOKUP(Epidemic_Codes[[#This Row],[File ID]],Table119[], MATCH(C$4,Table119[#Headers],0), 0)","v":{"$error":"#N/A"}}]
[212,{"$f":"VLOOKUP(Epidemic_Codes[[#This Row],[File ID]],Table119[], MATCH(B$4,Table119[#Headers],0), 0)","v":{"$error":"#N/A"}},{"$f":"VLOOKUP(Epidemic_Codes[[#This Row],[File ID]],Table119[], MATCH(C$4,Table119[#Headers],0), 0)","v":{"$error":"#N/A"}}]
[213,{"$f":"VLOOKUP(Epidemic_Codes[[#This Row],[File ID]],Table119[], MATCH(B$4,Table119[#Headers],0), 0)","v":{"$error":"#N/A"}},{"$f":"VLOOKUP(Epidemic_Codes[[#This Row],[File ID]],Table119[], MATCH(C$4,Table119[#Headers],0), 0)","v":{"$error":"#N/A"}}]
[214,{"$f":"VLOOKUP(Epidemic_Codes[[#This Row],[File ID]],Table119[], MATCH(B$4,Table119[#Headers],0), 0)","v":{"$error":"#N/A"}},{"$f":"VLOOKUP(Epidemic_Codes[[#This Row],[File ID]],Table119[], MATCH(C$4,Table119[#Headers],0), 0)","v":{"$error":"#N/A"}}]
[215,{"$f":"VLOOKUP(Epidemic_Codes[[#This Row],[File ID]],Table119[], MATCH(B$4,Table119[#Headers],0), 0)","v":{"$error":"#N/A"}},{"$f":"VLOOKUP(Epidemic_Codes[[#This Row],[File ID]],Table119[], MATCH(C$4,Table119[#Headers],0), 0)","v":{"$error":"#N/A"}}]
[216,{"$f":"VLOOKUP(Epidemic_Codes[[#This Row],[File ID]],Table119[], MATCH(B$4,Table119[#Headers],0), 0)","v":{"$error":"#N/A"}},{"$f":"VLOOKUP(Epidemic_Codes[[#This Row],[File ID]],Table119[], MATCH(C$4,Table119[#Headers],0), 0)","v":{"$error":"#N/A"}}]
[217,{"$f":"VLOOKUP(Epidemic_Codes[[#This Row],[File ID]],Table119[], MATCH(B$4,Table119[#Headers],0), 0)","v":{"$error":"#N/A"}},{"$f":"VLOOKUP(Epidemic_Codes[[#This Row],[File ID]],Table119[], MATCH(C$4,Table119[#Headers],0), 0)","v":{"$error":"#N/A"}}]
[218,{"$f":"VLOOKUP(Epidemic_Codes[[#This Row],[File ID]],Table119[], MATCH(B$4,Table119[#Headers],0), 0)","v":{"$error":"#N/A"}},{"$f":"VLOOKUP(Epidemic_Codes[[#This Row],[File ID]],Table119[], MATCH(C$4,Table119[#Headers],0), 0)","v":{"$error":"#N/A"}}]
[219,{"$f":"VLOOKUP(Epidemic_Codes[[#This Row],[File ID]],Table119[], MATCH(B$4,Table119[#Headers],0), 0)","v":{"$error":"#N/A"}},{"$f":"VLOOKUP(Epidemic_Codes[[#This Row],[File ID]],Table119[], MATCH(C$4,Table119[#Headers],0), 0)","v":{"$error":"#N/A"}}]
[220,{"$f":"VLOOKUP(Epidemic_Codes[[#This Row],[File ID]],Table119[], MATCH(B$4,Table119[#Headers],0), 0)","v":{"$error":"#N/A"}},{"$f":"VLOOKUP(Epidemic_Codes[[#This Row],[File ID]],Table119[], MATCH(C$4,Table119[#Headers],0), 0)","v":{"$error":"#N/A"}}]
[221,{"$f":"VLOOKUP(Epidemic_Codes[[#This Row],[File ID]],Table119[], MATCH(B$4,Table119[#Headers],0), 0)","v":{"$error":"#N/A"}},{"$f":"VLOOKUP(Epidemic_Codes[[#This Row],[File ID]],Table119[], MATCH(C$4,Table119[#Headers],0), 0)","v":{"$error":"#N/A"}}]
[222,{"$f":"VLOOKUP(Epidemic_Codes[[#This Row],[File ID]],Table119[], MATCH(B$4,Table119[#Headers],0), 0)","v":{"$error":"#N/A"}},{"$f":"VLOOKUP(Epidemic_Codes[[#This Row],[File ID]],Table119[], MATCH(C$4,Table119[#Headers],0), 0)","v":{"$error":"#N/A"}}]
[223,{"$f":"VLOOKUP(Epidemic_Codes[[#This Row],[File ID]],Table119[], MATCH(B$4,Table119[#Headers],0), 0)","v":{"$error":"#N/A"}},{"$f":"VLOOKUP(Epidemic_Codes[[#This Row],[File ID]],Table119[], MATCH(C$4,Table119[#Headers],0), 0)","v":{"$error":"#N/A"}}]
[224,{"$f":"VLOOKUP(Epidemic_Codes[[#This Row],[File ID]],Table119[], MATCH(B$4,Table119[#Headers],0), 0)","v":{"$error":"#N/A"}},{"$f":"VLOOKUP(Epidemic_Codes[[#This Row],[File ID]],Table119[], MATCH(C$4,Table119[#Headers],0), 0)","v":{"$error":"#N/A"}}]
[225,{"$f":"VLOOKUP(Epidemic_Codes[[#This Row],[File ID]],Table119[], MATCH(B$4,Table119[#Headers],0), 0)","v":{"$error":"#N/A"}},{"$f":"VLOOKUP(Epidemic_Codes[[#This Row],[File ID]],Table119[], MATCH(C$4,Table119[#Headers],0), 0)","v":{"$error":"#N/A"}}]
[226,{"$f":"VLOOKUP(Epidemic_Codes[[#This Row],[File ID]],Table119[], MATCH(B$4,Table119[#Headers],0), 0)","v":{"$error":"#N/A"}},{"$f":"VLOOKUP(Epidemic_Codes[[#This Row],[File ID]],Table119[], MATCH(C$4,Table119[#Headers],0), 0)","v":{"$error":"#N/A"}}]
[227,{"$f":"VLOOKUP(Epidemic_Codes[[#This Row],[File ID]],Table119[], MATCH(B$4,Table119[#Headers],0), 0)","v":{"$error":"#N/A"}},{"$f":"VLOOKUP(Epidemic_Codes[[#This Row],[File ID]],Table119[], MATCH(C$4,Table119[#Headers],0), 0)","v":{"$error":"#N/A"}}]
[228,{"$f":"VLOOKUP(Epidemic_Codes[[#This Row],[File ID]],Table119[], MATCH(B$4,Table119[#Headers],0), 0)","v":{"$error":"#N/A"}},{"$f":"VLOOKUP(Epidemic_Codes[[#This Row],[File ID]],Table119[], MATCH(C$4,Table119[#Headers],0), 0)","v":{"$error":"#N/A"}}]
[229,{"$f":"VLOOKUP(Epidemic_Codes[[#This Row],[File ID]],Table119[], MATCH(B$4,Table119[#Headers],0), 0)","v":{"$error":"#N/A"}},{"$f":"VLOOKUP(Epidemic_Codes[[#This Row],[File ID]],Table119[], MATCH(C$4,Table119[#Headers],0), 0)","v":{"$error":"#N/A"}}]
[230,{"$f":"VLOOKUP(Epidemic_Codes[[#This Row],[File ID]],Table119[], MATCH(B$4,Table119[#Headers],0), 0)","v":{"$error":"#N/A"}},{"$f":"VLOOKUP(Epidemic_Codes[[#This Row],[File ID]],Table119[], MATCH(C$4,Table119[#Headers],0), 0)","v":{"$error":"#N/A"}}]
[231,{"$f":"VLOOKUP(Epidemic_Codes[[#This Row],[File ID]],Table119[], MATCH(B$4,Table119[#Headers],0), 0)","v":{"$error":"#N/A"}},{"$f":"VLOOKUP(Epidemic_Codes[[#This Row],[File ID]],Table119[], MATCH(C$4,Table119[#Headers],0), 0)","v":{"$error":"#N/A"}}]
[232,{"$f":"VLOOKUP(Epidemic_Codes[[#This Row],[File ID]],Table119[], MATCH(B$4,Table119[#Headers],0), 0)","v":{"$error":"#N/A"}},{"$f":"VLOOKUP(Epidemic_Codes[[#This Row],[File ID]],Table119[], MATCH(C$4,Table119[#Headers],0), 0)","v":{"$error":"#N/A"}}]
[233,{"$f":"VLOOKUP(Epidemic_Codes[[#This Row],[File ID]],Table119[], MATCH(B$4,Table119[#Headers],0), 0)","v":{"$error":"#N/A"}},{"$f":"VLOOKUP(Epidemic_Codes[[#This Row],[File ID]],Table119[], MATCH(C$4,Table119[#Headers],0), 0)","v":{"$error":"#N/A"}}]
[234,{"$f":"VLOOKUP(Epidemic_Codes[[#This Row],[File ID]],Table119[], MATCH(B$4,Table119[#Headers],0), 0)","v":{"$error":"#N/A"}},{"$f":"VLOOKUP(Epidemic_Codes[[#This Row],[File ID]],Table119[], MATCH(C$4,Table119[#Headers],0), 0)","v":{"$error":"#N/A"}}]
[235,{"$f":"VLOOKUP(Epidemic_Codes[[#This Row],[File ID]],Table119[], MATCH(B$4,Table119[#Headers],0), 0)","v":{"$error":"#N/A"}},{"$f":"VLOOKUP(Epidemic_Codes[[#This Row],[File ID]],Table119[], MATCH(C$4,Table119[#Headers],0), 0)","v":{"$error":"#N/A"}}]
[236,{"$f":"VLOOKUP(Epidemic_Codes[[#This Row],[File ID]],Table119[], MATCH(B$4,Table119[#Headers],0), 0)","v":{"$error":"#N/A"}},{"$f":"VLOOKUP(Epidemic_Codes[[#This Row],[File ID]],Table119[], MATCH(C$4,Table119[#Headers],0), 0)","v":{"$error":"#N/A"}}]
[237,{"$f":"VLOOKUP(Epidemic_Codes[[#This Row],[File ID]],Table119[], MATCH(B$4,Table119[#Headers],0), 0)","v":{"$error":"#N/A"}},{"$f":"VLOOKUP(Epidemic_Codes[[#This Row],[File ID]],Table119[], MATCH(C$4,Table119[#Headers],0), 0)","v":{"$error":"#N/A"}}]
[238,{"$f":"VLOOKUP(Epidemic_Codes[[#This Row],[File ID]],Table119[], MATCH(B$4,Table119[#Headers],0), 0)","v":{"$error":"#N/A"}},{"$f":"VLOOKUP(Epidemic_Codes[[#This Row],[File ID]],Table119[], MATCH(C$4,Table119[#Headers],0), 0)","v":{"$error":"#N/A"}}]
[239,{"$f":"VLOOKUP(Epidemic_Codes[[#This Row],[File ID]],Table119[], MATCH(B$4,Table119[#Headers],0), 0)","v":{"$error":"#N/A"}},{"$f":"VLOOKUP(Epidemic_Codes[[#This Row],[File ID]],Table119[], MATCH(C$4,Table119[#Headers],0), 0)","v":{"$error":"#N/A"}}]
[240,{"$f":"VLOOKUP(Epidemic_Codes[[#This Row],[File ID]],Table119[], MATCH(B$4,Table119[#Headers],0), 0)","v":{"$error":"#N/A"}},{"$f":"VLOOKUP(Epidemic_Codes[[#This Row],[File ID]],Table119[], MATCH(C$4,Table119[#Headers],0), 0)","v":{"$error":"#N/A"}}]
[241,{"$f":"VLOOKUP(Epidemic_Codes[[#This Row],[File ID]],Table119[], MATCH(B$4,Table119[#Headers],0), 0)","v":{"$error":"#N/A"}},{"$f":"VLOOKUP(Epidemic_Codes[[#This Row],[File ID]],Table119[], MATCH(C$4,Table119[#Headers],0), 0)","v":{"$error":"#N/A"}}]
[242,{"$f":"VLOOKUP(Epidemic_Codes[[#This Row],[File ID]],Table119[], MATCH(B$4,Table119[#Headers],0), 0)","v":{"$error":"#N/A"}},{"$f":"VLOOKUP(Epidemic_Codes[[#This Row],[File ID]],Table119[], MATCH(C$4,Table119[#Headers],0), 0)","v":{"$error":"#N/A"}}]
[243,{"$f":"VLOOKUP(Epidemic_Codes[[#This Row],[File ID]],Table119[], MATCH(B$4,Table119[#Headers],0), 0)","v":{"$error":"#N/A"}},{"$f":"VLOOKUP(Epidemic_Codes[[#This Row],[File ID]],Table119[], MATCH(C$4,Table119[#Headers],0), 0)","v":{"$error":"#N/A"}}]
[244,{"$f":"VLOOKUP(Epidemic_Codes[[#This Row],[File ID]],Table119[], MATCH(B$4,Table119[#Headers],0), 0)","v":{"$error":"#N/A"}},{"$f":"VLOOKUP(Epidemic_Codes[[#This Row],[File ID]],Table119[], MATCH(C$4,Table119[#Headers],0), 0)","v":{"$error":"#N/A"}}]
[245,{"$f":"VLOOKUP(Epidemic_Codes[[#This Row],[File ID]],Table119[], MATCH(B$4,Table119[#Headers],0), 0)","v":{"$error":"#N/A"}},{"$f":"VLOOKUP(Epidemic_Codes[[#This Row],[File ID]],Table119[], MATCH(C$4,Table119[#Headers],0), 0)","v":{"$error":"#N/A"}}]
[246,{"$f":"VLOOKUP(Epidemic_Codes[[#This Row],[File ID]],Table119[], MATCH(B$4,Table119[#Headers],0), 0)","v":{"$error":"#N/A"}},{"$f":"VLOOKUP(Epidemic_Codes[[#This Row],[File ID]],Table119[], MATCH(C$4,Table119[#Headers],0), 0)","v":{"$error":"#N/A"}}]
[247,{"$f":"VLOOKUP(Epidemic_Codes[[#This Row],[File ID]],Table119[], MATCH(B$4,Table119[#Headers],0), 0)","v":{"$error":"#N/A"}},{"$f":"VLOOKUP(Epidemic_Codes[[#This Row],[File ID]],Table119[], MATCH(C$4,Table119[#Headers],0), 0)","v":{"$error":"#N/A"}}]
[248,{"$f":"VLOOKUP(Epidemic_Codes[[#This Row],[File ID]],Table119[], MATCH(B$4,Table119[#Headers],0), 0)","v":{"$error":"#N/A"}},{"$f":"VLOOKUP(Epidemic_Codes[[#This Row],[File ID]],Table119[], MATCH(C$4,Table119[#Headers],0), 0)","v":{"$error":"#N/A"}}]
[249,{"$f":"VLOOKUP(Epidemic_Codes[[#This Row],[File ID]],Table119[], MATCH(B$4,Table119[#Headers],0), 0)","v":{"$error":"#N/A"}},{"$f":"VLOOKUP(Epidemic_Codes[[#This Row],[File ID]],Table119[], MATCH(C$4,Table119[#Headers],0), 0)","v":{"$error":"#N/A"}}]
[250,{"$f":"VLOOKUP(Epidemic_Codes[[#This Row],[File ID]],Table119[], MATCH(B$4,Table119[#Headers],0), 0)","v":{"$error":"#N/A"}},{"$f":"VLOOKUP(Epidemic_Codes[[#This Row],[File ID]],Table119[], MATCH(C$4,Table119[#Headers],0), 0)","v":{"$error":"#N/A"}}]
[251,{"$f":"VLOOKUP(Epidemic_Codes[[#This Row],[File ID]],Table119[], MATCH(B$4,Table119[#Headers],0), 0)","v":{"$error":"#N/A"}},{"$f":"VLOOKUP(Epidemic_Codes[[#This Row],[File ID]],Table119[], MATCH(C$4,Table119[#Headers],0), 0)","v":{"$error":"#N/A"}}]
[252,{"$f":"VLOOKUP(Epidemic_Codes[[#This Row],[File ID]],Table119[], MATCH(B$4,Table119[#Headers],0), 0)","v":{"$error":"#N/A"}},{"$f":"VLOOKUP(Epidemic_Codes[[#This Row],[File ID]],Table119[], MATCH(C$4,Table119[#Headers],0), 0)","v":{"$error":"#N/A"}}]
[253,{"$f":"VLOOKUP(Epidemic_Codes[[#This Row],[File ID]],Table119[], MATCH(B$4,Table119[#Headers],0), 0)","v":{"$error":"#N/A"}},{"$f":"VLOOKUP(Epidemic_Codes[[#This Row],[File ID]],Table119[], MATCH(C$4,Table119[#Headers],0), 0)","v":{"$error":"#N/A"}}]
[254,{"$f":"VLOOKUP(Epidemic_Codes[[#This Row],[File ID]],Table119[], MATCH(B$4,Table119[#Headers],0), 0)","v":{"$error":"#N/A"}},{"$f":"VLOOKUP(Epidemic_Codes[[#This Row],[File ID]],Table119[], MATCH(C$4,Table119[#Headers],0), 0)","v":{"$error":"#N/A"}}]
[255,{"$f":"VLOOKUP(Epidemic_Codes[[#This Row],[File ID]],Table119[], MATCH(B$4,Table119[#Headers],0), 0)","v":{"$error":"#N/A"}},{"$f":"VLOOKUP(Epidemic_Codes[[#This Row],[File ID]],Table119[], MATCH(C$4,Table119[#Headers],0), 0)","v":{"$error":"#N/A"}}]
[256,{"$f":"VLOOKUP(Epidemic_Codes[[#This Row],[File ID]],Table119[], MATCH(B$4,Table119[#Headers],0), 0)","v":{"$error":"#N/A"}},{"$f":"VLOOKUP(Epidemic_Codes[[#This Row],[File ID]],Table119[], MATCH(C$4,Table119[#Headers],0), 0)","v":{"$error":"#N/A"}}]
[{"$f":"ROW()-4","v":257},{"$f":"VLOOKUP(Epidemic_Codes[[#This Row],[File ID]],Table119[], MATCH(B$4,Table119[#Headers],0), 0)","v":{"$error":"#N/A"}},{"$f":"VLOOKUP(Epidemic_Codes[[#This Row],[File ID]],Table119[], MATCH(C$4,Table119[#Headers],0), 0)","v":{"$error":"#N/A"}}]
[258,{"$f":"VLOOKUP(Epidemic_Codes[[#This Row],[File ID]],Table119[], MATCH(B$4,Table119[#Headers],0), 0)","v":{"$error":"#N/A"}},{"$f":"VLOOKUP(Epidemic_Codes[[#This Row],[File ID]],Table119[], MATCH(C$4,Table119[#Headers],0), 0)","v":{"$error":"#N/A"}}]
[259,{"$f":"VLOOKUP(Epidemic_Codes[[#This Row],[File ID]],Table119[], MATCH(B$4,Table119[#Headers],0), 0)","v":{"$error":"#N/A"}},{"$f":"VLOOKUP(Epidemic_Codes[[#This Row],[File ID]],Table119[], MATCH(C$4,Table119[#Headers],0), 0)","v":{"$error":"#N/A"}}]
[260,{"$f":"VLOOKUP(Epidemic_Codes[[#This Row],[File ID]],Table119[], MATCH(B$4,Table119[#Headers],0), 0)","v":{"$error":"#N/A"}},{"$f":"VLOOKUP(Epidemic_Codes[[#This Row],[File ID]],Table119[], MATCH(C$4,Table119[#Headers],0), 0)","v":{"$error":"#N/A"}}]
[261,{"$f":"VLOOKUP(Epidemic_Codes[[#This Row],[File ID]],Table119[], MATCH(B$4,Table119[#Headers],0), 0)","v":{"$error":"#N/A"}},{"$f":"VLOOKUP(Epidemic_Codes[[#This Row],[File ID]],Table119[], MATCH(C$4,Table119[#Headers],0), 0)","v":{"$error":"#N/A"}}]
[262,{"$f":"VLOOKUP(Epidemic_Codes[[#This Row],[File ID]],Table119[], MATCH(B$4,Table119[#Headers],0), 0)","v":{"$error":"#N/A"}},{"$f":"VLOOKUP(Epidemic_Codes[[#This Row],[File ID]],Table119[], MATCH(C$4,Table119[#Headers],0), 0)","v":{"$error":"#N/A"}}]
[263,{"$f":"VLOOKUP(Epidemic_Codes[[#This Row],[File ID]],Table119[], MATCH(B$4,Table119[#Headers],0), 0)","v":{"$error":"#N/A"}},{"$f":"VLOOKUP(Epidemic_Codes[[#This Row],[File ID]],Table119[], MATCH(C$4,Table119[#Headers],0), 0)","v":{"$error":"#N/A"}}]
[264,{"$f":"VLOOKUP(Epidemic_Codes[[#This Row],[File ID]],Table119[], MATCH(B$4,Table119[#Headers],0), 0)","v":{"$error":"#N/A"}},{"$f":"VLOOKUP(Epidemic_Codes[[#This Row],[File ID]],Table119[], MATCH(C$4,Table119[#Headers],0), 0)","v":{"$error":"#N/A"}}]
[265,{"$f":"VLOOKUP(Epidemic_Codes[[#This Row],[File ID]],Table119[], MATCH(B$4,Table119[#Headers],0), 0)","v":{"$error":"#N/A"}},{"$f":"VLOOKUP(Epidemic_Codes[[#This Row],[File ID]],Table119[], MATCH(C$4,Table119[#Headers],0), 0)","v":{"$error":"#N/A"}}]
[266,{"$f":"VLOOKUP(Epidemic_Codes[[#This Row],[File ID]],Table119[], MATCH(B$4,Table119[#Headers],0), 0)","v":{"$error":"#N/A"}},{"$f":"VLOOKUP(Epidemic_Codes[[#This Row],[File ID]],Table119[], MATCH(C$4,Table119[#Headers],0), 0)","v":{"$error":"#N/A"}}]
[267,{"$f":"VLOOKUP(Epidemic_Codes[[#This Row],[File ID]],Table119[], MATCH(B$4,Table119[#Headers],0), 0)","v":{"$error":"#N/A"}},{"$f":"VLOOKUP(Epidemic_Codes[[#This Row],[File ID]],Table119[], MATCH(C$4,Table119[#Headers],0), 0)","v":{"$error":"#N/A"}}]
[268,{"$f":"VLOOKUP(Epidemic_Codes[[#This Row],[File ID]],Table119[], MATCH(B$4,Table119[#Headers],0), 0)","v":{"$error":"#N/A"}},{"$f":"VLOOKUP(Epidemic_Codes[[#This Row],[File ID]],Table119[], MATCH(C$4,Table119[#Headers],0), 0)","v":{"$error":"#N/A"}}]
[269,{"$f":"VLOOKUP(Epidemic_Codes[[#This Row],[File ID]],Table119[], MATCH(B$4,Table119[#Headers],0), 0)","v":{"$error":"#N/A"}},{"$f":"VLOOKUP(Epidemic_Codes[[#This Row],[File ID]],Table119[], MATCH(C$4,Table119[#Headers],0), 0)","v":{"$error":"#N/A"}}]
[270,{"$f":"VLOOKUP(Epidemic_Codes[[#This Row],[File ID]],Table119[], MATCH(B$4,Table119[#Headers],0), 0)","v":{"$error":"#N/A"}},{"$f":"VLOOKUP(Epidemic_Codes[[#This Row],[File ID]],Table119[], MATCH(C$4,Table119[#Headers],0), 0)","v":{"$error":"#N/A"}}]
[271,{"$f":"VLOOKUP(Epidemic_Codes[[#This Row],[File ID]],Table119[], MATCH(B$4,Table119[#Headers],0), 0)","v":{"$error":"#N/A"}},{"$f":"VLOOKUP(Epidemic_Codes[[#This Row],[File ID]],Table119[], MATCH(C$4,Table119[#Headers],0), 0)","v":{"$error":"#N/A"}}]
[272,{"$f":"VLOOKUP(Epidemic_Codes[[#This Row],[File ID]],Table119[], MATCH(B$4,Table119[#Headers],0), 0)","v":{"$error":"#N/A"}},{"$f":"VLOOKUP(Epidemic_Codes[[#This Row],[File ID]],Table119[], MATCH(C$4,Table119[#Headers],0), 0)","v":{"$error":"#N/A"}}]
[273,{"$f":"VLOOKUP(Epidemic_Codes[[#This Row],[File ID]],Table119[], MATCH(B$4,Table119[#Headers],0), 0)","v":{"$error":"#N/A"}},{"$f":"VLOOKUP(Epidemic_Codes[[#This Row],[File ID]],Table119[], MATCH(C$4,Table119[#Headers],0), 0)","v":{"$error":"#N/A"}}]
[274,{"$f":"VLOOKUP(Epidemic_Codes[[#This Row],[File ID]],Table119[], MATCH(B$4,Table119[#Headers],0), 0)","v":{"$error":"#N/A"}},{"$f":"VLOOKUP(Epidemic_Codes[[#This Row],[File ID]],Table119[], MATCH(C$4,Table119[#Headers],0), 0)","v":{"$error":"#N/A"}}]
[275,{"$f":"VLOOKUP(Epidemic_Codes[[#This Row],[File ID]],Table119[], MATCH(B$4,Table119[#Headers],0), 0)","v":{"$error":"#N/A"}},{"$f":"VLOOKUP(Epidemic_Codes[[#This Row],[File ID]],Table119[], MATCH(C$4,Table119[#Headers],0), 0)","v":{"$error":"#N/A"}}]
[276,{"$f":"VLOOKUP(Epidemic_Codes[[#This Row],[File ID]],Table119[], MATCH(B$4,Table119[#Headers],0), 0)","v":{"$error":"#N/A"}},{"$f":"VLOOKUP(Epidemic_Codes[[#This Row],[File ID]],Table119[], MATCH(C$4,Table119[#Headers],0), 0)","v":{"$error":"#N/A"}}]
[277,{"$f":"VLOOKUP(Epidemic_Codes[[#This Row],[File ID]],Table119[], MATCH(B$4,Table119[#Headers],0), 0)","v":{"$error":"#N/A"}},{"$f":"VLOOKUP(Epidemic_Codes[[#This Row],[File ID]],Table119[], MATCH(C$4,Table119[#Headers],0), 0)","v":{"$error":"#N/A"}}]
[278,{"$f":"VLOOKUP(Epidemic_Codes[[#This Row],[File ID]],Table119[], MATCH(B$4,Table119[#Headers],0), 0)","v":{"$error":"#N/A"}},{"$f":"VLOOKUP(Epidemic_Codes[[#This Row],[File ID]],Table119[], MATCH(C$4,Table119[#Headers],0), 0)","v":{"$error":"#N/A"}}]
[279,{"$f":"VLOOKUP(Epidemic_Codes[[#This Row],[File ID]],Table119[], MATCH(B$4,Table119[#Headers],0), 0)","v":{"$error":"#N/A"}},{"$f":"VLOOKUP(Epidemic_Codes[[#This Row],[File ID]],Table119[], MATCH(C$4,Table119[#Headers],0), 0)","v":{"$error":"#N/A"}}]
[280,{"$f":"VLOOKUP(Epidemic_Codes[[#This Row],[File ID]],Table119[], MATCH(B$4,Table119[#Headers],0), 0)","v":{"$error":"#N/A"}},{"$f":"VLOOKUP(Epidemic_Codes[[#This Row],[File ID]],Table119[], MATCH(C$4,Table119[#Headers],0), 0)","v":{"$error":"#N/A"}}]
[281,{"$f":"VLOOKUP(Epidemic_Codes[[#This Row],[File ID]],Table119[], MATCH(B$4,Table119[#Headers],0), 0)","v":{"$error":"#N/A"}},{"$f":"VLOOKUP(Epidemic_Codes[[#This Row],[File ID]],Table119[], MATCH(C$4,Table119[#Headers],0), 0)","v":{"$error":"#N/A"}}]
[282,{"$f":"VLOOKUP(Epidemic_Codes[[#This Row],[File ID]],Table119[], MATCH(B$4,Table119[#Headers],0), 0)","v":{"$error":"#N/A"}},{"$f":"VLOOKUP(Epidemic_Codes[[#This Row],[File ID]],Table119[], MATCH(C$4,Table119[#Headers],0), 0)","v":{"$error":"#N/A"}}]
[283,{"$f":"VLOOKUP(Epidemic_Codes[[#This Row],[File ID]],Table119[], MATCH(B$4,Table119[#Headers],0), 0)","v":{"$error":"#N/A"}},{"$f":"VLOOKUP(Epidemic_Codes[[#This Row],[File ID]],Table119[], MATCH(C$4,Table119[#Headers],0), 0)","v":{"$error":"#N/A"}}]
[284,{"$f":"VLOOKUP(Epidemic_Codes[[#This Row],[File ID]],Table119[], MATCH(B$4,Table119[#Headers],0), 0)","v":{"$error":"#N/A"}},{"$f":"VLOOKUP(Epidemic_Codes[[#This Row],[File ID]],Table119[], MATCH(C$4,Table119[#Headers],0), 0)","v":{"$error":"#N/A"}}]
[285,{"$f":"VLOOKUP(Epidemic_Codes[[#This Row],[File ID]],Table119[], MATCH(B$4,Table119[#Headers],0), 0)","v":{"$error":"#N/A"}},{"$f":"VLOOKUP(Epidemic_Codes[[#This Row],[File ID]],Table119[], MATCH(C$4,Table119[#Headers],0), 0)","v":{"$error":"#N/A"}}]
[286,{"$f":"VLOOKUP(Epidemic_Codes[[#This Row],[File ID]],Table119[], MATCH(B$4,Table119[#Headers],0), 0)","v":{"$error":"#N/A"}},{"$f":"VLOOKUP(Epidemic_Codes[[#This Row],[File ID]],Table119[], MATCH(C$4,Table119[#Headers],0), 0)","v":{"$error":"#N/A"}}]
[287,{"$f":"VLOOKUP(Epidemic_Codes[[#This Row],[File ID]],Table119[], MATCH(B$4,Table119[#Headers],0), 0)","v":{"$error":"#N/A"}},{"$f":"VLOOKUP(Epidemic_Codes[[#This Row],[File ID]],Table119[], MATCH(C$4,Table119[#Headers],0), 0)","v":{"$error":"#N/A"}}]
[288,{"$f":"VLOOKUP(Epidemic_Codes[[#This Row],[File ID]],Table119[], MATCH(B$4,Table119[#Headers],0), 0)","v":{"$error":"#N/A"}},{"$f":"VLOOKUP(Epidemic_Codes[[#This Row],[File ID]],Table119[], MATCH(C$4,Table119[#Headers],0), 0)","v":{"$error":"#N/A"}}]
[289,{"$f":"VLOOKUP(Epidemic_Codes[[#This Row],[File ID]],Table119[], MATCH(B$4,Table119[#Headers],0), 0)","v":{"$error":"#N/A"}},{"$f":"VLOOKUP(Epidemic_Codes[[#This Row],[File ID]],Table119[], MATCH(C$4,Table119[#Headers],0), 0)","v":{"$error":"#N/A"}}]
[290,{"$f":"VLOOKUP(Epidemic_Codes[[#This Row],[File ID]],Table119[], MATCH(B$4,Table119[#Headers],0), 0)","v":{"$error":"#N/A"}},{"$f":"VLOOKUP(Epidemic_Codes[[#This Row],[File ID]],Table119[], MATCH(C$4,Table119[#Headers],0), 0)","v":{"$error":"#N/A"}}]
[291,{"$f":"VLOOKUP(Epidemic_Codes[[#This Row],[File ID]],Table119[], MATCH(B$4,Table119[#Headers],0), 0)","v":{"$error":"#N/A"}},{"$f":"VLOOKUP(Epidemic_Codes[[#This Row],[File ID]],Table119[], MATCH(C$4,Table119[#Headers],0), 0)","v":{"$error":"#N/A"}}]
[292,{"$f":"VLOOKUP(Epidemic_Codes[[#This Row],[File ID]],Table119[], MATCH(B$4,Table119[#Headers],0), 0)","v":{"$error":"#N/A"}},{"$f":"VLOOKUP(Epidemic_Codes[[#This Row],[File ID]],Table119[], MATCH(C$4,Table119[#Headers],0), 0)","v":{"$error":"#N/A"}}]
[293,{"$f":"VLOOKUP(Epidemic_Codes[[#This Row],[File ID]],Table119[], MATCH(B$4,Table119[#Headers],0), 0)","v":{"$error":"#N/A"}},{"$f":"VLOOKUP(Epidemic_Codes[[#This Row],[File ID]],Table119[], MATCH(C$4,Table119[#Headers],0), 0)","v":{"$error":"#N/A"}}]
[294,{"$f":"VLOOKUP(Epidemic_Codes[[#This Row],[File ID]],Table119[], MATCH(B$4,Table119[#Headers],0), 0)","v":{"$error":"#N/A"}},{"$f":"VLOOKUP(Epidemic_Codes[[#This Row],[File ID]],Table119[], MATCH(C$4,Table119[#Headers],0), 0)","v":{"$error":"#N/A"}}]
[295,{"$f":"VLOOKUP(Epidemic_Codes[[#This Row],[File ID]],Table119[], MATCH(B$4,Table119[#Headers],0), 0)","v":{"$error":"#N/A"}},{"$f":"VLOOKUP(Epidemic_Codes[[#This Row],[File ID]],Table119[], MATCH(C$4,Table119[#Headers],0), 0)","v":{"$error":"#N/A"}}]
[296,{"$f":"VLOOKUP(Epidemic_Codes[[#This Row],[File ID]],Table119[], MATCH(B$4,Table119[#Headers],0), 0)","v":{"$error":"#N/A"}},{"$f":"VLOOKUP(Epidemic_Codes[[#This Row],[File ID]],Table119[], MATCH(C$4,Table119[#Headers],0), 0)","v":{"$error":"#N/A"}}]
[297,{"$f":"VLOOKUP(Epidemic_Codes[[#This Row],[File ID]],Table119[], MATCH(B$4,Table119[#Headers],0), 0)","v":{"$error":"#N/A"}},{"$f":"VLOOKUP(Epidemic_Codes[[#This Row],[File ID]],Table119[], MATCH(C$4,Table119[#Headers],0), 0)","v":{"$error":"#N/A"}}]
[298,{"$f":"VLOOKUP(Epidemic_Codes[[#This Row],[File ID]],Table119[], MATCH(B$4,Table119[#Headers],0), 0)","v":{"$error":"#N/A"}},{"$f":"VLOOKUP(Epidemic_Codes[[#This Row],[File ID]],Table119[], MATCH(C$4,Table119[#Headers],0), 0)","v":{"$error":"#N/A"}}]
[299,{"$f":"VLOOKUP(Epidemic_Codes[[#This Row],[File ID]],Table119[], MATCH(B$4,Table119[#Headers],0), 0)","v":{"$error":"#N/A"}},{"$f":"VLOOKUP(Epidemic_Codes[[#This Row],[File ID]],Table119[], MATCH(C$4,Table119[#Headers],0), 0)","v":{"$error":"#N/A"}}]
[300,{"$f":"VLOOKUP(Epidemic_Codes[[#This Row],[File ID]],Table119[], MATCH(B$4,Table119[#Headers],0), 0)","v":{"$error":"#N/A"}},{"$f":"VLOOKUP(Epidemic_Codes[[#This Row],[File ID]],Table119[], MATCH(C$4,Table119[#Headers],0), 0)","v":{"$error":"#N/A"}}]
[301,{"$f":"VLOOKUP(Epidemic_Codes[[#This Row],[File ID]],Table119[], MATCH(B$4,Table119[#Headers],0), 0)","v":{"$error":"#N/A"}},{"$f":"VLOOKUP(Epidemic_Codes[[#This Row],[File ID]],Table119[], MATCH(C$4,Table119[#Headers],0), 0)","v":{"$error":"#N/A"}}]
[302,{"$f":"VLOOKUP(Epidemic_Codes[[#This Row],[File ID]],Table119[], MATCH(B$4,Table119[#Headers],0), 0)","v":{"$error":"#N/A"}},{"$f":"VLOOKUP(Epidemic_Codes[[#This Row],[File ID]],Table119[], MATCH(C$4,Table119[#Headers],0), 0)","v":{"$error":"#N/A"}}]
[303,{"$f":"VLOOKUP(Epidemic_Codes[[#This Row],[File ID]],Table119[], MATCH(B$4,Table119[#Headers],0), 0)","v":{"$error":"#N/A"}},{"$f":"VLOOKUP(Epidemic_Codes[[#This Row],[File ID]],Table119[], MATCH(C$4,Table119[#Headers],0), 0)","v":{"$error":"#N/A"}}]
[304,{"$f":"VLOOKUP(Epidemic_Codes[[#This Row],[File ID]],Table119[], MATCH(B$4,Table119[#Headers],0), 0)","v":{"$error":"#N/A"}},{"$f":"VLOOKUP(Epidemic_Codes[[#This Row],[File ID]],Table119[], MATCH(C$4,Table119[#Headers],0), 0)","v":{"$error":"#N/A"}}]
[305,{"$f":"VLOOKUP(Epidemic_Codes[[#This Row],[File ID]],Table119[], MATCH(B$4,Table119[#Headers],0), 0)","v":{"$error":"#N/A"}},{"$f":"VLOOKUP(Epidemic_Codes[[#This Row],[File ID]],Table119[], MATCH(C$4,Table119[#Headers],0), 0)","v":{"$error":"#N/A"}}]
[306,{"$f":"VLOOKUP(Epidemic_Codes[[#This Row],[File ID]],Table119[], MATCH(B$4,Table119[#Headers],0), 0)","v":{"$error":"#N/A"}},{"$f":"VLOOKUP(Epidemic_Codes[[#This Row],[File ID]],Table119[], MATCH(C$4,Table119[#Headers],0), 0)","v":{"$error":"#N/A"}}]
[307,{"$f":"VLOOKUP(Epidemic_Codes[[#This Row],[File ID]],Table119[], MATCH(B$4,Table119[#Headers],0), 0)","v":{"$error":"#N/A"}},{"$f":"VLOOKUP(Epidemic_Codes[[#This Row],[File ID]],Table119[], MATCH(C$4,Table119[#Headers],0), 0)","v":{"$error":"#N/A"}}]
[308,{"$f":"VLOOKUP(Epidemic_Codes[[#This Row],[File ID]],Table119[], MATCH(B$4,Table119[#Headers],0), 0)","v":{"$error":"#N/A"}},{"$f":"VLOOKUP(Epidemic_Codes[[#This Row],[File ID]],Table119[], MATCH(C$4,Table119[#Headers],0), 0)","v":{"$error":"#N/A"}}]
[309,{"$f":"VLOOKUP(Epidemic_Codes[[#This Row],[File ID]],Table119[], MATCH(B$4,Table119[#Headers],0), 0)","v":{"$error":"#N/A"}},{"$f":"VLOOKUP(Epidemic_Codes[[#This Row],[File ID]],Table119[], MATCH(C$4,Table119[#Headers],0), 0)","v":{"$error":"#N/A"}}]
[310,{"$f":"VLOOKUP(Epidemic_Codes[[#This Row],[File ID]],Table119[], MATCH(B$4,Table119[#Headers],0), 0)","v":{"$error":"#N/A"}},{"$f":"VLOOKUP(Epidemic_Codes[[#This Row],[File ID]],Table119[], MATCH(C$4,Table119[#Headers],0), 0)","v":{"$error":"#N/A"}}]
[311,{"$f":"VLOOKUP(Epidemic_Codes[[#This Row],[File ID]],Table119[], MATCH(B$4,Table119[#Headers],0), 0)","v":{"$error":"#N/A"}},{"$f":"VLOOKUP(Epidemic_Codes[[#This Row],[File ID]],Table119[], MATCH(C$4,Table119[#Headers],0), 0)","v":{"$error":"#N/A"}}]
[312,{"$f":"VLOOKUP(Epidemic_Codes[[#This Row],[File ID]],Table119[], MATCH(B$4,Table119[#Headers],0), 0)","v":{"$error":"#N/A"}},{"$f":"VLOOKUP(Epidemic_Codes[[#This Row],[File ID]],Table119[], MATCH(C$4,Table119[#Headers],0), 0)","v":{"$error":"#N/A"}}]
[313,{"$f":"VLOOKUP(Epidemic_Codes[[#This Row],[File ID]],Table119[], MATCH(B$4,Table119[#Headers],0), 0)","v":{"$error":"#N/A"}},{"$f":"VLOOKUP(Epidemic_Codes[[#This Row],[File ID]],Table119[], MATCH(C$4,Table119[#Headers],0), 0)","v":{"$error":"#N/A"}}]
[314,{"$f":"VLOOKUP(Epidemic_Codes[[#This Row],[File ID]],Table119[], MATCH(B$4,Table119[#Headers],0), 0)","v":{"$error":"#N/A"}},{"$f":"VLOOKUP(Epidemic_Codes[[#This Row],[File ID]],Table119[], MATCH(C$4,Table119[#Headers],0), 0)","v":{"$error":"#N/A"}}]
[315,{"$f":"VLOOKUP(Epidemic_Codes[[#This Row],[File ID]],Table119[], MATCH(B$4,Table119[#Headers],0), 0)","v":{"$error":"#N/A"}},{"$f":"VLOOKUP(Epidemic_Codes[[#This Row],[File ID]],Table119[], MATCH(C$4,Table119[#Headers],0), 0)","v":{"$error":"#N/A"}}]
[316,{"$f":"VLOOKUP(Epidemic_Codes[[#This Row],[File ID]],Table119[], MATCH(B$4,Table119[#Headers],0), 0)","v":{"$error":"#N/A"}},{"$f":"VLOOKUP(Epidemic_Codes[[#This Row],[File ID]],Table119[], MATCH(C$4,Table119[#Headers],0), 0)","v":{"$error":"#N/A"}}]
[317,{"$f":"VLOOKUP(Epidemic_Codes[[#This Row],[File ID]],Table119[], MATCH(B$4,Table119[#Headers],0), 0)","v":{"$error":"#N/A"}},{"$f":"VLOOKUP(Epidemic_Codes[[#This Row],[File ID]],Table119[], MATCH(C$4,Table119[#Headers],0), 0)","v":{"$error":"#N/A"}}]
[318,{"$f":"VLOOKUP(Epidemic_Codes[[#This Row],[File ID]],Table119[], MATCH(B$4,Table119[#Headers],0), 0)","v":{"$error":"#N/A"}},{"$f":"VLOOKUP(Epidemic_Codes[[#This Row],[File ID]],Table119[], MATCH(C$4,Table119[#Headers],0), 0)","v":{"$error":"#N/A"}}]
[319,{"$f":"VLOOKUP(Epidemic_Codes[[#This Row],[File ID]],Table119[], MATCH(B$4,Table119[#Headers],0), 0)","v":{"$error":"#N/A"}},{"$f":"VLOOKUP(Epidemic_Codes[[#This Row],[File ID]],Table119[], MATCH(C$4,Table119[#Headers],0), 0)","v":{"$error":"#N/A"}}]
[320,{"$f":"VLOOKUP(Epidemic_Codes[[#This Row],[File ID]],Table119[], MATCH(B$4,Table119[#Headers],0), 0)","v":{"$error":"#N/A"}},{"$f":"VLOOKUP(Epidemic_Codes[[#This Row],[File ID]],Table119[], MATCH(C$4,Table119[#Headers],0), 0)","v":{"$error":"#N/A"}}]
[{"$f":"ROW()-4","v":321},{"$f":"VLOOKUP(Epidemic_Codes[[#This Row],[File ID]],Table119[], MATCH(B$4,Table119[#Headers],0), 0)","v":{"$error":"#N/A"}},{"$f":"VLOOKUP(Epidemic_Codes[[#This Row],[File ID]],Table119[], MATCH(C$4,Table119[#Headers],0), 0)","v":{"$error":"#N/A"}}]
[322,{"$f":"VLOOKUP(Epidemic_Codes[[#This Row],[File ID]],Table119[], MATCH(B$4,Table119[#Headers],0), 0)","v":{"$error":"#N/A"}},{"$f":"VLOOKUP(Epidemic_Codes[[#This Row],[File ID]],Table119[], MATCH(C$4,Table119[#Headers],0), 0)","v":{"$error":"#N/A"}}]
[323,{"$f":"VLOOKUP(Epidemic_Codes[[#This Row],[File ID]],Table119[], MATCH(B$4,Table119[#Headers],0), 0)","v":{"$error":"#N/A"}},{"$f":"VLOOKUP(Epidemic_Codes[[#This Row],[File ID]],Table119[], MATCH(C$4,Table119[#Headers],0), 0)","v":{"$error":"#N/A"}}]
[324,{"$f":"VLOOKUP(Epidemic_Codes[[#This Row],[File ID]],Table119[], MATCH(B$4,Table119[#Headers],0), 0)","v":{"$error":"#N/A"}},{"$f":"VLOOKUP(Epidemic_Codes[[#This Row],[File ID]],Table119[], MATCH(C$4,Table119[#Headers],0), 0)","v":{"$error":"#N/A"}}]
[325,{"$f":"VLOOKUP(Epidemic_Codes[[#This Row],[File ID]],Table119[], MATCH(B$4,Table119[#Headers],0), 0)","v":{"$error":"#N/A"}},{"$f":"VLOOKUP(Epidemic_Codes[[#This Row],[File ID]],Table119[], MATCH(C$4,Table119[#Headers],0), 0)","v":{"$error":"#N/A"}}]
[326,{"$f":"VLOOKUP(Epidemic_Codes[[#This Row],[File ID]],Table119[], MATCH(B$4,Table119[#Headers],0), 0)","v":{"$error":"#N/A"}},{"$f":"VLOOKUP(Epidemic_Codes[[#This Row],[File ID]],Table119[], MATCH(C$4,Table119[#Headers],0), 0)","v":{"$error":"#N/A"}}]
[327,{"$f":"VLOOKUP(Epidemic_Codes[[#This Row],[File ID]],Table119[], MATCH(B$4,Table119[#Headers],0), 0)","v":{"$error":"#N/A"}},{"$f":"VLOOKUP(Epidemic_Codes[[#This Row],[File ID]],Table119[], MATCH(C$4,Table119[#Headers],0), 0)","v":{"$error":"#N/A"}}]
[328,{"$f":"VLOOKUP(Epidemic_Codes[[#This Row],[File ID]],Table119[], MATCH(B$4,Table119[#Headers],0), 0)","v":{"$error":"#N/A"}},{"$f":"VLOOKUP(Epidemic_Codes[[#This Row],[File ID]],Table119[], MATCH(C$4,Table119[#Headers],0), 0)","v":{"$error":"#N/A"}}]
[329,{"$f":"VLOOKUP(Epidemic_Codes[[#This Row],[File ID]],Table119[], MATCH(B$4,Table119[#Headers],0), 0)","v":{"$error":"#N/A"}},{"$f":"VLOOKUP(Epidemic_Codes[[#This Row],[File ID]],Table119[], MATCH(C$4,Table119[#Headers],0), 0)","v":{"$error":"#N/A"}}]
[330,{"$f":"VLOOKUP(Epidemic_Codes[[#This Row],[File ID]],Table119[], MATCH(B$4,Table119[#Headers],0), 0)","v":{"$error":"#N/A"}},{"$f":"VLOOKUP(Epidemic_Codes[[#This Row],[File ID]],Table119[], MATCH(C$4,Table119[#Headers],0), 0)","v":{"$error":"#N/A"}}]
[331,{"$f":"VLOOKUP(Epidemic_Codes[[#This Row],[File ID]],Table119[], MATCH(B$4,Table119[#Headers],0), 0)","v":{"$error":"#N/A"}},{"$f":"VLOOKUP(Epidemic_Codes[[#This Row],[File ID]],Table119[], MATCH(C$4,Table119[#Headers],0), 0)","v":{"$error":"#N/A"}}]
[332,{"$f":"VLOOKUP(Epidemic_Codes[[#This Row],[File ID]],Table119[], MATCH(B$4,Table119[#Headers],0), 0)","v":{"$error":"#N/A"}},{"$f":"VLOOKUP(Epidemic_Codes[[#This Row],[File ID]],Table119[], MATCH(C$4,Table119[#Headers],0), 0)","v":{"$error":"#N/A"}}]
[333,{"$f":"VLOOKUP(Epidemic_Codes[[#This Row],[File ID]],Table119[], MATCH(B$4,Table119[#Headers],0), 0)","v":{"$error":"#N/A"}},{"$f":"VLOOKUP(Epidemic_Codes[[#This Row],[File ID]],Table119[], MATCH(C$4,Table119[#Headers],0), 0)","v":{"$error":"#N/A"}}]
[334,{"$f":"VLOOKUP(Epidemic_Codes[[#This Row],[File ID]],Table119[], MATCH(B$4,Table119[#Headers],0), 0)","v":{"$error":"#N/A"}},{"$f":"VLOOKUP(Epidemic_Codes[[#This Row],[File ID]],Table119[], MATCH(C$4,Table119[#Headers],0), 0)","v":{"$error":"#N/A"}}]
[335,{"$f":"VLOOKUP(Epidemic_Codes[[#This Row],[File ID]],Table119[], MATCH(B$4,Table119[#Headers],0), 0)","v":{"$error":"#N/A"}},{"$f":"VLOOKUP(Epidemic_Codes[[#This Row],[File ID]],Table119[], MATCH(C$4,Table119[#Headers],0), 0)","v":{"$error":"#N/A"}}]
[336,{"$f":"VLOOKUP(Epidemic_Codes[[#This Row],[File ID]],Table119[], MATCH(B$4,Table119[#Headers],0), 0)","v":{"$error":"#N/A"}},{"$f":"VLOOKUP(Epidemic_Codes[[#This Row],[File ID]],Table119[], MATCH(C$4,Table119[#Headers],0), 0)","v":{"$error":"#N/A"}}]
[337,{"$f":"VLOOKUP(Epidemic_Codes[[#This Row],[File ID]],Table119[], MATCH(B$4,Table119[#Headers],0), 0)","v":{"$error":"#N/A"}},{"$f":"VLOOKUP(Epidemic_Codes[[#This Row],[File ID]],Table119[], MATCH(C$4,Table119[#Headers],0), 0)","v":{"$error":"#N/A"}}]
[338,{"$f":"VLOOKUP(Epidemic_Codes[[#This Row],[File ID]],Table119[], MATCH(B$4,Table119[#Headers],0), 0)","v":{"$error":"#N/A"}},{"$f":"VLOOKUP(Epidemic_Codes[[#This Row],[File ID]],Table119[], MATCH(C$4,Table119[#Headers],0), 0)","v":{"$error":"#N/A"}}]
[339,{"$f":"VLOOKUP(Epidemic_Codes[[#This Row],[File ID]],Table119[], MATCH(B$4,Table119[#Headers],0), 0)","v":{"$error":"#N/A"}},{"$f":"VLOOKUP(Epidemic_Codes[[#This Row],[File ID]],Table119[], MATCH(C$4,Table119[#Headers],0), 0)","v":{"$error":"#N/A"}}]
[340,{"$f":"VLOOKUP(Epidemic_Codes[[#This Row],[File ID]],Table119[], MATCH(B$4,Table119[#Headers],0), 0)","v":{"$error":"#N/A"}},{"$f":"VLOOKUP(Epidemic_Codes[[#This Row],[File ID]],Table119[], MATCH(C$4,Table119[#Headers],0), 0)","v":{"$error":"#N/A"}}]
[341,{"$f":"VLOOKUP(Epidemic_Codes[[#This Row],[File ID]],Table119[], MATCH(B$4,Table119[#Headers],0), 0)","v":{"$error":"#N/A"}},{"$f":"VLOOKUP(Epidemic_Codes[[#This Row],[File ID]],Table119[], MATCH(C$4,Table119[#Headers],0), 0)","v":{"$error":"#N/A"}}]
[342,{"$f":"VLOOKUP(Epidemic_Codes[[#This Row],[File ID]],Table119[], MATCH(B$4,Table119[#Headers],0), 0)","v":{"$error":"#N/A"}},{"$f":"VLOOKUP(Epidemic_Codes[[#This Row],[File ID]],Table119[], MATCH(C$4,Table119[#Headers],0), 0)","v":{"$error":"#N/A"}}]
[343,{"$f":"VLOOKUP(Epidemic_Codes[[#This Row],[File ID]],Table119[], MATCH(B$4,Table119[#Headers],0), 0)","v":{"$error":"#N/A"}},{"$f":"VLOOKUP(Epidemic_Codes[[#This Row],[File ID]],Table119[], MATCH(C$4,Table119[#Headers],0), 0)","v":{"$error":"#N/A"}}]
[344,{"$f":"VLOOKUP(Epidemic_Codes[[#This Row],[File ID]],Table119[], MATCH(B$4,Table119[#Headers],0), 0)","v":{"$error":"#N/A"}},{"$f":"VLOOKUP(Epidemic_Codes[[#This Row],[File ID]],Table119[], MATCH(C$4,Table119[#Headers],0), 0)","v":{"$error":"#N/A"}}]
[345,{"$f":"VLOOKUP(Epidemic_Codes[[#This Row],[File ID]],Table119[], MATCH(B$4,Table119[#Headers],0), 0)","v":{"$error":"#N/A"}},{"$f":"VLOOKUP(Epidemic_Codes[[#This Row],[File ID]],Table119[], MATCH(C$4,Table119[#Headers],0), 0)","v":{"$error":"#N/A"}}]
[346,{"$f":"VLOOKUP(Epidemic_Codes[[#This Row],[File ID]],Table119[], MATCH(B$4,Table119[#Headers],0), 0)","v":{"$error":"#N/A"}},{"$f":"VLOOKUP(Epidemic_Codes[[#This Row],[File ID]],Table119[], MATCH(C$4,Table119[#Headers],0), 0)","v":{"$error":"#N/A"}}]
[347,{"$f":"VLOOKUP(Epidemic_Codes[[#This Row],[File ID]],Table119[], MATCH(B$4,Table119[#Headers],0), 0)","v":{"$error":"#N/A"}},{"$f":"VLOOKUP(Epidemic_Codes[[#This Row],[File ID]],Table119[], MATCH(C$4,Table119[#Headers],0), 0)","v":{"$error":"#N/A"}}]
[348,{"$f":"VLOOKUP(Epidemic_Codes[[#This Row],[File ID]],Table119[], MATCH(B$4,Table119[#Headers],0), 0)","v":{"$error":"#N/A"}},{"$f":"VLOOKUP(Epidemic_Codes[[#This Row],[File ID]],Table119[], MATCH(C$4,Table119[#Headers],0), 0)","v":{"$error":"#N/A"}}]
[349,{"$f":"VLOOKUP(Epidemic_Codes[[#This Row],[File ID]],Table119[], MATCH(B$4,Table119[#Headers],0), 0)","v":{"$error":"#N/A"}},{"$f":"VLOOKUP(Epidemic_Codes[[#This Row],[File ID]],Table119[], MATCH(C$4,Table119[#Headers],0), 0)","v":{"$error":"#N/A"}}]
[350,{"$f":"VLOOKUP(Epidemic_Codes[[#This Row],[File ID]],Table119[], MATCH(B$4,Table119[#Headers],0), 0)","v":{"$error":"#N/A"}},{"$f":"VLOOKUP(Epidemic_Codes[[#This Row],[File ID]],Table119[], MATCH(C$4,Table119[#Headers],0), 0)","v":{"$error":"#N/A"}}]
[351,{"$f":"VLOOKUP(Epidemic_Codes[[#This Row],[File ID]],Table119[], MATCH(B$4,Table119[#Headers],0), 0)","v":{"$error":"#N/A"}},{"$f":"VLOOKUP(Epidemic_Codes[[#This Row],[File ID]],Table119[], MATCH(C$4,Table119[#Headers],0), 0)","v":{"$error":"#N/A"}}]
[352,{"$f":"VLOOKUP(Epidemic_Codes[[#This Row],[File ID]],Table119[], MATCH(B$4,Table119[#Headers],0), 0)","v":{"$error":"#N/A"}},{"$f":"VLOOKUP(Epidemic_Codes[[#This Row],[File ID]],Table119[], MATCH(C$4,Table119[#Headers],0), 0)","v":{"$error":"#N/A"}}]
[353,{"$f":"VLOOKUP(Epidemic_Codes[[#This Row],[File ID]],Table119[], MATCH(B$4,Table119[#Headers],0), 0)","v":{"$error":"#N/A"}},{"$f":"VLOOKUP(Epidemic_Codes[[#This Row],[File ID]],Table119[], MATCH(C$4,Table119[#Headers],0), 0)","v":{"$error":"#N/A"}}]
[354,{"$f":"VLOOKUP(Epidemic_Codes[[#This Row],[File ID]],Table119[], MATCH(B$4,Table119[#Headers],0), 0)","v":{"$error":"#N/A"}},{"$f":"VLOOKUP(Epidemic_Codes[[#This Row],[File ID]],Table119[], MATCH(C$4,Table119[#Headers],0), 0)","v":{"$error":"#N/A"}}]
[355,{"$f":"VLOOKUP(Epidemic_Codes[[#This Row],[File ID]],Table119[], MATCH(B$4,Table119[#Headers],0), 0)","v":{"$error":"#N/A"}},{"$f":"VLOOKUP(Epidemic_Codes[[#This Row],[File ID]],Table119[], MATCH(C$4,Table119[#Headers],0), 0)","v":{"$error":"#N/A"}}]
[356,{"$f":"VLOOKUP(Epidemic_Codes[[#This Row],[File ID]],Table119[], MATCH(B$4,Table119[#Headers],0), 0)","v":{"$error":"#N/A"}},{"$f":"VLOOKUP(Epidemic_Codes[[#This Row],[File ID]],Table119[], MATCH(C$4,Table119[#Headers],0), 0)","v":{"$error":"#N/A"}}]
[357,{"$f":"VLOOKUP(Epidemic_Codes[[#This Row],[File ID]],Table119[], MATCH(B$4,Table119[#Headers],0), 0)","v":{"$error":"#N/A"}},{"$f":"VLOOKUP(Epidemic_Codes[[#This Row],[File ID]],Table119[], MATCH(C$4,Table119[#Headers],0), 0)","v":{"$error":"#N/A"}}]
[358,{"$f":"VLOOKUP(Epidemic_Codes[[#This Row],[File ID]],Table119[], MATCH(B$4,Table119[#Headers],0), 0)","v":{"$error":"#N/A"}},{"$f":"VLOOKUP(Epidemic_Codes[[#This Row],[File ID]],Table119[], MATCH(C$4,Table119[#Headers],0), 0)","v":{"$error":"#N/A"}}]
[359,{"$f":"VLOOKUP(Epidemic_Codes[[#This Row],[File ID]],Table119[], MATCH(B$4,Table119[#Headers],0), 0)","v":{"$error":"#N/A"}},{"$f":"VLOOKUP(Epidemic_Codes[[#This Row],[File ID]],Table119[], MATCH(C$4,Table119[#Headers],0), 0)","v":{"$error":"#N/A"}}]
[360,{"$f":"VLOOKUP(Epidemic_Codes[[#This Row],[File ID]],Table119[], MATCH(B$4,Table119[#Headers],0), 0)","v":{"$error":"#N/A"}},{"$f":"VLOOKUP(Epidemic_Codes[[#This Row],[File ID]],Table119[], MATCH(C$4,Table119[#Headers],0), 0)","v":{"$error":"#N/A"}}]
[361,{"$f":"VLOOKUP(Epidemic_Codes[[#This Row],[File ID]],Table119[], MATCH(B$4,Table119[#Headers],0), 0)","v":{"$error":"#N/A"}},{"$f":"VLOOKUP(Epidemic_Codes[[#This Row],[File ID]],Table119[], MATCH(C$4,Table119[#Headers],0), 0)","v":{"$error":"#N/A"}}]
[362,{"$f":"VLOOKUP(Epidemic_Codes[[#This Row],[File ID]],Table119[], MATCH(B$4,Table119[#Headers],0), 0)","v":{"$error":"#N/A"}},{"$f":"VLOOKUP(Epidemic_Codes[[#This Row],[File ID]],Table119[], MATCH(C$4,Table119[#Headers],0), 0)","v":{"$error":"#N/A"}}]
[363,{"$f":"VLOOKUP(Epidemic_Codes[[#This Row],[File ID]],Table119[], MATCH(B$4,Table119[#Headers],0), 0)","v":{"$error":"#N/A"}},{"$f":"VLOOKUP(Epidemic_Codes[[#This Row],[File ID]],Table119[], MATCH(C$4,Table119[#Headers],0), 0)","v":{"$error":"#N/A"}}]
[364,{"$f":"VLOOKUP(Epidemic_Codes[[#This Row],[File ID]],Table119[], MATCH(B$4,Table119[#Headers],0), 0)","v":{"$error":"#N/A"}},{"$f":"VLOOKUP(Epidemic_Codes[[#This Row],[File ID]],Table119[], MATCH(C$4,Table119[#Headers],0), 0)","v":{"$error":"#N/A"}}]
[365,{"$f":"VLOOKUP(Epidemic_Codes[[#This Row],[File ID]],Table119[], MATCH(B$4,Table119[#Headers],0), 0)","v":{"$error":"#N/A"}},{"$f":"VLOOKUP(Epidemic_Codes[[#This Row],[File ID]],Table119[], MATCH(C$4,Table119[#Headers],0), 0)","v":{"$error":"#N/A"}}]
[366,{"$f":"VLOOKUP(Epidemic_Codes[[#This Row],[File ID]],Table119[], MATCH(B$4,Table119[#Headers],0), 0)","v":{"$error":"#N/A"}},{"$f":"VLOOKUP(Epidemic_Codes[[#This Row],[File ID]],Table119[], MATCH(C$4,Table119[#Headers],0), 0)","v":{"$error":"#N/A"}}]
[367,{"$f":"VLOOKUP(Epidemic_Codes[[#This Row],[File ID]],Table119[], MATCH(B$4,Table119[#Headers],0), 0)","v":{"$error":"#N/A"}},{"$f":"VLOOKUP(Epidemic_Codes[[#This Row],[File ID]],Table119[], MATCH(C$4,Table119[#Headers],0), 0)","v":{"$error":"#N/A"}}]
[368,{"$f":"VLOOKUP(Epidemic_Codes[[#This Row],[File ID]],Table119[], MATCH(B$4,Table119[#Headers],0), 0)","v":{"$error":"#N/A"}},{"$f":"VLOOKUP(Epidemic_Codes[[#This Row],[File ID]],Table119[], MATCH(C$4,Table119[#Headers],0), 0)","v":{"$error":"#N/A"}}]
[369,{"$f":"VLOOKUP(Epidemic_Codes[[#This Row],[File ID]],Table119[], MATCH(B$4,Table119[#Headers],0), 0)","v":{"$error":"#N/A"}},{"$f":"VLOOKUP(Epidemic_Codes[[#This Row],[File ID]],Table119[], MATCH(C$4,Table119[#Headers],0), 0)","v":{"$error":"#N/A"}}]
[370,{"$f":"VLOOKUP(Epidemic_Codes[[#This Row],[File ID]],Table119[], MATCH(B$4,Table119[#Headers],0), 0)","v":{"$error":"#N/A"}},{"$f":"VLOOKUP(Epidemic_Codes[[#This Row],[File ID]],Table119[], MATCH(C$4,Table119[#Headers],0), 0)","v":{"$error":"#N/A"}}]
[371,{"$f":"VLOOKUP(Epidemic_Codes[[#This Row],[File ID]],Table119[], MATCH(B$4,Table119[#Headers],0), 0)","v":{"$error":"#N/A"}},{"$f":"VLOOKUP(Epidemic_Codes[[#This Row],[File ID]],Table119[], MATCH(C$4,Table119[#Headers],0), 0)","v":{"$error":"#N/A"}}]
[372,{"$f":"VLOOKUP(Epidemic_Codes[[#This Row],[File ID]],Table119[], MATCH(B$4,Table119[#Headers],0), 0)","v":{"$error":"#N/A"}},{"$f":"VLOOKUP(Epidemic_Codes[[#This Row],[File ID]],Table119[], MATCH(C$4,Table119[#Headers],0), 0)","v":{"$error":"#N/A"}}]
[373,{"$f":"VLOOKUP(Epidemic_Codes[[#This Row],[File ID]],Table119[], MATCH(B$4,Table119[#Headers],0), 0)","v":{"$error":"#N/A"}},{"$f":"VLOOKUP(Epidemic_Codes[[#This Row],[File ID]],Table119[], MATCH(C$4,Table119[#Headers],0), 0)","v":{"$error":"#N/A"}}]
[374,{"$f":"VLOOKUP(Epidemic_Codes[[#This Row],[File ID]],Table119[], MATCH(B$4,Table119[#Headers],0), 0)","v":{"$error":"#N/A"}},{"$f":"VLOOKUP(Epidemic_Codes[[#This Row],[File ID]],Table119[], MATCH(C$4,Table119[#Headers],0), 0)","v":{"$error":"#N/A"}}]
[375,{"$f":"VLOOKUP(Epidemic_Codes[[#This Row],[File ID]],Table119[], MATCH(B$4,Table119[#Headers],0), 0)","v":{"$error":"#N/A"}},{"$f":"VLOOKUP(Epidemic_Codes[[#This Row],[File ID]],Table119[], MATCH(C$4,Table119[#Headers],0), 0)","v":{"$error":"#N/A"}}]
[376,{"$f":"VLOOKUP(Epidemic_Codes[[#This Row],[File ID]],Table119[], MATCH(B$4,Table119[#Headers],0), 0)","v":{"$error":"#N/A"}},{"$f":"VLOOKUP(Epidemic_Codes[[#This Row],[File ID]],Table119[], MATCH(C$4,Table119[#Headers],0), 0)","v":{"$error":"#N/A"}}]
[377,{"$f":"VLOOKUP(Epidemic_Codes[[#This Row],[File ID]],Table119[], MATCH(B$4,Table119[#Headers],0), 0)","v":{"$error":"#N/A"}},{"$f":"VLOOKUP(Epidemic_Codes[[#This Row],[File ID]],Table119[], MATCH(C$4,Table119[#Headers],0), 0)","v":{"$error":"#N/A"}}]
[378,{"$f":"VLOOKUP(Epidemic_Codes[[#This Row],[File ID]],Table119[], MATCH(B$4,Table119[#Headers],0), 0)","v":{"$error":"#N/A"}},{"$f":"VLOOKUP(Epidemic_Codes[[#This Row],[File ID]],Table119[], MATCH(C$4,Table119[#Headers],0), 0)","v":{"$error":"#N/A"}}]
[379,{"$f":"VLOOKUP(Epidemic_Codes[[#This Row],[File ID]],Table119[], MATCH(B$4,Table119[#Headers],0), 0)","v":{"$error":"#N/A"}},{"$f":"VLOOKUP(Epidemic_Codes[[#This Row],[File ID]],Table119[], MATCH(C$4,Table119[#Headers],0), 0)","v":{"$error":"#N/A"}}]
[380,{"$f":"VLOOKUP(Epidemic_Codes[[#This Row],[File ID]],Table119[], MATCH(B$4,Table119[#Headers],0), 0)","v":{"$error":"#N/A"}},{"$f":"VLOOKUP(Epidemic_Codes[[#This Row],[File ID]],Table119[], MATCH(C$4,Table119[#Headers],0), 0)","v":{"$error":"#N/A"}}]
[381,{"$f":"VLOOKUP(Epidemic_Codes[[#This Row],[File ID]],Table119[], MATCH(B$4,Table119[#Headers],0), 0)","v":{"$error":"#N/A"}},{"$f":"VLOOKUP(Epidemic_Codes[[#This Row],[File ID]],Table119[], MATCH(C$4,Table119[#Headers],0), 0)","v":{"$error":"#N/A"}}]
[382,{"$f":"VLOOKUP(Epidemic_Codes[[#This Row],[File ID]],Table119[], MATCH(B$4,Table119[#Headers],0), 0)","v":{"$error":"#N/A"}},{"$f":"VLOOKUP(Epidemic_Codes[[#This Row],[File ID]],Table119[], MATCH(C$4,Table119[#Headers],0), 0)","v":{"$error":"#N/A"}}]
[383,{"$f":"VLOOKUP(Epidemic_Codes[[#This Row],[File ID]],Table119[], MATCH(B$4,Table119[#Headers],0), 0)","v":{"$error":"#N/A"}},{"$f":"VLOOKUP(Epidemic_Codes[[#This Row],[File ID]],Table119[], MATCH(C$4,Table119[#Headers],0), 0)","v":{"$error":"#N/A"}}]
[384,{"$f":"VLOOKUP(Epidemic_Codes[[#This Row],[File ID]],Table119[], MATCH(B$4,Table119[#Headers],0), 0)","v":{"$error":"#N/A"}},{"$f":"VLOOKUP(Epidemic_Codes[[#This Row],[File ID]],Table119[], MATCH(C$4,Table119[#Headers],0), 0)","v":{"$error":"#N/A"}}]
[{"$f":"ROW()-4","v":385},{"$f":"VLOOKUP(Epidemic_Codes[[#This Row],[File ID]],Table119[], MATCH(B$4,Table119[#Headers],0), 0)","v":{"$error":"#N/A"}},{"$f":"VLOOKUP(Epidemic_Codes[[#This Row],[File ID]],Table119[], MATCH(C$4,Table119[#Headers],0), 0)","v":{"$error":"#N/A"}}]
[386,{"$f":"VLOOKUP(Epidemic_Codes[[#This Row],[File ID]],Table119[], MATCH(B$4,Table119[#Headers],0), 0)","v":{"$error":"#N/A"}},{"$f":"VLOOKUP(Epidemic_Codes[[#This Row],[File ID]],Table119[], MATCH(C$4,Table119[#Headers],0), 0)","v":{"$error":"#N/A"}}]
[387,{"$f":"VLOOKUP(Epidemic_Codes[[#This Row],[File ID]],Table119[], MATCH(B$4,Table119[#Headers],0), 0)","v":{"$error":"#N/A"}},{"$f":"VLOOKUP(Epidemic_Codes[[#This Row],[File ID]],Table119[], MATCH(C$4,Table119[#Headers],0), 0)","v":{"$error":"#N/A"}}]
[388,{"$f":"VLOOKUP(Epidemic_Codes[[#This Row],[File ID]],Table119[], MATCH(B$4,Table119[#Headers],0), 0)","v":{"$error":"#N/A"}},{"$f":"VLOOKUP(Epidemic_Codes[[#This Row],[File ID]],Table119[], MATCH(C$4,Table119[#Headers],0), 0)","v":{"$error":"#N/A"}}]
[389,{"$f":"VLOOKUP(Epidemic_Codes[[#This Row],[File ID]],Table119[], MATCH(B$4,Table119[#Headers],0), 0)","v":{"$error":"#N/A"}},{"$f":"VLOOKUP(Epidemic_Codes[[#This Row],[File ID]],Table119[], MATCH(C$4,Table119[#Headers],0), 0)","v":{"$error":"#N/A"}}]
[390,{"$f":"VLOOKUP(Epidemic_Codes[[#This Row],[File ID]],Table119[], MATCH(B$4,Table119[#Headers],0), 0)","v":{"$error":"#N/A"}},{"$f":"VLOOKUP(Epidemic_Codes[[#This Row],[File ID]],Table119[], MATCH(C$4,Table119[#Headers],0), 0)","v":{"$error":"#N/A"}}]
[391,{"$f":"VLOOKUP(Epidemic_Codes[[#This Row],[File ID]],Table119[], MATCH(B$4,Table119[#Headers],0), 0)","v":{"$error":"#N/A"}},{"$f":"VLOOKUP(Epidemic_Codes[[#This Row],[File ID]],Table119[], MATCH(C$4,Table119[#Headers],0), 0)","v":{"$error":"#N/A"}}]
[392,{"$f":"VLOOKUP(Epidemic_Codes[[#This Row],[File ID]],Table119[], MATCH(B$4,Table119[#Headers],0), 0)","v":{"$error":"#N/A"}},{"$f":"VLOOKUP(Epidemic_Codes[[#This Row],[File ID]],Table119[], MATCH(C$4,Table119[#Headers],0), 0)","v":{"$error":"#N/A"}}]
[393,{"$f":"VLOOKUP(Epidemic_Codes[[#This Row],[File ID]],Table119[], MATCH(B$4,Table119[#Headers],0), 0)","v":{"$error":"#N/A"}},{"$f":"VLOOKUP(Epidemic_Codes[[#This Row],[File ID]],Table119[], MATCH(C$4,Table119[#Headers],0), 0)","v":{"$error":"#N/A"}}]
[394,{"$f":"VLOOKUP(Epidemic_Codes[[#This Row],[File ID]],Table119[], MATCH(B$4,Table119[#Headers],0), 0)","v":{"$error":"#N/A"}},{"$f":"VLOOKUP(Epidemic_Codes[[#This Row],[File ID]],Table119[], MATCH(C$4,Table119[#Headers],0), 0)","v":{"$error":"#N/A"}}]
[395,{"$f":"VLOOKUP(Epidemic_Codes[[#This Row],[File ID]],Table119[], MATCH(B$4,Table119[#Headers],0), 0)","v":{"$error":"#N/A"}},{"$f":"VLOOKUP(Epidemic_Codes[[#This Row],[File ID]],Table119[], MATCH(C$4,Table119[#Headers],0), 0)","v":{"$error":"#N/A"}}]
[396,{"$f":"VLOOKUP(Epidemic_Codes[[#This Row],[File ID]],Table119[], MATCH(B$4,Table119[#Headers],0), 0)","v":{"$error":"#N/A"}},{"$f":"VLOOKUP(Epidemic_Codes[[#This Row],[File ID]],Table119[], MATCH(C$4,Table119[#Headers],0), 0)","v":{"$error":"#N/A"}}]
[397,{"$f":"VLOOKUP(Epidemic_Codes[[#This Row],[File ID]],Table119[], MATCH(B$4,Table119[#Headers],0), 0)","v":{"$error":"#N/A"}},{"$f":"VLOOKUP(Epidemic_Codes[[#This Row],[File ID]],Table119[], MATCH(C$4,Table119[#Headers],0), 0)","v":{"$error":"#N/A"}}]
[398,{"$f":"VLOOKUP(Epidemic_Codes[[#This Row],[File ID]],Table119[], MATCH(B$4,Table119[#Headers],0), 0)","v":{"$error":"#N/A"}},{"$f":"VLOOKUP(Epidemic_Codes[[#This Row],[File ID]],Table119[], MATCH(C$4,Table119[#Headers],0), 0)","v":{"$error":"#N/A"}}]
[399,{"$f":"VLOOKUP(Epidemic_Codes[[#This Row],[File ID]],Table119[], MATCH(B$4,Table119[#Headers],0), 0)","v":{"$error":"#N/A"}},{"$f":"VLOOKUP(Epidemic_Codes[[#This Row],[File ID]],Table119[], MATCH(C$4,Table119[#Headers],0), 0)","v":{"$error":"#N/A"}}]
[400,{"$f":"VLOOKUP(Epidemic_Codes[[#This Row],[File ID]],Table119[], MATCH(B$4,Table119[#Headers],0), 0)","v":{"$error":"#N/A"}},{"$f":"VLOOKUP(Epidemic_Codes[[#This Row],[File ID]],Table119[], MATCH(C$4,Table119[#Headers],0), 0)","v":{"$error":"#N/A"}}]
[401,{"$f":"VLOOKUP(Epidemic_Codes[[#This Row],[File ID]],Table119[], MATCH(B$4,Table119[#Headers],0), 0)","v":{"$error":"#N/A"}},{"$f":"VLOOKUP(Epidemic_Codes[[#This Row],[File ID]],Table119[], MATCH(C$4,Table119[#Headers],0), 0)","v":{"$error":"#N/A"}}]
[402,{"$f":"VLOOKUP(Epidemic_Codes[[#This Row],[File ID]],Table119[], MATCH(B$4,Table119[#Headers],0), 0)","v":{"$error":"#N/A"}},{"$f":"VLOOKUP(Epidemic_Codes[[#This Row],[File ID]],Table119[], MATCH(C$4,Table119[#Headers],0), 0)","v":{"$error":"#N/A"}}]
[403,{"$f":"VLOOKUP(Epidemic_Codes[[#This Row],[File ID]],Table119[], MATCH(B$4,Table119[#Headers],0), 0)","v":{"$error":"#N/A"}},{"$f":"VLOOKUP(Epidemic_Codes[[#This Row],[File ID]],Table119[], MATCH(C$4,Table119[#Headers],0), 0)","v":{"$error":"#N/A"}}]
[404,{"$f":"VLOOKUP(Epidemic_Codes[[#This Row],[File ID]],Table119[], MATCH(B$4,Table119[#Headers],0), 0)","v":{"$error":"#N/A"}},{"$f":"VLOOKUP(Epidemic_Codes[[#This Row],[File ID]],Table119[], MATCH(C$4,Table119[#Headers],0), 0)","v":{"$error":"#N/A"}}]
[405,{"$f":"VLOOKUP(Epidemic_Codes[[#This Row],[File ID]],Table119[], MATCH(B$4,Table119[#Headers],0), 0)","v":{"$error":"#N/A"}},{"$f":"VLOOKUP(Epidemic_Codes[[#This Row],[File ID]],Table119[], MATCH(C$4,Table119[#Headers],0), 0)","v":{"$error":"#N/A"}}]
[406,{"$f":"VLOOKUP(Epidemic_Codes[[#This Row],[File ID]],Table119[], MATCH(B$4,Table119[#Headers],0), 0)","v":{"$error":"#N/A"}},{"$f":"VLOOKUP(Epidemic_Codes[[#This Row],[File ID]],Table119[], MATCH(C$4,Table119[#Headers],0), 0)","v":{"$error":"#N/A"}}]
[407,{"$f":"VLOOKUP(Epidemic_Codes[[#This Row],[File ID]],Table119[], MATCH(B$4,Table119[#Headers],0), 0)","v":{"$error":"#N/A"}},{"$f":"VLOOKUP(Epidemic_Codes[[#This Row],[File ID]],Table119[], MATCH(C$4,Table119[#Headers],0), 0)","v":{"$error":"#N/A"}}]
[408,{"$f":"VLOOKUP(Epidemic_Codes[[#This Row],[File ID]],Table119[], MATCH(B$4,Table119[#Headers],0), 0)","v":{"$error":"#N/A"}},{"$f":"VLOOKUP(Epidemic_Codes[[#This Row],[File ID]],Table119[], MATCH(C$4,Table119[#Headers],0), 0)","v":{"$error":"#N/A"}}]
[409,{"$f":"VLOOKUP(Epidemic_Codes[[#This Row],[File ID]],Table119[], MATCH(B$4,Table119[#Headers],0), 0)","v":{"$error":"#N/A"}},{"$f":"VLOOKUP(Epidemic_Codes[[#This Row],[File ID]],Table119[], MATCH(C$4,Table119[#Headers],0), 0)","v":{"$error":"#N/A"}}]
[410,{"$f":"VLOOKUP(Epidemic_Codes[[#This Row],[File ID]],Table119[], MATCH(B$4,Table119[#Headers],0), 0)","v":{"$error":"#N/A"}},{"$f":"VLOOKUP(Epidemic_Codes[[#This Row],[File ID]],Table119[], MATCH(C$4,Table119[#Headers],0), 0)","v":{"$error":"#N/A"}}]
[411,{"$f":"VLOOKUP(Epidemic_Codes[[#This Row],[File ID]],Table119[], MATCH(B$4,Table119[#Headers],0), 0)","v":{"$error":"#N/A"}},{"$f":"VLOOKUP(Epidemic_Codes[[#This Row],[File ID]],Table119[], MATCH(C$4,Table119[#Headers],0), 0)","v":{"$error":"#N/A"}}]
[412,{"$f":"VLOOKUP(Epidemic_Codes[[#This Row],[File ID]],Table119[], MATCH(B$4,Table119[#Headers],0), 0)","v":{"$error":"#N/A"}},{"$f":"VLOOKUP(Epidemic_Codes[[#This Row],[File ID]],Table119[], MATCH(C$4,Table119[#Headers],0), 0)","v":{"$error":"#N/A"}}]
[413,{"$f":"VLOOKUP(Epidemic_Codes[[#This Row],[File ID]],Table119[], MATCH(B$4,Table119[#Headers],0), 0)","v":{"$error":"#N/A"}},{"$f":"VLOOKUP(Epidemic_Codes[[#This Row],[File ID]],Table119[], MATCH(C$4,Table119[#Headers],0), 0)","v":{"$error":"#N/A"}}]
[414,{"$f":"VLOOKUP(Epidemic_Codes[[#This Row],[File ID]],Table119[], MATCH(B$4,Table119[#Headers],0), 0)","v":{"$error":"#N/A"}},{"$f":"VLOOKUP(Epidemic_Codes[[#This Row],[File ID]],Table119[], MATCH(C$4,Table119[#Headers],0), 0)","v":{"$error":"#N/A"}}]
[415,{"$f":"VLOOKUP(Epidemic_Codes[[#This Row],[File ID]],Table119[], MATCH(B$4,Table119[#Headers],0), 0)","v":{"$error":"#N/A"}},{"$f":"VLOOKUP(Epidemic_Codes[[#This Row],[File ID]],Table119[], MATCH(C$4,Table119[#Headers],0), 0)","v":{"$error":"#N/A"}}]
[416,{"$f":"VLOOKUP(Epidemic_Codes[[#This Row],[File ID]],Table119[], MATCH(B$4,Table119[#Headers],0), 0)","v":{"$error":"#N/A"}},{"$f":"VLOOKUP(Epidemic_Codes[[#This Row],[File ID]],Table119[], MATCH(C$4,Table119[#Headers],0), 0)","v":{"$error":"#N/A"}}]
[417,{"$f":"VLOOKUP(Epidemic_Codes[[#This Row],[File ID]],Table119[], MATCH(B$4,Table119[#Headers],0), 0)","v":{"$error":"#N/A"}},{"$f":"VLOOKUP(Epidemic_Codes[[#This Row],[File ID]],Table119[], MATCH(C$4,Table119[#Headers],0), 0)","v":{"$error":"#N/A"}}]
[418,{"$f":"VLOOKUP(Epidemic_Codes[[#This Row],[File ID]],Table119[], MATCH(B$4,Table119[#Headers],0), 0)","v":{"$error":"#N/A"}},{"$f":"VLOOKUP(Epidemic_Codes[[#This Row],[File ID]],Table119[], MATCH(C$4,Table119[#Headers],0), 0)","v":{"$error":"#N/A"}}]
[419,{"$f":"VLOOKUP(Epidemic_Codes[[#This Row],[File ID]],Table119[], MATCH(B$4,Table119[#Headers],0), 0)","v":{"$error":"#N/A"}},{"$f":"VLOOKUP(Epidemic_Codes[[#This Row],[File ID]],Table119[], MATCH(C$4,Table119[#Headers],0), 0)","v":{"$error":"#N/A"}}]
[420,{"$f":"VLOOKUP(Epidemic_Codes[[#This Row],[File ID]],Table119[], MATCH(B$4,Table119[#Headers],0), 0)","v":{"$error":"#N/A"}},{"$f":"VLOOKUP(Epidemic_Codes[[#This Row],[File ID]],Table119[], MATCH(C$4,Table119[#Headers],0), 0)","v":{"$error":"#N/A"}}]
[421,{"$f":"VLOOKUP(Epidemic_Codes[[#This Row],[File ID]],Table119[], MATCH(B$4,Table119[#Headers],0), 0)","v":{"$error":"#N/A"}},{"$f":"VLOOKUP(Epidemic_Codes[[#This Row],[File ID]],Table119[], MATCH(C$4,Table119[#Headers],0), 0)","v":{"$error":"#N/A"}}]
[422,{"$f":"VLOOKUP(Epidemic_Codes[[#This Row],[File ID]],Table119[], MATCH(B$4,Table119[#Headers],0), 0)","v":{"$error":"#N/A"}},{"$f":"VLOOKUP(Epidemic_Codes[[#This Row],[File ID]],Table119[], MATCH(C$4,Table119[#Headers],0), 0)","v":{"$error":"#N/A"}}]
[423,{"$f":"VLOOKUP(Epidemic_Codes[[#This Row],[File ID]],Table119[], MATCH(B$4,Table119[#Headers],0), 0)","v":{"$error":"#N/A"}},{"$f":"VLOOKUP(Epidemic_Codes[[#This Row],[File ID]],Table119[], MATCH(C$4,Table119[#Headers],0), 0)","v":{"$error":"#N/A"}}]
[424,{"$f":"VLOOKUP(Epidemic_Codes[[#This Row],[File ID]],Table119[], MATCH(B$4,Table119[#Headers],0), 0)","v":{"$error":"#N/A"}},{"$f":"VLOOKUP(Epidemic_Codes[[#This Row],[File ID]],Table119[], MATCH(C$4,Table119[#Headers],0), 0)","v":{"$error":"#N/A"}}]
[425,{"$f":"VLOOKUP(Epidemic_Codes[[#This Row],[File ID]],Table119[], MATCH(B$4,Table119[#Headers],0), 0)","v":{"$error":"#N/A"}},{"$f":"VLOOKUP(Epidemic_Codes[[#This Row],[File ID]],Table119[], MATCH(C$4,Table119[#Headers],0), 0)","v":{"$error":"#N/A"}}]
[426,{"$f":"VLOOKUP(Epidemic_Codes[[#This Row],[File ID]],Table119[], MATCH(B$4,Table119[#Headers],0), 0)","v":{"$error":"#N/A"}},{"$f":"VLOOKUP(Epidemic_Codes[[#This Row],[File ID]],Table119[], MATCH(C$4,Table119[#Headers],0), 0)","v":{"$error":"#N/A"}}]
[427,{"$f":"VLOOKUP(Epidemic_Codes[[#This Row],[File ID]],Table119[], MATCH(B$4,Table119[#Headers],0), 0)","v":{"$error":"#N/A"}},{"$f":"VLOOKUP(Epidemic_Codes[[#This Row],[File ID]],Table119[], MATCH(C$4,Table119[#Headers],0), 0)","v":{"$error":"#N/A"}}]
[428,{"$f":"VLOOKUP(Epidemic_Codes[[#This Row],[File ID]],Table119[], MATCH(B$4,Table119[#Headers],0), 0)","v":{"$error":"#N/A"}},{"$f":"VLOOKUP(Epidemic_Codes[[#This Row],[File ID]],Table119[], MATCH(C$4,Table119[#Headers],0), 0)","v":{"$error":"#N/A"}}]
[429,{"$f":"VLOOKUP(Epidemic_Codes[[#This Row],[File ID]],Table119[], MATCH(B$4,Table119[#Headers],0), 0)","v":{"$error":"#N/A"}},{"$f":"VLOOKUP(Epidemic_Codes[[#This Row],[File ID]],Table119[], MATCH(C$4,Table119[#Headers],0), 0)","v":{"$error":"#N/A"}}]
[430,{"$f":"VLOOKUP(Epidemic_Codes[[#This Row],[File ID]],Table119[], MATCH(B$4,Table119[#Headers],0), 0)","v":{"$error":"#N/A"}},{"$f":"VLOOKUP(Epidemic_Codes[[#This Row],[File ID]],Table119[], MATCH(C$4,Table119[#Headers],0), 0)","v":{"$error":"#N/A"}}]
[431,{"$f":"VLOOKUP(Epidemic_Codes[[#This Row],[File ID]],Table119[], MATCH(B$4,Table119[#Headers],0), 0)","v":{"$error":"#N/A"}},{"$f":"VLOOKUP(Epidemic_Codes[[#This Row],[File ID]],Table119[], MATCH(C$4,Table119[#Headers],0), 0)","v":{"$error":"#N/A"}}]
[432,{"$f":"VLOOKUP(Epidemic_Codes[[#This Row],[File ID]],Table119[], MATCH(B$4,Table119[#Headers],0), 0)","v":{"$error":"#N/A"}},{"$f":"VLOOKUP(Epidemic_Codes[[#This Row],[File ID]],Table119[], MATCH(C$4,Table119[#Headers],0), 0)","v":{"$error":"#N/A"}}]
[433,{"$f":"VLOOKUP(Epidemic_Codes[[#This Row],[File ID]],Table119[], MATCH(B$4,Table119[#Headers],0), 0)","v":{"$error":"#N/A"}},{"$f":"VLOOKUP(Epidemic_Codes[[#This Row],[File ID]],Table119[], MATCH(C$4,Table119[#Headers],0), 0)","v":{"$error":"#N/A"}}]
[434,{"$f":"VLOOKUP(Epidemic_Codes[[#This Row],[File ID]],Table119[], MATCH(B$4,Table119[#Headers],0), 0)","v":{"$error":"#N/A"}},{"$f":"VLOOKUP(Epidemic_Codes[[#This Row],[File ID]],Table119[], MATCH(C$4,Table119[#Headers],0), 0)","v":{"$error":"#N/A"}}]
[435,{"$f":"VLOOKUP(Epidemic_Codes[[#This Row],[File ID]],Table119[], MATCH(B$4,Table119[#Headers],0), 0)","v":{"$error":"#N/A"}},{"$f":"VLOOKUP(Epidemic_Codes[[#This Row],[File ID]],Table119[], MATCH(C$4,Table119[#Headers],0), 0)","v":{"$error":"#N/A"}}]
[436,{"$f":"VLOOKUP(Epidemic_Codes[[#This Row],[File ID]],Table119[], MATCH(B$4,Table119[#Headers],0), 0)","v":{"$error":"#N/A"}},{"$f":"VLOOKUP(Epidemic_Codes[[#This Row],[File ID]],Table119[], MATCH(C$4,Table119[#Headers],0), 0)","v":{"$error":"#N/A"}}]
[437,{"$f":"VLOOKUP(Epidemic_Codes[[#This Row],[File ID]],Table119[], MATCH(B$4,Table119[#Headers],0), 0)","v":{"$error":"#N/A"}},{"$f":"VLOOKUP(Epidemic_Codes[[#This Row],[File ID]],Table119[], MATCH(C$4,Table119[#Headers],0), 0)","v":{"$error":"#N/A"}}]
[438,{"$f":"VLOOKUP(Epidemic_Codes[[#This Row],[File ID]],Table119[], MATCH(B$4,Table119[#Headers],0), 0)","v":{"$error":"#N/A"}},{"$f":"VLOOKUP(Epidemic_Codes[[#This Row],[File ID]],Table119[], MATCH(C$4,Table119[#Headers],0), 0)","v":{"$error":"#N/A"}}]
[439,{"$f":"VLOOKUP(Epidemic_Codes[[#This Row],[File ID]],Table119[], MATCH(B$4,Table119[#Headers],0), 0)","v":{"$error":"#N/A"}},{"$f":"VLOOKUP(Epidemic_Codes[[#This Row],[File ID]],Table119[], MATCH(C$4,Table119[#Headers],0), 0)","v":{"$error":"#N/A"}}]
[440,{"$f":"VLOOKUP(Epidemic_Codes[[#This Row],[File ID]],Table119[], MATCH(B$4,Table119[#Headers],0), 0)","v":{"$error":"#N/A"}},{"$f":"VLOOKUP(Epidemic_Codes[[#This Row],[File ID]],Table119[], MATCH(C$4,Table119[#Headers],0), 0)","v":{"$error":"#N/A"}}]
[441,{"$f":"VLOOKUP(Epidemic_Codes[[#This Row],[File ID]],Table119[], MATCH(B$4,Table119[#Headers],0), 0)","v":{"$error":"#N/A"}},{"$f":"VLOOKUP(Epidemic_Codes[[#This Row],[File ID]],Table119[], MATCH(C$4,Table119[#Headers],0), 0)","v":{"$error":"#N/A"}}]
[442,{"$f":"VLOOKUP(Epidemic_Codes[[#This Row],[File ID]],Table119[], MATCH(B$4,Table119[#Headers],0), 0)","v":{"$error":"#N/A"}},{"$f":"VLOOKUP(Epidemic_Codes[[#This Row],[File ID]],Table119[], MATCH(C$4,Table119[#Headers],0), 0)","v":{"$error":"#N/A"}}]
[443,{"$f":"VLOOKUP(Epidemic_Codes[[#This Row],[File ID]],Table119[], MATCH(B$4,Table119[#Headers],0), 0)","v":{"$error":"#N/A"}},{"$f":"VLOOKUP(Epidemic_Codes[[#This Row],[File ID]],Table119[], MATCH(C$4,Table119[#Headers],0), 0)","v":{"$error":"#N/A"}}]
[444,{"$f":"VLOOKUP(Epidemic_Codes[[#This Row],[File ID]],Table119[], MATCH(B$4,Table119[#Headers],0), 0)","v":{"$error":"#N/A"}},{"$f":"VLOOKUP(Epidemic_Codes[[#This Row],[File ID]],Table119[], MATCH(C$4,Table119[#Headers],0), 0)","v":{"$error":"#N/A"}}]
[445,{"$f":"VLOOKUP(Epidemic_Codes[[#This Row],[File ID]],Table119[], MATCH(B$4,Table119[#Headers],0), 0)","v":{"$error":"#N/A"}},{"$f":"VLOOKUP(Epidemic_Codes[[#This Row],[File ID]],Table119[], MATCH(C$4,Table119[#Headers],0), 0)","v":{"$error":"#N/A"}}]
[446,{"$f":"VLOOKUP(Epidemic_Codes[[#This Row],[File ID]],Table119[], MATCH(B$4,Table119[#Headers],0), 0)","v":{"$error":"#N/A"}},{"$f":"VLOOKUP(Epidemic_Codes[[#This Row],[File ID]],Table119[], MATCH(C$4,Table119[#Headers],0), 0)","v":{"$error":"#N/A"}}]
[447,{"$f":"VLOOKUP(Epidemic_Codes[[#This Row],[File ID]],Table119[], MATCH(B$4,Table119[#Headers],0), 0)","v":{"$error":"#N/A"}},{"$f":"VLOOKUP(Epidemic_Codes[[#This Row],[File ID]],Table119[], MATCH(C$4,Table119[#Headers],0), 0)","v":{"$error":"#N/A"}}]
[448,{"$f":"VLOOKUP(Epidemic_Codes[[#This Row],[File ID]],Table119[], MATCH(B$4,Table119[#Headers],0), 0)","v":{"$error":"#N/A"}},{"$f":"VLOOKUP(Epidemic_Codes[[#This Row],[File ID]],Table119[], MATCH(C$4,Table119[#Headers],0), 0)","v":{"$error":"#N/A"}}]
[{"$f":"ROW()-4","v":449},{"$f":"VLOOKUP(Epidemic_Codes[[#This Row],[File ID]],Table119[], MATCH(B$4,Table119[#Headers],0), 0)","v":{"$error":"#N/A"}},{"$f":"VLOOKUP(Epidemic_Codes[[#This Row],[File ID]],Table119[], MATCH(C$4,Table119[#Headers],0), 0)","v":{"$error":"#N/A"}}]
[450,{"$f":"VLOOKUP(Epidemic_Codes[[#This Row],[File ID]],Table119[], MATCH(B$4,Table119[#Headers],0), 0)","v":{"$error":"#N/A"}},{"$f":"VLOOKUP(Epidemic_Codes[[#This Row],[File ID]],Table119[], MATCH(C$4,Table119[#Headers],0), 0)","v":{"$error":"#N/A"}}]
[451,{"$f":"VLOOKUP(Epidemic_Codes[[#This Row],[File ID]],Table119[], MATCH(B$4,Table119[#Headers],0), 0)","v":{"$error":"#N/A"}},{"$f":"VLOOKUP(Epidemic_Codes[[#This Row],[File ID]],Table119[], MATCH(C$4,Table119[#Headers],0), 0)","v":{"$error":"#N/A"}}]
[452,{"$f":"VLOOKUP(Epidemic_Codes[[#This Row],[File ID]],Table119[], MATCH(B$4,Table119[#Headers],0), 0)","v":{"$error":"#N/A"}},{"$f":"VLOOKUP(Epidemic_Codes[[#This Row],[File ID]],Table119[], MATCH(C$4,Table119[#Headers],0), 0)","v":{"$error":"#N/A"}}]
[453,{"$f":"VLOOKUP(Epidemic_Codes[[#This Row],[File ID]],Table119[], MATCH(B$4,Table119[#Headers],0), 0)","v":{"$error":"#N/A"}},{"$f":"VLOOKUP(Epidemic_Codes[[#This Row],[File ID]],Table119[], MATCH(C$4,Table119[#Headers],0), 0)","v":{"$error":"#N/A"}}]
[454,{"$f":"VLOOKUP(Epidemic_Codes[[#This Row],[File ID]],Table119[], MATCH(B$4,Table119[#Headers],0), 0)","v":{"$error":"#N/A"}},{"$f":"VLOOKUP(Epidemic_Codes[[#This Row],[File ID]],Table119[], MATCH(C$4,Table119[#Headers],0), 0)","v":{"$error":"#N/A"}}]
[455,{"$f":"VLOOKUP(Epidemic_Codes[[#This Row],[File ID]],Table119[], MATCH(B$4,Table119[#Headers],0), 0)","v":{"$error":"#N/A"}},{"$f":"VLOOKUP(Epidemic_Codes[[#This Row],[File ID]],Table119[], MATCH(C$4,Table119[#Headers],0), 0)","v":{"$error":"#N/A"}}]
[456,{"$f":"VLOOKUP(Epidemic_Codes[[#This Row],[File ID]],Table119[], MATCH(B$4,Table119[#Headers],0), 0)","v":{"$error":"#N/A"}},{"$f":"VLOOKUP(Epidemic_Codes[[#This Row],[File ID]],Table119[], MATCH(C$4,Table119[#Headers],0), 0)","v":{"$error":"#N/A"}}]
[457,{"$f":"VLOOKUP(Epidemic_Codes[[#This Row],[File ID]],Table119[], MATCH(B$4,Table119[#Headers],0), 0)","v":{"$error":"#N/A"}},{"$f":"VLOOKUP(Epidemic_Codes[[#This Row],[File ID]],Table119[], MATCH(C$4,Table119[#Headers],0), 0)","v":{"$error":"#N/A"}}]
[458,{"$f":"VLOOKUP(Epidemic_Codes[[#This Row],[File ID]],Table119[], MATCH(B$4,Table119[#Headers],0), 0)","v":{"$error":"#N/A"}},{"$f":"VLOOKUP(Epidemic_Codes[[#This Row],[File ID]],Table119[], MATCH(C$4,Table119[#Headers],0), 0)","v":{"$error":"#N/A"}}]
[459,{"$f":"VLOOKUP(Epidemic_Codes[[#This Row],[File ID]],Table119[], MATCH(B$4,Table119[#Headers],0), 0)","v":{"$error":"#N/A"}},{"$f":"VLOOKUP(Epidemic_Codes[[#This Row],[File ID]],Table119[], MATCH(C$4,Table119[#Headers],0), 0)","v":{"$error":"#N/A"}}]
[460,{"$f":"VLOOKUP(Epidemic_Codes[[#This Row],[File ID]],Table119[], MATCH(B$4,Table119[#Headers],0), 0)","v":{"$error":"#N/A"}},{"$f":"VLOOKUP(Epidemic_Codes[[#This Row],[File ID]],Table119[], MATCH(C$4,Table119[#Headers],0), 0)","v":{"$error":"#N/A"}}]
[461,{"$f":"VLOOKUP(Epidemic_Codes[[#This Row],[File ID]],Table119[], MATCH(B$4,Table119[#Headers],0), 0)","v":{"$error":"#N/A"}},{"$f":"VLOOKUP(Epidemic_Codes[[#This Row],[File ID]],Table119[], MATCH(C$4,Table119[#Headers],0), 0)","v":{"$error":"#N/A"}}]
[462,{"$f":"VLOOKUP(Epidemic_Codes[[#This Row],[File ID]],Table119[], MATCH(B$4,Table119[#Headers],0), 0)","v":{"$error":"#N/A"}},{"$f":"VLOOKUP(Epidemic_Codes[[#This Row],[File ID]],Table119[], MATCH(C$4,Table119[#Headers],0), 0)","v":{"$error":"#N/A"}}]
[463,{"$f":"VLOOKUP(Epidemic_Codes[[#This Row],[File ID]],Table119[], MATCH(B$4,Table119[#Headers],0), 0)","v":{"$error":"#N/A"}},{"$f":"VLOOKUP(Epidemic_Codes[[#This Row],[File ID]],Table119[], MATCH(C$4,Table119[#Headers],0), 0)","v":{"$error":"#N/A"}}]
[464,{"$f":"VLOOKUP(Epidemic_Codes[[#This Row],[File ID]],Table119[], MATCH(B$4,Table119[#Headers],0), 0)","v":{"$error":"#N/A"}},{"$f":"VLOOKUP(Epidemic_Codes[[#This Row],[File ID]],Table119[], MATCH(C$4,Table119[#Headers],0), 0)","v":{"$error":"#N/A"}}]
[465,{"$f":"VLOOKUP(Epidemic_Codes[[#This Row],[File ID]],Table119[], MATCH(B$4,Table119[#Headers],0), 0)","v":{"$error":"#N/A"}},{"$f":"VLOOKUP(Epidemic_Codes[[#This Row],[File ID]],Table119[], MATCH(C$4,Table119[#Headers],0), 0)","v":{"$error":"#N/A"}}]
[466,{"$f":"VLOOKUP(Epidemic_Codes[[#This Row],[File ID]],Table119[], MATCH(B$4,Table119[#Headers],0), 0)","v":{"$error":"#N/A"}},{"$f":"VLOOKUP(Epidemic_Codes[[#This Row],[File ID]],Table119[], MATCH(C$4,Table119[#Headers],0), 0)","v":{"$error":"#N/A"}}]
[467,{"$f":"VLOOKUP(Epidemic_Codes[[#This Row],[File ID]],Table119[], MATCH(B$4,Table119[#Headers],0), 0)","v":{"$error":"#N/A"}},{"$f":"VLOOKUP(Epidemic_Codes[[#This Row],[File ID]],Table119[], MATCH(C$4,Table119[#Headers],0), 0)","v":{"$error":"#N/A"}}]
[468,{"$f":"VLOOKUP(Epidemic_Codes[[#This Row],[File ID]],Table119[], MATCH(B$4,Table119[#Headers],0), 0)","v":{"$error":"#N/A"}},{"$f":"VLOOKUP(Epidemic_Codes[[#This Row],[File ID]],Table119[], MATCH(C$4,Table119[#Headers],0), 0)","v":{"$error":"#N/A"}}]
[469,{"$f":"VLOOKUP(Epidemic_Codes[[#This Row],[File ID]],Table119[], MATCH(B$4,Table119[#Headers],0), 0)","v":{"$error":"#N/A"}},{"$f":"VLOOKUP(Epidemic_Codes[[#This Row],[File ID]],Table119[], MATCH(C$4,Table119[#Headers],0), 0)","v":{"$error":"#N/A"}}]
[470,{"$f":"VLOOKUP(Epidemic_Codes[[#This Row],[File ID]],Table119[], MATCH(B$4,Table119[#Headers],0), 0)","v":{"$error":"#N/A"}},{"$f":"VLOOKUP(Epidemic_Codes[[#This Row],[File ID]],Table119[], MATCH(C$4,Table119[#Headers],0), 0)","v":{"$error":"#N/A"}}]
[471,{"$f":"VLOOKUP(Epidemic_Codes[[#This Row],[File ID]],Table119[], MATCH(B$4,Table119[#Headers],0), 0)","v":{"$error":"#N/A"}},{"$f":"VLOOKUP(Epidemic_Codes[[#This Row],[File ID]],Table119[], MATCH(C$4,Table119[#Headers],0), 0)","v":{"$error":"#N/A"}}]
[472,{"$f":"VLOOKUP(Epidemic_Codes[[#This Row],[File ID]],Table119[], MATCH(B$4,Table119[#Headers],0), 0)","v":{"$error":"#N/A"}},{"$f":"VLOOKUP(Epidemic_Codes[[#This Row],[File ID]],Table119[], MATCH(C$4,Table119[#Headers],0), 0)","v":{"$error":"#N/A"}}]
[473,{"$f":"VLOOKUP(Epidemic_Codes[[#This Row],[File ID]],Table119[], MATCH(B$4,Table119[#Headers],0), 0)","v":{"$error":"#N/A"}},{"$f":"VLOOKUP(Epidemic_Codes[[#This Row],[File ID]],Table119[], MATCH(C$4,Table119[#Headers],0), 0)","v":{"$error":"#N/A"}}]
[474,{"$f":"VLOOKUP(Epidemic_Codes[[#This Row],[File ID]],Table119[], MATCH(B$4,Table119[#Headers],0), 0)","v":{"$error":"#N/A"}},{"$f":"VLOOKUP(Epidemic_Codes[[#This Row],[File ID]],Table119[], MATCH(C$4,Table119[#Headers],0), 0)","v":{"$error":"#N/A"}}]
[475,{"$f":"VLOOKUP(Epidemic_Codes[[#This Row],[File ID]],Table119[], MATCH(B$4,Table119[#Headers],0), 0)","v":{"$error":"#N/A"}},{"$f":"VLOOKUP(Epidemic_Codes[[#This Row],[File ID]],Table119[], MATCH(C$4,Table119[#Headers],0), 0)","v":{"$error":"#N/A"}}]
[476,{"$f":"VLOOKUP(Epidemic_Codes[[#This Row],[File ID]],Table119[], MATCH(B$4,Table119[#Headers],0), 0)","v":{"$error":"#N/A"}},{"$f":"VLOOKUP(Epidemic_Codes[[#This Row],[File ID]],Table119[], MATCH(C$4,Table119[#Headers],0), 0)","v":{"$error":"#N/A"}}]
[477,{"$f":"VLOOKUP(Epidemic_Codes[[#This Row],[File ID]],Table119[], MATCH(B$4,Table119[#Headers],0), 0)","v":{"$error":"#N/A"}},{"$f":"VLOOKUP(Epidemic_Codes[[#This Row],[File ID]],Table119[], MATCH(C$4,Table119[#Headers],0), 0)","v":{"$error":"#N/A"}}]
[478,{"$f":"VLOOKUP(Epidemic_Codes[[#This Row],[File ID]],Table119[], MATCH(B$4,Table119[#Headers],0), 0)","v":{"$error":"#N/A"}},{"$f":"VLOOKUP(Epidemic_Codes[[#This Row],[File ID]],Table119[], MATCH(C$4,Table119[#Headers],0), 0)","v":{"$error":"#N/A"}}]
[479,{"$f":"VLOOKUP(Epidemic_Codes[[#This Row],[File ID]],Table119[], MATCH(B$4,Table119[#Headers],0), 0)","v":{"$error":"#N/A"}},{"$f":"VLOOKUP(Epidemic_Codes[[#This Row],[File ID]],Table119[], MATCH(C$4,Table119[#Headers],0), 0)","v":{"$error":"#N/A"}}]
[480,{"$f":"VLOOKUP(Epidemic_Codes[[#This Row],[File ID]],Table119[], MATCH(B$4,Table119[#Headers],0), 0)","v":{"$error":"#N/A"}},{"$f":"VLOOKUP(Epidemic_Codes[[#This Row],[File ID]],Table119[], MATCH(C$4,Table119[#Headers],0), 0)","v":{"$error":"#N/A"}}]
[481,{"$f":"VLOOKUP(Epidemic_Codes[[#This Row],[File ID]],Table119[], MATCH(B$4,Table119[#Headers],0), 0)","v":{"$error":"#N/A"}},{"$f":"VLOOKUP(Epidemic_Codes[[#This Row],[File ID]],Table119[], MATCH(C$4,Table119[#Headers],0), 0)","v":{"$error":"#N/A"}}]
[482,{"$f":"VLOOKUP(Epidemic_Codes[[#This Row],[File ID]],Table119[], MATCH(B$4,Table119[#Headers],0), 0)","v":{"$error":"#N/A"}},{"$f":"VLOOKUP(Epidemic_Codes[[#This Row],[File ID]],Table119[], MATCH(C$4,Table119[#Headers],0), 0)","v":{"$error":"#N/A"}}]
[483,{"$f":"VLOOKUP(Epidemic_Codes[[#This Row],[File ID]],Table119[], MATCH(B$4,Table119[#Headers],0), 0)","v":{"$error":"#N/A"}},{"$f":"VLOOKUP(Epidemic_Codes[[#This Row],[File ID]],Table119[], MATCH(C$4,Table119[#Headers],0), 0)","v":{"$error":"#N/A"}}]
[484,{"$f":"VLOOKUP(Epidemic_Codes[[#This Row],[File ID]],Table119[], MATCH(B$4,Table119[#Headers],0), 0)","v":{"$error":"#N/A"}},{"$f":"VLOOKUP(Epidemic_Codes[[#This Row],[File ID]],Table119[], MATCH(C$4,Table119[#Headers],0), 0)","v":{"$error":"#N/A"}}]
[485,{"$f":"VLOOKUP(Epidemic_Codes[[#This Row],[File ID]],Table119[], MATCH(B$4,Table119[#Headers],0), 0)","v":{"$error":"#N/A"}},{"$f":"VLOOKUP(Epidemic_Codes[[#This Row],[File ID]],Table119[], MATCH(C$4,Table119[#Headers],0), 0)","v":{"$error":"#N/A"}}]
[486,{"$f":"VLOOKUP(Epidemic_Codes[[#This Row],[File ID]],Table119[], MATCH(B$4,Table119[#Headers],0), 0)","v":{"$error":"#N/A"}},{"$f":"VLOOKUP(Epidemic_Codes[[#This Row],[File ID]],Table119[], MATCH(C$4,Table119[#Headers],0), 0)","v":{"$error":"#N/A"}}]
[487,{"$f":"VLOOKUP(Epidemic_Codes[[#This Row],[File ID]],Table119[], MATCH(B$4,Table119[#Headers],0), 0)","v":{"$error":"#N/A"}},{"$f":"VLOOKUP(Epidemic_Codes[[#This Row],[File ID]],Table119[], MATCH(C$4,Table119[#Headers],0), 0)","v":{"$error":"#N/A"}}]
[488,{"$f":"VLOOKUP(Epidemic_Codes[[#This Row],[File ID]],Table119[], MATCH(B$4,Table119[#Headers],0), 0)","v":{"$error":"#N/A"}},{"$f":"VLOOKUP(Epidemic_Codes[[#This Row],[File ID]],Table119[], MATCH(C$4,Table119[#Headers],0), 0)","v":{"$error":"#N/A"}}]
[489,{"$f":"VLOOKUP(Epidemic_Codes[[#This Row],[File ID]],Table119[], MATCH(B$4,Table119[#Headers],0), 0)","v":{"$error":"#N/A"}},{"$f":"VLOOKUP(Epidemic_Codes[[#This Row],[File ID]],Table119[], MATCH(C$4,Table119[#Headers],0), 0)","v":{"$error":"#N/A"}}]
[490,{"$f":"VLOOKUP(Epidemic_Codes[[#This Row],[File ID]],Table119[], MATCH(B$4,Table119[#Headers],0), 0)","v":{"$error":"#N/A"}},{"$f":"VLOOKUP(Epidemic_Codes[[#This Row],[File ID]],Table119[], MATCH(C$4,Table119[#Headers],0), 0)","v":{"$error":"#N/A"}}]
[491,{"$f":"VLOOKUP(Epidemic_Codes[[#This Row],[File ID]],Table119[], MATCH(B$4,Table119[#Headers],0), 0)","v":{"$error":"#N/A"}},{"$f":"VLOOKUP(Epidemic_Codes[[#This Row],[File ID]],Table119[], MATCH(C$4,Table119[#Headers],0), 0)","v":{"$error":"#N/A"}}]
[492,{"$f":"VLOOKUP(Epidemic_Codes[[#This Row],[File ID]],Table119[], MATCH(B$4,Table119[#Headers],0), 0)","v":{"$error":"#N/A"}},{"$f":"VLOOKUP(Epidemic_Codes[[#This Row],[File ID]],Table119[], MATCH(C$4,Table119[#Headers],0), 0)","v":{"$error":"#N/A"}}]
[493,{"$f":"VLOOKUP(Epidemic_Codes[[#This Row],[File ID]],Table119[], MATCH(B$4,Table119[#Headers],0), 0)","v":{"$error":"#N/A"}},{"$f":"VLOOKUP(Epidemic_Codes[[#This Row],[File ID]],Table119[], MATCH(C$4,Table119[#Headers],0), 0)","v":{"$error":"#N/A"}}]

{"sheet":"drop down lists","index":6,"n_rows":12,"n_cols":3,"rows_kept":12,"cut":false,"hidden":true,"merged":[]}
["type of event","transcript / notes"]
["focus group","full transcript","yes"]
["interview","notes ","no"]
["open-ended survey","other "]
["community meeting"]
["social media post"]
["informal conversation"]
["participant observation"]
["letter "]
["complaint box"]
["complaint desk"]
["other "]

{"sheet":"6(a). Coding tables","index":7,"n_rows":37,"n_cols":14,"rows_kept":37,"cut":false,"hidden":false,"merged":[[0,0,0,17]]}
["6(a). Coding tables"]
[]
[]
[]
["Pivot tables ",null,null,null,null,"Pivot charts"]
["Broad topic codes","Count of Broad code ","%",null,"Broad topic code frequencies, N=",{"$f":"GETPIVOTDATA(\"Broad code \",$A$6)","v":34},null,null,"Specific codes","N","%",null,"Specific code frequencies, N=",{"$f":"GETPIVOTDATA(\"Broad code \",$A$6)","v":34}]
["_3_About_people_dealing_with_epidemic",11,0.3235294117647059,null,null,null,null,null,"_1_About_the_disease ",5,0.14705882352941177]
["_4_About_govt_led_control_efforts",10,0.29411764705882354,null,null,null,null,null,"Vulnerable groups to disease ",1,2.9411764705882353E-2]
["_1_About_the_disease ",5,0.14705882352941177,null,null,null,null,null,"Transmission of disease (human)",1,2.9411764705882353E-2]
["_5_About_experiences_of_the_ill",4,0.11764705882352941,null,null,null,null,null,"Symptoms of disease",1,2.9411764705882353E-2]
["_2_About_the_epidemic",4,0.11764705882352941,null,null,null,null,null,"Lethality/severity of disease",1,2.9411764705882353E-2]
["Grand Total",34,1,null,null,null,null,null,"Reality of disease (vs. a hoax)",1,2.9411764705882353E-2]
[null,null,null,null,null,null,null,null,"_2_About_the_epidemic",4,0.11764705882352941]
[null,null,null,null,null,null,null,null,"Impacts - disrupting usual health care",2,5.8823529411764705E-2]
[null,null,null,null,null,null,null,null,"Impacts - other types ",1,2.9411764705882353E-2]
[null,null,null,null,null,null,null,null,"Impacts - economic ",1,2.9411764705882353E-2]
[null,null,null,null,null,null,null,null,"_3_About_people_dealing_with_epidemic",11,0.3235294117647059]
[null,null,null,null,null,null,null,null,"Strategy - how to protect oneself",2,5.8823529411764705E-2]
[null,null,null,null,null,null,null,null,"Awareness - level of awareness about epidemic",1,2.9411764705882353E-2]
[null,null,null,null,null,null,null,null,"Concern - personal vulnerability or loved ones",3,8.8235294117647065E-2]
[null,null,null,null,null,null,null,null,"Information - how/ where people get information",1,2.9411764705882353E-2]
[null,null,null,null,null,null,null,null,"Action - personal self-protective steps",1,2.9411764705882353E-2]
[null,null,null,null,null,null,null,null,"Challenges in protecting self or others",2,5.8823529411764705E-2]
[null,null,null,null,null,null,null,null,"Action - reporting others' self-protective steps",1,2.9411764705882353E-2]
[null,null,null,null,null,null,null,null,"_4_About_govt_led_control_efforts",10,0.29411764705882354]
[null,null,null,null,null,null,null,null,"Strategy - vaccination (positive)",1,2.9411764705882353E-2]
[null,null,null,null,null,null,null,null,"Strategy - raising community awareness",5,0.14705882352941177]
[null,null,null,null,null,null,null,null,"Other - govt-led efforts",1,2.9411764705882353E-2]
[null,null,null,null,null,null,null,null,"Strategy - vaccination (opposition)",2,5.8823529411764705E-2]
[null,null,null,null,null,null,null,null,"Strategy - vaccination (demand)",1,2.9411764705882353E-2]
[null,null,null,null,null,null,null,null,"_5_About_experiences_of_the_ill",4,0.11764705882352941]
[null,null,null,null,null,null,null,null,"Survivors - long-term health consequences",2,5.8823529411764705E-2]
[null,null,null,null,null,null,null,null,"Resources - what treatment is available",1,2.9411764705882353E-2]
[null,null,null,null,null,null,null,null,"Strategy - when to contact health authorities",1,2.9411764705882353E-2]
[null,null,null,null,null,null,null,null,"(blank)",null,0]
[null,null,null,null,null,null,null,null,"(blank)",null,0]
[null,null,null,null,null,null,null,null,"Grand Total",34,1]

{"sheet":"7(a). Quotes","index":8,"n_rows":18,"n_cols":6,"rows_kept":18,"cut":false,"hidden":false,"merged":[[0,0,0,4],[4,0,4,3]]}
["7(a). Quotes"]
[]
[]
[]
[null,null,null,null,"Quotes "]
[]
[null,null,null,null,"Text quotes sorted by broad topic codes and specific codes","Count of Text segments for coding "]
[null,null,null,null,"_1_About_the_disease ",5]
[null,null,null,null,"Vulnerable groups to disease ",1]
[null,null,null,null,"[R] 1: Kid will have delays as they get older -- it causes problems for them.",1]
[null,null,null,null,"Transmission of disease (human)",1]
[null,null,null,null,"[R] 2: I learned yesterday that people can get reinfected even after having it one time",1]
[null,null,null,null,"Symptoms of disease",1]
[null,null,null,null,"I thought it was like the chicken pox.  ",1]
[null,null,null,null,"Lethality/severity of disease",1]
[null,null,null,null,"There isn't much information available about treatments for milder illness or how to recognize that mild symptoms are becoming severe. ",1]
[null,null,null,null,"Reality of disease (vs. a hoax)",1]
[null,null,null,null,"Disease X does not exist; it’s a way to control people under unfair government regulations ",1]

{"sheet":"8(a). Grouping codes","index":9,"n_rows":32,"n_cols":23,"rows_kept":32,"cut":false,"hidden":false,"merged":[[12,4,12,10],[0,0,0,10],[1,0,1,10],[4,4,4,6],[6,4,9,4],[6,6,7,6],[6,8,7,8],[8,6,9,6],[8,8,9,8]]}
["8(a). Grouping codes"]
[]
["1. Select the broad topics to include in theme building:"]
[]
[null,null,null,null,"Questions you posed in the planning phase… "]
[]
[null,null,null,null,"Keep in mind your original questions. They will help shape your themes. ",null,{"$f":"'1. Planning'!C6","v":"1. example: what are the most common questions people have about the situation? "},null,{"$f":"'1. Planning'!C7","v":"2. example: what are ways we could share information more effectively?"}]
[]
[]
[]
["2. Codes and quotes will appear below… "]
["Row Labels","Count",null,null,null,null,null,null,null,null,null,null,null,null,null,null,"Blank boards: copy these boards over your originals if you want to repeat grouping with another code"]
["_3_About_people_dealing_with_epidemic",11,null,null,"3. Copy and paste codes and quotes from box 2 (left) into the boxes below. Put codes and quotes that seem related in the same box. "]
["Action - personal self-protective steps",1,null,null,"Board A - what goes together ",null,"Board B - what goes together",null,"Board C - what goes together",null,"Board D - what goes together",null,null,null,null,null,"Board A - what goes together ",null,"Board B - what goes together",null,"Board C - what goes together",null,"Board D - what goes together"]
["•Hand washing",1,null,null,"Potential Theme: Self-protection, what it is, who does it",null,"Theme: Concerns around self, loved ones ",null,"Theme: Information - quality, availability",null,"Theme:",null,null,null,null,null,"Theme: ",null,"Theme:",null,"Theme:",null,"Theme:"]
["Action - reporting others' self-protective steps",1,null,null,"Challenges in protecting self or others",null,"Concern - personal vulnerability or loved ones",null,"Awareness - level of awareness about epidemic"]
["•People don’t go near each other on sidewalk, fear",1,null,null,"Disease X will not be eradicated because people who are cured continue to infect others because people are selfish and won’t stay home when they are sick ",null,"[R] 2: I learned yesterday that people can get reinfected even after having it one time. You know, that kind of thing that makes me really scared.",null,"[R] 2: I learned yesterday that people can get reinfected even after having it one time [R] 3: I didn’t know that. "]
["Awareness - level of awareness about epidemic",1,null,null,"•Hard to get hand sanitizer",null,"[R] 1: I mean, at first, I did but now that I’m vaccinated and my kids are vaccinated? ",null,"Information - how/ where people get information"]
["[R] 2: I learned yesterday that people can get reinfected even after having it one time [R] 3: I didn’t know that. ",1,null,null,"Action - personal self-protective steps",null,"[R] 3: I'm less concerned about getting infected but about being treated for it.",null," [R] 1: Every time I -- by the clinic. I pick up the pamphlet and that stuff                             "]
["Challenges in protecting self or others",2,null,null,"•Hand washing",null,null,null,"•Thinks HS is better than soap"]
["•Hard to get hand sanitizer",1,null,null,"Strategy - how to protect oneself "]
["Disease X will not be eradicated because people who are cured continue to infect others because people are selfish and won’t stay home when they are sick ",1,null,null,"And we just been home I mean, ninety percent of the time home alone only the kids go to school and we get groceries delivered so we don’t feel a lot of risk. "]
["Concern - personal vulnerability or loved ones",3,null,null,"•Thinks HS is better than soap"]
["[R] 1: I mean, at first, I did but now that I’m vaccinated and my kids are vaccinated? ",1,null,null,"Action - reporting others' self-protective steps"]
["[R] 2: I learned yesterday that people can get reinfected even after having it one time. You know, that kind of thing that makes me really scared.",1,null,null,"•People don’t go near each other on sidewalk, fear"]
["[R] 3: I'm less concerned about getting infected but about being treated for it.",1]
["Information - how/ where people get information",1]
[" [R] 1: Every time I -- by the clinic. I pick up the pamphlet and that stuff                             ",1]
["Strategy - how to protect oneself ",2]
["•Thinks HS is better than soap",1]
["And we just been home I mean, ninety percent of the time home alone only the kids go to school and we get groceries delivered so we don’t feel a lot of risk. ",1]
["Grand Total",11]

{"sheet":"4(b). Coding scheme","index":10,"n_rows":25,"n_cols":13,"rows_kept":25,"cut":false,"hidden":true,"merged":[[0,1,0,5],[4,2,4,4],[3,2,3,5],[1,1,1,11]]}
[null,"4(b). Coding scheme"]
[null,"Other Health Emergency Coding Scheme"]
[]
[null,"Broad topic codes","Specific codes [continues through column j]",null,null,null,null,null,null,null,null,"Action Flags "]
[null,"To add a new broad topic area with additional specifics codes, see user guide section 7","To add a specific code, right click in the middle of the list, and select,\"insert.\" Then type in the code you want to add. ",null,null,null,null,null,null,null,null,"To modify: select the text and edit.  To add a code: right click on any cell in the list, select \"insert above row\" and type in the new code. The new code must be within the existing list."]
[null,"1.A Basic coding broad topic area","_1_About_the_event_causing_health_emergency","_2_Event_Impacts","_3_How_public_is_responding","_4_Unmet_Needs","_5_Most_vulnerable_groups","_6_Response_Effectiveness","_7_Communication_Information","_8_Recovery_and_Reconstruction","_9_About_other_community_issues","2. ACTION FLAGS","3. Emotional tone"]
[null,"_1_About_the_event_causing_health_emergency","first-hand experiences, descriptions","Injuries or fatalities","Action - personal self-protective steps","Medical assistance","Protection of refugees and IDPs","Access to medical care","Timeliness and accuracy of information","Reconstruction and rebuilding efforts","Political/social issues","Exploitation/ abuse [notify safety/security]","Positive: General positive"]
[null,"_2_Event_Impacts","questions, requests for information about what occurred","Forced displacement","Action - reporting others' self-protective steps","Shelter","Protection of children and women","Access to other services and resources","Accessibility (languages, formats)","Support for affected businesses","Economic issues","Threats/ reports of violence [notify safety/security]","Positive: Gratitude"]
[null,"_3_How_public_is_responding","Underlying contributing social context or other factors","Loss of homes and property","Action - opposition to response strategies (non-participation)","Food","Other affected groups","Timeliness of response","Transparency of information","Economic recovery","Health care infrastructure","Misinformation/ false information [notify communications]","Positive: Happiness"]
[null,"_4_Unmet_Needs","Other- the event itself","Environmental destruction, contamination","Action - opposition to response strategies (active opposition)","Water/sanitation","Other groups","Quality of relief efforts","Trust in information",null,"Other health threats","Questions to answer, information needs  [notify communications]","Positive: Optimism"]
[null,"_5_Most_vulnerable_groups",null,"Disease outbreaks","Awareness - level of awareness about situation","Protection and safety",null,"Coordination between agencies","Channels: how transmitted",null,"Other types of issues","Response implementation issue - housing","Positive: Pride"]
[null,"_6_Response_Effectiveness",null,"Mental health impacts","Concern - personal vulnerability or loved ones","Access to other services",null,"Resources allocated",null,null,"Needs - Other types of needs","Response implementation issue - nutritional assistance","Positive: Unity"]
[null,"_7_Communication_Information",null,"Other - impacts","Concern - reporting others' sense of concern","Other needs",null,"Specific agencies or partners mentioned",null,null,null,"Response implementation issue - medical care","Neutral: Indifference"]
[null,"_8_Recovery_and_Reconstruction",null,null,"Challenges in protecting self or others",null,null,null,null,null,null,"Response implementation issue - refugee other","Neutral: No particular feeling "]
[null,"_9_About_other_community_issues",null,null,"Engagement - personal interaction with response",null,null,null,null,null,null,"Response implementation issue - evacuation","Neutral: Surprise"]
[null,null,null,null,"Engagement - reporting others' interaction with response",null,null,null,null,null,null,"Response implementation issue - communication ","Negative: Sorrow"]
[null,null,null,null,"Information - how/ where people get information",null,null,null,null,null,null,"Response implementation issue - other","Negative: Anger"]
[null,null,null,null,"Strategy - how to protect oneself",null,null,null,null,null,null,"Actionable suggestions ","Negative: Concern (or worry)"]
[null,null,null,null,"Strategy - how to protect others",null,null,null,null,null,null,"Other [specify]","Negative: Confusion"]
[null,null,null,null,"Strategy - when self-protection is needed",null,null,null,null,null,null,null,"Negative: Despair"]
[null,null,null,null,"Other - community response to outbreak",null,null,null,null,null,null,null,"Negative: Disappointment"]
[null,null,null,null,null,null,null,null,null,null,null,null,"Negative: Doubt/skepticsism"]
[null,null,null,null,null,null,null,null,null,null,null,null,"Negative: Fear"]
[null,null,null,null,null,null,null,null,null,null,null,null,"Negative: Mistrust/suspicion"]
[null,null,null,null,null,null,null,null,null,null,null,null,"No emotion can be identified"]

{"sheet":"5(b) Coding workspace","index":11,"n_rows":497,"n_cols":11,"rows_kept":497,"cut":false,"hidden":true,"merged":[[0,0,0,10]]}
["5(b) Coding workspace"]
[]
[null,null,null,null,null,"Total coded strings:",{"$f":"COUNTIF(H5:H497,\"<>\"&\"\")","v":8},null,"Note about adding rows"]
["Line no","File name","Participant Type","File ID","Interviewer questions, section headings","Text sentences","Text segments for coding ","Broad code ","Specific code","Action flags","Comments"]
[{"$f":"ROW()-4","v":1},{"$f":"VLOOKUP(Human_Codes[[#This Row],[File ID]],Table119[], MATCH(B$4,Table119[#Headers],0), 0)","v":"GomaFG"},{"$f":"VLOOKUP(Human_Codes[[#This Row],[File ID]],Table119[], MATCH(C$4,Table119[#Headers],0), 0)","v":"Mothers"},4,"Part 1","Many people died.  ","Many people died.  ","_2_Event_Impacts","Injuries or fatalities"]
[{"$f":"ROW()-4","v":2},{"$f":"VLOOKUP(Human_Codes[[#This Row],[File ID]],Table119[], MATCH(B$4,Table119[#Headers],0), 0)","v":"GomaFG"},{"$f":"VLOOKUP(Human_Codes[[#This Row],[File ID]],Table119[], MATCH(C$4,Table119[#Headers],0), 0)","v":"Mothers"},4,"Part 1","People had to flee for their lives","People had to flee for their lives","_2_Event_Impacts","Forced displacement"]
[3,{"$f":"VLOOKUP(Human_Codes[[#This Row],[File ID]],Table119[], MATCH(B$4,Table119[#Headers],0), 0)","v":"GomaFG"},{"$f":"VLOOKUP(Human_Codes[[#This Row],[File ID]],Table119[], MATCH(C$4,Table119[#Headers],0), 0)","v":"Mothers"},4,"Part 1","Where can we go, there's not enough space for us here. ","Where can we go, there's not enough space for us here. ","_4_Unmet_Needs","Shelter","Questions to answer, information needs  [notify communications]"]
[4,{"$f":"VLOOKUP(Human_Codes[[#This Row],[File ID]],Table119[], MATCH(B$4,Table119[#Headers],0), 0)","v":"GomaFG"},{"$f":"VLOOKUP(Human_Codes[[#This Row],[File ID]],Table119[], MATCH(C$4,Table119[#Headers],0), 0)","v":"Mothers"},4,"What questions do you have?","Why is it taking so long to get some medical help? ","Why is it taking so long to get some medical help? ","_6_Response_Effectiveness","Timeliness of response","Response implementation issue - medical care"]
[5,{"$f":"VLOOKUP(Human_Codes[[#This Row],[File ID]],Table119[], MATCH(B$4,Table119[#Headers],0), 0)","v":"GomaFG"},{"$f":"VLOOKUP(Human_Codes[[#This Row],[File ID]],Table119[], MATCH(C$4,Table119[#Headers],0), 0)","v":"Mothers"},4,"What questions do you have?","All of our belongings have been taken. ","All of our belongings have been taken. ","_2_Event_Impacts","Loss of homes and property"]
[6,{"$f":"VLOOKUP(Human_Codes[[#This Row],[File ID]],Table119[], MATCH(B$4,Table119[#Headers],0), 0)","v":"GomaFG"},{"$f":"VLOOKUP(Human_Codes[[#This Row],[File ID]],Table119[], MATCH(C$4,Table119[#Headers],0), 0)","v":"Mothers"},4,"What questions do you have?","We lost everything.","We lost everything. ","_2_Event_Impacts","Loss of homes and property"]
[7,{"$f":"VLOOKUP(Human_Codes[[#This Row],[File ID]],Table119[], MATCH(B$4,Table119[#Headers],0), 0)","v":"GomaFG"},{"$f":"VLOOKUP(Human_Codes[[#This Row],[File ID]],Table119[], MATCH(C$4,Table119[#Headers],0), 0)","v":"Mothers"},4,"What questions do you have?","I heard from someone that more supplies are coming, but I don't trust till I hear it officially","I heard from someone that more supplies are coming, but I don't trust till I hear it officially","_7_Communication_Information","Trust in information","Questions to answer, information needs  [notify communications]"]
[8,{"$f":"VLOOKUP(Human_Codes[[#This Row],[File ID]],Table119[], MATCH(B$4,Table119[#Headers],0), 0)","v":"GomaFG"},{"$f":"VLOOKUP(Human_Codes[[#This Row],[File ID]],Table119[], MATCH(C$4,Table119[#Headers],0), 0)","v":"Mothers"},4,"What questions do you have?","I get WhatsApp messages about supplies, when they are coming","I get WhatsApp messages about supplies, when they are coming","_7_Communication_Information","Channels: how transmitted"]
[9,{"$f":"VLOOKUP(Human_Codes[[#This Row],[File ID]],Table119[], MATCH(B$4,Table119[#Headers],0), 0)","v":{"$error":"#N/A"}},{"$f":"VLOOKUP(Human_Codes[[#This Row],[File ID]],Table119[], MATCH(C$4,Table119[#Headers],0), 0)","v":{"$error":"#N/A"}}]
[10,{"$f":"VLOOKUP(Human_Codes[[#This Row],[File ID]],Table119[], MATCH(B$4,Table119[#Headers],0), 0)","v":{"$error":"#N/A"}},{"$f":"VLOOKUP(Human_Codes[[#This Row],[File ID]],Table119[], MATCH(C$4,Table119[#Headers],0), 0)","v":{"$error":"#N/A"}}]
[11,{"$f":"VLOOKUP(Human_Codes[[#This Row],[File ID]],Table119[], MATCH(B$4,Table119[#Headers],0), 0)","v":{"$error":"#N/A"}},{"$f":"VLOOKUP(Human_Codes[[#This Row],[File ID]],Table119[], MATCH(C$4,Table119[#Headers],0), 0)","v":{"$error":"#N/A"}}]
[12,{"$f":"VLOOKUP(Human_Codes[[#This Row],[File ID]],Table119[], MATCH(B$4,Table119[#Headers],0), 0)","v":{"$error":"#N/A"}},{"$f":"VLOOKUP(Human_Codes[[#This Row],[File ID]],Table119[], MATCH(C$4,Table119[#Headers],0), 0)","v":{"$error":"#N/A"}}]
[13,{"$f":"VLOOKUP(Human_Codes[[#This Row],[File ID]],Table119[], MATCH(B$4,Table119[#Headers],0), 0)","v":{"$error":"#N/A"}},{"$f":"VLOOKUP(Human_Codes[[#This Row],[File ID]],Table119[], MATCH(C$4,Table119[#Headers],0), 0)","v":{"$error":"#N/A"}}]
[14,{"$f":"VLOOKUP(Human_Codes[[#This Row],[File ID]],Table119[], MATCH(B$4,Table119[#Headers],0), 0)","v":{"$error":"#N/A"}},{"$f":"VLOOKUP(Human_Codes[[#This Row],[File ID]],Table119[], MATCH(C$4,Table119[#Headers],0), 0)","v":{"$error":"#N/A"}}]
[15,{"$f":"VLOOKUP(Human_Codes[[#This Row],[File ID]],Table119[], MATCH(B$4,Table119[#Headers],0), 0)","v":{"$error":"#N/A"}},{"$f":"VLOOKUP(Human_Codes[[#This Row],[File ID]],Table119[], MATCH(C$4,Table119[#Headers],0), 0)","v":{"$error":"#N/A"}}]
[16,{"$f":"VLOOKUP(Human_Codes[[#This Row],[File ID]],Table119[], MATCH(B$4,Table119[#Headers],0), 0)","v":{"$error":"#N/A"}},{"$f":"VLOOKUP(Human_Codes[[#This Row],[File ID]],Table119[], MATCH(C$4,Table119[#Headers],0), 0)","v":{"$error":"#N/A"}}]
[17,{"$f":"VLOOKUP(Human_Codes[[#This Row],[File ID]],Table119[], MATCH(B$4,Table119[#Headers],0), 0)","v":{"$error":"#N/A"}},{"$f":"VLOOKUP(Human_Codes[[#This Row],[File ID]],Table119[], MATCH(C$4,Table119[#Headers],0), 0)","v":{"$error":"#N/A"}}]
[18,{"$f":"VLOOKUP(Human_Codes[[#This Row],[File ID]],Table119[], MATCH(B$4,Table119[#Headers],0), 0)","v":{"$error":"#N/A"}},{"$f":"VLOOKUP(Human_Codes[[#This Row],[File ID]],Table119[], MATCH(C$4,Table119[#Headers],0), 0)","v":{"$error":"#N/A"}}]
[19,{"$f":"VLOOKUP(Human_Codes[[#This Row],[File ID]],Table119[], MATCH(B$4,Table119[#Headers],0), 0)","v":{"$error":"#N/A"}},{"$f":"VLOOKUP(Human_Codes[[#This Row],[File ID]],Table119[], MATCH(C$4,Table119[#Headers],0), 0)","v":{"$error":"#N/A"}}]
[20,{"$f":"VLOOKUP(Human_Codes[[#This Row],[File ID]],Table119[], MATCH(B$4,Table119[#Headers],0), 0)","v":{"$error":"#N/A"}},{"$f":"VLOOKUP(Human_Codes[[#This Row],[File ID]],Table119[], MATCH(C$4,Table119[#Headers],0), 0)","v":{"$error":"#N/A"}}]
[21,{"$f":"VLOOKUP(Human_Codes[[#This Row],[File ID]],Table119[], MATCH(B$4,Table119[#Headers],0), 0)","v":{"$error":"#N/A"}},{"$f":"VLOOKUP(Human_Codes[[#This Row],[File ID]],Table119[], MATCH(C$4,Table119[#Headers],0), 0)","v":{"$error":"#N/A"}}]
[22,{"$f":"VLOOKUP(Human_Codes[[#This Row],[File ID]],Table119[], MATCH(B$4,Table119[#Headers],0), 0)","v":{"$error":"#N/A"}},{"$f":"VLOOKUP(Human_Codes[[#This Row],[File ID]],Table119[], MATCH(C$4,Table119[#Headers],0), 0)","v":{"$error":"#N/A"}}]
[23,{"$f":"VLOOKUP(Human_Codes[[#This Row],[File ID]],Table119[], MATCH(B$4,Table119[#Headers],0), 0)","v":{"$error":"#N/A"}},{"$f":"VLOOKUP(Human_Codes[[#This Row],[File ID]],Table119[], MATCH(C$4,Table119[#Headers],0), 0)","v":{"$error":"#N/A"}}]
[24,{"$f":"VLOOKUP(Human_Codes[[#This Row],[File ID]],Table119[], MATCH(B$4,Table119[#Headers],0), 0)","v":{"$error":"#N/A"}},{"$f":"VLOOKUP(Human_Codes[[#This Row],[File ID]],Table119[], MATCH(C$4,Table119[#Headers],0), 0)","v":{"$error":"#N/A"}}]
[25,{"$f":"VLOOKUP(Human_Codes[[#This Row],[File ID]],Table119[], MATCH(B$4,Table119[#Headers],0), 0)","v":{"$error":"#N/A"}},{"$f":"VLOOKUP(Human_Codes[[#This Row],[File ID]],Table119[], MATCH(C$4,Table119[#Headers],0), 0)","v":{"$error":"#N/A"}}]
[26,{"$f":"VLOOKUP(Human_Codes[[#This Row],[File ID]],Table119[], MATCH(B$4,Table119[#Headers],0), 0)","v":{"$error":"#N/A"}},{"$f":"VLOOKUP(Human_Codes[[#This Row],[File ID]],Table119[], MATCH(C$4,Table119[#Headers],0), 0)","v":{"$error":"#N/A"}}]
[27,{"$f":"VLOOKUP(Human_Codes[[#This Row],[File ID]],Table119[], MATCH(B$4,Table119[#Headers],0), 0)","v":{"$error":"#N/A"}},{"$f":"VLOOKUP(Human_Codes[[#This Row],[File ID]],Table119[], MATCH(C$4,Table119[#Headers],0), 0)","v":{"$error":"#N/A"}}]
[28,{"$f":"VLOOKUP(Human_Codes[[#This Row],[File ID]],Table119[], MATCH(B$4,Table119[#Headers],0), 0)","v":{"$error":"#N/A"}},{"$f":"VLOOKUP(Human_Codes[[#This Row],[File ID]],Table119[], MATCH(C$4,Table119[#Headers],0), 0)","v":{"$error":"#N/A"}}]
[29,{"$f":"VLOOKUP(Human_Codes[[#This Row],[File ID]],Table119[], MATCH(B$4,Table119[#Headers],0), 0)","v":{"$error":"#N/A"}},{"$f":"VLOOKUP(Human_Codes[[#This Row],[File ID]],Table119[], MATCH(C$4,Table119[#Headers],0), 0)","v":{"$error":"#N/A"}}]
[30,{"$f":"VLOOKUP(Human_Codes[[#This Row],[File ID]],Table119[], MATCH(B$4,Table119[#Headers],0), 0)","v":{"$error":"#N/A"}},{"$f":"VLOOKUP(Human_Codes[[#This Row],[File ID]],Table119[], MATCH(C$4,Table119[#Headers],0), 0)","v":{"$error":"#N/A"}}]
[31,{"$f":"VLOOKUP(Human_Codes[[#This Row],[File ID]],Table119[], MATCH(B$4,Table119[#Headers],0), 0)","v":{"$error":"#N/A"}},{"$f":"VLOOKUP(Human_Codes[[#This Row],[File ID]],Table119[], MATCH(C$4,Table119[#Headers],0), 0)","v":{"$error":"#N/A"}}]
[32,{"$f":"VLOOKUP(Human_Codes[[#This Row],[File ID]],Table119[], MATCH(B$4,Table119[#Headers],0), 0)","v":{"$error":"#N/A"}},{"$f":"VLOOKUP(Human_Codes[[#This Row],[File ID]],Table119[], MATCH(C$4,Table119[#Headers],0), 0)","v":{"$error":"#N/A"}}]
[33,{"$f":"VLOOKUP(Human_Codes[[#This Row],[File ID]],Table119[], MATCH(B$4,Table119[#Headers],0), 0)","v":{"$error":"#N/A"}},{"$f":"VLOOKUP(Human_Codes[[#This Row],[File ID]],Table119[], MATCH(C$4,Table119[#Headers],0), 0)","v":{"$error":"#N/A"}}]
[34,{"$f":"VLOOKUP(Human_Codes[[#This Row],[File ID]],Table119[], MATCH(B$4,Table119[#Headers],0), 0)","v":{"$error":"#N/A"}},{"$f":"VLOOKUP(Human_Codes[[#This Row],[File ID]],Table119[], MATCH(C$4,Table119[#Headers],0), 0)","v":{"$error":"#N/A"}}]
[35,{"$f":"VLOOKUP(Human_Codes[[#This Row],[File ID]],Table119[], MATCH(B$4,Table119[#Headers],0), 0)","v":{"$error":"#N/A"}},{"$f":"VLOOKUP(Human_Codes[[#This Row],[File ID]],Table119[], MATCH(C$4,Table119[#Headers],0), 0)","v":{"$error":"#N/A"}}]
[36,{"$f":"VLOOKUP(Human_Codes[[#This Row],[File ID]],Table119[], MATCH(B$4,Table119[#Headers],0), 0)","v":{"$error":"#N/A"}},{"$f":"VLOOKUP(Human_Codes[[#This Row],[File ID]],Table119[], MATCH(C$4,Table119[#Headers],0), 0)","v":{"$error":"#N/A"}}]
[37,{"$f":"VLOOKUP(Human_Codes[[#This Row],[File ID]],Table119[], MATCH(B$4,Table119[#Headers],0), 0)","v":{"$error":"#N/A"}},{"$f":"VLOOKUP(Human_Codes[[#This Row],[File ID]],Table119[], MATCH(C$4,Table119[#Headers],0), 0)","v":{"$error":"#N/A"}}]
[38,{"$f":"VLOOKUP(Human_Codes[[#This Row],[File ID]],Table119[], MATCH(B$4,Table119[#Headers],0), 0)","v":{"$error":"#N/A"}},{"$f":"VLOOKUP(Human_Codes[[#This Row],[File ID]],Table119[], MATCH(C$4,Table119[#Headers],0), 0)","v":{"$error":"#N/A"}}]
[39,{"$f":"VLOOKUP(Human_Codes[[#This Row],[File ID]],Table119[], MATCH(B$4,Table119[#Headers],0), 0)","v":{"$error":"#N/A"}},{"$f":"VLOOKUP(Human_Codes[[#This Row],[File ID]],Table119[], MATCH(C$4,Table119[#Headers],0), 0)","v":{"$error":"#N/A"}}]
[40,{"$f":"VLOOKUP(Human_Codes[[#This Row],[File ID]],Table119[], MATCH(B$4,Table119[#Headers],0), 0)","v":{"$error":"#N/A"}},{"$f":"VLOOKUP(Human_Codes[[#This Row],[File ID]],Table119[], MATCH(C$4,Table119[#Headers],0), 0)","v":{"$error":"#N/A"}}]
[41,{"$f":"VLOOKUP(Human_Codes[[#This Row],[File ID]],Table119[], MATCH(B$4,Table119[#Headers],0), 0)","v":{"$error":"#N/A"}},{"$f":"VLOOKUP(Human_Codes[[#This Row],[File ID]],Table119[], MATCH(C$4,Table119[#Headers],0), 0)","v":{"$error":"#N/A"}}]
[42,{"$f":"VLOOKUP(Human_Codes[[#This Row],[File ID]],Table119[], MATCH(B$4,Table119[#Headers],0), 0)","v":{"$error":"#N/A"}},{"$f":"VLOOKUP(Human_Codes[[#This Row],[File ID]],Table119[], MATCH(C$4,Table119[#Headers],0), 0)","v":{"$error":"#N/A"}}]
[43,{"$f":"VLOOKUP(Human_Codes[[#This Row],[File ID]],Table119[], MATCH(B$4,Table119[#Headers],0), 0)","v":{"$error":"#N/A"}},{"$f":"VLOOKUP(Human_Codes[[#This Row],[File ID]],Table119[], MATCH(C$4,Table119[#Headers],0), 0)","v":{"$error":"#N/A"}}]
[44,{"$f":"VLOOKUP(Human_Codes[[#This Row],[File ID]],Table119[], MATCH(B$4,Table119[#Headers],0), 0)","v":{"$error":"#N/A"}},{"$f":"VLOOKUP(Human_Codes[[#This Row],[File ID]],Table119[], MATCH(C$4,Table119[#Headers],0), 0)","v":{"$error":"#N/A"}}]
[45,{"$f":"VLOOKUP(Human_Codes[[#This Row],[File ID]],Table119[], MATCH(B$4,Table119[#Headers],0), 0)","v":{"$error":"#N/A"}},{"$f":"VLOOKUP(Human_Codes[[#This Row],[File ID]],Table119[], MATCH(C$4,Table119[#Headers],0), 0)","v":{"$error":"#N/A"}}]
[46,{"$f":"VLOOKUP(Human_Codes[[#This Row],[File ID]],Table119[], MATCH(B$4,Table119[#Headers],0), 0)","v":{"$error":"#N/A"}},{"$f":"VLOOKUP(Human_Codes[[#This Row],[File ID]],Table119[], MATCH(C$4,Table119[#Headers],0), 0)","v":{"$error":"#N/A"}}]
[47,{"$f":"VLOOKUP(Human_Codes[[#This Row],[File ID]],Table119[], MATCH(B$4,Table119[#Headers],0), 0)","v":{"$error":"#N/A"}},{"$f":"VLOOKUP(Human_Codes[[#This Row],[File ID]],Table119[], MATCH(C$4,Table119[#Headers],0), 0)","v":{"$error":"#N/A"}}]
[48,{"$f":"VLOOKUP(Human_Codes[[#This Row],[File ID]],Table119[], MATCH(B$4,Table119[#Headers],0), 0)","v":{"$error":"#N/A"}},{"$f":"VLOOKUP(Human_Codes[[#This Row],[File ID]],Table119[], MATCH(C$4,Table119[#Headers],0), 0)","v":{"$error":"#N/A"}}]
[49,{"$f":"VLOOKUP(Human_Codes[[#This Row],[File ID]],Table119[], MATCH(B$4,Table119[#Headers],0), 0)","v":{"$error":"#N/A"}},{"$f":"VLOOKUP(Human_Codes[[#This Row],[File ID]],Table119[], MATCH(C$4,Table119[#Headers],0), 0)","v":{"$error":"#N/A"}}]
[50,{"$f":"VLOOKUP(Human_Codes[[#This Row],[File ID]],Table119[], MATCH(B$4,Table119[#Headers],0), 0)","v":{"$error":"#N/A"}},{"$f":"VLOOKUP(Human_Codes[[#This Row],[File ID]],Table119[], MATCH(C$4,Table119[#Headers],0), 0)","v":{"$error":"#N/A"}}]
[51,{"$f":"VLOOKUP(Human_Codes[[#This Row],[File ID]],Table119[], MATCH(B$4,Table119[#Headers],0), 0)","v":{"$error":"#N/A"}},{"$f":"VLOOKUP(Human_Codes[[#This Row],[File ID]],Table119[], MATCH(C$4,Table119[#Headers],0), 0)","v":{"$error":"#N/A"}}]
[52,{"$f":"VLOOKUP(Human_Codes[[#This Row],[File ID]],Table119[], MATCH(B$4,Table119[#Headers],0), 0)","v":{"$error":"#N/A"}},{"$f":"VLOOKUP(Human_Codes[[#This Row],[File ID]],Table119[], MATCH(C$4,Table119[#Headers],0), 0)","v":{"$error":"#N/A"}}]
[53,{"$f":"VLOOKUP(Human_Codes[[#This Row],[File ID]],Table119[], MATCH(B$4,Table119[#Headers],0), 0)","v":{"$error":"#N/A"}},{"$f":"VLOOKUP(Human_Codes[[#This Row],[File ID]],Table119[], MATCH(C$4,Table119[#Headers],0), 0)","v":{"$error":"#N/A"}}]
[54,{"$f":"VLOOKUP(Human_Codes[[#This Row],[File ID]],Table119[], MATCH(B$4,Table119[#Headers],0), 0)","v":{"$error":"#N/A"}},{"$f":"VLOOKUP(Human_Codes[[#This Row],[File ID]],Table119[], MATCH(C$4,Table119[#Headers],0), 0)","v":{"$error":"#N/A"}}]
[55,{"$f":"VLOOKUP(Human_Codes[[#This Row],[File ID]],Table119[], MATCH(B$4,Table119[#Headers],0), 0)","v":{"$error":"#N/A"}},{"$f":"VLOOKUP(Human_Codes[[#This Row],[File ID]],Table119[], MATCH(C$4,Table119[#Headers],0), 0)","v":{"$error":"#N/A"}}]
[56,{"$f":"VLOOKUP(Human_Codes[[#This Row],[File ID]],Table119[], MATCH(B$4,Table119[#Headers],0), 0)","v":{"$error":"#N/A"}},{"$f":"VLOOKUP(Human_Codes[[#This Row],[File ID]],Table119[], MATCH(C$4,Table119[#Headers],0), 0)","v":{"$error":"#N/A"}}]
[57,{"$f":"VLOOKUP(Human_Codes[[#This Row],[File ID]],Table119[], MATCH(B$4,Table119[#Headers],0), 0)","v":{"$error":"#N/A"}},{"$f":"VLOOKUP(Human_Codes[[#This Row],[File ID]],Table119[], MATCH(C$4,Table119[#Headers],0), 0)","v":{"$error":"#N/A"}}]
[58,{"$f":"VLOOKUP(Human_Codes[[#This Row],[File ID]],Table119[], MATCH(B$4,Table119[#Headers],0), 0)","v":{"$error":"#N/A"}},{"$f":"VLOOKUP(Human_Codes[[#This Row],[File ID]],Table119[], MATCH(C$4,Table119[#Headers],0), 0)","v":{"$error":"#N/A"}}]
[59,{"$f":"VLOOKUP(Human_Codes[[#This Row],[File ID]],Table119[], MATCH(B$4,Table119[#Headers],0), 0)","v":{"$error":"#N/A"}},{"$f":"VLOOKUP(Human_Codes[[#This Row],[File ID]],Table119[], MATCH(C$4,Table119[#Headers],0), 0)","v":{"$error":"#N/A"}}]
[60,{"$f":"VLOOKUP(Human_Codes[[#This Row],[File ID]],Table119[], MATCH(B$4,Table119[#Headers],0), 0)","v":{"$error":"#N/A"}},{"$f":"VLOOKUP(Human_Codes[[#This Row],[File ID]],Table119[], MATCH(C$4,Table119[#Headers],0), 0)","v":{"$error":"#N/A"}}]
[61,{"$f":"VLOOKUP(Human_Codes[[#This Row],[File ID]],Table119[], MATCH(B$4,Table119[#Headers],0), 0)","v":{"$error":"#N/A"}},{"$f":"VLOOKUP(Human_Codes[[#This Row],[File ID]],Table119[], MATCH(C$4,Table119[#Headers],0), 0)","v":{"$error":"#N/A"}}]
[62,{"$f":"VLOOKUP(Human_Codes[[#This Row],[File ID]],Table119[], MATCH(B$4,Table119[#Headers],0), 0)","v":{"$error":"#N/A"}},{"$f":"VLOOKUP(Human_Codes[[#This Row],[File ID]],Table119[], MATCH(C$4,Table119[#Headers],0), 0)","v":{"$error":"#N/A"}}]
[63,{"$f":"VLOOKUP(Human_Codes[[#This Row],[File ID]],Table119[], MATCH(B$4,Table119[#Headers],0), 0)","v":{"$error":"#N/A"}},{"$f":"VLOOKUP(Human_Codes[[#This Row],[File ID]],Table119[], MATCH(C$4,Table119[#Headers],0), 0)","v":{"$error":"#N/A"}}]
[64,{"$f":"VLOOKUP(Human_Codes[[#This Row],[File ID]],Table119[], MATCH(B$4,Table119[#Headers],0), 0)","v":{"$error":"#N/A"}},{"$f":"VLOOKUP(Human_Codes[[#This Row],[File ID]],Table119[], MATCH(C$4,Table119[#Headers],0), 0)","v":{"$error":"#N/A"}}]
[65,{"$f":"VLOOKUP(Human_Codes[[#This Row],[File ID]],Table119[], MATCH(B$4,Table119[#Headers],0), 0)","v":{"$error":"#N/A"}},{"$f":"VLOOKUP(Human_Codes[[#This Row],[File ID]],Table119[], MATCH(C$4,Table119[#Headers],0), 0)","v":{"$error":"#N/A"}}]
[{"$f":"ROW()-4","v":66},{"$f":"VLOOKUP(Human_Codes[[#This Row],[File ID]],Table119[], MATCH(B$4,Table119[#Headers],0), 0)","v":{"$error":"#N/A"}},{"$f":"VLOOKUP(Human_Codes[[#This Row],[File ID]],Table119[], MATCH(C$4,Table119[#Headers],0), 0)","v":{"$error":"#N/A"}}]
[67,{"$f":"VLOOKUP(Human_Codes[[#This Row],[File ID]],Table119[], MATCH(B$4,Table119[#Headers],0), 0)","v":{"$error":"#N/A"}},{"$f":"VLOOKUP(Human_Codes[[#This Row],[File ID]],Table119[], MATCH(C$4,Table119[#Headers],0), 0)","v":{"$error":"#N/A"}}]
[68,{"$f":"VLOOKUP(Human_Codes[[#This Row],[File ID]],Table119[], MATCH(B$4,Table119[#Headers],0), 0)","v":{"$error":"#N/A"}},{"$f":"VLOOKUP(Human_Codes[[#This Row],[File ID]],Table119[], MATCH(C$4,Table119[#Headers],0), 0)","v":{"$error":"#N/A"}}]
[69,{"$f":"VLOOKUP(Human_Codes[[#This Row],[File ID]],Table119[], MATCH(B$4,Table119[#Headers],0), 0)","v":{"$error":"#N/A"}},{"$f":"VLOOKUP(Human_Codes[[#This Row],[File ID]],Table119[], MATCH(C$4,Table119[#Headers],0), 0)","v":{"$error":"#N/A"}}]
[70,{"$f":"VLOOKUP(Human_Codes[[#This Row],[File ID]],Table119[], MATCH(B$4,Table119[#Headers],0), 0)","v":{"$error":"#N/A"}},{"$f":"VLOOKUP(Human_Codes[[#This Row],[File ID]],Table119[], MATCH(C$4,Table119[#Headers],0), 0)","v":{"$error":"#N/A"}}]
[71,{"$f":"VLOOKUP(Human_Codes[[#This Row],[File ID]],Table119[], MATCH(B$4,Table119[#Headers],0), 0)","v":{"$error":"#N/A"}},{"$f":"VLOOKUP(Human_Codes[[#This Row],[File ID]],Table119[], MATCH(C$4,Table119[#Headers],0), 0)","v":{"$error":"#N/A"}}]
[72,{"$f":"VLOOKUP(Human_Codes[[#This Row],[File ID]],Table119[], MATCH(B$4,Table119[#Headers],0), 0)","v":{"$error":"#N/A"}},{"$f":"VLOOKUP(Human_Codes[[#This Row],[File ID]],Table119[], MATCH(C$4,Table119[#Headers],0), 0)","v":{"$error":"#N/A"}}]
[73,{"$f":"VLOOKUP(Human_Codes[[#This Row],[File ID]],Table119[], MATCH(B$4,Table119[#Headers],0), 0)","v":{"$error":"#N/A"}},{"$f":"VLOOKUP(Human_Codes[[#This Row],[File ID]],Table119[], MATCH(C$4,Table119[#Headers],0), 0)","v":{"$error":"#N/A"}}]
[74,{"$f":"VLOOKUP(Human_Codes[[#This Row],[File ID]],Table119[], MATCH(B$4,Table119[#Headers],0), 0)","v":{"$error":"#N/A"}},{"$f":"VLOOKUP(Human_Codes[[#This Row],[File ID]],Table119[], MATCH(C$4,Table119[#Headers],0), 0)","v":{"$error":"#N/A"}}]
[75,{"$f":"VLOOKUP(Human_Codes[[#This Row],[File ID]],Table119[], MATCH(B$4,Table119[#Headers],0), 0)","v":{"$error":"#N/A"}},{"$f":"VLOOKUP(Human_Codes[[#This Row],[File ID]],Table119[], MATCH(C$4,Table119[#Headers],0), 0)","v":{"$error":"#N/A"}}]
[76,{"$f":"VLOOKUP(Human_Codes[[#This Row],[File ID]],Table119[], MATCH(B$4,Table119[#Headers],0), 0)","v":{"$error":"#N/A"}},{"$f":"VLOOKUP(Human_Codes[[#This Row],[File ID]],Table119[], MATCH(C$4,Table119[#Headers],0), 0)","v":{"$error":"#N/A"}}]
[77,{"$f":"VLOOKUP(Human_Codes[[#This Row],[File ID]],Table119[], MATCH(B$4,Table119[#Headers],0), 0)","v":{"$error":"#N/A"}},{"$f":"VLOOKUP(Human_Codes[[#This Row],[File ID]],Table119[], MATCH(C$4,Table119[#Headers],0), 0)","v":{"$error":"#N/A"}}]
[78,{"$f":"VLOOKUP(Human_Codes[[#This Row],[File ID]],Table119[], MATCH(B$4,Table119[#Headers],0), 0)","v":{"$error":"#N/A"}},{"$f":"VLOOKUP(Human_Codes[[#This Row],[File ID]],Table119[], MATCH(C$4,Table119[#Headers],0), 0)","v":{"$error":"#N/A"}}]
[79,{"$f":"VLOOKUP(Human_Codes[[#This Row],[File ID]],Table119[], MATCH(B$4,Table119[#Headers],0), 0)","v":{"$error":"#N/A"}},{"$f":"VLOOKUP(Human_Codes[[#This Row],[File ID]],Table119[], MATCH(C$4,Table119[#Headers],0), 0)","v":{"$error":"#N/A"}}]
[80,{"$f":"VLOOKUP(Human_Codes[[#This Row],[File ID]],Table119[], MATCH(B$4,Table119[#Headers],0), 0)","v":{"$error":"#N/A"}},{"$f":"VLOOKUP(Human_Codes[[#This Row],[File ID]],Table119[], MATCH(C$4,Table119[#Headers],0), 0)","v":{"$error":"#N/A"}}]
[81,{"$f":"VLOOKUP(Human_Codes[[#This Row],[File ID]],Table119[], MATCH(B$4,Table119[#Headers],0), 0)","v":{"$error":"#N/A"}},{"$f":"VLOOKUP(Human_Codes[[#This Row],[File ID]],Table119[], MATCH(C$4,Table119[#Headers],0), 0)","v":{"$error":"#N/A"}}]
[82,{"$f":"VLOOKUP(Human_Codes[[#This Row],[File ID]],Table119[], MATCH(B$4,Table119[#Headers],0), 0)","v":{"$error":"#N/A"}},{"$f":"VLOOKUP(Human_Codes[[#This Row],[File ID]],Table119[], MATCH(C$4,Table119[#Headers],0), 0)","v":{"$error":"#N/A"}}]
[83,{"$f":"VLOOKUP(Human_Codes[[#This Row],[File ID]],Table119[], MATCH(B$4,Table119[#Headers],0), 0)","v":{"$error":"#N/A"}},{"$f":"VLOOKUP(Human_Codes[[#This Row],[File ID]],Table119[], MATCH(C$4,Table119[#Headers],0), 0)","v":{"$error":"#N/A"}}]
[84,{"$f":"VLOOKUP(Human_Codes[[#This Row],[File ID]],Table119[], MATCH(B$4,Table119[#Headers],0), 0)","v":{"$error":"#N/A"}},{"$f":"VLOOKUP(Human_Codes[[#This Row],[File ID]],Table119[], MATCH(C$4,Table119[#Headers],0), 0)","v":{"$error":"#N/A"}}]
[85,{"$f":"VLOOKUP(Human_Codes[[#This Row],[File ID]],Table119[], MATCH(B$4,Table119[#Headers],0), 0)","v":{"$error":"#N/A"}},{"$f":"VLOOKUP(Human_Codes[[#This Row],[File ID]],Table119[], MATCH(C$4,Table119[#Headers],0), 0)","v":{"$error":"#N/A"}}]
[86,{"$f":"VLOOKUP(Human_Codes[[#This Row],[File ID]],Table119[], MATCH(B$4,Table119[#Headers],0), 0)","v":{"$error":"#N/A"}},{"$f":"VLOOKUP(Human_Codes[[#This Row],[File ID]],Table119[], MATCH(C$4,Table119[#Headers],0), 0)","v":{"$error":"#N/A"}}]
[87,{"$f":"VLOOKUP(Human_Codes[[#This Row],[File ID]],Table119[], MATCH(B$4,Table119[#Headers],0), 0)","v":{"$error":"#N/A"}},{"$f":"VLOOKUP(Human_Codes[[#This Row],[File ID]],Table119[], MATCH(C$4,Table119[#Headers],0), 0)","v":{"$error":"#N/A"}}]
[88,{"$f":"VLOOKUP(Human_Codes[[#This Row],[File ID]],Table119[], MATCH(B$4,Table119[#Headers],0), 0)","v":{"$error":"#N/A"}},{"$f":"VLOOKUP(Human_Codes[[#This Row],[File ID]],Table119[], MATCH(C$4,Table119[#Headers],0), 0)","v":{"$error":"#N/A"}}]
[89,{"$f":"VLOOKUP(Human_Codes[[#This Row],[File ID]],Table119[], MATCH(B$4,Table119[#Headers],0), 0)","v":{"$error":"#N/A"}},{"$f":"VLOOKUP(Human_Codes[[#This Row],[File ID]],Table119[], MATCH(C$4,Table119[#Headers],0), 0)","v":{"$error":"#N/A"}}]
[90,{"$f":"VLOOKUP(Human_Codes[[#This Row],[File ID]],Table119[], MATCH(B$4,Table119[#Headers],0), 0)","v":{"$error":"#N/A"}},{"$f":"VLOOKUP(Human_Codes[[#This Row],[File ID]],Table119[], MATCH(C$4,Table119[#Headers],0), 0)","v":{"$error":"#N/A"}}]
[91,{"$f":"VLOOKUP(Human_Codes[[#This Row],[File ID]],Table119[], MATCH(B$4,Table119[#Headers],0), 0)","v":{"$error":"#N/A"}},{"$f":"VLOOKUP(Human_Codes[[#This Row],[File ID]],Table119[], MATCH(C$4,Table119[#Headers],0), 0)","v":{"$error":"#N/A"}}]
[92,{"$f":"VLOOKUP(Human_Codes[[#This Row],[File ID]],Table119[], MATCH(B$4,Table119[#Headers],0), 0)","v":{"$error":"#N/A"}},{"$f":"VLOOKUP(Human_Codes[[#This Row],[File ID]],Table119[], MATCH(C$4,Table119[#Headers],0), 0)","v":{"$error":"#N/A"}}]
[93,{"$f":"VLOOKUP(Human_Codes[[#This Row],[File ID]],Table119[], MATCH(B$4,Table119[#Headers],0), 0)","v":{"$error":"#N/A"}},{"$f":"VLOOKUP(Human_Codes[[#This Row],[File ID]],Table119[], MATCH(C$4,Table119[#Headers],0), 0)","v":{"$error":"#N/A"}}]
[94,{"$f":"VLOOKUP(Human_Codes[[#This Row],[File ID]],Table119[], MATCH(B$4,Table119[#Headers],0), 0)","v":{"$error":"#N/A"}},{"$f":"VLOOKUP(Human_Codes[[#This Row],[File ID]],Table119[], MATCH(C$4,Table119[#Headers],0), 0)","v":{"$error":"#N/A"}}]
[95,{"$f":"VLOOKUP(Human_Codes[[#This Row],[File ID]],Table119[], MATCH(B$4,Table119[#Headers],0), 0)","v":{"$error":"#N/A"}},{"$f":"VLOOKUP(Human_Codes[[#This Row],[File ID]],Table119[], MATCH(C$4,Table119[#Headers],0), 0)","v":{"$error":"#N/A"}}]
[96,{"$f":"VLOOKUP(Human_Codes[[#This Row],[File ID]],Table119[], MATCH(B$4,Table119[#Headers],0), 0)","v":{"$error":"#N/A"}},{"$f":"VLOOKUP(Human_Codes[[#This Row],[File ID]],Table119[], MATCH(C$4,Table119[#Headers],0), 0)","v":{"$error":"#N/A"}}]
[97,{"$f":"VLOOKUP(Human_Codes[[#This Row],[File ID]],Table119[], MATCH(B$4,Table119[#Headers],0), 0)","v":{"$error":"#N/A"}},{"$f":"VLOOKUP(Human_Codes[[#This Row],[File ID]],Table119[], MATCH(C$4,Table119[#Headers],0), 0)","v":{"$error":"#N/A"}}]
[98,{"$f":"VLOOKUP(Human_Codes[[#This Row],[File ID]],Table119[], MATCH(B$4,Table119[#Headers],0), 0)","v":{"$error":"#N/A"}},{"$f":"VLOOKUP(Human_Codes[[#This Row],[File ID]],Table119[], MATCH(C$4,Table119[#Headers],0), 0)","v":{"$error":"#N/A"}}]
[99,{"$f":"VLOOKUP(Human_Codes[[#This Row],[File ID]],Table119[], MATCH(B$4,Table119[#Headers],0), 0)","v":{"$error":"#N/A"}},{"$f":"VLOOKUP(Human_Codes[[#This Row],[File ID]],Table119[], MATCH(C$4,Table119[#Headers],0), 0)","v":{"$error":"#N/A"}}]
[100,{"$f":"VLOOKUP(Human_Codes[[#This Row],[File ID]],Table119[], MATCH(B$4,Table119[#Headers],0), 0)","v":{"$error":"#N/A"}},{"$f":"VLOOKUP(Human_Codes[[#This Row],[File ID]],Table119[], MATCH(C$4,Table119[#Headers],0), 0)","v":{"$error":"#N/A"}}]
[101,{"$f":"VLOOKUP(Human_Codes[[#This Row],[File ID]],Table119[], MATCH(B$4,Table119[#Headers],0), 0)","v":{"$error":"#N/A"}},{"$f":"VLOOKUP(Human_Codes[[#This Row],[File ID]],Table119[], MATCH(C$4,Table119[#Headers],0), 0)","v":{"$error":"#N/A"}}]
[102,{"$f":"VLOOKUP(Human_Codes[[#This Row],[File ID]],Table119[], MATCH(B$4,Table119[#Headers],0), 0)","v":{"$error":"#N/A"}},{"$f":"VLOOKUP(Human_Codes[[#This Row],[File ID]],Table119[], MATCH(C$4,Table119[#Headers],0), 0)","v":{"$error":"#N/A"}}]
[103,{"$f":"VLOOKUP(Human_Codes[[#This Row],[File ID]],Table119[], MATCH(B$4,Table119[#Headers],0), 0)","v":{"$error":"#N/A"}},{"$f":"VLOOKUP(Human_Codes[[#This Row],[File ID]],Table119[], MATCH(C$4,Table119[#Headers],0), 0)","v":{"$error":"#N/A"}}]
[104,{"$f":"VLOOKUP(Human_Codes[[#This Row],[File ID]],Table119[], MATCH(B$4,Table119[#Headers],0), 0)","v":{"$error":"#N/A"}},{"$f":"VLOOKUP(Human_Codes[[#This Row],[File ID]],Table119[], MATCH(C$4,Table119[#Headers],0), 0)","v":{"$error":"#N/A"}}]
[105,{"$f":"VLOOKUP(Human_Codes[[#This Row],[File ID]],Table119[], MATCH(B$4,Table119[#Headers],0), 0)","v":{"$error":"#N/A"}},{"$f":"VLOOKUP(Human_Codes[[#This Row],[File ID]],Table119[], MATCH(C$4,Table119[#Headers],0), 0)","v":{"$error":"#N/A"}}]
[106,{"$f":"VLOOKUP(Human_Codes[[#This Row],[File ID]],Table119[], MATCH(B$4,Table119[#Headers],0), 0)","v":{"$error":"#N/A"}},{"$f":"VLOOKUP(Human_Codes[[#This Row],[File ID]],Table119[], MATCH(C$4,Table119[#Headers],0), 0)","v":{"$error":"#N/A"}}]
[107,{"$f":"VLOOKUP(Human_Codes[[#This Row],[File ID]],Table119[], MATCH(B$4,Table119[#Headers],0), 0)","v":{"$error":"#N/A"}},{"$f":"VLOOKUP(Human_Codes[[#This Row],[File ID]],Table119[], MATCH(C$4,Table119[#Headers],0), 0)","v":{"$error":"#N/A"}}]
[108,{"$f":"VLOOKUP(Human_Codes[[#This Row],[File ID]],Table119[], MATCH(B$4,Table119[#Headers],0), 0)","v":{"$error":"#N/A"}},{"$f":"VLOOKUP(Human_Codes[[#This Row],[File ID]],Table119[], MATCH(C$4,Table119[#Headers],0), 0)","v":{"$error":"#N/A"}}]
[109,{"$f":"VLOOKUP(Human_Codes[[#This Row],[File ID]],Table119[], MATCH(B$4,Table119[#Headers],0), 0)","v":{"$error":"#N/A"}},{"$f":"VLOOKUP(Human_Codes[[#This Row],[File ID]],Table119[], MATCH(C$4,Table119[#Headers],0), 0)","v":{"$error":"#N/A"}}]
[110,{"$f":"VLOOKUP(Human_Codes[[#This Row],[File ID]],Table119[], MATCH(B$4,Table119[#Headers],0), 0)","v":{"$error":"#N/A"}},{"$f":"VLOOKUP(Human_Codes[[#This Row],[File ID]],Table119[], MATCH(C$4,Table119[#Headers],0), 0)","v":{"$error":"#N/A"}}]
[111,{"$f":"VLOOKUP(Human_Codes[[#This Row],[File ID]],Table119[], MATCH(B$4,Table119[#Headers],0), 0)","v":{"$error":"#N/A"}},{"$f":"VLOOKUP(Human_Codes[[#This Row],[File ID]],Table119[], MATCH(C$4,Table119[#Headers],0), 0)","v":{"$error":"#N/A"}}]
[112,{"$f":"VLOOKUP(Human_Codes[[#This Row],[File ID]],Table119[], MATCH(B$4,Table119[#Headers],0), 0)","v":{"$error":"#N/A"}},{"$f":"VLOOKUP(Human_Codes[[#This Row],[File ID]],Table119[], MATCH(C$4,Table119[#Headers],0), 0)","v":{"$error":"#N/A"}}]
[113,{"$f":"VLOOKUP(Human_Codes[[#This Row],[File ID]],Table119[], MATCH(B$4,Table119[#Headers],0), 0)","v":{"$error":"#N/A"}},{"$f":"VLOOKUP(Human_Codes[[#This Row],[File ID]],Table119[], MATCH(C$4,Table119[#Headers],0), 0)","v":{"$error":"#N/A"}}]
[114,{"$f":"VLOOKUP(Human_Codes[[#This Row],[File ID]],Table119[], MATCH(B$4,Table119[#Headers],0), 0)","v":{"$error":"#N/A"}},{"$f":"VLOOKUP(Human_Codes[[#This Row],[File ID]],Table119[], MATCH(C$4,Table119[#Headers],0), 0)","v":{"$error":"#N/A"}}]
[115,{"$f":"VLOOKUP(Human_Codes[[#This Row],[File ID]],Table119[], MATCH(B$4,Table119[#Headers],0), 0)","v":{"$error":"#N/A"}},{"$f":"VLOOKUP(Human_Codes[[#This Row],[File ID]],Table119[], MATCH(C$4,Table119[#Headers],0), 0)","v":{"$error":"#N/A"}}]
[116,{"$f":"VLOOKUP(Human_Codes[[#This Row],[File ID]],Table119[], MATCH(B$4,Table119[#Headers],0), 0)","v":{"$error":"#N/A"}},{"$f":"VLOOKUP(Human_Codes[[#This Row],[File ID]],Table119[], MATCH(C$4,Table119[#Headers],0), 0)","v":{"$error":"#N/A"}}]
[117,{"$f":"VLOOKUP(Human_Codes[[#This Row],[File ID]],Table119[], MATCH(B$4,Table119[#Headers],0), 0)","v":{"$error":"#N/A"}},{"$f":"VLOOKUP(Human_Codes[[#This Row],[File ID]],Table119[], MATCH(C$4,Table119[#Headers],0), 0)","v":{"$error":"#N/A"}}]
[118,{"$f":"VLOOKUP(Human_Codes[[#This Row],[File ID]],Table119[], MATCH(B$4,Table119[#Headers],0), 0)","v":{"$error":"#N/A"}},{"$f":"VLOOKUP(Human_Codes[[#This Row],[File ID]],Table119[], MATCH(C$4,Table119[#Headers],0), 0)","v":{"$error":"#N/A"}}]
[119,{"$f":"VLOOKUP(Human_Codes[[#This Row],[File ID]],Table119[], MATCH(B$4,Table119[#Headers],0), 0)","v":{"$error":"#N/A"}},{"$f":"VLOOKUP(Human_Codes[[#This Row],[File ID]],Table119[], MATCH(C$4,Table119[#Headers],0), 0)","v":{"$error":"#N/A"}}]
[120,{"$f":"VLOOKUP(Human_Codes[[#This Row],[File ID]],Table119[], MATCH(B$4,Table119[#Headers],0), 0)","v":{"$error":"#N/A"}},{"$f":"VLOOKUP(Human_Codes[[#This Row],[File ID]],Table119[], MATCH(C$4,Table119[#Headers],0), 0)","v":{"$error":"#N/A"}}]
[121,{"$f":"VLOOKUP(Human_Codes[[#This Row],[File ID]],Table119[], MATCH(B$4,Table119[#Headers],0), 0)","v":{"$error":"#N/A"}},{"$f":"VLOOKUP(Human_Codes[[#This Row],[File ID]],Table119[], MATCH(C$4,Table119[#Headers],0), 0)","v":{"$error":"#N/A"}}]
[122,{"$f":"VLOOKUP(Human_Codes[[#This Row],[File ID]],Table119[], MATCH(B$4,Table119[#Headers],0), 0)","v":{"$error":"#N/A"}},{"$f":"VLOOKUP(Human_Codes[[#This Row],[File ID]],Table119[], MATCH(C$4,Table119[#Headers],0), 0)","v":{"$error":"#N/A"}}]
[123,{"$f":"VLOOKUP(Human_Codes[[#This Row],[File ID]],Table119[], MATCH(B$4,Table119[#Headers],0), 0)","v":{"$error":"#N/A"}},{"$f":"VLOOKUP(Human_Codes[[#This Row],[File ID]],Table119[], MATCH(C$4,Table119[#Headers],0), 0)","v":{"$error":"#N/A"}}]
[124,{"$f":"VLOOKUP(Human_Codes[[#This Row],[File ID]],Table119[], MATCH(B$4,Table119[#Headers],0), 0)","v":{"$error":"#N/A"}},{"$f":"VLOOKUP(Human_Codes[[#This Row],[File ID]],Table119[], MATCH(C$4,Table119[#Headers],0), 0)","v":{"$error":"#N/A"}}]
[125,{"$f":"VLOOKUP(Human_Codes[[#This Row],[File ID]],Table119[], MATCH(B$4,Table119[#Headers],0), 0)","v":{"$error":"#N/A"}},{"$f":"VLOOKUP(Human_Codes[[#This Row],[File ID]],Table119[], MATCH(C$4,Table119[#Headers],0), 0)","v":{"$error":"#N/A"}}]
[126,{"$f":"VLOOKUP(Human_Codes[[#This Row],[File ID]],Table119[], MATCH(B$4,Table119[#Headers],0), 0)","v":{"$error":"#N/A"}},{"$f":"VLOOKUP(Human_Codes[[#This Row],[File ID]],Table119[], MATCH(C$4,Table119[#Headers],0), 0)","v":{"$error":"#N/A"}}]
[127,{"$f":"VLOOKUP(Human_Codes[[#This Row],[File ID]],Table119[], MATCH(B$4,Table119[#Headers],0), 0)","v":{"$error":"#N/A"}},{"$f":"VLOOKUP(Human_Codes[[#This Row],[File ID]],Table119[], MATCH(C$4,Table119[#Headers],0), 0)","v":{"$error":"#N/A"}}]
[128,{"$f":"VLOOKUP(Human_Codes[[#This Row],[File ID]],Table119[], MATCH(B$4,Table119[#Headers],0), 0)","v":{"$error":"#N/A"}},{"$f":"VLOOKUP(Human_Codes[[#This Row],[File ID]],Table119[], MATCH(C$4,Table119[#Headers],0), 0)","v":{"$error":"#N/A"}}]
[129,{"$f":"VLOOKUP(Human_Codes[[#This Row],[File ID]],Table119[], MATCH(B$4,Table119[#Headers],0), 0)","v":{"$error":"#N/A"}},{"$f":"VLOOKUP(Human_Codes[[#This Row],[File ID]],Table119[], MATCH(C$4,Table119[#Headers],0), 0)","v":{"$error":"#N/A"}}]
[{"$f":"ROW()-4","v":130},{"$f":"VLOOKUP(Human_Codes[[#This Row],[File ID]],Table119[], MATCH(B$4,Table119[#Headers],0), 0)","v":{"$error":"#N/A"}},{"$f":"VLOOKUP(Human_Codes[[#This Row],[File ID]],Table119[], MATCH(C$4,Table119[#Headers],0), 0)","v":{"$error":"#N/A"}}]
[131,{"$f":"VLOOKUP(Human_Codes[[#This Row],[File ID]],Table119[], MATCH(B$4,Table119[#Headers],0), 0)","v":{"$error":"#N/A"}},{"$f":"VLOOKUP(Human_Codes[[#This Row],[File ID]],Table119[], MATCH(C$4,Table119[#Headers],0), 0)","v":{"$error":"#N/A"}}]
[132,{"$f":"VLOOKUP(Human_Codes[[#This Row],[File ID]],Table119[], MATCH(B$4,Table119[#Headers],0), 0)","v":{"$error":"#N/A"}},{"$f":"VLOOKUP(Human_Codes[[#This Row],[File ID]],Table119[], MATCH(C$4,Table119[#Headers],0), 0)","v":{"$error":"#N/A"}}]
[133,{"$f":"VLOOKUP(Human_Codes[[#This Row],[File ID]],Table119[], MATCH(B$4,Table119[#Headers],0), 0)","v":{"$error":"#N/A"}},{"$f":"VLOOKUP(Human_Codes[[#This Row],[File ID]],Table119[], MATCH(C$4,Table119[#Headers],0), 0)","v":{"$error":"#N/A"}}]
[134,{"$f":"VLOOKUP(Human_Codes[[#This Row],[File ID]],Table119[], MATCH(B$4,Table119[#Headers],0), 0)","v":{"$error":"#N/A"}},{"$f":"VLOOKUP(Human_Codes[[#This Row],[File ID]],Table119[], MATCH(C$4,Table119[#Headers],0), 0)","v":{"$error":"#N/A"}}]
[135,{"$f":"VLOOKUP(Human_Codes[[#This Row],[File ID]],Table119[], MATCH(B$4,Table119[#Headers],0), 0)","v":{"$error":"#N/A"}},{"$f":"VLOOKUP(Human_Codes[[#This Row],[File ID]],Table119[], MATCH(C$4,Table119[#Headers],0), 0)","v":{"$error":"#N/A"}}]
[136,{"$f":"VLOOKUP(Human_Codes[[#This Row],[File ID]],Table119[], MATCH(B$4,Table119[#Headers],0), 0)","v":{"$error":"#N/A"}},{"$f":"VLOOKUP(Human_Codes[[#This Row],[File ID]],Table119[], MATCH(C$4,Table119[#Headers],0), 0)","v":{"$error":"#N/A"}}]
[137,{"$f":"VLOOKUP(Human_Codes[[#This Row],[File ID]],Table119[], MATCH(B$4,Table119[#Headers],0), 0)","v":{"$error":"#N/A"}},{"$f":"VLOOKUP(Human_Codes[[#This Row],[File ID]],Table119[], MATCH(C$4,Table119[#Headers],0), 0)","v":{"$error":"#N/A"}}]
[138,{"$f":"VLOOKUP(Human_Codes[[#This Row],[File ID]],Table119[], MATCH(B$4,Table119[#Headers],0), 0)","v":{"$error":"#N/A"}},{"$f":"VLOOKUP(Human_Codes[[#This Row],[File ID]],Table119[], MATCH(C$4,Table119[#Headers],0), 0)","v":{"$error":"#N/A"}}]
[139,{"$f":"VLOOKUP(Human_Codes[[#This Row],[File ID]],Table119[], MATCH(B$4,Table119[#Headers],0), 0)","v":{"$error":"#N/A"}},{"$f":"VLOOKUP(Human_Codes[[#This Row],[File ID]],Table119[], MATCH(C$4,Table119[#Headers],0), 0)","v":{"$error":"#N/A"}}]
[140,{"$f":"VLOOKUP(Human_Codes[[#This Row],[File ID]],Table119[], MATCH(B$4,Table119[#Headers],0), 0)","v":{"$error":"#N/A"}},{"$f":"VLOOKUP(Human_Codes[[#This Row],[File ID]],Table119[], MATCH(C$4,Table119[#Headers],0), 0)","v":{"$error":"#N/A"}}]
[141,{"$f":"VLOOKUP(Human_Codes[[#This Row],[File ID]],Table119[], MATCH(B$4,Table119[#Headers],0), 0)","v":{"$error":"#N/A"}},{"$f":"VLOOKUP(Human_Codes[[#This Row],[File ID]],Table119[], MATCH(C$4,Table119[#Headers],0), 0)","v":{"$error":"#N/A"}}]
[142,{"$f":"VLOOKUP(Human_Codes[[#This Row],[File ID]],Table119[], MATCH(B$4,Table119[#Headers],0), 0)","v":{"$error":"#N/A"}},{"$f":"VLOOKUP(Human_Codes[[#This Row],[File ID]],Table119[], MATCH(C$4,Table119[#Headers],0), 0)","v":{"$error":"#N/A"}}]
[143,{"$f":"VLOOKUP(Human_Codes[[#This Row],[File ID]],Table119[], MATCH(B$4,Table119[#Headers],0), 0)","v":{"$error":"#N/A"}},{"$f":"VLOOKUP(Human_Codes[[#This Row],[File ID]],Table119[], MATCH(C$4,Table119[#Headers],0), 0)","v":{"$error":"#N/A"}}]
[144,{"$f":"VLOOKUP(Human_Codes[[#This Row],[File ID]],Table119[], MATCH(B$4,Table119[#Headers],0), 0)","v":{"$error":"#N/A"}},{"$f":"VLOOKUP(Human_Codes[[#This Row],[File ID]],Table119[], MATCH(C$4,Table119[#Headers],0), 0)","v":{"$error":"#N/A"}}]
[145,{"$f":"VLOOKUP(Human_Codes[[#This Row],[File ID]],Table119[], MATCH(B$4,Table119[#Headers],0), 0)","v":{"$error":"#N/A"}},{"$f":"VLOOKUP(Human_Codes[[#This Row],[File ID]],Table119[], MATCH(C$4,Table119[#Headers],0), 0)","v":{"$error":"#N/A"}}]
[146,{"$f":"VLOOKUP(Human_Codes[[#This Row],[File ID]],Table119[], MATCH(B$4,Table119[#Headers],0), 0)","v":{"$error":"#N/A"}},{"$f":"VLOOKUP(Human_Codes[[#This Row],[File ID]],Table119[], MATCH(C$4,Table119[#Headers],0), 0)","v":{"$error":"#N/A"}}]
[147,{"$f":"VLOOKUP(Human_Codes[[#This Row],[File ID]],Table119[], MATCH(B$4,Table119[#Headers],0), 0)","v":{"$error":"#N/A"}},{"$f":"VLOOKUP(Human_Codes[[#This Row],[File ID]],Table119[], MATCH(C$4,Table119[#Headers],0), 0)","v":{"$error":"#N/A"}}]
[148,{"$f":"VLOOKUP(Human_Codes[[#This Row],[File ID]],Table119[], MATCH(B$4,Table119[#Headers],0), 0)","v":{"$error":"#N/A"}},{"$f":"VLOOKUP(Human_Codes[[#This Row],[File ID]],Table119[], MATCH(C$4,Table119[#Headers],0), 0)","v":{"$error":"#N/A"}}]
[149,{"$f":"VLOOKUP(Human_Codes[[#This Row],[File ID]],Table119[], MATCH(B$4,Table119[#Headers],0), 0)","v":{"$error":"#N/A"}},{"$f":"VLOOKUP(Human_Codes[[#This Row],[File ID]],Table119[], MATCH(C$4,Table119[#Headers],0), 0)","v":{"$error":"#N/A"}}]
[150,{"$f":"VLOOKUP(Human_Codes[[#This Row],[File ID]],Table119[], MATCH(B$4,Table119[#Headers],0), 0)","v":{"$error":"#N/A"}},{"$f":"VLOOKUP(Human_Codes[[#This Row],[File ID]],Table119[], MATCH(C$4,Table119[#Headers],0), 0)","v":{"$error":"#N/A"}}]
[151,{"$f":"VLOOKUP(Human_Codes[[#This Row],[File ID]],Table119[], MATCH(B$4,Table119[#Headers],0), 0)","v":{"$error":"#N/A"}},{"$f":"VLOOKUP(Human_Codes[[#This Row],[File ID]],Table119[], MATCH(C$4,Table119[#Headers],0), 0)","v":{"$error":"#N/A"}}]
[152,{"$f":"VLOOKUP(Human_Codes[[#This Row],[File ID]],Table119[], MATCH(B$4,Table119[#Headers],0), 0)","v":{"$error":"#N/A"}},{"$f":"VLOOKUP(Human_Codes[[#This Row],[File ID]],Table119[], MATCH(C$4,Table119[#Headers],0), 0)","v":{"$error":"#N/A"}}]
[153,{"$f":"VLOOKUP(Human_Codes[[#This Row],[File ID]],Table119[], MATCH(B$4,Table119[#Headers],0), 0)","v":{"$error":"#N/A"}},{"$f":"VLOOKUP(Human_Codes[[#This Row],[File ID]],Table119[], MATCH(C$4,Table119[#Headers],0), 0)","v":{"$error":"#N/A"}}]
[154,{"$f":"VLOOKUP(Human_Codes[[#This Row],[File ID]],Table119[], MATCH(B$4,Table119[#Headers],0), 0)","v":{"$error":"#N/A"}},{"$f":"VLOOKUP(Human_Codes[[#This Row],[File ID]],Table119[], MATCH(C$4,Table119[#Headers],0), 0)","v":{"$error":"#N/A"}}]
[155,{"$f":"VLOOKUP(Human_Codes[[#This Row],[File ID]],Table119[], MATCH(B$4,Table119[#Headers],0), 0)","v":{"$error":"#N/A"}},{"$f":"VLOOKUP(Human_Codes[[#This Row],[File ID]],Table119[], MATCH(C$4,Table119[#Headers],0), 0)","v":{"$error":"#N/A"}}]
[156,{"$f":"VLOOKUP(Human_Codes[[#This Row],[File ID]],Table119[], MATCH(B$4,Table119[#Headers],0), 0)","v":{"$error":"#N/A"}},{"$f":"VLOOKUP(Human_Codes[[#This Row],[File ID]],Table119[], MATCH(C$4,Table119[#Headers],0), 0)","v":{"$error":"#N/A"}}]
[157,{"$f":"VLOOKUP(Human_Codes[[#This Row],[File ID]],Table119[], MATCH(B$4,Table119[#Headers],0), 0)","v":{"$error":"#N/A"}},{"$f":"VLOOKUP(Human_Codes[[#This Row],[File ID]],Table119[], MATCH(C$4,Table119[#Headers],0), 0)","v":{"$error":"#N/A"}}]
[158,{"$f":"VLOOKUP(Human_Codes[[#This Row],[File ID]],Table119[], MATCH(B$4,Table119[#Headers],0), 0)","v":{"$error":"#N/A"}},{"$f":"VLOOKUP(Human_Codes[[#This Row],[File ID]],Table119[], MATCH(C$4,Table119[#Headers],0), 0)","v":{"$error":"#N/A"}}]
[159,{"$f":"VLOOKUP(Human_Codes[[#This Row],[File ID]],Table119[], MATCH(B$4,Table119[#Headers],0), 0)","v":{"$error":"#N/A"}},{"$f":"VLOOKUP(Human_Codes[[#This Row],[File ID]],Table119[], MATCH(C$4,Table119[#Headers],0), 0)","v":{"$error":"#N/A"}}]
[160,{"$f":"VLOOKUP(Human_Codes[[#This Row],[File ID]],Table119[], MATCH(B$4,Table119[#Headers],0), 0)","v":{"$error":"#N/A"}},{"$f":"VLOOKUP(Human_Codes[[#This Row],[File ID]],Table119[], MATCH(C$4,Table119[#Headers],0), 0)","v":{"$error":"#N/A"}}]
[161,{"$f":"VLOOKUP(Human_Codes[[#This Row],[File ID]],Table119[], MATCH(B$4,Table119[#Headers],0), 0)","v":{"$error":"#N/A"}},{"$f":"VLOOKUP(Human_Codes[[#This Row],[File ID]],Table119[], MATCH(C$4,Table119[#Headers],0), 0)","v":{"$error":"#N/A"}}]
[162,{"$f":"VLOOKUP(Human_Codes[[#This Row],[File ID]],Table119[], MATCH(B$4,Table119[#Headers],0), 0)","v":{"$error":"#N/A"}},{"$f":"VLOOKUP(Human_Codes[[#This Row],[File ID]],Table119[], MATCH(C$4,Table119[#Headers],0), 0)","v":{"$error":"#N/A"}}]
[163,{"$f":"VLOOKUP(Human_Codes[[#This Row],[File ID]],Table119[], MATCH(B$4,Table119[#Headers],0), 0)","v":{"$error":"#N/A"}},{"$f":"VLOOKUP(Human_Codes[[#This Row],[File ID]],Table119[], MATCH(C$4,Table119[#Headers],0), 0)","v":{"$error":"#N/A"}}]
[164,{"$f":"VLOOKUP(Human_Codes[[#This Row],[File ID]],Table119[], MATCH(B$4,Table119[#Headers],0), 0)","v":{"$error":"#N/A"}},{"$f":"VLOOKUP(Human_Codes[[#This Row],[File ID]],Table119[], MATCH(C$4,Table119[#Headers],0), 0)","v":{"$error":"#N/A"}}]
[165,{"$f":"VLOOKUP(Human_Codes[[#This Row],[File ID]],Table119[], MATCH(B$4,Table119[#Headers],0), 0)","v":{"$error":"#N/A"}},{"$f":"VLOOKUP(Human_Codes[[#This Row],[File ID]],Table119[], MATCH(C$4,Table119[#Headers],0), 0)","v":{"$error":"#N/A"}}]
[166,{"$f":"VLOOKUP(Human_Codes[[#This Row],[File ID]],Table119[], MATCH(B$4,Table119[#Headers],0), 0)","v":{"$error":"#N/A"}},{"$f":"VLOOKUP(Human_Codes[[#This Row],[File ID]],Table119[], MATCH(C$4,Table119[#Headers],0), 0)","v":{"$error":"#N/A"}}]
[167,{"$f":"VLOOKUP(Human_Codes[[#This Row],[File ID]],Table119[], MATCH(B$4,Table119[#Headers],0), 0)","v":{"$error":"#N/A"}},{"$f":"VLOOKUP(Human_Codes[[#This Row],[File ID]],Table119[], MATCH(C$4,Table119[#Headers],0), 0)","v":{"$error":"#N/A"}}]
[168,{"$f":"VLOOKUP(Human_Codes[[#This Row],[File ID]],Table119[], MATCH(B$4,Table119[#Headers],0), 0)","v":{"$error":"#N/A"}},{"$f":"VLOOKUP(Human_Codes[[#This Row],[File ID]],Table119[], MATCH(C$4,Table119[#Headers],0), 0)","v":{"$error":"#N/A"}}]
[169,{"$f":"VLOOKUP(Human_Codes[[#This Row],[File ID]],Table119[], MATCH(B$4,Table119[#Headers],0), 0)","v":{"$error":"#N/A"}},{"$f":"VLOOKUP(Human_Codes[[#This Row],[File ID]],Table119[], MATCH(C$4,Table119[#Headers],0), 0)","v":{"$error":"#N/A"}}]
[170,{"$f":"VLOOKUP(Human_Codes[[#This Row],[File ID]],Table119[], MATCH(B$4,Table119[#Headers],0), 0)","v":{"$error":"#N/A"}},{"$f":"VLOOKUP(Human_Codes[[#This Row],[File ID]],Table119[], MATCH(C$4,Table119[#Headers],0), 0)","v":{"$error":"#N/A"}}]
[171,{"$f":"VLOOKUP(Human_Codes[[#This Row],[File ID]],Table119[], MATCH(B$4,Table119[#Headers],0), 0)","v":{"$error":"#N/A"}},{"$f":"VLOOKUP(Human_Codes[[#This Row],[File ID]],Table119[], MATCH(C$4,Table119[#Headers],0), 0)","v":{"$error":"#N/A"}}]
[172,{"$f":"VLOOKUP(Human_Codes[[#This Row],[File ID]],Table119[], MATCH(B$4,Table119[#Headers],0), 0)","v":{"$error":"#N/A"}},{"$f":"VLOOKUP(Human_Codes[[#This Row],[File ID]],Table119[], MATCH(C$4,Table119[#Headers],0), 0)","v":{"$error":"#N/A"}}]
[173,{"$f":"VLOOKUP(Human_Codes[[#This Row],[File ID]],Table119[], MATCH(B$4,Table119[#Headers],0), 0)","v":{"$error":"#N/A"}},{"$f":"VLOOKUP(Human_Codes[[#This Row],[File ID]],Table119[], MATCH(C$4,Table119[#Headers],0), 0)","v":{"$error":"#N/A"}}]
[174,{"$f":"VLOOKUP(Human_Codes[[#This Row],[File ID]],Table119[], MATCH(B$4,Table119[#Headers],0), 0)","v":{"$error":"#N/A"}},{"$f":"VLOOKUP(Human_Codes[[#This Row],[File ID]],Table119[], MATCH(C$4,Table119[#Headers],0), 0)","v":{"$error":"#N/A"}}]
[175,{"$f":"VLOOKUP(Human_Codes[[#This Row],[File ID]],Table119[], MATCH(B$4,Table119[#Headers],0), 0)","v":{"$error":"#N/A"}},{"$f":"VLOOKUP(Human_Codes[[#This Row],[File ID]],Table119[], MATCH(C$4,Table119[#Headers],0), 0)","v":{"$error":"#N/A"}}]
[176,{"$f":"VLOOKUP(Human_Codes[[#This Row],[File ID]],Table119[], MATCH(B$4,Table119[#Headers],0), 0)","v":{"$error":"#N/A"}},{"$f":"VLOOKUP(Human_Codes[[#This Row],[File ID]],Table119[], MATCH(C$4,Table119[#Headers],0), 0)","v":{"$error":"#N/A"}}]
[177,{"$f":"VLOOKUP(Human_Codes[[#This Row],[File ID]],Table119[], MATCH(B$4,Table119[#Headers],0), 0)","v":{"$error":"#N/A"}},{"$f":"VLOOKUP(Human_Codes[[#This Row],[File ID]],Table119[], MATCH(C$4,Table119[#Headers],0), 0)","v":{"$error":"#N/A"}}]
[178,{"$f":"VLOOKUP(Human_Codes[[#This Row],[File ID]],Table119[], MATCH(B$4,Table119[#Headers],0), 0)","v":{"$error":"#N/A"}},{"$f":"VLOOKUP(Human_Codes[[#This Row],[File ID]],Table119[], MATCH(C$4,Table119[#Headers],0), 0)","v":{"$error":"#N/A"}}]
[179,{"$f":"VLOOKUP(Human_Codes[[#This Row],[File ID]],Table119[], MATCH(B$4,Table119[#Headers],0), 0)","v":{"$error":"#N/A"}},{"$f":"VLOOKUP(Human_Codes[[#This Row],[File ID]],Table119[], MATCH(C$4,Table119[#Headers],0), 0)","v":{"$error":"#N/A"}}]
[180,{"$f":"VLOOKUP(Human_Codes[[#This Row],[File ID]],Table119[], MATCH(B$4,Table119[#Headers],0), 0)","v":{"$error":"#N/A"}},{"$f":"VLOOKUP(Human_Codes[[#This Row],[File ID]],Table119[], MATCH(C$4,Table119[#Headers],0), 0)","v":{"$error":"#N/A"}}]
[181,{"$f":"VLOOKUP(Human_Codes[[#This Row],[File ID]],Table119[], MATCH(B$4,Table119[#Headers],0), 0)","v":{"$error":"#N/A"}},{"$f":"VLOOKUP(Human_Codes[[#This Row],[File ID]],Table119[], MATCH(C$4,Table119[#Headers],0), 0)","v":{"$error":"#N/A"}}]
[182,{"$f":"VLOOKUP(Human_Codes[[#This Row],[File ID]],Table119[], MATCH(B$4,Table119[#Headers],0), 0)","v":{"$error":"#N/A"}},{"$f":"VLOOKUP(Human_Codes[[#This Row],[File ID]],Table119[], MATCH(C$4,Table119[#Headers],0), 0)","v":{"$error":"#N/A"}}]
[183,{"$f":"VLOOKUP(Human_Codes[[#This Row],[File ID]],Table119[], MATCH(B$4,Table119[#Headers],0), 0)","v":{"$error":"#N/A"}},{"$f":"VLOOKUP(Human_Codes[[#This Row],[File ID]],Table119[], MATCH(C$4,Table119[#Headers],0), 0)","v":{"$error":"#N/A"}}]
[184,{"$f":"VLOOKUP(Human_Codes[[#This Row],[File ID]],Table119[], MATCH(B$4,Table119[#Headers],0), 0)","v":{"$error":"#N/A"}},{"$f":"VLOOKUP(Human_Codes[[#This Row],[File ID]],Table119[], MATCH(C$4,Table119[#Headers],0), 0)","v":{"$error":"#N/A"}}]
[185,{"$f":"VLOOKUP(Human_Codes[[#This Row],[File ID]],Table119[], MATCH(B$4,Table119[#Headers],0), 0)","v":{"$error":"#N/A"}},{"$f":"VLOOKUP(Human_Codes[[#This Row],[File ID]],Table119[], MATCH(C$4,Table119[#Headers],0), 0)","v":{"$error":"#N/A"}}]
[186,{"$f":"VLOOKUP(Human_Codes[[#This Row],[File ID]],Table119[], MATCH(B$4,Table119[#Headers],0), 0)","v":{"$error":"#N/A"}},{"$f":"VLOOKUP(Human_Codes[[#This Row],[File ID]],Table119[], MATCH(C$4,Table119[#Headers],0), 0)","v":{"$error":"#N/A"}}]
[187,{"$f":"VLOOKUP(Human_Codes[[#This Row],[File ID]],Table119[], MATCH(B$4,Table119[#Headers],0), 0)","v":{"$error":"#N/A"}},{"$f":"VLOOKUP(Human_Codes[[#This Row],[File ID]],Table119[], MATCH(C$4,Table119[#Headers],0), 0)","v":{"$error":"#N/A"}}]
[188,{"$f":"VLOOKUP(Human_Codes[[#This Row],[File ID]],Table119[], MATCH(B$4,Table119[#Headers],0), 0)","v":{"$error":"#N/A"}},{"$f":"VLOOKUP(Human_Codes[[#This Row],[File ID]],Table119[], MATCH(C$4,Table119[#Headers],0), 0)","v":{"$error":"#N/A"}}]
[189,{"$f":"VLOOKUP(Human_Codes[[#This Row],[File ID]],Table119[], MATCH(B$4,Table119[#Headers],0), 0)","v":{"$error":"#N/A"}},{"$f":"VLOOKUP(Human_Codes[[#This Row],[File ID]],Table119[], MATCH(C$4,Table119[#Headers],0), 0)","v":{"$error":"#N/A"}}]
[190,{"$f":"VLOOKUP(Human_Codes[[#This Row],[File ID]],Table119[], MATCH(B$4,Table119[#Headers],0), 0)","v":{"$error":"#N/A"}},{"$f":"VLOOKUP(Human_Codes[[#This Row],[File ID]],Table119[], MATCH(C$4,Table119[#Headers],0), 0)","v":{"$error":"#N/A"}}]
[191,{"$f":"VLOOKUP(Human_Codes[[#This Row],[File ID]],Table119[], MATCH(B$4,Table119[#Headers],0), 0)","v":{"$error":"#N/A"}},{"$f":"VLOOKUP(Human_Codes[[#This Row],[File ID]],Table119[], MATCH(C$4,Table119[#Headers],0), 0)","v":{"$error":"#N/A"}}]
[192,{"$f":"VLOOKUP(Human_Codes[[#This Row],[File ID]],Table119[], MATCH(B$4,Table119[#Headers],0), 0)","v":{"$error":"#N/A"}},{"$f":"VLOOKUP(Human_Codes[[#This Row],[File ID]],Table119[], MATCH(C$4,Table119[#Headers],0), 0)","v":{"$error":"#N/A"}}]
[193,{"$f":"VLOOKUP(Human_Codes[[#This Row],[File ID]],Table119[], MATCH(B$4,Table119[#Headers],0), 0)","v":{"$error":"#N/A"}},{"$f":"VLOOKUP(Human_Codes[[#This Row],[File ID]],Table119[], MATCH(C$4,Table119[#Headers],0), 0)","v":{"$error":"#N/A"}}]
[{"$f":"ROW()-4","v":194},{"$f":"VLOOKUP(Human_Codes[[#This Row],[File ID]],Table119[], MATCH(B$4,Table119[#Headers],0), 0)","v":{"$error":"#N/A"}},{"$f":"VLOOKUP(Human_Codes[[#This Row],[File ID]],Table119[], MATCH(C$4,Table119[#Headers],0), 0)","v":{"$error":"#N/A"}}]
[195,{"$f":"VLOOKUP(Human_Codes[[#This Row],[File ID]],Table119[], MATCH(B$4,Table119[#Headers],0), 0)","v":{"$error":"#N/A"}},{"$f":"VLOOKUP(Human_Codes[[#This Row],[File ID]],Table119[], MATCH(C$4,Table119[#Headers],0), 0)","v":{"$error":"#N/A"}}]
[196,{"$f":"VLOOKUP(Human_Codes[[#This Row],[File ID]],Table119[], MATCH(B$4,Table119[#Headers],0), 0)","v":{"$error":"#N/A"}},{"$f":"VLOOKUP(Human_Codes[[#This Row],[File ID]],Table119[], MATCH(C$4,Table119[#Headers],0), 0)","v":{"$error":"#N/A"}}]
[197,{"$f":"VLOOKUP(Human_Codes[[#This Row],[File ID]],Table119[], MATCH(B$4,Table119[#Headers],0), 0)","v":{"$error":"#N/A"}},{"$f":"VLOOKUP(Human_Codes[[#This Row],[File ID]],Table119[], MATCH(C$4,Table119[#Headers],0), 0)","v":{"$error":"#N/A"}}]
[198,{"$f":"VLOOKUP(Human_Codes[[#This Row],[File ID]],Table119[], MATCH(B$4,Table119[#Headers],0), 0)","v":{"$error":"#N/A"}},{"$f":"VLOOKUP(Human_Codes[[#This Row],[File ID]],Table119[], MATCH(C$4,Table119[#Headers],0), 0)","v":{"$error":"#N/A"}}]
[199,{"$f":"VLOOKUP(Human_Codes[[#This Row],[File ID]],Table119[], MATCH(B$4,Table119[#Headers],0), 0)","v":{"$error":"#N/A"}},{"$f":"VLOOKUP(Human_Codes[[#This Row],[File ID]],Table119[], MATCH(C$4,Table119[#Headers],0), 0)","v":{"$error":"#N/A"}}]
[200,{"$f":"VLOOKUP(Human_Codes[[#This Row],[File ID]],Table119[], MATCH(B$4,Table119[#Headers],0), 0)","v":{"$error":"#N/A"}},{"$f":"VLOOKUP(Human_Codes[[#This Row],[File ID]],Table119[], MATCH(C$4,Table119[#Headers],0), 0)","v":{"$error":"#N/A"}}]
[201,{"$f":"VLOOKUP(Human_Codes[[#This Row],[File ID]],Table119[], MATCH(B$4,Table119[#Headers],0), 0)","v":{"$error":"#N/A"}},{"$f":"VLOOKUP(Human_Codes[[#This Row],[File ID]],Table119[], MATCH(C$4,Table119[#Headers],0), 0)","v":{"$error":"#N/A"}}]
[202,{"$f":"VLOOKUP(Human_Codes[[#This Row],[File ID]],Table119[], MATCH(B$4,Table119[#Headers],0), 0)","v":{"$error":"#N/A"}},{"$f":"VLOOKUP(Human_Codes[[#This Row],[File ID]],Table119[], MATCH(C$4,Table119[#Headers],0), 0)","v":{"$error":"#N/A"}}]
[203,{"$f":"VLOOKUP(Human_Codes[[#This Row],[File ID]],Table119[], MATCH(B$4,Table119[#Headers],0), 0)","v":{"$error":"#N/A"}},{"$f":"VLOOKUP(Human_Codes[[#This Row],[File ID]],Table119[], MATCH(C$4,Table119[#Headers],0), 0)","v":{"$error":"#N/A"}}]
[204,{"$f":"VLOOKUP(Human_Codes[[#This Row],[File ID]],Table119[], MATCH(B$4,Table119[#Headers],0), 0)","v":{"$error":"#N/A"}},{"$f":"VLOOKUP(Human_Codes[[#This Row],[File ID]],Table119[], MATCH(C$4,Table119[#Headers],0), 0)","v":{"$error":"#N/A"}}]
[205,{"$f":"VLOOKUP(Human_Codes[[#This Row],[File ID]],Table119[], MATCH(B$4,Table119[#Headers],0), 0)","v":{"$error":"#N/A"}},{"$f":"VLOOKUP(Human_Codes[[#This Row],[File ID]],Table119[], MATCH(C$4,Table119[#Headers],0), 0)","v":{"$error":"#N/A"}}]
[206,{"$f":"VLOOKUP(Human_Codes[[#This Row],[File ID]],Table119[], MATCH(B$4,Table119[#Headers],0), 0)","v":{"$error":"#N/A"}},{"$f":"VLOOKUP(Human_Codes[[#This Row],[File ID]],Table119[], MATCH(C$4,Table119[#Headers],0), 0)","v":{"$error":"#N/A"}}]
[207,{"$f":"VLOOKUP(Human_Codes[[#This Row],[File ID]],Table119[], MATCH(B$4,Table119[#Headers],0), 0)","v":{"$error":"#N/A"}},{"$f":"VLOOKUP(Human_Codes[[#This Row],[File ID]],Table119[], MATCH(C$4,Table119[#Headers],0), 0)","v":{"$error":"#N/A"}}]
[208,{"$f":"VLOOKUP(Human_Codes[[#This Row],[File ID]],Table119[], MATCH(B$4,Table119[#Headers],0), 0)","v":{"$error":"#N/A"}},{"$f":"VLOOKUP(Human_Codes[[#This Row],[File ID]],Table119[], MATCH(C$4,Table119[#Headers],0), 0)","v":{"$error":"#N/A"}}]
[209,{"$f":"VLOOKUP(Human_Codes[[#This Row],[File ID]],Table119[], MATCH(B$4,Table119[#Headers],0), 0)","v":{"$error":"#N/A"}},{"$f":"VLOOKUP(Human_Codes[[#This Row],[File ID]],Table119[], MATCH(C$4,Table119[#Headers],0), 0)","v":{"$error":"#N/A"}}]
[210,{"$f":"VLOOKUP(Human_Codes[[#This Row],[File ID]],Table119[], MATCH(B$4,Table119[#Headers],0), 0)","v":{"$error":"#N/A"}},{"$f":"VLOOKUP(Human_Codes[[#This Row],[File ID]],Table119[], MATCH(C$4,Table119[#Headers],0), 0)","v":{"$error":"#N/A"}}]
[211,{"$f":"VLOOKUP(Human_Codes[[#This Row],[File ID]],Table119[], MATCH(B$4,Table119[#Headers],0), 0)","v":{"$error":"#N/A"}},{"$f":"VLOOKUP(Human_Codes[[#This Row],[File ID]],Table119[], MATCH(C$4,Table119[#Headers],0), 0)","v":{"$error":"#N/A"}}]
[212,{"$f":"VLOOKUP(Human_Codes[[#This Row],[File ID]],Table119[], MATCH(B$4,Table119[#Headers],0), 0)","v":{"$error":"#N/A"}},{"$f":"VLOOKUP(Human_Codes[[#This Row],[File ID]],Table119[], MATCH(C$4,Table119[#Headers],0), 0)","v":{"$error":"#N/A"}}]
[213,{"$f":"VLOOKUP(Human_Codes[[#This Row],[File ID]],Table119[], MATCH(B$4,Table119[#Headers],0), 0)","v":{"$error":"#N/A"}},{"$f":"VLOOKUP(Human_Codes[[#This Row],[File ID]],Table119[], MATCH(C$4,Table119[#Headers],0), 0)","v":{"$error":"#N/A"}}]
[214,{"$f":"VLOOKUP(Human_Codes[[#This Row],[File ID]],Table119[], MATCH(B$4,Table119[#Headers],0), 0)","v":{"$error":"#N/A"}},{"$f":"VLOOKUP(Human_Codes[[#This Row],[File ID]],Table119[], MATCH(C$4,Table119[#Headers],0), 0)","v":{"$error":"#N/A"}}]
[215,{"$f":"VLOOKUP(Human_Codes[[#This Row],[File ID]],Table119[], MATCH(B$4,Table119[#Headers],0), 0)","v":{"$error":"#N/A"}},{"$f":"VLOOKUP(Human_Codes[[#This Row],[File ID]],Table119[], MATCH(C$4,Table119[#Headers],0), 0)","v":{"$error":"#N/A"}}]
[216,{"$f":"VLOOKUP(Human_Codes[[#This Row],[File ID]],Table119[], MATCH(B$4,Table119[#Headers],0), 0)","v":{"$error":"#N/A"}},{"$f":"VLOOKUP(Human_Codes[[#This Row],[File ID]],Table119[], MATCH(C$4,Table119[#Headers],0), 0)","v":{"$error":"#N/A"}}]
[217,{"$f":"VLOOKUP(Human_Codes[[#This Row],[File ID]],Table119[], MATCH(B$4,Table119[#Headers],0), 0)","v":{"$error":"#N/A"}},{"$f":"VLOOKUP(Human_Codes[[#This Row],[File ID]],Table119[], MATCH(C$4,Table119[#Headers],0), 0)","v":{"$error":"#N/A"}}]
[218,{"$f":"VLOOKUP(Human_Codes[[#This Row],[File ID]],Table119[], MATCH(B$4,Table119[#Headers],0), 0)","v":{"$error":"#N/A"}},{"$f":"VLOOKUP(Human_Codes[[#This Row],[File ID]],Table119[], MATCH(C$4,Table119[#Headers],0), 0)","v":{"$error":"#N/A"}}]
[219,{"$f":"VLOOKUP(Human_Codes[[#This Row],[File ID]],Table119[], MATCH(B$4,Table119[#Headers],0), 0)","v":{"$error":"#N/A"}},{"$f":"VLOOKUP(Human_Codes[[#This Row],[File ID]],Table119[], MATCH(C$4,Table119[#Headers],0), 0)","v":{"$error":"#N/A"}}]
[220,{"$f":"VLOOKUP(Human_Codes[[#This Row],[File ID]],Table119[], MATCH(B$4,Table119[#Headers],0), 0)","v":{"$error":"#N/A"}},{"$f":"VLOOKUP(Human_Codes[[#This Row],[File ID]],Table119[], MATCH(C$4,Table119[#Headers],0), 0)","v":{"$error":"#N/A"}}]
[221,{"$f":"VLOOKUP(Human_Codes[[#This Row],[File ID]],Table119[], MATCH(B$4,Table119[#Headers],0), 0)","v":{"$error":"#N/A"}},{"$f":"VLOOKUP(Human_Codes[[#This Row],[File ID]],Table119[], MATCH(C$4,Table119[#Headers],0), 0)","v":{"$error":"#N/A"}}]
[222,{"$f":"VLOOKUP(Human_Codes[[#This Row],[File ID]],Table119[], MATCH(B$4,Table119[#Headers],0), 0)","v":{"$error":"#N/A"}},{"$f":"VLOOKUP(Human_Codes[[#This Row],[File ID]],Table119[], MATCH(C$4,Table119[#Headers],0), 0)","v":{"$error":"#N/A"}}]
[223,{"$f":"VLOOKUP(Human_Codes[[#This Row],[File ID]],Table119[], MATCH(B$4,Table119[#Headers],0), 0)","v":{"$error":"#N/A"}},{"$f":"VLOOKUP(Human_Codes[[#This Row],[File ID]],Table119[], MATCH(C$4,Table119[#Headers],0), 0)","v":{"$error":"#N/A"}}]
[224,{"$f":"VLOOKUP(Human_Codes[[#This Row],[File ID]],Table119[], MATCH(B$4,Table119[#Headers],0), 0)","v":{"$error":"#N/A"}},{"$f":"VLOOKUP(Human_Codes[[#This Row],[File ID]],Table119[], MATCH(C$4,Table119[#Headers],0), 0)","v":{"$error":"#N/A"}}]
[225,{"$f":"VLOOKUP(Human_Codes[[#This Row],[File ID]],Table119[], MATCH(B$4,Table119[#Headers],0), 0)","v":{"$error":"#N/A"}},{"$f":"VLOOKUP(Human_Codes[[#This Row],[File ID]],Table119[], MATCH(C$4,Table119[#Headers],0), 0)","v":{"$error":"#N/A"}}]
[226,{"$f":"VLOOKUP(Human_Codes[[#This Row],[File ID]],Table119[], MATCH(B$4,Table119[#Headers],0), 0)","v":{"$error":"#N/A"}},{"$f":"VLOOKUP(Human_Codes[[#This Row],[File ID]],Table119[], MATCH(C$4,Table119[#Headers],0), 0)","v":{"$error":"#N/A"}}]
[227,{"$f":"VLOOKUP(Human_Codes[[#This Row],[File ID]],Table119[], MATCH(B$4,Table119[#Headers],0), 0)","v":{"$error":"#N/A"}},{"$f":"VLOOKUP(Human_Codes[[#This Row],[File ID]],Table119[], MATCH(C$4,Table119[#Headers],0), 0)","v":{"$error":"#N/A"}}]
[228,{"$f":"VLOOKUP(Human_Codes[[#This Row],[File ID]],Table119[], MATCH(B$4,Table119[#Headers],0), 0)","v":{"$error":"#N/A"}},{"$f":"VLOOKUP(Human_Codes[[#This Row],[File ID]],Table119[], MATCH(C$4,Table119[#Headers],0), 0)","v":{"$error":"#N/A"}}]
[229,{"$f":"VLOOKUP(Human_Codes[[#This Row],[File ID]],Table119[], MATCH(B$4,Table119[#Headers],0), 0)","v":{"$error":"#N/A"}},{"$f":"VLOOKUP(Human_Codes[[#This Row],[File ID]],Table119[], MATCH(C$4,Table119[#Headers],0), 0)","v":{"$error":"#N/A"}}]
[230,{"$f":"VLOOKUP(Human_Codes[[#This Row],[File ID]],Table119[], MATCH(B$4,Table119[#Headers],0), 0)","v":{"$error":"#N/A"}},{"$f":"VLOOKUP(Human_Codes[[#This Row],[File ID]],Table119[], MATCH(C$4,Table119[#Headers],0), 0)","v":{"$error":"#N/A"}}]
[231,{"$f":"VLOOKUP(Human_Codes[[#This Row],[File ID]],Table119[], MATCH(B$4,Table119[#Headers],0), 0)","v":{"$error":"#N/A"}},{"$f":"VLOOKUP(Human_Codes[[#This Row],[File ID]],Table119[], MATCH(C$4,Table119[#Headers],0), 0)","v":{"$error":"#N/A"}}]
[232,{"$f":"VLOOKUP(Human_Codes[[#This Row],[File ID]],Table119[], MATCH(B$4,Table119[#Headers],0), 0)","v":{"$error":"#N/A"}},{"$f":"VLOOKUP(Human_Codes[[#This Row],[File ID]],Table119[], MATCH(C$4,Table119[#Headers],0), 0)","v":{"$error":"#N/A"}}]
[233,{"$f":"VLOOKUP(Human_Codes[[#This Row],[File ID]],Table119[], MATCH(B$4,Table119[#Headers],0), 0)","v":{"$error":"#N/A"}},{"$f":"VLOOKUP(Human_Codes[[#This Row],[File ID]],Table119[], MATCH(C$4,Table119[#Headers],0), 0)","v":{"$error":"#N/A"}}]
[234,{"$f":"VLOOKUP(Human_Codes[[#This Row],[File ID]],Table119[], MATCH(B$4,Table119[#Headers],0), 0)","v":{"$error":"#N/A"}},{"$f":"VLOOKUP(Human_Codes[[#This Row],[File ID]],Table119[], MATCH(C$4,Table119[#Headers],0), 0)","v":{"$error":"#N/A"}}]
[235,{"$f":"VLOOKUP(Human_Codes[[#This Row],[File ID]],Table119[], MATCH(B$4,Table119[#Headers],0), 0)","v":{"$error":"#N/A"}},{"$f":"VLOOKUP(Human_Codes[[#This Row],[File ID]],Table119[], MATCH(C$4,Table119[#Headers],0), 0)","v":{"$error":"#N/A"}}]
[236,{"$f":"VLOOKUP(Human_Codes[[#This Row],[File ID]],Table119[], MATCH(B$4,Table119[#Headers],0), 0)","v":{"$error":"#N/A"}},{"$f":"VLOOKUP(Human_Codes[[#This Row],[File ID]],Table119[], MATCH(C$4,Table119[#Headers],0), 0)","v":{"$error":"#N/A"}}]
[237,{"$f":"VLOOKUP(Human_Codes[[#This Row],[File ID]],Table119[], MATCH(B$4,Table119[#Headers],0), 0)","v":{"$error":"#N/A"}},{"$f":"VLOOKUP(Human_Codes[[#This Row],[File ID]],Table119[], MATCH(C$4,Table119[#Headers],0), 0)","v":{"$error":"#N/A"}}]
[238,{"$f":"VLOOKUP(Human_Codes[[#This Row],[File ID]],Table119[], MATCH(B$4,Table119[#Headers],0), 0)","v":{"$error":"#N/A"}},{"$f":"VLOOKUP(Human_Codes[[#This Row],[File ID]],Table119[], MATCH(C$4,Table119[#Headers],0), 0)","v":{"$error":"#N/A"}}]
[239,{"$f":"VLOOKUP(Human_Codes[[#This Row],[File ID]],Table119[], MATCH(B$4,Table119[#Headers],0), 0)","v":{"$error":"#N/A"}},{"$f":"VLOOKUP(Human_Codes[[#This Row],[File ID]],Table119[], MATCH(C$4,Table119[#Headers],0), 0)","v":{"$error":"#N/A"}}]
[240,{"$f":"VLOOKUP(Human_Codes[[#This Row],[File ID]],Table119[], MATCH(B$4,Table119[#Headers],0), 0)","v":{"$error":"#N/A"}},{"$f":"VLOOKUP(Human_Codes[[#This Row],[File ID]],Table119[], MATCH(C$4,Table119[#Headers],0), 0)","v":{"$error":"#N/A"}}]
[241,{"$f":"VLOOKUP(Human_Codes[[#This Row],[File ID]],Table119[], MATCH(B$4,Table119[#Headers],0), 0)","v":{"$error":"#N/A"}},{"$f":"VLOOKUP(Human_Codes[[#This Row],[File ID]],Table119[], MATCH(C$4,Table119[#Headers],0), 0)","v":{"$error":"#N/A"}}]
[242,{"$f":"VLOOKUP(Human_Codes[[#This Row],[File ID]],Table119[], MATCH(B$4,Table119[#Headers],0), 0)","v":{"$error":"#N/A"}},{"$f":"VLOOKUP(Human_Codes[[#This Row],[File ID]],Table119[], MATCH(C$4,Table119[#Headers],0), 0)","v":{"$error":"#N/A"}}]
[243,{"$f":"VLOOKUP(Human_Codes[[#This Row],[File ID]],Table119[], MATCH(B$4,Table119[#Headers],0), 0)","v":{"$error":"#N/A"}},{"$f":"VLOOKUP(Human_Codes[[#This Row],[File ID]],Table119[], MATCH(C$4,Table119[#Headers],0), 0)","v":{"$error":"#N/A"}}]
[244,{"$f":"VLOOKUP(Human_Codes[[#This Row],[File ID]],Table119[], MATCH(B$4,Table119[#Headers],0), 0)","v":{"$error":"#N/A"}},{"$f":"VLOOKUP(Human_Codes[[#This Row],[File ID]],Table119[], MATCH(C$4,Table119[#Headers],0), 0)","v":{"$error":"#N/A"}}]
[245,{"$f":"VLOOKUP(Human_Codes[[#This Row],[File ID]],Table119[], MATCH(B$4,Table119[#Headers],0), 0)","v":{"$error":"#N/A"}},{"$f":"VLOOKUP(Human_Codes[[#This Row],[File ID]],Table119[], MATCH(C$4,Table119[#Headers],0), 0)","v":{"$error":"#N/A"}}]
[246,{"$f":"VLOOKUP(Human_Codes[[#This Row],[File ID]],Table119[], MATCH(B$4,Table119[#Headers],0), 0)","v":{"$error":"#N/A"}},{"$f":"VLOOKUP(Human_Codes[[#This Row],[File ID]],Table119[], MATCH(C$4,Table119[#Headers],0), 0)","v":{"$error":"#N/A"}}]
[247,{"$f":"VLOOKUP(Human_Codes[[#This Row],[File ID]],Table119[], MATCH(B$4,Table119[#Headers],0), 0)","v":{"$error":"#N/A"}},{"$f":"VLOOKUP(Human_Codes[[#This Row],[File ID]],Table119[], MATCH(C$4,Table119[#Headers],0), 0)","v":{"$error":"#N/A"}}]
[248,{"$f":"VLOOKUP(Human_Codes[[#This Row],[File ID]],Table119[], MATCH(B$4,Table119[#Headers],0), 0)","v":{"$error":"#N/A"}},{"$f":"VLOOKUP(Human_Codes[[#This Row],[File ID]],Table119[], MATCH(C$4,Table119[#Headers],0), 0)","v":{"$error":"#N/A"}}]
[249,{"$f":"VLOOKUP(Human_Codes[[#This Row],[File ID]],Table119[], MATCH(B$4,Table119[#Headers],0), 0)","v":{"$error":"#N/A"}},{"$f":"VLOOKUP(Human_Codes[[#This Row],[File ID]],Table119[], MATCH(C$4,Table119[#Headers],0), 0)","v":{"$error":"#N/A"}}]
[250,{"$f":"VLOOKUP(Human_Codes[[#This Row],[File ID]],Table119[], MATCH(B$4,Table119[#Headers],0), 0)","v":{"$error":"#N/A"}},{"$f":"VLOOKUP(Human_Codes[[#This Row],[File ID]],Table119[], MATCH(C$4,Table119[#Headers],0), 0)","v":{"$error":"#N/A"}}]
[251,{"$f":"VLOOKUP(Human_Codes[[#This Row],[File ID]],Table119[], MATCH(B$4,Table119[#Headers],0), 0)","v":{"$error":"#N/A"}},{"$f":"VLOOKUP(Human_Codes[[#This Row],[File ID]],Table119[], MATCH(C$4,Table119[#Headers],0), 0)","v":{"$error":"#N/A"}}]
[252,{"$f":"VLOOKUP(Human_Codes[[#This Row],[File ID]],Table119[], MATCH(B$4,Table119[#Headers],0), 0)","v":{"$error":"#N/A"}},{"$f":"VLOOKUP(Human_Codes[[#This Row],[File ID]],Table119[], MATCH(C$4,Table119[#Headers],0), 0)","v":{"$error":"#N/A"}}]
[253,{"$f":"VLOOKUP(Human_Codes[[#This Row],[File ID]],Table119[], MATCH(B$4,Table119[#Headers],0), 0)","v":{"$error":"#N/A"}},{"$f":"VLOOKUP(Human_Codes[[#This Row],[File ID]],Table119[], MATCH(C$4,Table119[#Headers],0), 0)","v":{"$error":"#N/A"}}]
[254,{"$f":"VLOOKUP(Human_Codes[[#This Row],[File ID]],Table119[], MATCH(B$4,Table119[#Headers],0), 0)","v":{"$error":"#N/A"}},{"$f":"VLOOKUP(Human_Codes[[#This Row],[File ID]],Table119[], MATCH(C$4,Table119[#Headers],0), 0)","v":{"$error":"#N/A"}}]
[255,{"$f":"VLOOKUP(Human_Codes[[#This Row],[File ID]],Table119[], MATCH(B$4,Table119[#Headers],0), 0)","v":{"$error":"#N/A"}},{"$f":"VLOOKUP(Human_Codes[[#This Row],[File ID]],Table119[], MATCH(C$4,Table119[#Headers],0), 0)","v":{"$error":"#N/A"}}]
[256,{"$f":"VLOOKUP(Human_Codes[[#This Row],[File ID]],Table119[], MATCH(B$4,Table119[#Headers],0), 0)","v":{"$error":"#N/A"}},{"$f":"VLOOKUP(Human_Codes[[#This Row],[File ID]],Table119[], MATCH(C$4,Table119[#Headers],0), 0)","v":{"$error":"#N/A"}}]
[257,{"$f":"VLOOKUP(Human_Codes[[#This Row],[File ID]],Table119[], MATCH(B$4,Table119[#Headers],0), 0)","v":{"$error":"#N/A"}},{"$f":"VLOOKUP(Human_Codes[[#This Row],[File ID]],Table119[], MATCH(C$4,Table119[#Headers],0), 0)","v":{"$error":"#N/A"}}]
[{"$f":"ROW()-4","v":258},{"$f":"VLOOKUP(Human_Codes[[#This Row],[File ID]],Table119[], MATCH(B$4,Table119[#Headers],0), 0)","v":{"$error":"#N/A"}},{"$f":"VLOOKUP(Human_Codes[[#This Row],[File ID]],Table119[], MATCH(C$4,Table119[#Headers],0), 0)","v":{"$error":"#N/A"}}]
[259,{"$f":"VLOOKUP(Human_Codes[[#This Row],[File ID]],Table119[], MATCH(B$4,Table119[#Headers],0), 0)","v":{"$error":"#N/A"}},{"$f":"VLOOKUP(Human_Codes[[#This Row],[File ID]],Table119[], MATCH(C$4,Table119[#Headers],0), 0)","v":{"$error":"#N/A"}}]
[260,{"$f":"VLOOKUP(Human_Codes[[#This Row],[File ID]],Table119[], MATCH(B$4,Table119[#Headers],0), 0)","v":{"$error":"#N/A"}},{"$f":"VLOOKUP(Human_Codes[[#This Row],[File ID]],Table119[], MATCH(C$4,Table119[#Headers],0), 0)","v":{"$error":"#N/A"}}]
[261,{"$f":"VLOOKUP(Human_Codes[[#This Row],[File ID]],Table119[], MATCH(B$4,Table119[#Headers],0), 0)","v":{"$error":"#N/A"}},{"$f":"VLOOKUP(Human_Codes[[#This Row],[File ID]],Table119[], MATCH(C$4,Table119[#Headers],0), 0)","v":{"$error":"#N/A"}}]
[262,{"$f":"VLOOKUP(Human_Codes[[#This Row],[File ID]],Table119[], MATCH(B$4,Table119[#Headers],0), 0)","v":{"$error":"#N/A"}},{"$f":"VLOOKUP(Human_Codes[[#This Row],[File ID]],Table119[], MATCH(C$4,Table119[#Headers],0), 0)","v":{"$error":"#N/A"}}]
[263,{"$f":"VLOOKUP(Human_Codes[[#This Row],[File ID]],Table119[], MATCH(B$4,Table119[#Headers],0), 0)","v":{"$error":"#N/A"}},{"$f":"VLOOKUP(Human_Codes[[#This Row],[File ID]],Table119[], MATCH(C$4,Table119[#Headers],0), 0)","v":{"$error":"#N/A"}}]
[264,{"$f":"VLOOKUP(Human_Codes[[#This Row],[File ID]],Table119[], MATCH(B$4,Table119[#Headers],0), 0)","v":{"$error":"#N/A"}},{"$f":"VLOOKUP(Human_Codes[[#This Row],[File ID]],Table119[], MATCH(C$4,Table119[#Headers],0), 0)","v":{"$error":"#N/A"}}]
[265,{"$f":"VLOOKUP(Human_Codes[[#This Row],[File ID]],Table119[], MATCH(B$4,Table119[#Headers],0), 0)","v":{"$error":"#N/A"}},{"$f":"VLOOKUP(Human_Codes[[#This Row],[File ID]],Table119[], MATCH(C$4,Table119[#Headers],0), 0)","v":{"$error":"#N/A"}}]
[266,{"$f":"VLOOKUP(Human_Codes[[#This Row],[File ID]],Table119[], MATCH(B$4,Table119[#Headers],0), 0)","v":{"$error":"#N/A"}},{"$f":"VLOOKUP(Human_Codes[[#This Row],[File ID]],Table119[], MATCH(C$4,Table119[#Headers],0), 0)","v":{"$error":"#N/A"}}]
[267,{"$f":"VLOOKUP(Human_Codes[[#This Row],[File ID]],Table119[], MATCH(B$4,Table119[#Headers],0), 0)","v":{"$error":"#N/A"}},{"$f":"VLOOKUP(Human_Codes[[#This Row],[File ID]],Table119[], MATCH(C$4,Table119[#Headers],0), 0)","v":{"$error":"#N/A"}}]
[268,{"$f":"VLOOKUP(Human_Codes[[#This Row],[File ID]],Table119[], MATCH(B$4,Table119[#Headers],0), 0)","v":{"$error":"#N/A"}},{"$f":"VLOOKUP(Human_Codes[[#This Row],[File ID]],Table119[], MATCH(C$4,Table119[#Headers],0), 0)","v":{"$error":"#N/A"}}]
[269,{"$f":"VLOOKUP(Human_Codes[[#This Row],[File ID]],Table119[], MATCH(B$4,Table119[#Headers],0), 0)","v":{"$error":"#N/A"}},{"$f":"VLOOKUP(Human_Codes[[#This Row],[File ID]],Table119[], MATCH(C$4,Table119[#Headers],0), 0)","v":{"$error":"#N/A"}}]
[270,{"$f":"VLOOKUP(Human_Codes[[#This Row],[File ID]],Table119[], MATCH(B$4,Table119[#Headers],0), 0)","v":{"$error":"#N/A"}},{"$f":"VLOOKUP(Human_Codes[[#This Row],[File ID]],Table119[], MATCH(C$4,Table119[#Headers],0), 0)","v":{"$error":"#N/A"}}]
[271,{"$f":"VLOOKUP(Human_Codes[[#This Row],[File ID]],Table119[], MATCH(B$4,Table119[#Headers],0), 0)","v":{"$error":"#N/A"}},{"$f":"VLOOKUP(Human_Codes[[#This Row],[File ID]],Table119[], MATCH(C$4,Table119[#Headers],0), 0)","v":{"$error":"#N/A"}}]
[272,{"$f":"VLOOKUP(Human_Codes[[#This Row],[File ID]],Table119[], MATCH(B$4,Table119[#Headers],0), 0)","v":{"$error":"#N/A"}},{"$f":"VLOOKUP(Human_Codes[[#This Row],[File ID]],Table119[], MATCH(C$4,Table119[#Headers],0), 0)","v":{"$error":"#N/A"}}]
[273,{"$f":"VLOOKUP(Human_Codes[[#This Row],[File ID]],Table119[], MATCH(B$4,Table119[#Headers],0), 0)","v":{"$error":"#N/A"}},{"$f":"VLOOKUP(Human_Codes[[#This Row],[File ID]],Table119[], MATCH(C$4,Table119[#Headers],0), 0)","v":{"$error":"#N/A"}}]
[274,{"$f":"VLOOKUP(Human_Codes[[#This Row],[File ID]],Table119[], MATCH(B$4,Table119[#Headers],0), 0)","v":{"$error":"#N/A"}},{"$f":"VLOOKUP(Human_Codes[[#This Row],[File ID]],Table119[], MATCH(C$4,Table119[#Headers],0), 0)","v":{"$error":"#N/A"}}]
[275,{"$f":"VLOOKUP(Human_Codes[[#This Row],[File ID]],Table119[], MATCH(B$4,Table119[#Headers],0), 0)","v":{"$error":"#N/A"}},{"$f":"VLOOKUP(Human_Codes[[#This Row],[File ID]],Table119[], MATCH(C$4,Table119[#Headers],0), 0)","v":{"$error":"#N/A"}}]
[276,{"$f":"VLOOKUP(Human_Codes[[#This Row],[File ID]],Table119[], MATCH(B$4,Table119[#Headers],0), 0)","v":{"$error":"#N/A"}},{"$f":"VLOOKUP(Human_Codes[[#This Row],[File ID]],Table119[], MATCH(C$4,Table119[#Headers],0), 0)","v":{"$error":"#N/A"}}]
[277,{"$f":"VLOOKUP(Human_Codes[[#This Row],[File ID]],Table119[], MATCH(B$4,Table119[#Headers],0), 0)","v":{"$error":"#N/A"}},{"$f":"VLOOKUP(Human_Codes[[#This Row],[File ID]],Table119[], MATCH(C$4,Table119[#Headers],0), 0)","v":{"$error":"#N/A"}}]
[278,{"$f":"VLOOKUP(Human_Codes[[#This Row],[File ID]],Table119[], MATCH(B$4,Table119[#Headers],0), 0)","v":{"$error":"#N/A"}},{"$f":"VLOOKUP(Human_Codes[[#This Row],[File ID]],Table119[], MATCH(C$4,Table119[#Headers],0), 0)","v":{"$error":"#N/A"}}]
[279,{"$f":"VLOOKUP(Human_Codes[[#This Row],[File ID]],Table119[], MATCH(B$4,Table119[#Headers],0), 0)","v":{"$error":"#N/A"}},{"$f":"VLOOKUP(Human_Codes[[#This Row],[File ID]],Table119[], MATCH(C$4,Table119[#Headers],0), 0)","v":{"$error":"#N/A"}}]
[280,{"$f":"VLOOKUP(Human_Codes[[#This Row],[File ID]],Table119[], MATCH(B$4,Table119[#Headers],0), 0)","v":{"$error":"#N/A"}},{"$f":"VLOOKUP(Human_Codes[[#This Row],[File ID]],Table119[], MATCH(C$4,Table119[#Headers],0), 0)","v":{"$error":"#N/A"}}]
[281,{"$f":"VLOOKUP(Human_Codes[[#This Row],[File ID]],Table119[], MATCH(B$4,Table119[#Headers],0), 0)","v":{"$error":"#N/A"}},{"$f":"VLOOKUP(Human_Codes[[#This Row],[File ID]],Table119[], MATCH(C$4,Table119[#Headers],0), 0)","v":{"$error":"#N/A"}}]
[282,{"$f":"VLOOKUP(Human_Codes[[#This Row],[File ID]],Table119[], MATCH(B$4,Table119[#Headers],0), 0)","v":{"$error":"#N/A"}},{"$f":"VLOOKUP(Human_Codes[[#This Row],[File ID]],Table119[], MATCH(C$4,Table119[#Headers],0), 0)","v":{"$error":"#N/A"}}]
[283,{"$f":"VLOOKUP(Human_Codes[[#This Row],[File ID]],Table119[], MATCH(B$4,Table119[#Headers],0), 0)","v":{"$error":"#N/A"}},{"$f":"VLOOKUP(Human_Codes[[#This Row],[File ID]],Table119[], MATCH(C$4,Table119[#Headers],0), 0)","v":{"$error":"#N/A"}}]
[284,{"$f":"VLOOKUP(Human_Codes[[#This Row],[File ID]],Table119[], MATCH(B$4,Table119[#Headers],0), 0)","v":{"$error":"#N/A"}},{"$f":"VLOOKUP(Human_Codes[[#This Row],[File ID]],Table119[], MATCH(C$4,Table119[#Headers],0), 0)","v":{"$error":"#N/A"}}]
[285,{"$f":"VLOOKUP(Human_Codes[[#This Row],[File ID]],Table119[], MATCH(B$4,Table119[#Headers],0), 0)","v":{"$error":"#N/A"}},{"$f":"VLOOKUP(Human_Codes[[#This Row],[File ID]],Table119[], MATCH(C$4,Table119[#Headers],0), 0)","v":{"$error":"#N/A"}}]
[286,{"$f":"VLOOKUP(Human_Codes[[#This Row],[File ID]],Table119[], MATCH(B$4,Table119[#Headers],0), 0)","v":{"$error":"#N/A"}},{"$f":"VLOOKUP(Human_Codes[[#This Row],[File ID]],Table119[], MATCH(C$4,Table119[#Headers],0), 0)","v":{"$error":"#N/A"}}]
[287,{"$f":"VLOOKUP(Human_Codes[[#This Row],[File ID]],Table119[], MATCH(B$4,Table119[#Headers],0), 0)","v":{"$error":"#N/A"}},{"$f":"VLOOKUP(Human_Codes[[#This Row],[File ID]],Table119[], MATCH(C$4,Table119[#Headers],0), 0)","v":{"$error":"#N/A"}}]
[288,{"$f":"VLOOKUP(Human_Codes[[#This Row],[File ID]],Table119[], MATCH(B$4,Table119[#Headers],0), 0)","v":{"$error":"#N/A"}},{"$f":"VLOOKUP(Human_Codes[[#This Row],[File ID]],Table119[], MATCH(C$4,Table119[#Headers],0), 0)","v":{"$error":"#N/A"}}]
[289,{"$f":"VLOOKUP(Human_Codes[[#This Row],[File ID]],Table119[], MATCH(B$4,Table119[#Headers],0), 0)","v":{"$error":"#N/A"}},{"$f":"VLOOKUP(Human_Codes[[#This Row],[File ID]],Table119[], MATCH(C$4,Table119[#Headers],0), 0)","v":{"$error":"#N/A"}}]
[290,{"$f":"VLOOKUP(Human_Codes[[#This Row],[File ID]],Table119[], MATCH(B$4,Table119[#Headers],0), 0)","v":{"$error":"#N/A"}},{"$f":"VLOOKUP(Human_Codes[[#This Row],[File ID]],Table119[], MATCH(C$4,Table119[#Headers],0), 0)","v":{"$error":"#N/A"}}]
[291,{"$f":"VLOOKUP(Human_Codes[[#This Row],[File ID]],Table119[], MATCH(B$4,Table119[#Headers],0), 0)","v":{"$error":"#N/A"}},{"$f":"VLOOKUP(Human_Codes[[#This Row],[File ID]],Table119[], MATCH(C$4,Table119[#Headers],0), 0)","v":{"$error":"#N/A"}}]
[292,{"$f":"VLOOKUP(Human_Codes[[#This Row],[File ID]],Table119[], MATCH(B$4,Table119[#Headers],0), 0)","v":{"$error":"#N/A"}},{"$f":"VLOOKUP(Human_Codes[[#This Row],[File ID]],Table119[], MATCH(C$4,Table119[#Headers],0), 0)","v":{"$error":"#N/A"}}]
[293,{"$f":"VLOOKUP(Human_Codes[[#This Row],[File ID]],Table119[], MATCH(B$4,Table119[#Headers],0), 0)","v":{"$error":"#N/A"}},{"$f":"VLOOKUP(Human_Codes[[#This Row],[File ID]],Table119[], MATCH(C$4,Table119[#Headers],0), 0)","v":{"$error":"#N/A"}}]
[294,{"$f":"VLOOKUP(Human_Codes[[#This Row],[File ID]],Table119[], MATCH(B$4,Table119[#Headers],0), 0)","v":{"$error":"#N/A"}},{"$f":"VLOOKUP(Human_Codes[[#This Row],[File ID]],Table119[], MATCH(C$4,Table119[#Headers],0), 0)","v":{"$error":"#N/A"}}]
[295,{"$f":"VLOOKUP(Human_Codes[[#This Row],[File ID]],Table119[], MATCH(B$4,Table119[#Headers],0), 0)","v":{"$error":"#N/A"}},{"$f":"VLOOKUP(Human_Codes[[#This Row],[File ID]],Table119[], MATCH(C$4,Table119[#Headers],0), 0)","v":{"$error":"#N/A"}}]
[296,{"$f":"VLOOKUP(Human_Codes[[#This Row],[File ID]],Table119[], MATCH(B$4,Table119[#Headers],0), 0)","v":{"$error":"#N/A"}},{"$f":"VLOOKUP(Human_Codes[[#This Row],[File ID]],Table119[], MATCH(C$4,Table119[#Headers],0), 0)","v":{"$error":"#N/A"}}]
[297,{"$f":"VLOOKUP(Human_Codes[[#This Row],[File ID]],Table119[], MATCH(B$4,Table119[#Headers],0), 0)","v":{"$error":"#N/A"}},{"$f":"VLOOKUP(Human_Codes[[#This Row],[File ID]],Table119[], MATCH(C$4,Table119[#Headers],0), 0)","v":{"$error":"#N/A"}}]
[298,{"$f":"VLOOKUP(Human_Codes[[#This Row],[File ID]],Table119[], MATCH(B$4,Table119[#Headers],0), 0)","v":{"$error":"#N/A"}},{"$f":"VLOOKUP(Human_Codes[[#This Row],[File ID]],Table119[], MATCH(C$4,Table119[#Headers],0), 0)","v":{"$error":"#N/A"}}]
[299,{"$f":"VLOOKUP(Human_Codes[[#This Row],[File ID]],Table119[], MATCH(B$4,Table119[#Headers],0), 0)","v":{"$error":"#N/A"}},{"$f":"VLOOKUP(Human_Codes[[#This Row],[File ID]],Table119[], MATCH(C$4,Table119[#Headers],0), 0)","v":{"$error":"#N/A"}}]
[300,{"$f":"VLOOKUP(Human_Codes[[#This Row],[File ID]],Table119[], MATCH(B$4,Table119[#Headers],0), 0)","v":{"$error":"#N/A"}},{"$f":"VLOOKUP(Human_Codes[[#This Row],[File ID]],Table119[], MATCH(C$4,Table119[#Headers],0), 0)","v":{"$error":"#N/A"}}]
[301,{"$f":"VLOOKUP(Human_Codes[[#This Row],[File ID]],Table119[], MATCH(B$4,Table119[#Headers],0), 0)","v":{"$error":"#N/A"}},{"$f":"VLOOKUP(Human_Codes[[#This Row],[File ID]],Table119[], MATCH(C$4,Table119[#Headers],0), 0)","v":{"$error":"#N/A"}}]
[302,{"$f":"VLOOKUP(Human_Codes[[#This Row],[File ID]],Table119[], MATCH(B$4,Table119[#Headers],0), 0)","v":{"$error":"#N/A"}},{"$f":"VLOOKUP(Human_Codes[[#This Row],[File ID]],Table119[], MATCH(C$4,Table119[#Headers],0), 0)","v":{"$error":"#N/A"}}]
[303,{"$f":"VLOOKUP(Human_Codes[[#This Row],[File ID]],Table119[], MATCH(B$4,Table119[#Headers],0), 0)","v":{"$error":"#N/A"}},{"$f":"VLOOKUP(Human_Codes[[#This Row],[File ID]],Table119[], MATCH(C$4,Table119[#Headers],0), 0)","v":{"$error":"#N/A"}}]
[304,{"$f":"VLOOKUP(Human_Codes[[#This Row],[File ID]],Table119[], MATCH(B$4,Table119[#Headers],0), 0)","v":{"$error":"#N/A"}},{"$f":"VLOOKUP(Human_Codes[[#This Row],[File ID]],Table119[], MATCH(C$4,Table119[#Headers],0), 0)","v":{"$error":"#N/A"}}]
[305,{"$f":"VLOOKUP(Human_Codes[[#This Row],[File ID]],Table119[], MATCH(B$4,Table119[#Headers],0), 0)","v":{"$error":"#N/A"}},{"$f":"VLOOKUP(Human_Codes[[#This Row],[File ID]],Table119[], MATCH(C$4,Table119[#Headers],0), 0)","v":{"$error":"#N/A"}}]
[306,{"$f":"VLOOKUP(Human_Codes[[#This Row],[File ID]],Table119[], MATCH(B$4,Table119[#Headers],0), 0)","v":{"$error":"#N/A"}},{"$f":"VLOOKUP(Human_Codes[[#This Row],[File ID]],Table119[], MATCH(C$4,Table119[#Headers],0), 0)","v":{"$error":"#N/A"}}]
[307,{"$f":"VLOOKUP(Human_Codes[[#This Row],[File ID]],Table119[], MATCH(B$4,Table119[#Headers],0), 0)","v":{"$error":"#N/A"}},{"$f":"VLOOKUP(Human_Codes[[#This Row],[File ID]],Table119[], MATCH(C$4,Table119[#Headers],0), 0)","v":{"$error":"#N/A"}}]
[308,{"$f":"VLOOKUP(Human_Codes[[#This Row],[File ID]],Table119[], MATCH(B$4,Table119[#Headers],0), 0)","v":{"$error":"#N/A"}},{"$f":"VLOOKUP(Human_Codes[[#This Row],[File ID]],Table119[], MATCH(C$4,Table119[#Headers],0), 0)","v":{"$error":"#N/A"}}]
[309,{"$f":"VLOOKUP(Human_Codes[[#This Row],[File ID]],Table119[], MATCH(B$4,Table119[#Headers],0), 0)","v":{"$error":"#N/A"}},{"$f":"VLOOKUP(Human_Codes[[#This Row],[File ID]],Table119[], MATCH(C$4,Table119[#Headers],0), 0)","v":{"$error":"#N/A"}}]
[310,{"$f":"VLOOKUP(Human_Codes[[#This Row],[File ID]],Table119[], MATCH(B$4,Table119[#Headers],0), 0)","v":{"$error":"#N/A"}},{"$f":"VLOOKUP(Human_Codes[[#This Row],[File ID]],Table119[], MATCH(C$4,Table119[#Headers],0), 0)","v":{"$error":"#N/A"}}]
[311,{"$f":"VLOOKUP(Human_Codes[[#This Row],[File ID]],Table119[], MATCH(B$4,Table119[#Headers],0), 0)","v":{"$error":"#N/A"}},{"$f":"VLOOKUP(Human_Codes[[#This Row],[File ID]],Table119[], MATCH(C$4,Table119[#Headers],0), 0)","v":{"$error":"#N/A"}}]
[312,{"$f":"VLOOKUP(Human_Codes[[#This Row],[File ID]],Table119[], MATCH(B$4,Table119[#Headers],0), 0)","v":{"$error":"#N/A"}},{"$f":"VLOOKUP(Human_Codes[[#This Row],[File ID]],Table119[], MATCH(C$4,Table119[#Headers],0), 0)","v":{"$error":"#N/A"}}]
[313,{"$f":"VLOOKUP(Human_Codes[[#This Row],[File ID]],Table119[], MATCH(B$4,Table119[#Headers],0), 0)","v":{"$error":"#N/A"}},{"$f":"VLOOKUP(Human_Codes[[#This Row],[File ID]],Table119[], MATCH(C$4,Table119[#Headers],0), 0)","v":{"$error":"#N/A"}}]
[314,{"$f":"VLOOKUP(Human_Codes[[#This Row],[File ID]],Table119[], MATCH(B$4,Table119[#Headers],0), 0)","v":{"$error":"#N/A"}},{"$f":"VLOOKUP(Human_Codes[[#This Row],[File ID]],Table119[], MATCH(C$4,Table119[#Headers],0), 0)","v":{"$error":"#N/A"}}]
[315,{"$f":"VLOOKUP(Human_Codes[[#This Row],[File ID]],Table119[], MATCH(B$4,Table119[#Headers],0), 0)","v":{"$error":"#N/A"}},{"$f":"VLOOKUP(Human_Codes[[#This Row],[File ID]],Table119[], MATCH(C$4,Table119[#Headers],0), 0)","v":{"$error":"#N/A"}}]
[316,{"$f":"VLOOKUP(Human_Codes[[#This Row],[File ID]],Table119[], MATCH(B$4,Table119[#Headers],0), 0)","v":{"$error":"#N/A"}},{"$f":"VLOOKUP(Human_Codes[[#This Row],[File ID]],Table119[], MATCH(C$4,Table119[#Headers],0), 0)","v":{"$error":"#N/A"}}]
[317,{"$f":"VLOOKUP(Human_Codes[[#This Row],[File ID]],Table119[], MATCH(B$4,Table119[#Headers],0), 0)","v":{"$error":"#N/A"}},{"$f":"VLOOKUP(Human_Codes[[#This Row],[File ID]],Table119[], MATCH(C$4,Table119[#Headers],0), 0)","v":{"$error":"#N/A"}}]
[318,{"$f":"VLOOKUP(Human_Codes[[#This Row],[File ID]],Table119[], MATCH(B$4,Table119[#Headers],0), 0)","v":{"$error":"#N/A"}},{"$f":"VLOOKUP(Human_Codes[[#This Row],[File ID]],Table119[], MATCH(C$4,Table119[#Headers],0), 0)","v":{"$error":"#N/A"}}]
[319,{"$f":"VLOOKUP(Human_Codes[[#This Row],[File ID]],Table119[], MATCH(B$4,Table119[#Headers],0), 0)","v":{"$error":"#N/A"}},{"$f":"VLOOKUP(Human_Codes[[#This Row],[File ID]],Table119[], MATCH(C$4,Table119[#Headers],0), 0)","v":{"$error":"#N/A"}}]
[320,{"$f":"VLOOKUP(Human_Codes[[#This Row],[File ID]],Table119[], MATCH(B$4,Table119[#Headers],0), 0)","v":{"$error":"#N/A"}},{"$f":"VLOOKUP(Human_Codes[[#This Row],[File ID]],Table119[], MATCH(C$4,Table119[#Headers],0), 0)","v":{"$error":"#N/A"}}]
[321,{"$f":"VLOOKUP(Human_Codes[[#This Row],[File ID]],Table119[], MATCH(B$4,Table119[#Headers],0), 0)","v":{"$error":"#N/A"}},{"$f":"VLOOKUP(Human_Codes[[#This Row],[File ID]],Table119[], MATCH(C$4,Table119[#Headers],0), 0)","v":{"$error":"#N/A"}}]
[{"$f":"ROW()-4","v":322},{"$f":"VLOOKUP(Human_Codes[[#This Row],[File ID]],Table119[], MATCH(B$4,Table119[#Headers],0), 0)","v":{"$error":"#N/A"}},{"$f":"VLOOKUP(Human_Codes[[#This Row],[File ID]],Table119[], MATCH(C$4,Table119[#Headers],0), 0)","v":{"$error":"#N/A"}}]
[323,{"$f":"VLOOKUP(Human_Codes[[#This Row],[File ID]],Table119[], MATCH(B$4,Table119[#Headers],0), 0)","v":{"$error":"#N/A"}},{"$f":"VLOOKUP(Human_Codes[[#This Row],[File ID]],Table119[], MATCH(C$4,Table119[#Headers],0), 0)","v":{"$error":"#N/A"}}]
[324,{"$f":"VLOOKUP(Human_Codes[[#This Row],[File ID]],Table119[], MATCH(B$4,Table119[#Headers],0), 0)","v":{"$error":"#N/A"}},{"$f":"VLOOKUP(Human_Codes[[#This Row],[File ID]],Table119[], MATCH(C$4,Table119[#Headers],0), 0)","v":{"$error":"#N/A"}}]
[325,{"$f":"VLOOKUP(Human_Codes[[#This Row],[File ID]],Table119[], MATCH(B$4,Table119[#Headers],0), 0)","v":{"$error":"#N/A"}},{"$f":"VLOOKUP(Human_Codes[[#This Row],[File ID]],Table119[], MATCH(C$4,Table119[#Headers],0), 0)","v":{"$error":"#N/A"}}]
[326,{"$f":"VLOOKUP(Human_Codes[[#This Row],[File ID]],Table119[], MATCH(B$4,Table119[#Headers],0), 0)","v":{"$error":"#N/A"}},{"$f":"VLOOKUP(Human_Codes[[#This Row],[File ID]],Table119[], MATCH(C$4,Table119[#Headers],0), 0)","v":{"$error":"#N/A"}}]
[327,{"$f":"VLOOKUP(Human_Codes[[#This Row],[File ID]],Table119[], MATCH(B$4,Table119[#Headers],0), 0)","v":{"$error":"#N/A"}},{"$f":"VLOOKUP(Human_Codes[[#This Row],[File ID]],Table119[], MATCH(C$4,Table119[#Headers],0), 0)","v":{"$error":"#N/A"}}]
[328,{"$f":"VLOOKUP(Human_Codes[[#This Row],[File ID]],Table119[], MATCH(B$4,Table119[#Headers],0), 0)","v":{"$error":"#N/A"}},{"$f":"VLOOKUP(Human_Codes[[#This Row],[File ID]],Table119[], MATCH(C$4,Table119[#Headers],0), 0)","v":{"$error":"#N/A"}}]
[329,{"$f":"VLOOKUP(Human_Codes[[#This Row],[File ID]],Table119[], MATCH(B$4,Table119[#Headers],0), 0)","v":{"$error":"#N/A"}},{"$f":"VLOOKUP(Human_Codes[[#This Row],[File ID]],Table119[], MATCH(C$4,Table119[#Headers],0), 0)","v":{"$error":"#N/A"}}]
[330,{"$f":"VLOOKUP(Human_Codes[[#This Row],[File ID]],Table119[], MATCH(B$4,Table119[#Headers],0), 0)","v":{"$error":"#N/A"}},{"$f":"VLOOKUP(Human_Codes[[#This Row],[File ID]],Table119[], MATCH(C$4,Table119[#Headers],0), 0)","v":{"$error":"#N/A"}}]
[331,{"$f":"VLOOKUP(Human_Codes[[#This Row],[File ID]],Table119[], MATCH(B$4,Table119[#Headers],0), 0)","v":{"$error":"#N/A"}},{"$f":"VLOOKUP(Human_Codes[[#This Row],[File ID]],Table119[], MATCH(C$4,Table119[#Headers],0), 0)","v":{"$error":"#N/A"}}]
[332,{"$f":"VLOOKUP(Human_Codes[[#This Row],[File ID]],Table119[], MATCH(B$4,Table119[#Headers],0), 0)","v":{"$error":"#N/A"}},{"$f":"VLOOKUP(Human_Codes[[#This Row],[File ID]],Table119[], MATCH(C$4,Table119[#Headers],0), 0)","v":{"$error":"#N/A"}}]
[333,{"$f":"VLOOKUP(Human_Codes[[#This Row],[File ID]],Table119[], MATCH(B$4,Table119[#Headers],0), 0)","v":{"$error":"#N/A"}},{"$f":"VLOOKUP(Human_Codes[[#This Row],[File ID]],Table119[], MATCH(C$4,Table119[#Headers],0), 0)","v":{"$error":"#N/A"}}]
[334,{"$f":"VLOOKUP(Human_Codes[[#This Row],[File ID]],Table119[], MATCH(B$4,Table119[#Headers],0), 0)","v":{"$error":"#N/A"}},{"$f":"VLOOKUP(Human_Codes[[#This Row],[File ID]],Table119[], MATCH(C$4,Table119[#Headers],0), 0)","v":{"$error":"#N/A"}}]
[335,{"$f":"VLOOKUP(Human_Codes[[#This Row],[File ID]],Table119[], MATCH(B$4,Table119[#Headers],0), 0)","v":{"$error":"#N/A"}},{"$f":"VLOOKUP(Human_Codes[[#This Row],[File ID]],Table119[], MATCH(C$4,Table119[#Headers],0), 0)","v":{"$error":"#N/A"}}]
[336,{"$f":"VLOOKUP(Human_Codes[[#This Row],[File ID]],Table119[], MATCH(B$4,Table119[#Headers],0), 0)","v":{"$error":"#N/A"}},{"$f":"VLOOKUP(Human_Codes[[#This Row],[File ID]],Table119[], MATCH(C$4,Table119[#Headers],0), 0)","v":{"$error":"#N/A"}}]
[337,{"$f":"VLOOKUP(Human_Codes[[#This Row],[File ID]],Table119[], MATCH(B$4,Table119[#Headers],0), 0)","v":{"$error":"#N/A"}},{"$f":"VLOOKUP(Human_Codes[[#This Row],[File ID]],Table119[], MATCH(C$4,Table119[#Headers],0), 0)","v":{"$error":"#N/A"}}]
[338,{"$f":"VLOOKUP(Human_Codes[[#This Row],[File ID]],Table119[], MATCH(B$4,Table119[#Headers],0), 0)","v":{"$error":"#N/A"}},{"$f":"VLOOKUP(Human_Codes[[#This Row],[File ID]],Table119[], MATCH(C$4,Table119[#Headers],0), 0)","v":{"$error":"#N/A"}}]
[339,{"$f":"VLOOKUP(Human_Codes[[#This Row],[File ID]],Table119[], MATCH(B$4,Table119[#Headers],0), 0)","v":{"$error":"#N/A"}},{"$f":"VLOOKUP(Human_Codes[[#This Row],[File ID]],Table119[], MATCH(C$4,Table119[#Headers],0), 0)","v":{"$error":"#N/A"}}]
[340,{"$f":"VLOOKUP(Human_Codes[[#This Row],[File ID]],Table119[], MATCH(B$4,Table119[#Headers],0), 0)","v":{"$error":"#N/A"}},{"$f":"VLOOKUP(Human_Codes[[#This Row],[File ID]],Table119[], MATCH(C$4,Table119[#Headers],0), 0)","v":{"$error":"#N/A"}}]
[341,{"$f":"VLOOKUP(Human_Codes[[#This Row],[File ID]],Table119[], MATCH(B$4,Table119[#Headers],0), 0)","v":{"$error":"#N/A"}},{"$f":"VLOOKUP(Human_Codes[[#This Row],[File ID]],Table119[], MATCH(C$4,Table119[#Headers],0), 0)","v":{"$error":"#N/A"}}]
[342,{"$f":"VLOOKUP(Human_Codes[[#This Row],[File ID]],Table119[], MATCH(B$4,Table119[#Headers],0), 0)","v":{"$error":"#N/A"}},{"$f":"VLOOKUP(Human_Codes[[#This Row],[File ID]],Table119[], MATCH(C$4,Table119[#Headers],0), 0)","v":{"$error":"#N/A"}}]
[343,{"$f":"VLOOKUP(Human_Codes[[#This Row],[File ID]],Table119[], MATCH(B$4,Table119[#Headers],0), 0)","v":{"$error":"#N/A"}},{"$f":"VLOOKUP(Human_Codes[[#This Row],[File ID]],Table119[], MATCH(C$4,Table119[#Headers],0), 0)","v":{"$error":"#N/A"}}]
[344,{"$f":"VLOOKUP(Human_Codes[[#This Row],[File ID]],Table119[], MATCH(B$4,Table119[#Headers],0), 0)","v":{"$error":"#N/A"}},{"$f":"VLOOKUP(Human_Codes[[#This Row],[File ID]],Table119[], MATCH(C$4,Table119[#Headers],0), 0)","v":{"$error":"#N/A"}}]
[345,{"$f":"VLOOKUP(Human_Codes[[#This Row],[File ID]],Table119[], MATCH(B$4,Table119[#Headers],0), 0)","v":{"$error":"#N/A"}},{"$f":"VLOOKUP(Human_Codes[[#This Row],[File ID]],Table119[], MATCH(C$4,Table119[#Headers],0), 0)","v":{"$error":"#N/A"}}]
[346,{"$f":"VLOOKUP(Human_Codes[[#This Row],[File ID]],Table119[], MATCH(B$4,Table119[#Headers],0), 0)","v":{"$error":"#N/A"}},{"$f":"VLOOKUP(Human_Codes[[#This Row],[File ID]],Table119[], MATCH(C$4,Table119[#Headers],0), 0)","v":{"$error":"#N/A"}}]
[347,{"$f":"VLOOKUP(Human_Codes[[#This Row],[File ID]],Table119[], MATCH(B$4,Table119[#Headers],0), 0)","v":{"$error":"#N/A"}},{"$f":"VLOOKUP(Human_Codes[[#This Row],[File ID]],Table119[], MATCH(C$4,Table119[#Headers],0), 0)","v":{"$error":"#N/A"}}]
[348,{"$f":"VLOOKUP(Human_Codes[[#This Row],[File ID]],Table119[], MATCH(B$4,Table119[#Headers],0), 0)","v":{"$error":"#N/A"}},{"$f":"VLOOKUP(Human_Codes[[#This Row],[File ID]],Table119[], MATCH(C$4,Table119[#Headers],0), 0)","v":{"$error":"#N/A"}}]
[349,{"$f":"VLOOKUP(Human_Codes[[#This Row],[File ID]],Table119[], MATCH(B$4,Table119[#Headers],0), 0)","v":{"$error":"#N/A"}},{"$f":"VLOOKUP(Human_Codes[[#This Row],[File ID]],Table119[], MATCH(C$4,Table119[#Headers],0), 0)","v":{"$error":"#N/A"}}]
[350,{"$f":"VLOOKUP(Human_Codes[[#This Row],[File ID]],Table119[], MATCH(B$4,Table119[#Headers],0), 0)","v":{"$error":"#N/A"}},{"$f":"VLOOKUP(Human_Codes[[#This Row],[File ID]],Table119[], MATCH(C$4,Table119[#Headers],0), 0)","v":{"$error":"#N/A"}}]
[351,{"$f":"VLOOKUP(Human_Codes[[#This Row],[File ID]],Table119[], MATCH(B$4,Table119[#Headers],0), 0)","v":{"$error":"#N/A"}},{"$f":"VLOOKUP(Human_Codes[[#This Row],[File ID]],Table119[], MATCH(C$4,Table119[#Headers],0), 0)","v":{"$error":"#N/A"}}]
[352,{"$f":"VLOOKUP(Human_Codes[[#This Row],[File ID]],Table119[], MATCH(B$4,Table119[#Headers],0), 0)","v":{"$error":"#N/A"}},{"$f":"VLOOKUP(Human_Codes[[#This Row],[File ID]],Table119[], MATCH(C$4,Table119[#Headers],0), 0)","v":{"$error":"#N/A"}}]
[353,{"$f":"VLOOKUP(Human_Codes[[#This Row],[File ID]],Table119[], MATCH(B$4,Table119[#Headers],0), 0)","v":{"$error":"#N/A"}},{"$f":"VLOOKUP(Human_Codes[[#This Row],[File ID]],Table119[], MATCH(C$4,Table119[#Headers],0), 0)","v":{"$error":"#N/A"}}]
[354,{"$f":"VLOOKUP(Human_Codes[[#This Row],[File ID]],Table119[], MATCH(B$4,Table119[#Headers],0), 0)","v":{"$error":"#N/A"}},{"$f":"VLOOKUP(Human_Codes[[#This Row],[File ID]],Table119[], MATCH(C$4,Table119[#Headers],0), 0)","v":{"$error":"#N/A"}}]
[355,{"$f":"VLOOKUP(Human_Codes[[#This Row],[File ID]],Table119[], MATCH(B$4,Table119[#Headers],0), 0)","v":{"$error":"#N/A"}},{"$f":"VLOOKUP(Human_Codes[[#This Row],[File ID]],Table119[], MATCH(C$4,Table119[#Headers],0), 0)","v":{"$error":"#N/A"}}]
[356,{"$f":"VLOOKUP(Human_Codes[[#This Row],[File ID]],Table119[], MATCH(B$4,Table119[#Headers],0), 0)","v":{"$error":"#N/A"}},{"$f":"VLOOKUP(Human_Codes[[#This Row],[File ID]],Table119[], MATCH(C$4,Table119[#Headers],0), 0)","v":{"$error":"#N/A"}}]
[357,{"$f":"VLOOKUP(Human_Codes[[#This Row],[File ID]],Table119[], MATCH(B$4,Table119[#Headers],0), 0)","v":{"$error":"#N/A"}},{"$f":"VLOOKUP(Human_Codes[[#This Row],[File ID]],Table119[], MATCH(C$4,Table119[#Headers],0), 0)","v":{"$error":"#N/A"}}]
[358,{"$f":"VLOOKUP(Human_Codes[[#This Row],[File ID]],Table119[], MATCH(B$4,Table119[#Headers],0), 0)","v":{"$error":"#N/A"}},{"$f":"VLOOKUP(Human_Codes[[#This Row],[File ID]],Table119[], MATCH(C$4,Table119[#Headers],0), 0)","v":{"$error":"#N/A"}}]
[359,{"$f":"VLOOKUP(Human_Codes[[#This Row],[File ID]],Table119[], MATCH(B$4,Table119[#Headers],0), 0)","v":{"$error":"#N/A"}},{"$f":"VLOOKUP(Human_Codes[[#This Row],[File ID]],Table119[], MATCH(C$4,Table119[#Headers],0), 0)","v":{"$error":"#N/A"}}]
[360,{"$f":"VLOOKUP(Human_Codes[[#This Row],[File ID]],Table119[], MATCH(B$4,Table119[#Headers],0), 0)","v":{"$error":"#N/A"}},{"$f":"VLOOKUP(Human_Codes[[#This Row],[File ID]],Table119[], MATCH(C$4,Table119[#Headers],0), 0)","v":{"$error":"#N/A"}}]
[361,{"$f":"VLOOKUP(Human_Codes[[#This Row],[File ID]],Table119[], MATCH(B$4,Table119[#Headers],0), 0)","v":{"$error":"#N/A"}},{"$f":"VLOOKUP(Human_Codes[[#This Row],[File ID]],Table119[], MATCH(C$4,Table119[#Headers],0), 0)","v":{"$error":"#N/A"}}]
[362,{"$f":"VLOOKUP(Human_Codes[[#This Row],[File ID]],Table119[], MATCH(B$4,Table119[#Headers],0), 0)","v":{"$error":"#N/A"}},{"$f":"VLOOKUP(Human_Codes[[#This Row],[File ID]],Table119[], MATCH(C$4,Table119[#Headers],0), 0)","v":{"$error":"#N/A"}}]
[363,{"$f":"VLOOKUP(Human_Codes[[#This Row],[File ID]],Table119[], MATCH(B$4,Table119[#Headers],0), 0)","v":{"$error":"#N/A"}},{"$f":"VLOOKUP(Human_Codes[[#This Row],[File ID]],Table119[], MATCH(C$4,Table119[#Headers],0), 0)","v":{"$error":"#N/A"}}]
[364,{"$f":"VLOOKUP(Human_Codes[[#This Row],[File ID]],Table119[], MATCH(B$4,Table119[#Headers],0), 0)","v":{"$error":"#N/A"}},{"$f":"VLOOKUP(Human_Codes[[#This Row],[File ID]],Table119[], MATCH(C$4,Table119[#Headers],0), 0)","v":{"$error":"#N/A"}}]
[365,{"$f":"VLOOKUP(Human_Codes[[#This Row],[File ID]],Table119[], MATCH(B$4,Table119[#Headers],0), 0)","v":{"$error":"#N/A"}},{"$f":"VLOOKUP(Human_Codes[[#This Row],[File ID]],Table119[], MATCH(C$4,Table119[#Headers],0), 0)","v":{"$error":"#N/A"}}]
[366,{"$f":"VLOOKUP(Human_Codes[[#This Row],[File ID]],Table119[], MATCH(B$4,Table119[#Headers],0), 0)","v":{"$error":"#N/A"}},{"$f":"VLOOKUP(Human_Codes[[#This Row],[File ID]],Table119[], MATCH(C$4,Table119[#Headers],0), 0)","v":{"$error":"#N/A"}}]
[367,{"$f":"VLOOKUP(Human_Codes[[#This Row],[File ID]],Table119[], MATCH(B$4,Table119[#Headers],0), 0)","v":{"$error":"#N/A"}},{"$f":"VLOOKUP(Human_Codes[[#This Row],[File ID]],Table119[], MATCH(C$4,Table119[#Headers],0), 0)","v":{"$error":"#N/A"}}]
[368,{"$f":"VLOOKUP(Human_Codes[[#This Row],[File ID]],Table119[], MATCH(B$4,Table119[#Headers],0), 0)","v":{"$error":"#N/A"}},{"$f":"VLOOKUP(Human_Codes[[#This Row],[File ID]],Table119[], MATCH(C$4,Table119[#Headers],0), 0)","v":{"$error":"#N/A"}}]
[369,{"$f":"VLOOKUP(Human_Codes[[#This Row],[File ID]],Table119[], MATCH(B$4,Table119[#Headers],0), 0)","v":{"$error":"#N/A"}},{"$f":"VLOOKUP(Human_Codes[[#This Row],[File ID]],Table119[], MATCH(C$4,Table119[#Headers],0), 0)","v":{"$error":"#N/A"}}]
[370,{"$f":"VLOOKUP(Human_Codes[[#This Row],[File ID]],Table119[], MATCH(B$4,Table119[#Headers],0), 0)","v":{"$error":"#N/A"}},{"$f":"VLOOKUP(Human_Codes[[#This Row],[File ID]],Table119[], MATCH(C$4,Table119[#Headers],0), 0)","v":{"$error":"#N/A"}}]
[371,{"$f":"VLOOKUP(Human_Codes[[#This Row],[File ID]],Table119[], MATCH(B$4,Table119[#Headers],0), 0)","v":{"$error":"#N/A"}},{"$f":"VLOOKUP(Human_Codes[[#This Row],[File ID]],Table119[], MATCH(C$4,Table119[#Headers],0), 0)","v":{"$error":"#N/A"}}]
[372,{"$f":"VLOOKUP(Human_Codes[[#This Row],[File ID]],Table119[], MATCH(B$4,Table119[#Headers],0), 0)","v":{"$error":"#N/A"}},{"$f":"VLOOKUP(Human_Codes[[#This Row],[File ID]],Table119[], MATCH(C$4,Table119[#Headers],0), 0)","v":{"$error":"#N/A"}}]
[373,{"$f":"VLOOKUP(Human_Codes[[#This Row],[File ID]],Table119[], MATCH(B$4,Table119[#Headers],0), 0)","v":{"$error":"#N/A"}},{"$f":"VLOOKUP(Human_Codes[[#This Row],[File ID]],Table119[], MATCH(C$4,Table119[#Headers],0), 0)","v":{"$error":"#N/A"}}]
[374,{"$f":"VLOOKUP(Human_Codes[[#This Row],[File ID]],Table119[], MATCH(B$4,Table119[#Headers],0), 0)","v":{"$error":"#N/A"}},{"$f":"VLOOKUP(Human_Codes[[#This Row],[File ID]],Table119[], MATCH(C$4,Table119[#Headers],0), 0)","v":{"$error":"#N/A"}}]
[375,{"$f":"VLOOKUP(Human_Codes[[#This Row],[File ID]],Table119[], MATCH(B$4,Table119[#Headers],0), 0)","v":{"$error":"#N/A"}},{"$f":"VLOOKUP(Human_Codes[[#This Row],[File ID]],Table119[], MATCH(C$4,Table119[#Headers],0), 0)","v":{"$error":"#N/A"}}]
[376,{"$f":"VLOOKUP(Human_Codes[[#This Row],[File ID]],Table119[], MATCH(B$4,Table119[#Headers],0), 0)","v":{"$error":"#N/A"}},{"$f":"VLOOKUP(Human_Codes[[#This Row],[File ID]],Table119[], MATCH(C$4,Table119[#Headers],0), 0)","v":{"$error":"#N/A"}}]
[377,{"$f":"VLOOKUP(Human_Codes[[#This Row],[File ID]],Table119[], MATCH(B$4,Table119[#Headers],0), 0)","v":{"$error":"#N/A"}},{"$f":"VLOOKUP(Human_Codes[[#This Row],[File ID]],Table119[], MATCH(C$4,Table119[#Headers],0), 0)","v":{"$error":"#N/A"}}]
[378,{"$f":"VLOOKUP(Human_Codes[[#This Row],[File ID]],Table119[], MATCH(B$4,Table119[#Headers],0), 0)","v":{"$error":"#N/A"}},{"$f":"VLOOKUP(Human_Codes[[#This Row],[File ID]],Table119[], MATCH(C$4,Table119[#Headers],0), 0)","v":{"$error":"#N/A"}}]
[379,{"$f":"VLOOKUP(Human_Codes[[#This Row],[File ID]],Table119[], MATCH(B$4,Table119[#Headers],0), 0)","v":{"$error":"#N/A"}},{"$f":"VLOOKUP(Human_Codes[[#This Row],[File ID]],Table119[], MATCH(C$4,Table119[#Headers],0), 0)","v":{"$error":"#N/A"}}]
[380,{"$f":"VLOOKUP(Human_Codes[[#This Row],[File ID]],Table119[], MATCH(B$4,Table119[#Headers],0), 0)","v":{"$error":"#N/A"}},{"$f":"VLOOKUP(Human_Codes[[#This Row],[File ID]],Table119[], MATCH(C$4,Table119[#Headers],0), 0)","v":{"$error":"#N/A"}}]
[381,{"$f":"VLOOKUP(Human_Codes[[#This Row],[File ID]],Table119[], MATCH(B$4,Table119[#Headers],0), 0)","v":{"$error":"#N/A"}},{"$f":"VLOOKUP(Human_Codes[[#This Row],[File ID]],Table119[], MATCH(C$4,Table119[#Headers],0), 0)","v":{"$error":"#N/A"}}]
[382,{"$f":"VLOOKUP(Human_Codes[[#This Row],[File ID]],Table119[], MATCH(B$4,Table119[#Headers],0), 0)","v":{"$error":"#N/A"}},{"$f":"VLOOKUP(Human_Codes[[#This Row],[File ID]],Table119[], MATCH(C$4,Table119[#Headers],0), 0)","v":{"$error":"#N/A"}}]
[383,{"$f":"VLOOKUP(Human_Codes[[#This Row],[File ID]],Table119[], MATCH(B$4,Table119[#Headers],0), 0)","v":{"$error":"#N/A"}},{"$f":"VLOOKUP(Human_Codes[[#This Row],[File ID]],Table119[], MATCH(C$4,Table119[#Headers],0), 0)","v":{"$error":"#N/A"}}]
[384,{"$f":"VLOOKUP(Human_Codes[[#This Row],[File ID]],Table119[], MATCH(B$4,Table119[#Headers],0), 0)","v":{"$error":"#N/A"}},{"$f":"VLOOKUP(Human_Codes[[#This Row],[File ID]],Table119[], MATCH(C$4,Table119[#Headers],0), 0)","v":{"$error":"#N/A"}}]
[385,{"$f":"VLOOKUP(Human_Codes[[#This Row],[File ID]],Table119[], MATCH(B$4,Table119[#Headers],0), 0)","v":{"$error":"#N/A"}},{"$f":"VLOOKUP(Human_Codes[[#This Row],[File ID]],Table119[], MATCH(C$4,Table119[#Headers],0), 0)","v":{"$error":"#N/A"}}]
[{"$f":"ROW()-4","v":386},{"$f":"VLOOKUP(Human_Codes[[#This Row],[File ID]],Table119[], MATCH(B$4,Table119[#Headers],0), 0)","v":{"$error":"#N/A"}},{"$f":"VLOOKUP(Human_Codes[[#This Row],[File ID]],Table119[], MATCH(C$4,Table119[#Headers],0), 0)","v":{"$error":"#N/A"}}]
[387,{"$f":"VLOOKUP(Human_Codes[[#This Row],[File ID]],Table119[], MATCH(B$4,Table119[#Headers],0), 0)","v":{"$error":"#N/A"}},{"$f":"VLOOKUP(Human_Codes[[#This Row],[File ID]],Table119[], MATCH(C$4,Table119[#Headers],0), 0)","v":{"$error":"#N/A"}}]
[388,{"$f":"VLOOKUP(Human_Codes[[#This Row],[File ID]],Table119[], MATCH(B$4,Table119[#Headers],0), 0)","v":{"$error":"#N/A"}},{"$f":"VLOOKUP(Human_Codes[[#This Row],[File ID]],Table119[], MATCH(C$4,Table119[#Headers],0), 0)","v":{"$error":"#N/A"}}]
[389,{"$f":"VLOOKUP(Human_Codes[[#This Row],[File ID]],Table119[], MATCH(B$4,Table119[#Headers],0), 0)","v":{"$error":"#N/A"}},{"$f":"VLOOKUP(Human_Codes[[#This Row],[File ID]],Table119[], MATCH(C$4,Table119[#Headers],0), 0)","v":{"$error":"#N/A"}}]
[390,{"$f":"VLOOKUP(Human_Codes[[#This Row],[File ID]],Table119[], MATCH(B$4,Table119[#Headers],0), 0)","v":{"$error":"#N/A"}},{"$f":"VLOOKUP(Human_Codes[[#This Row],[File ID]],Table119[], MATCH(C$4,Table119[#Headers],0), 0)","v":{"$error":"#N/A"}}]
[391,{"$f":"VLOOKUP(Human_Codes[[#This Row],[File ID]],Table119[], MATCH(B$4,Table119[#Headers],0), 0)","v":{"$error":"#N/A"}},{"$f":"VLOOKUP(Human_Codes[[#This Row],[File ID]],Table119[], MATCH(C$4,Table119[#Headers],0), 0)","v":{"$error":"#N/A"}}]
[392,{"$f":"VLOOKUP(Human_Codes[[#This Row],[File ID]],Table119[], MATCH(B$4,Table119[#Headers],0), 0)","v":{"$error":"#N/A"}},{"$f":"VLOOKUP(Human_Codes[[#This Row],[File ID]],Table119[], MATCH(C$4,Table119[#Headers],0), 0)","v":{"$error":"#N/A"}}]
[393,{"$f":"VLOOKUP(Human_Codes[[#This Row],[File ID]],Table119[], MATCH(B$4,Table119[#Headers],0), 0)","v":{"$error":"#N/A"}},{"$f":"VLOOKUP(Human_Codes[[#This Row],[File ID]],Table119[], MATCH(C$4,Table119[#Headers],0), 0)","v":{"$error":"#N/A"}}]
[394,{"$f":"VLOOKUP(Human_Codes[[#This Row],[File ID]],Table119[], MATCH(B$4,Table119[#Headers],0), 0)","v":{"$error":"#N/A"}},{"$f":"VLOOKUP(Human_Codes[[#This Row],[File ID]],Table119[], MATCH(C$4,Table119[#Headers],0), 0)","v":{"$error":"#N/A"}}]
[395,{"$f":"VLOOKUP(Human_Codes[[#This Row],[File ID]],Table119[], MATCH(B$4,Table119[#Headers],0), 0)","v":{"$error":"#N/A"}},{"$f":"VLOOKUP(Human_Codes[[#This Row],[File ID]],Table119[], MATCH(C$4,Table119[#Headers],0), 0)","v":{"$error":"#N/A"}}]
[396,{"$f":"VLOOKUP(Human_Codes[[#This Row],[File ID]],Table119[], MATCH(B$4,Table119[#Headers],0), 0)","v":{"$error":"#N/A"}},{"$f":"VLOOKUP(Human_Codes[[#This Row],[File ID]],Table119[], MATCH(C$4,Table119[#Headers],0), 0)","v":{"$error":"#N/A"}}]
[397,{"$f":"VLOOKUP(Human_Codes[[#This Row],[File ID]],Table119[], MATCH(B$4,Table119[#Headers],0), 0)","v":{"$error":"#N/A"}},{"$f":"VLOOKUP(Human_Codes[[#This Row],[File ID]],Table119[], MATCH(C$4,Table119[#Headers],0), 0)","v":{"$error":"#N/A"}}]
[398,{"$f":"VLOOKUP(Human_Codes[[#This Row],[File ID]],Table119[], MATCH(B$4,Table119[#Headers],0), 0)","v":{"$error":"#N/A"}},{"$f":"VLOOKUP(Human_Codes[[#This Row],[File ID]],Table119[], MATCH(C$4,Table119[#Headers],0), 0)","v":{"$error":"#N/A"}}]
[399,{"$f":"VLOOKUP(Human_Codes[[#This Row],[File ID]],Table119[], MATCH(B$4,Table119[#Headers],0), 0)","v":{"$error":"#N/A"}},{"$f":"VLOOKUP(Human_Codes[[#This Row],[File ID]],Table119[], MATCH(C$4,Table119[#Headers],0), 0)","v":{"$error":"#N/A"}}]
[400,{"$f":"VLOOKUP(Human_Codes[[#This Row],[File ID]],Table119[], MATCH(B$4,Table119[#Headers],0), 0)","v":{"$error":"#N/A"}},{"$f":"VLOOKUP(Human_Codes[[#This Row],[File ID]],Table119[], MATCH(C$4,Table119[#Headers],0), 0)","v":{"$error":"#N/A"}}]
[401,{"$f":"VLOOKUP(Human_Codes[[#This Row],[File ID]],Table119[], MATCH(B$4,Table119[#Headers],0), 0)","v":{"$error":"#N/A"}},{"$f":"VLOOKUP(Human_Codes[[#This Row],[File ID]],Table119[], MATCH(C$4,Table119[#Headers],0), 0)","v":{"$error":"#N/A"}}]
[402,{"$f":"VLOOKUP(Human_Codes[[#This Row],[File ID]],Table119[], MATCH(B$4,Table119[#Headers],0), 0)","v":{"$error":"#N/A"}},{"$f":"VLOOKUP(Human_Codes[[#This Row],[File ID]],Table119[], MATCH(C$4,Table119[#Headers],0), 0)","v":{"$error":"#N/A"}}]
[403,{"$f":"VLOOKUP(Human_Codes[[#This Row],[File ID]],Table119[], MATCH(B$4,Table119[#Headers],0), 0)","v":{"$error":"#N/A"}},{"$f":"VLOOKUP(Human_Codes[[#This Row],[File ID]],Table119[], MATCH(C$4,Table119[#Headers],0), 0)","v":{"$error":"#N/A"}}]
[404,{"$f":"VLOOKUP(Human_Codes[[#This Row],[File ID]],Table119[], MATCH(B$4,Table119[#Headers],0), 0)","v":{"$error":"#N/A"}},{"$f":"VLOOKUP(Human_Codes[[#This Row],[File ID]],Table119[], MATCH(C$4,Table119[#Headers],0), 0)","v":{"$error":"#N/A"}}]
[405,{"$f":"VLOOKUP(Human_Codes[[#This Row],[File ID]],Table119[], MATCH(B$4,Table119[#Headers],0), 0)","v":{"$error":"#N/A"}},{"$f":"VLOOKUP(Human_Codes[[#This Row],[File ID]],Table119[], MATCH(C$4,Table119[#Headers],0), 0)","v":{"$error":"#N/A"}}]
[406,{"$f":"VLOOKUP(Human_Codes[[#This Row],[File ID]],Table119[], MATCH(B$4,Table119[#Headers],0), 0)","v":{"$error":"#N/A"}},{"$f":"VLOOKUP(Human_Codes[[#This Row],[File ID]],Table119[], MATCH(C$4,Table119[#Headers],0), 0)","v":{"$error":"#N/A"}}]
[407,{"$f":"VLOOKUP(Human_Codes[[#This Row],[File ID]],Table119[], MATCH(B$4,Table119[#Headers],0), 0)","v":{"$error":"#N/A"}},{"$f":"VLOOKUP(Human_Codes[[#This Row],[File ID]],Table119[], MATCH(C$4,Table119[#Headers],0), 0)","v":{"$error":"#N/A"}}]
[408,{"$f":"VLOOKUP(Human_Codes[[#This Row],[File ID]],Table119[], MATCH(B$4,Table119[#Headers],0), 0)","v":{"$error":"#N/A"}},{"$f":"VLOOKUP(Human_Codes[[#This Row],[File ID]],Table119[], MATCH(C$4,Table119[#Headers],0), 0)","v":{"$error":"#N/A"}}]
[409,{"$f":"VLOOKUP(Human_Codes[[#This Row],[File ID]],Table119[], MATCH(B$4,Table119[#Headers],0), 0)","v":{"$error":"#N/A"}},{"$f":"VLOOKUP(Human_Codes[[#This Row],[File ID]],Table119[], MATCH(C$4,Table119[#Headers],0), 0)","v":{"$error":"#N/A"}}]
[410,{"$f":"VLOOKUP(Human_Codes[[#This Row],[File ID]],Table119[], MATCH(B$4,Table119[#Headers],0), 0)","v":{"$error":"#N/A"}},{"$f":"VLOOKUP(Human_Codes[[#This Row],[File ID]],Table119[], MATCH(C$4,Table119[#Headers],0), 0)","v":{"$error":"#N/A"}}]
[411,{"$f":"VLOOKUP(Human_Codes[[#This Row],[File ID]],Table119[], MATCH(B$4,Table119[#Headers],0), 0)","v":{"$error":"#N/A"}},{"$f":"VLOOKUP(Human_Codes[[#This Row],[File ID]],Table119[], MATCH(C$4,Table119[#Headers],0), 0)","v":{"$error":"#N/A"}}]
[412,{"$f":"VLOOKUP(Human_Codes[[#This Row],[File ID]],Table119[], MATCH(B$4,Table119[#Headers],0), 0)","v":{"$error":"#N/A"}},{"$f":"VLOOKUP(Human_Codes[[#This Row],[File ID]],Table119[], MATCH(C$4,Table119[#Headers],0), 0)","v":{"$error":"#N/A"}}]
[413,{"$f":"VLOOKUP(Human_Codes[[#This Row],[File ID]],Table119[], MATCH(B$4,Table119[#Headers],0), 0)","v":{"$error":"#N/A"}},{"$f":"VLOOKUP(Human_Codes[[#This Row],[File ID]],Table119[], MATCH(C$4,Table119[#Headers],0), 0)","v":{"$error":"#N/A"}}]
[414,{"$f":"VLOOKUP(Human_Codes[[#This Row],[File ID]],Table119[], MATCH(B$4,Table119[#Headers],0), 0)","v":{"$error":"#N/A"}},{"$f":"VLOOKUP(Human_Codes[[#This Row],[File ID]],Table119[], MATCH(C$4,Table119[#Headers],0), 0)","v":{"$error":"#N/A"}}]
[415,{"$f":"VLOOKUP(Human_Codes[[#This Row],[File ID]],Table119[], MATCH(B$4,Table119[#Headers],0), 0)","v":{"$error":"#N/A"}},{"$f":"VLOOKUP(Human_Codes[[#This Row],[File ID]],Table119[], MATCH(C$4,Table119[#Headers],0), 0)","v":{"$error":"#N/A"}}]
[416,{"$f":"VLOOKUP(Human_Codes[[#This Row],[File ID]],Table119[], MATCH(B$4,Table119[#Headers],0), 0)","v":{"$error":"#N/A"}},{"$f":"VLOOKUP(Human_Codes[[#This Row],[File ID]],Table119[], MATCH(C$4,Table119[#Headers],0), 0)","v":{"$error":"#N/A"}}]
[417,{"$f":"VLOOKUP(Human_Codes[[#This Row],[File ID]],Table119[], MATCH(B$4,Table119[#Headers],0), 0)","v":{"$error":"#N/A"}},{"$f":"VLOOKUP(Human_Codes[[#This Row],[File ID]],Table119[], MATCH(C$4,Table119[#Headers],0), 0)","v":{"$error":"#N/A"}}]
[418,{"$f":"VLOOKUP(Human_Codes[[#This Row],[File ID]],Table119[], MATCH(B$4,Table119[#Headers],0), 0)","v":{"$error":"#N/A"}},{"$f":"VLOOKUP(Human_Codes[[#This Row],[File ID]],Table119[], MATCH(C$4,Table119[#Headers],0), 0)","v":{"$error":"#N/A"}}]
[419,{"$f":"VLOOKUP(Human_Codes[[#This Row],[File ID]],Table119[], MATCH(B$4,Table119[#Headers],0), 0)","v":{"$error":"#N/A"}},{"$f":"VLOOKUP(Human_Codes[[#This Row],[File ID]],Table119[], MATCH(C$4,Table119[#Headers],0), 0)","v":{"$error":"#N/A"}}]
[420,{"$f":"VLOOKUP(Human_Codes[[#This Row],[File ID]],Table119[], MATCH(B$4,Table119[#Headers],0), 0)","v":{"$error":"#N/A"}},{"$f":"VLOOKUP(Human_Codes[[#This Row],[File ID]],Table119[], MATCH(C$4,Table119[#Headers],0), 0)","v":{"$error":"#N/A"}}]
[421,{"$f":"VLOOKUP(Human_Codes[[#This Row],[File ID]],Table119[], MATCH(B$4,Table119[#Headers],0), 0)","v":{"$error":"#N/A"}},{"$f":"VLOOKUP(Human_Codes[[#This Row],[File ID]],Table119[], MATCH(C$4,Table119[#Headers],0), 0)","v":{"$error":"#N/A"}}]
[422,{"$f":"VLOOKUP(Human_Codes[[#This Row],[File ID]],Table119[], MATCH(B$4,Table119[#Headers],0), 0)","v":{"$error":"#N/A"}},{"$f":"VLOOKUP(Human_Codes[[#This Row],[File ID]],Table119[], MATCH(C$4,Table119[#Headers],0), 0)","v":{"$error":"#N/A"}}]
[423,{"$f":"VLOOKUP(Human_Codes[[#This Row],[File ID]],Table119[], MATCH(B$4,Table119[#Headers],0), 0)","v":{"$error":"#N/A"}},{"$f":"VLOOKUP(Human_Codes[[#This Row],[File ID]],Table119[], MATCH(C$4,Table119[#Headers],0), 0)","v":{"$error":"#N/A"}}]
[424,{"$f":"VLOOKUP(Human_Codes[[#This Row],[File ID]],Table119[], MATCH(B$4,Table119[#Headers],0), 0)","v":{"$error":"#N/A"}},{"$f":"VLOOKUP(Human_Codes[[#This Row],[File ID]],Table119[], MATCH(C$4,Table119[#Headers],0), 0)","v":{"$error":"#N/A"}}]
[425,{"$f":"VLOOKUP(Human_Codes[[#This Row],[File ID]],Table119[], MATCH(B$4,Table119[#Headers],0), 0)","v":{"$error":"#N/A"}},{"$f":"VLOOKUP(Human_Codes[[#This Row],[File ID]],Table119[], MATCH(C$4,Table119[#Headers],0), 0)","v":{"$error":"#N/A"}}]
[426,{"$f":"VLOOKUP(Human_Codes[[#This Row],[File ID]],Table119[], MATCH(B$4,Table119[#Headers],0), 0)","v":{"$error":"#N/A"}},{"$f":"VLOOKUP(Human_Codes[[#This Row],[File ID]],Table119[], MATCH(C$4,Table119[#Headers],0), 0)","v":{"$error":"#N/A"}}]
[427,{"$f":"VLOOKUP(Human_Codes[[#This Row],[File ID]],Table119[], MATCH(B$4,Table119[#Headers],0), 0)","v":{"$error":"#N/A"}},{"$f":"VLOOKUP(Human_Codes[[#This Row],[File ID]],Table119[], MATCH(C$4,Table119[#Headers],0), 0)","v":{"$error":"#N/A"}}]
[428,{"$f":"VLOOKUP(Human_Codes[[#This Row],[File ID]],Table119[], MATCH(B$4,Table119[#Headers],0), 0)","v":{"$error":"#N/A"}},{"$f":"VLOOKUP(Human_Codes[[#This Row],[File ID]],Table119[], MATCH(C$4,Table119[#Headers],0), 0)","v":{"$error":"#N/A"}}]
[429,{"$f":"VLOOKUP(Human_Codes[[#This Row],[File ID]],Table119[], MATCH(B$4,Table119[#Headers],0), 0)","v":{"$error":"#N/A"}},{"$f":"VLOOKUP(Human_Codes[[#This Row],[File ID]],Table119[], MATCH(C$4,Table119[#Headers],0), 0)","v":{"$error":"#N/A"}}]
[430,{"$f":"VLOOKUP(Human_Codes[[#This Row],[File ID]],Table119[], MATCH(B$4,Table119[#Headers],0), 0)","v":{"$error":"#N/A"}},{"$f":"VLOOKUP(Human_Codes[[#This Row],[File ID]],Table119[], MATCH(C$4,Table119[#Headers],0), 0)","v":{"$error":"#N/A"}}]
[431,{"$f":"VLOOKUP(Human_Codes[[#This Row],[File ID]],Table119[], MATCH(B$4,Table119[#Headers],0), 0)","v":{"$error":"#N/A"}},{"$f":"VLOOKUP(Human_Codes[[#This Row],[File ID]],Table119[], MATCH(C$4,Table119[#Headers],0), 0)","v":{"$error":"#N/A"}}]
[432,{"$f":"VLOOKUP(Human_Codes[[#This Row],[File ID]],Table119[], MATCH(B$4,Table119[#Headers],0), 0)","v":{"$error":"#N/A"}},{"$f":"VLOOKUP(Human_Codes[[#This Row],[File ID]],Table119[], MATCH(C$4,Table119[#Headers],0), 0)","v":{"$error":"#N/A"}}]
[433,{"$f":"VLOOKUP(Human_Codes[[#This Row],[File ID]],Table119[], MATCH(B$4,Table119[#Headers],0), 0)","v":{"$error":"#N/A"}},{"$f":"VLOOKUP(Human_Codes[[#This Row],[File ID]],Table119[], MATCH(C$4,Table119[#Headers],0), 0)","v":{"$error":"#N/A"}}]
[434,{"$f":"VLOOKUP(Human_Codes[[#This Row],[File ID]],Table119[], MATCH(B$4,Table119[#Headers],0), 0)","v":{"$error":"#N/A"}},{"$f":"VLOOKUP(Human_Codes[[#This Row],[File ID]],Table119[], MATCH(C$4,Table119[#Headers],0), 0)","v":{"$error":"#N/A"}}]
[435,{"$f":"VLOOKUP(Human_Codes[[#This Row],[File ID]],Table119[], MATCH(B$4,Table119[#Headers],0), 0)","v":{"$error":"#N/A"}},{"$f":"VLOOKUP(Human_Codes[[#This Row],[File ID]],Table119[], MATCH(C$4,Table119[#Headers],0), 0)","v":{"$error":"#N/A"}}]
[436,{"$f":"VLOOKUP(Human_Codes[[#This Row],[File ID]],Table119[], MATCH(B$4,Table119[#Headers],0), 0)","v":{"$error":"#N/A"}},{"$f":"VLOOKUP(Human_Codes[[#This Row],[File ID]],Table119[], MATCH(C$4,Table119[#Headers],0), 0)","v":{"$error":"#N/A"}}]
[437,{"$f":"VLOOKUP(Human_Codes[[#This Row],[File ID]],Table119[], MATCH(B$4,Table119[#Headers],0), 0)","v":{"$error":"#N/A"}},{"$f":"VLOOKUP(Human_Codes[[#This Row],[File ID]],Table119[], MATCH(C$4,Table119[#Headers],0), 0)","v":{"$error":"#N/A"}}]
[438,{"$f":"VLOOKUP(Human_Codes[[#This Row],[File ID]],Table119[], MATCH(B$4,Table119[#Headers],0), 0)","v":{"$error":"#N/A"}},{"$f":"VLOOKUP(Human_Codes[[#This Row],[File ID]],Table119[], MATCH(C$4,Table119[#Headers],0), 0)","v":{"$error":"#N/A"}}]
[439,{"$f":"VLOOKUP(Human_Codes[[#This Row],[File ID]],Table119[], MATCH(B$4,Table119[#Headers],0), 0)","v":{"$error":"#N/A"}},{"$f":"VLOOKUP(Human_Codes[[#This Row],[File ID]],Table119[], MATCH(C$4,Table119[#Headers],0), 0)","v":{"$error":"#N/A"}}]
[440,{"$f":"VLOOKUP(Human_Codes[[#This Row],[File ID]],Table119[], MATCH(B$4,Table119[#Headers],0), 0)","v":{"$error":"#N/A"}},{"$f":"VLOOKUP(Human_Codes[[#This Row],[File ID]],Table119[], MATCH(C$4,Table119[#Headers],0), 0)","v":{"$error":"#N/A"}}]
[441,{"$f":"VLOOKUP(Human_Codes[[#This Row],[File ID]],Table119[], MATCH(B$4,Table119[#Headers],0), 0)","v":{"$error":"#N/A"}},{"$f":"VLOOKUP(Human_Codes[[#This Row],[File ID]],Table119[], MATCH(C$4,Table119[#Headers],0), 0)","v":{"$error":"#N/A"}}]
[442,{"$f":"VLOOKUP(Human_Codes[[#This Row],[File ID]],Table119[], MATCH(B$4,Table119[#Headers],0), 0)","v":{"$error":"#N/A"}},{"$f":"VLOOKUP(Human_Codes[[#This Row],[File ID]],Table119[], MATCH(C$4,Table119[#Headers],0), 0)","v":{"$error":"#N/A"}}]
[443,{"$f":"VLOOKUP(Human_Codes[[#This Row],[File ID]],Table119[], MATCH(B$4,Table119[#Headers],0), 0)","v":{"$error":"#N/A"}},{"$f":"VLOOKUP(Human_Codes[[#This Row],[File ID]],Table119[], MATCH(C$4,Table119[#Headers],0), 0)","v":{"$error":"#N/A"}}]
[444,{"$f":"VLOOKUP(Human_Codes[[#This Row],[File ID]],Table119[], MATCH(B$4,Table119[#Headers],0), 0)","v":{"$error":"#N/A"}},{"$f":"VLOOKUP(Human_Codes[[#This Row],[File ID]],Table119[], MATCH(C$4,Table119[#Headers],0), 0)","v":{"$error":"#N/A"}}]
[445,{"$f":"VLOOKUP(Human_Codes[[#This Row],[File ID]],Table119[], MATCH(B$4,Table119[#Headers],0), 0)","v":{"$error":"#N/A"}},{"$f":"VLOOKUP(Human_Codes[[#This Row],[File ID]],Table119[], MATCH(C$4,Table119[#Headers],0), 0)","v":{"$error":"#N/A"}}]
[446,{"$f":"VLOOKUP(Human_Codes[[#This Row],[File ID]],Table119[], MATCH(B$4,Table119[#Headers],0), 0)","v":{"$error":"#N/A"}},{"$f":"VLOOKUP(Human_Codes[[#This Row],[File ID]],Table119[], MATCH(C$4,Table119[#Headers],0), 0)","v":{"$error":"#N/A"}}]
[447,{"$f":"VLOOKUP(Human_Codes[[#This Row],[File ID]],Table119[], MATCH(B$4,Table119[#Headers],0), 0)","v":{"$error":"#N/A"}},{"$f":"VLOOKUP(Human_Codes[[#This Row],[File ID]],Table119[], MATCH(C$4,Table119[#Headers],0), 0)","v":{"$error":"#N/A"}}]
[448,{"$f":"VLOOKUP(Human_Codes[[#This Row],[File ID]],Table119[], MATCH(B$4,Table119[#Headers],0), 0)","v":{"$error":"#N/A"}},{"$f":"VLOOKUP(Human_Codes[[#This Row],[File ID]],Table119[], MATCH(C$4,Table119[#Headers],0), 0)","v":{"$error":"#N/A"}}]
[449,{"$f":"VLOOKUP(Human_Codes[[#This Row],[File ID]],Table119[], MATCH(B$4,Table119[#Headers],0), 0)","v":{"$error":"#N/A"}},{"$f":"VLOOKUP(Human_Codes[[#This Row],[File ID]],Table119[], MATCH(C$4,Table119[#Headers],0), 0)","v":{"$error":"#N/A"}}]
[{"$f":"ROW()-4","v":450},{"$f":"VLOOKUP(Human_Codes[[#This Row],[File ID]],Table119[], MATCH(B$4,Table119[#Headers],0), 0)","v":{"$error":"#N/A"}},{"$f":"VLOOKUP(Human_Codes[[#This Row],[File ID]],Table119[], MATCH(C$4,Table119[#Headers],0), 0)","v":{"$error":"#N/A"}}]
[451,{"$f":"VLOOKUP(Human_Codes[[#This Row],[File ID]],Table119[], MATCH(B$4,Table119[#Headers],0), 0)","v":{"$error":"#N/A"}},{"$f":"VLOOKUP(Human_Codes[[#This Row],[File ID]],Table119[], MATCH(C$4,Table119[#Headers],0), 0)","v":{"$error":"#N/A"}}]
[452,{"$f":"VLOOKUP(Human_Codes[[#This Row],[File ID]],Table119[], MATCH(B$4,Table119[#Headers],0), 0)","v":{"$error":"#N/A"}},{"$f":"VLOOKUP(Human_Codes[[#This Row],[File ID]],Table119[], MATCH(C$4,Table119[#Headers],0), 0)","v":{"$error":"#N/A"}}]
[453,{"$f":"VLOOKUP(Human_Codes[[#This Row],[File ID]],Table119[], MATCH(B$4,Table119[#Headers],0), 0)","v":{"$error":"#N/A"}},{"$f":"VLOOKUP(Human_Codes[[#This Row],[File ID]],Table119[], MATCH(C$4,Table119[#Headers],0), 0)","v":{"$error":"#N/A"}}]
[454,{"$f":"VLOOKUP(Human_Codes[[#This Row],[File ID]],Table119[], MATCH(B$4,Table119[#Headers],0), 0)","v":{"$error":"#N/A"}},{"$f":"VLOOKUP(Human_Codes[[#This Row],[File ID]],Table119[], MATCH(C$4,Table119[#Headers],0), 0)","v":{"$error":"#N/A"}}]
[455,{"$f":"VLOOKUP(Human_Codes[[#This Row],[File ID]],Table119[], MATCH(B$4,Table119[#Headers],0), 0)","v":{"$error":"#N/A"}},{"$f":"VLOOKUP(Human_Codes[[#This Row],[File ID]],Table119[], MATCH(C$4,Table119[#Headers],0), 0)","v":{"$error":"#N/A"}}]
[456,{"$f":"VLOOKUP(Human_Codes[[#This Row],[File ID]],Table119[], MATCH(B$4,Table119[#Headers],0), 0)","v":{"$error":"#N/A"}},{"$f":"VLOOKUP(Human_Codes[[#This Row],[File ID]],Table119[], MATCH(C$4,Table119[#Headers],0), 0)","v":{"$error":"#N/A"}}]
[457,{"$f":"VLOOKUP(Human_Codes[[#This Row],[File ID]],Table119[], MATCH(B$4,Table119[#Headers],0), 0)","v":{"$error":"#N/A"}},{"$f":"VLOOKUP(Human_Codes[[#This Row],[File ID]],Table119[], MATCH(C$4,Table119[#Headers],0), 0)","v":{"$error":"#N/A"}}]
[458,{"$f":"VLOOKUP(Human_Codes[[#This Row],[File ID]],Table119[], MATCH(B$4,Table119[#Headers],0), 0)","v":{"$error":"#N/A"}},{"$f":"VLOOKUP(Human_Codes[[#This Row],[File ID]],Table119[], MATCH(C$4,Table119[#Headers],0), 0)","v":{"$error":"#N/A"}}]
[459,{"$f":"VLOOKUP(Human_Codes[[#This Row],[File ID]],Table119[], MATCH(B$4,Table119[#Headers],0), 0)","v":{"$error":"#N/A"}},{"$f":"VLOOKUP(Human_Codes[[#This Row],[File ID]],Table119[], MATCH(C$4,Table119[#Headers],0), 0)","v":{"$error":"#N/A"}}]
[460,{"$f":"VLOOKUP(Human_Codes[[#This Row],[File ID]],Table119[], MATCH(B$4,Table119[#Headers],0), 0)","v":{"$error":"#N/A"}},{"$f":"VLOOKUP(Human_Codes[[#This Row],[File ID]],Table119[], MATCH(C$4,Table119[#Headers],0), 0)","v":{"$error":"#N/A"}}]
[461,{"$f":"VLOOKUP(Human_Codes[[#This Row],[File ID]],Table119[], MATCH(B$4,Table119[#Headers],0), 0)","v":{"$error":"#N/A"}},{"$f":"VLOOKUP(Human_Codes[[#This Row],[File ID]],Table119[], MATCH(C$4,Table119[#Headers],0), 0)","v":{"$error":"#N/A"}}]
[462,{"$f":"VLOOKUP(Human_Codes[[#This Row],[File ID]],Table119[], MATCH(B$4,Table119[#Headers],0), 0)","v":{"$error":"#N/A"}},{"$f":"VLOOKUP(Human_Codes[[#This Row],[File ID]],Table119[], MATCH(C$4,Table119[#Headers],0), 0)","v":{"$error":"#N/A"}}]
[463,{"$f":"VLOOKUP(Human_Codes[[#This Row],[File ID]],Table119[], MATCH(B$4,Table119[#Headers],0), 0)","v":{"$error":"#N/A"}},{"$f":"VLOOKUP(Human_Codes[[#This Row],[File ID]],Table119[], MATCH(C$4,Table119[#Headers],0), 0)","v":{"$error":"#N/A"}}]
[464,{"$f":"VLOOKUP(Human_Codes[[#This Row],[File ID]],Table119[], MATCH(B$4,Table119[#Headers],0), 0)","v":{"$error":"#N/A"}},{"$f":"VLOOKUP(Human_Codes[[#This Row],[File ID]],Table119[], MATCH(C$4,Table119[#Headers],0), 0)","v":{"$error":"#N/A"}}]
[465,{"$f":"VLOOKUP(Human_Codes[[#This Row],[File ID]],Table119[], MATCH(B$4,Table119[#Headers],0), 0)","v":{"$error":"#N/A"}},{"$f":"VLOOKUP(Human_Codes[[#This Row],[File ID]],Table119[], MATCH(C$4,Table119[#Headers],0), 0)","v":{"$error":"#N/A"}}]
[466,{"$f":"VLOOKUP(Human_Codes[[#This Row],[File ID]],Table119[], MATCH(B$4,Table119[#Headers],0), 0)","v":{"$error":"#N/A"}},{"$f":"VLOOKUP(Human_Codes[[#This Row],[File ID]],Table119[], MATCH(C$4,Table119[#Headers],0), 0)","v":{"$error":"#N/A"}}]
[467,{"$f":"VLOOKUP(Human_Codes[[#This Row],[File ID]],Table119[], MATCH(B$4,Table119[#Headers],0), 0)","v":{"$error":"#N/A"}},{"$f":"VLOOKUP(Human_Codes[[#This Row],[File ID]],Table119[], MATCH(C$4,Table119[#Headers],0), 0)","v":{"$error":"#N/A"}}]
[468,{"$f":"VLOOKUP(Human_Codes[[#This Row],[File ID]],Table119[], MATCH(B$4,Table119[#Headers],0), 0)","v":{"$error":"#N/A"}},{"$f":"VLOOKUP(Human_Codes[[#This Row],[File ID]],Table119[], MATCH(C$4,Table119[#Headers],0), 0)","v":{"$error":"#N/A"}}]
[469,{"$f":"VLOOKUP(Human_Codes[[#This Row],[File ID]],Table119[], MATCH(B$4,Table119[#Headers],0), 0)","v":{"$error":"#N/A"}},{"$f":"VLOOKUP(Human_Codes[[#This Row],[File ID]],Table119[], MATCH(C$4,Table119[#Headers],0), 0)","v":{"$error":"#N/A"}}]
[470,{"$f":"VLOOKUP(Human_Codes[[#This Row],[File ID]],Table119[], MATCH(B$4,Table119[#Headers],0), 0)","v":{"$error":"#N/A"}},{"$f":"VLOOKUP(Human_Codes[[#This Row],[File ID]],Table119[], MATCH(C$4,Table119[#Headers],0), 0)","v":{"$error":"#N/A"}}]
[471,{"$f":"VLOOKUP(Human_Codes[[#This Row],[File ID]],Table119[], MATCH(B$4,Table119[#Headers],0), 0)","v":{"$error":"#N/A"}},{"$f":"VLOOKUP(Human_Codes[[#This Row],[File ID]],Table119[], MATCH(C$4,Table119[#Headers],0), 0)","v":{"$error":"#N/A"}}]
[472,{"$f":"VLOOKUP(Human_Codes[[#This Row],[File ID]],Table119[], MATCH(B$4,Table119[#Headers],0), 0)","v":{"$error":"#N/A"}},{"$f":"VLOOKUP(Human_Codes[[#This Row],[File ID]],Table119[], MATCH(C$4,Table119[#Headers],0), 0)","v":{"$error":"#N/A"}}]
[473,{"$f":"VLOOKUP(Human_Codes[[#This Row],[File ID]],Table119[], MATCH(B$4,Table119[#Headers],0), 0)","v":{"$error":"#N/A"}},{"$f":"VLOOKUP(Human_Codes[[#This Row],[File ID]],Table119[], MATCH(C$4,Table119[#Headers],0), 0)","v":{"$error":"#N/A"}}]
[474,{"$f":"VLOOKUP(Human_Codes[[#This Row],[File ID]],Table119[], MATCH(B$4,Table119[#Headers],0), 0)","v":{"$error":"#N/A"}},{"$f":"VLOOKUP(Human_Codes[[#This Row],[File ID]],Table119[], MATCH(C$4,Table119[#Headers],0), 0)","v":{"$error":"#N/A"}}]
[475,{"$f":"VLOOKUP(Human_Codes[[#This Row],[File ID]],Table119[], MATCH(B$4,Table119[#Headers],0), 0)","v":{"$error":"#N/A"}},{"$f":"VLOOKUP(Human_Codes[[#This Row],[File ID]],Table119[], MATCH(C$4,Table119[#Headers],0), 0)","v":{"$error":"#N/A"}}]
[476,{"$f":"VLOOKUP(Human_Codes[[#This Row],[File ID]],Table119[], MATCH(B$4,Table119[#Headers],0), 0)","v":{"$error":"#N/A"}},{"$f":"VLOOKUP(Human_Codes[[#This Row],[File ID]],Table119[], MATCH(C$4,Table119[#Headers],0), 0)","v":{"$error":"#N/A"}}]
[477,{"$f":"VLOOKUP(Human_Codes[[#This Row],[File ID]],Table119[], MATCH(B$4,Table119[#Headers],0), 0)","v":{"$error":"#N/A"}},{"$f":"VLOOKUP(Human_Codes[[#This Row],[File ID]],Table119[], MATCH(C$4,Table119[#Headers],0), 0)","v":{"$error":"#N/A"}}]
[478,{"$f":"VLOOKUP(Human_Codes[[#This Row],[File ID]],Table119[], MATCH(B$4,Table119[#Headers],0), 0)","v":{"$error":"#N/A"}},{"$f":"VLOOKUP(Human_Codes[[#This Row],[File ID]],Table119[], MATCH(C$4,Table119[#Headers],0), 0)","v":{"$error":"#N/A"}}]
[479,{"$f":"VLOOKUP(Human_Codes[[#This Row],[File ID]],Table119[], MATCH(B$4,Table119[#Headers],0), 0)","v":{"$error":"#N/A"}},{"$f":"VLOOKUP(Human_Codes[[#This Row],[File ID]],Table119[], MATCH(C$4,Table119[#Headers],0), 0)","v":{"$error":"#N/A"}}]
[480,{"$f":"VLOOKUP(Human_Codes[[#This Row],[File ID]],Table119[], MATCH(B$4,Table119[#Headers],0), 0)","v":{"$error":"#N/A"}},{"$f":"VLOOKUP(Human_Codes[[#This Row],[File ID]],Table119[], MATCH(C$4,Table119[#Headers],0), 0)","v":{"$error":"#N/A"}}]
[481,{"$f":"VLOOKUP(Human_Codes[[#This Row],[File ID]],Table119[], MATCH(B$4,Table119[#Headers],0), 0)","v":{"$error":"#N/A"}},{"$f":"VLOOKUP(Human_Codes[[#This Row],[File ID]],Table119[], MATCH(C$4,Table119[#Headers],0), 0)","v":{"$error":"#N/A"}}]
[482,{"$f":"VLOOKUP(Human_Codes[[#This Row],[File ID]],Table119[], MATCH(B$4,Table119[#Headers],0), 0)","v":{"$error":"#N/A"}},{"$f":"VLOOKUP(Human_Codes[[#This Row],[File ID]],Table119[], MATCH(C$4,Table119[#Headers],0), 0)","v":{"$error":"#N/A"}}]
[483,{"$f":"VLOOKUP(Human_Codes[[#This Row],[File ID]],Table119[], MATCH(B$4,Table119[#Headers],0), 0)","v":{"$error":"#N/A"}},{"$f":"VLOOKUP(Human_Codes[[#This Row],[File ID]],Table119[], MATCH(C$4,Table119[#Headers],0), 0)","v":{"$error":"#N/A"}}]
[484,{"$f":"VLOOKUP(Human_Codes[[#This Row],[File ID]],Table119[], MATCH(B$4,Table119[#Headers],0), 0)","v":{"$error":"#N/A"}},{"$f":"VLOOKUP(Human_Codes[[#This Row],[File ID]],Table119[], MATCH(C$4,Table119[#Headers],0), 0)","v":{"$error":"#N/A"}}]
[485,{"$f":"VLOOKUP(Human_Codes[[#This Row],[File ID]],Table119[], MATCH(B$4,Table119[#Headers],0), 0)","v":{"$error":"#N/A"}},{"$f":"VLOOKUP(Human_Codes[[#This Row],[File ID]],Table119[], MATCH(C$4,Table119[#Headers],0), 0)","v":{"$error":"#N/A"}}]
[486,{"$f":"VLOOKUP(Human_Codes[[#This Row],[File ID]],Table119[], MATCH(B$4,Table119[#Headers],0), 0)","v":{"$error":"#N/A"}},{"$f":"VLOOKUP(Human_Codes[[#This Row],[File ID]],Table119[], MATCH(C$4,Table119[#Headers],0), 0)","v":{"$error":"#N/A"}}]
[487,{"$f":"VLOOKUP(Human_Codes[[#This Row],[File ID]],Table119[], MATCH(B$4,Table119[#Headers],0), 0)","v":{"$error":"#N/A"}},{"$f":"VLOOKUP(Human_Codes[[#This Row],[File ID]],Table119[], MATCH(C$4,Table119[#Headers],0), 0)","v":{"$error":"#N/A"}}]
[488,{"$f":"VLOOKUP(Human_Codes[[#This Row],[File ID]],Table119[], MATCH(B$4,Table119[#Headers],0), 0)","v":{"$error":"#N/A"}},{"$f":"VLOOKUP(Human_Codes[[#This Row],[File ID]],Table119[], MATCH(C$4,Table119[#Headers],0), 0)","v":{"$error":"#N/A"}}]
[489,{"$f":"VLOOKUP(Human_Codes[[#This Row],[File ID]],Table119[], MATCH(B$4,Table119[#Headers],0), 0)","v":{"$error":"#N/A"}},{"$f":"VLOOKUP(Human_Codes[[#This Row],[File ID]],Table119[], MATCH(C$4,Table119[#Headers],0), 0)","v":{"$error":"#N/A"}}]
[490,{"$f":"VLOOKUP(Human_Codes[[#This Row],[File ID]],Table119[], MATCH(B$4,Table119[#Headers],0), 0)","v":{"$error":"#N/A"}},{"$f":"VLOOKUP(Human_Codes[[#This Row],[File ID]],Table119[], MATCH(C$4,Table119[#Headers],0), 0)","v":{"$error":"#N/A"}}]
[491,{"$f":"VLOOKUP(Human_Codes[[#This Row],[File ID]],Table119[], MATCH(B$4,Table119[#Headers],0), 0)","v":{"$error":"#N/A"}},{"$f":"VLOOKUP(Human_Codes[[#This Row],[File ID]],Table119[], MATCH(C$4,Table119[#Headers],0), 0)","v":{"$error":"#N/A"}}]
[492,{"$f":"VLOOKUP(Human_Codes[[#This Row],[File ID]],Table119[], MATCH(B$4,Table119[#Headers],0), 0)","v":{"$error":"#N/A"}},{"$f":"VLOOKUP(Human_Codes[[#This Row],[File ID]],Table119[], MATCH(C$4,Table119[#Headers],0), 0)","v":{"$error":"#N/A"}}]
[493,{"$f":"VLOOKUP(Human_Codes[[#This Row],[File ID]],Table119[], MATCH(B$4,Table119[#Headers],0), 0)","v":{"$error":"#N/A"}},{"$f":"VLOOKUP(Human_Codes[[#This Row],[File ID]],Table119[], MATCH(C$4,Table119[#Headers],0), 0)","v":{"$error":"#N/A"}}]

{"sheet":"6(b). Coding tables","index":12,"n_rows":15,"n_cols":14,"rows_kept":15,"cut":false,"hidden":true,"merged":[[0,0,0,16]]}
["6(b). Coding tables"]
[]
[]
[]
["Pivot tables ",null,null,null,null,"Pivot charts"]
["Broad topic codes","N","%",null,"Broad topic code frequencies, N=",{"$f":"GETPIVOTDATA(\"Broad code \",$A$6)","v":8},null,null,"Specific codes","N","%",null,"Specific code frequencies, N=",{"$f":"GETPIVOTDATA(\"Broad code \",$A$6)","v":8}]
["_2_Event_Impacts",4,0.5,null,null,null,null,null,"Loss of homes and property",2,0.25]
["_4_Unmet_Needs",1,0.125,null,null,null,null,null,"Channels: how transmitted",1,0.125]
["_6_Response_Effectiveness",1,0.125,null,null,null,null,null,"Injuries or fatalities",1,0.125]
["_7_Communication_Information",2,0.25,null,null,null,null,null,"Forced displacement",1,0.125]
["Grand Total",8,1,null,null,null,null,null,"Trust in information",1,0.125]
[null,null,null,null,null,null,null,null,"Shelter",1,0.125]
[null,null,null,null,null,null,null,null,"Timeliness of response",1,0.125]
[null,null,null,null,null,null,null,null,"(blank)",null,0]
[null,null,null,null,null,null,null,null,"Grand Total",8,1]

{"sheet":"7(b). Quotes","index":13,"n_rows":28,"n_cols":5,"rows_kept":28,"cut":false,"hidden":true,"merged":[[0,0,0,4],[4,0,4,3]]}
["7(b). Quotes"]
[]
[]
[]
[null,null,null,null,"Quotes"]
[]
[null,null,null,null,"Text quotes sorted by broad topic codes and specific codes"]
[null,null,null,null,"(blank)"]
[null,null,null,null,"(blank)"]
[null,null,null,null,"_2_Event_Impacts"]
[null,null,null,null,"Injuries or fatalities"]
[null,null,null,null,"Many people died.  "]
[null,null,null,null,"Loss of homes and property"]
[null,null,null,null,"All of our belongings have been taken. "]
[null,null,null,null,"We lost everything. "]
[null,null,null,null,"Forced displacement"]
[null,null,null,null,"People had to flee for their lives"]
[null,null,null,null,"_4_Unmet_Needs"]
[null,null,null,null,"Shelter"]
[null,null,null,null,"Where can we go, there's not enough space for us here. "]
[null,null,null,null,"_6_Response_Effectiveness"]
[null,null,null,null,"Timeliness of response"]
[null,null,null,null,"Why is it taking so long to get some medical help? "]
[null,null,null,null,"_7_Communication_Information"]
[null,null,null,null,"Channels: how transmitted"]
[null,null,null,null,"I get WhatsApp messages about supplies, when they are coming"]
[null,null,null,null,"Trust in information"]
[null,null,null,null,"I heard from someone that more supplies are coming, but I don't trust till I hear it officially"]

{"sheet":"8(b). Grouping codes","index":14,"n_rows":32,"n_cols":23,"rows_kept":32,"cut":false,"hidden":true,"merged":[[12,4,12,10],[0,0,0,10],[1,0,1,10],[4,8,4,10],[6,6,9,6],[6,8,7,8],[6,10,7,10],[8,8,9,8],[8,10,9,10]]}
["8(b). Grouping codes"]
[]
[]
[]
[null,null,null,null,null,null,null,null,"Questions you posed in the planning phase… "]
[]
[null,null,null,null,null,null,"Keep in mind your original questions. They will help shape your themes. ",null,{"$f":"'1. Planning'!C6","v":"1. example: what are the most common questions people have about the situation? "},null,{"$f":"'1. Planning'!C7","v":"2. example: what are ways we could share information more effectively?"}]
[]
[null,null,null,null,null,null,null,null,{"$f":"'1. Planning'!C8","v":0},null,{"$f":"'1. Planning'!C9","v":0}]
[]
["2. Codes and quotes will appear below… "]
["Row Labels","Count"]
["_2_Event_Impacts",4,null,null,"3. Copy and paste codes and quotes from box 2 (left) into the boxes below. Put codes and quotes that seem related in the same box. ",null,null,null,null,null,null,null,null,null,null,null,"Blank boards: copy these boards over your originals if you want to repeat grouping with another code"]
["Injuries or fatalities",1,null,null,"Board A - what goes together ",null,"Board B - what goes together",null,"Board C - what goes together",null,"Board D - what goes together",null,null,null,null,null,"Board A - what goes together ",null,"Board B - what goes together",null,"Board C - what goes together",null,"Board D - what goes together"]
["Many people died.  ",1,null,null,"Theme: Basic human needs not met",null,"Theme: Continuing trauma",null,"Theme: Channels for information",null,"Theme:",null,null,null,null,null,"Theme: ",null,"Theme:",null,"Theme:",null,"Theme:"]
["Loss of homes and property",2,null,null,"Shelter",null,"Injuries or fatalities",null,"Trust in information"]
["All of our belongings have been taken. ",1,null,null,"Where can we go, there's not enough space for us here. ",null,"Many people died ",null,"I heard from someon that more supplies are coming, but I don't trust till I hear it officially"]
["We lost everything. ",1,null,null,"Loss of homes and property",null,"Shelter",null,"How transmitted"]
["Forced displacement",1,null,null,"We lost everything",null,"Where can we go, there's not enough space for us here. ",null,"I get WhatsApp messages about supplies, when they are coming"]
["People had to flee for their lives",1,null,null,"All of our belongings have been taken",null,"Forced displacement"]
["_4_Unmet_Needs",1,null,null,"Timeliness of response",null,"People had to flee for their lives"]
["Shelter",1,null,null,"Why is it taking so long to get some medical help? "]
["Where can we go, there's not enough space for us here. ",1]
["_6_Response_Effectiveness",1]
["Timeliness of response",1]
["Why is it taking so long to get some medical help? ",1]
["_7_Communication_Information",2]
["Channels: how transmitted",1]
["I get WhatsApp messages about supplies, when they are coming",1]
["Trust in information",1]
["I heard from someone that more supplies are coming, but I don't trust till I hear it officially",1]
["Grand Total",8]

{"sheet":"9(b). Building themes","index":15,"n_rows":54,"n_cols":13,"rows_kept":54,"cut":false,"hidden":true,"merged":[[30,4,53,4],[30,8,45,8],[35,6,36,6],[27,1,27,3],[2,4,25,4],[2,8,17,8],[7,6,8,6],[9,3,10,3],[3,3,8,3]]}
[null,"Step 1: Paste Boards below, one below the next","Step 2: Describing. \nWrite a sentence that describes what each text quote says, or what you see as important about it. ","Step 3: Summarizing & Representative quotes. \nWrite 1-2 sentences that summarizes the sentences in each preliminary theme group  ","Step 4: Synthesizing. \nName the broad topic area and how common it was, then bring your summaries in step 4 together.",null,"Your original analytic goals are shown here [Linked from Define your analytic goals worksheet]",null,"Step 5: Interpreting. \nReflect back on your original analytic goals as you write up what the results mean for action"]
[]
[null,"Board A - what goes together ","Theme: Basic human needs not met","Theme: Basic human needs not met","Here we looked at IMMEDIATE NEEDS and COMMUNICATIONS. The first theme is about people not feeling that their basic needs are being met. They experienced significant personal loss, and don't as though these losses are being addressed, even to the extent of immediate housing needs. One respondent says, \"Where can we go, there's not enough space for us here.\" ",null,{"$f":"'1. Planning'!C6","v":"1. example: what are the most common questions people have about the situation? "},null,"Example: While we are particularly interested in questions and communication modes, we can't overlook the very basic issue that people are indicating that they don't feel that their basic needs for shelter are being adequately met.  Comments reflect personal trauma, and uncertainty about meeting material needs.... "]
[null,"Theme: Basic human needs not met",null,"The first theme is about people not feeling that their basic needs are being met. They experienced significant personal loss, and don't as though these losses are being addressed, even to the extent of immediate housing needs. One respondent says, \"Where can we go, there's not enough space for us here.\" ",null,null,{"$f":"'1. Planning'!C7","v":"2. example: what are ways we could share information more effectively?"}]
[null,"Shelter","Shelter",null,null,null,{"$f":"'1. Planning'!C8","v":0}]
[null,"Where can we go, there's not enough space for us here. ","People not feeling that they can stay due to lack of space.",null,null,null,{"$f":"'1. Planning'!C9","v":0}]
[null,"Loss of homes and property","Loss of homes and property",null,null,null,null,null,null,null,null,null,"Representative quote:   "]
[null,"We lost everything","People feel they lost everything"]
[null,"All of our belongings have been taken","People's belongings are gone"]
[null,"Timeliness of response","Timeliness of response","Representative quote:  Where can we go, there's not enough space for us here. "]
[null,"Why is it taking so long to get some medical help? ","Medical help is taking too long"]
[null,"Board B - what goes together","Theme: Continuing trauma","Theme: Continuing trauma"]
[null,"Theme: Continuing trauma"]
[null,"Injuries or fatalities","Injuries or fatalities"]
[null,"Many people died "]
[null,"Shelter","Shelter"]
[null,"Where can we go, there's not enough space for us here. "]
[null,"Forced displacement","Forced displacement"]
[null,"People had to flee for their lives"]
[null,"Board C - what goes together","Theme: Channels for information","Theme: Channels for information"]
[null,"Theme: Channels for information"]
[null,"Where it comes from","Where it comes from"]
[null,"I heard from someone that more supplies are coming, but I don't trust till I hear it officially","Need to receive information from official sources in order to trust it "]
[null,"How transmitted","How transmitted"]
[null,"I get WhatsApp messages about supplies, when they are coming","WhatsApp as a source of information"]
[]
[]
[null,"Blank thematic analysis: use this blank template for new analyses"]
[null,"Step 1: Paste Boards below, one below the next","Step 2: Describing. \nWrite a sentence that describes what each text quote says, or what you see as important about it. ","Step 3: Summarizing & Representative quotes. \nWrite 1-2 sentences that summarizes the sentences in each preliminary theme group  ","Step 4: Synthesizing. \nName the broad topic area and how common it was, then bring your summaries in step 4 together.",null,"Your original analytic goals are shown here [Linked from Define your analytic goals worksheet]",null,"Step 5: Interpreting. \nReflect back on your original analytic goals as you write up what the results mean for action"]
[]
[null,null,null,null,null,null,{"$f":"'1. Planning'!C6","v":"1. example: what are the most common questions people have about the situation? "}]
[null,null,null,null,null,null,{"$f":"'1. Planning'!C7","v":"2. example: what are ways we could share information more effectively?"}]
[null,null,null,null,null,null,{"$f":"'1. Planning'!C8","v":0}]
[null,null,null,null,null,null,{"$f":"'1. Planning'!C9","v":0}]
[]
[]
[]
[]
[null,null,null,"Representative quote:   "]
[]
[]
[]
[]
[]
[]
[]
[null,null,null,"Representative quote:   "]
[]
[]
[]
[]
[]
[]
[null,null,null,"Representative quote:   "]

{"sheet":"4(c). Coding scheme","index":16,"n_rows":25,"n_cols":8,"rows_kept":25,"cut":false,"hidden":true,"merged":[[0,0,0,4],[1,0,1,6],[3,1,3,4],[4,1,4,3]]}
["4(c). Coding scheme"]
["Blank Coding Scheme"]
[]
["Broad topic codes","Specific codes [continues through column H]",null,null,null,null,"Action Flags "]
["To add a new broad topic area with additional specifics codes, see user guide section 7","To add a specific code, right click in the middle of the list, and select,\"insert.\" Then type in the code you want to add. ",null,null,null,null,"To modify: select the text and edit.  To add a code: right click on any cell in the list, select \"insert above row\" and type in the new code. The new code must be within the existing list."]
["1.A Basic coding major topic area","_1_Placeholder","_2_Placeholder","_3_Placeholder","_4_Placeholder","_5_Placeholder","2. One Level Codes ","3. Emotional tone"]
["_1_Placeholder","Sub-placeholder 1","Sub-placeholder 1","Sub-placeholder 1","Sub-placeholder 1","Sub-placeholder 1","Placeholder 1","Positive: General positive"]
["_2_Placeholder","Sub-placeholder 2","Sub-placeholder 2","Sub-placeholder 2","Sub-placeholder 2","Sub-placeholder 2","Placeholder 2","Positive: Gratitude"]
["_3_Placeholder","Sub-placeholder 3","Sub-placeholder 3","Sub-placeholder 3","Sub-placeholder 3","Sub-placeholder 3","Placeholder 3","Positive: Happiness"]
["_4_Placeholder","Sub-placeholder 4","Sub-placeholder 4","Sub-placeholder 4","Sub-placeholder 4","Sub-placeholder 4","Placeholder 4","Positive: Optimism"]
["_5_Placeholder","Sub-placeholder 5","Sub-placeholder 5","Sub-placeholder 5","Sub-placeholder 5","Sub-placeholder 5","Placeholder 5","Positive: Pride"]
[null,"Sub-placeholder 6","Sub-placeholder 6","Sub-placeholder 6","Sub-placeholder 6","Sub-placeholder 6","Placeholder 6","Positive: Unity"]
[null,"Sub-placeholder 7","Sub-placeholder 7","Sub-placeholder 7","Sub-placeholder 7","Sub-placeholder 7","Placeholder 7","Neutral: Indifference"]
[null,"Sub-placeholder 8","Sub-placeholder 8","Sub-placeholder 8","Sub-placeholder 8","Sub-placeholder 8","Placeholder 8","Neutral: No particular feeling "]
[null,"Sub-placeholder 9","Sub-placeholder 9","Sub-placeholder 9","Sub-placeholder 9","Sub-placeholder 9","Placeholder 9","Neutral: Surprise"]
[null,"Sub-placeholder 10","Sub-placeholder 10","Sub-placeholder 10","Sub-placeholder 10","Sub-placeholder 10","Placeholder 10","Negative: Sorrow"]
[null,null,null,null,null,null,null,"Negative: Anger"]
[null,null,null,null,null,null,null,"Negative: Concern (or worry)"]
[null,null,null,null,null,null,null,"Negative: Confusion"]
[null,null,null,null,null,null,null,"Negative: Despair"]
[null,null,null,null,null,null,null,"Negative: Disappointment"]
[null,null,null,null,null,null,null,"Negative: Doubt/skepticsism"]
[null,null,null,null,null,null,null,"Negative: Fear"]
[null,null,null,null,null,null,null,"Negative: Mistrust/suspicion"]
[null,null,null,null,null,null,null,"No emotion can be identified"]

{"sheet":"5(c) Coding workspace","index":17,"n_rows":497,"n_cols":11,"rows_kept":497,"cut":false,"hidden":true,"merged":[[0,0,0,10]]}
["5(c). Coding workspace"]
[]
[null,null,null,null,null,"Total coded strings:",{"$f":"COUNTIF(H5:H497,\"<>\"&\"\")","v":5},null,"Note about adding rows"]
["Line no","File name","Participant Type","File ID","Interviewer questions, section headings","Text sentences","Text segments for coding ","Broad code ","Specific code","Action flags","Comments"]
[{"$f":"ROW()-4","v":1},{"$f":"VLOOKUP(Blank[[#This Row],[File ID]],Table119[], MATCH(B$4,Table119[#Headers],0), 0)","v":{"$error":"#N/A"}},{"$f":"VLOOKUP(Blank[[#This Row],[File ID]],Table119[], MATCH(C$4,Table119[#Headers],0), 0)","v":{"$error":"#N/A"}},null,null,null,null,"_3_Placeholder","Sub-placeholder 4"]
[{"$f":"ROW()-4","v":2},{"$f":"VLOOKUP(Blank[[#This Row],[File ID]],Table119[], MATCH(B$4,Table119[#Headers],0), 0)","v":{"$error":"#N/A"}},{"$f":"VLOOKUP(Blank[[#This Row],[File ID]],Table119[], MATCH(C$4,Table119[#Headers],0), 0)","v":{"$error":"#N/A"}},null,null,null,null,"_3_Placeholder","Sub-placeholder 4"]
[3,{"$f":"VLOOKUP(Blank[[#This Row],[File ID]],Table119[], MATCH(B$4,Table119[#Headers],0), 0)","v":{"$error":"#N/A"}},{"$f":"VLOOKUP(Blank[[#This Row],[File ID]],Table119[], MATCH(C$4,Table119[#Headers],0), 0)","v":{"$error":"#N/A"}},null,null,null,null,"_3_Placeholder","Sub-placeholder 4"]
[4,{"$f":"VLOOKUP(Blank[[#This Row],[File ID]],Table119[], MATCH(B$4,Table119[#Headers],0), 0)","v":{"$error":"#N/A"}},{"$f":"VLOOKUP(Blank[[#This Row],[File ID]],Table119[], MATCH(C$4,Table119[#Headers],0), 0)","v":{"$error":"#N/A"}},null,null,null,null,"_3_Placeholder","Sub-placeholder 4"]
[5,{"$f":"VLOOKUP(Blank[[#This Row],[File ID]],Table119[], MATCH(B$4,Table119[#Headers],0), 0)","v":{"$error":"#N/A"}},{"$f":"VLOOKUP(Blank[[#This Row],[File ID]],Table119[], MATCH(C$4,Table119[#Headers],0), 0)","v":{"$error":"#N/A"}},null,null,null,null,"_3_Placeholder","Sub-placeholder 4"]
[6,{"$f":"VLOOKUP(Blank[[#This Row],[File ID]],Table119[], MATCH(B$4,Table119[#Headers],0), 0)","v":{"$error":"#N/A"}},{"$f":"VLOOKUP(Blank[[#This Row],[File ID]],Table119[], MATCH(C$4,Table119[#Headers],0), 0)","v":{"$error":"#N/A"}}]
[7,{"$f":"VLOOKUP(Blank[[#This Row],[File ID]],Table119[], MATCH(B$4,Table119[#Headers],0), 0)","v":{"$error":"#N/A"}},{"$f":"VLOOKUP(Blank[[#This Row],[File ID]],Table119[], MATCH(C$4,Table119[#Headers],0), 0)","v":{"$error":"#N/A"}}]
[8,{"$f":"VLOOKUP(Blank[[#This Row],[File ID]],Table119[], MATCH(B$4,Table119[#Headers],0), 0)","v":{"$error":"#N/A"}},{"$f":"VLOOKUP(Blank[[#This Row],[File ID]],Table119[], MATCH(C$4,Table119[#Headers],0), 0)","v":{"$error":"#N/A"}}]
[9,{"$f":"VLOOKUP(Blank[[#This Row],[File ID]],Table119[], MATCH(B$4,Table119[#Headers],0), 0)","v":{"$error":"#N/A"}},{"$f":"VLOOKUP(Blank[[#This Row],[File ID]],Table119[], MATCH(C$4,Table119[#Headers],0), 0)","v":{"$error":"#N/A"}}]
[10,{"$f":"VLOOKUP(Blank[[#This Row],[File ID]],Table119[], MATCH(B$4,Table119[#Headers],0), 0)","v":{"$error":"#N/A"}},{"$f":"VLOOKUP(Blank[[#This Row],[File ID]],Table119[], MATCH(C$4,Table119[#Headers],0), 0)","v":{"$error":"#N/A"}}]
[11,{"$f":"VLOOKUP(Blank[[#This Row],[File ID]],Table119[], MATCH(B$4,Table119[#Headers],0), 0)","v":{"$error":"#N/A"}},{"$f":"VLOOKUP(Blank[[#This Row],[File ID]],Table119[], MATCH(C$4,Table119[#Headers],0), 0)","v":{"$error":"#N/A"}}]
[12,{"$f":"VLOOKUP(Blank[[#This Row],[File ID]],Table119[], MATCH(B$4,Table119[#Headers],0), 0)","v":{"$error":"#N/A"}},{"$f":"VLOOKUP(Blank[[#This Row],[File ID]],Table119[], MATCH(C$4,Table119[#Headers],0), 0)","v":{"$error":"#N/A"}}]
[13,{"$f":"VLOOKUP(Blank[[#This Row],[File ID]],Table119[], MATCH(B$4,Table119[#Headers],0), 0)","v":{"$error":"#N/A"}},{"$f":"VLOOKUP(Blank[[#This Row],[File ID]],Table119[], MATCH(C$4,Table119[#Headers],0), 0)","v":{"$error":"#N/A"}}]
[14,{"$f":"VLOOKUP(Blank[[#This Row],[File ID]],Table119[], MATCH(B$4,Table119[#Headers],0), 0)","v":{"$error":"#N/A"}},{"$f":"VLOOKUP(Blank[[#This Row],[File ID]],Table119[], MATCH(C$4,Table119[#Headers],0), 0)","v":{"$error":"#N/A"}}]
[15,{"$f":"VLOOKUP(Blank[[#This Row],[File ID]],Table119[], MATCH(B$4,Table119[#Headers],0), 0)","v":{"$error":"#N/A"}},{"$f":"VLOOKUP(Blank[[#This Row],[File ID]],Table119[], MATCH(C$4,Table119[#Headers],0), 0)","v":{"$error":"#N/A"}}]
[16,{"$f":"VLOOKUP(Blank[[#This Row],[File ID]],Table119[], MATCH(B$4,Table119[#Headers],0), 0)","v":{"$error":"#N/A"}},{"$f":"VLOOKUP(Blank[[#This Row],[File ID]],Table119[], MATCH(C$4,Table119[#Headers],0), 0)","v":{"$error":"#N/A"}}]
[17,{"$f":"VLOOKUP(Blank[[#This Row],[File ID]],Table119[], MATCH(B$4,Table119[#Headers],0), 0)","v":{"$error":"#N/A"}},{"$f":"VLOOKUP(Blank[[#This Row],[File ID]],Table119[], MATCH(C$4,Table119[#Headers],0), 0)","v":{"$error":"#N/A"}}]
[18,{"$f":"VLOOKUP(Blank[[#This Row],[File ID]],Table119[], MATCH(B$4,Table119[#Headers],0), 0)","v":{"$error":"#N/A"}},{"$f":"VLOOKUP(Blank[[#This Row],[File ID]],Table119[], MATCH(C$4,Table119[#Headers],0), 0)","v":{"$error":"#N/A"}}]
[19,{"$f":"VLOOKUP(Blank[[#This Row],[File ID]],Table119[], MATCH(B$4,Table119[#Headers],0), 0)","v":{"$error":"#N/A"}},{"$f":"VLOOKUP(Blank[[#This Row],[File ID]],Table119[], MATCH(C$4,Table119[#Headers],0), 0)","v":{"$error":"#N/A"}}]
[20,{"$f":"VLOOKUP(Blank[[#This Row],[File ID]],Table119[], MATCH(B$4,Table119[#Headers],0), 0)","v":{"$error":"#N/A"}},{"$f":"VLOOKUP(Blank[[#This Row],[File ID]],Table119[], MATCH(C$4,Table119[#Headers],0), 0)","v":{"$error":"#N/A"}}]
[21,{"$f":"VLOOKUP(Blank[[#This Row],[File ID]],Table119[], MATCH(B$4,Table119[#Headers],0), 0)","v":{"$error":"#N/A"}},{"$f":"VLOOKUP(Blank[[#This Row],[File ID]],Table119[], MATCH(C$4,Table119[#Headers],0), 0)","v":{"$error":"#N/A"}}]
[22,{"$f":"VLOOKUP(Blank[[#This Row],[File ID]],Table119[], MATCH(B$4,Table119[#Headers],0), 0)","v":{"$error":"#N/A"}},{"$f":"VLOOKUP(Blank[[#This Row],[File ID]],Table119[], MATCH(C$4,Table119[#Headers],0), 0)","v":{"$error":"#N/A"}}]
[23,{"$f":"VLOOKUP(Blank[[#This Row],[File ID]],Table119[], MATCH(B$4,Table119[#Headers],0), 0)","v":{"$error":"#N/A"}},{"$f":"VLOOKUP(Blank[[#This Row],[File ID]],Table119[], MATCH(C$4,Table119[#Headers],0), 0)","v":{"$error":"#N/A"}}]
[24,{"$f":"VLOOKUP(Blank[[#This Row],[File ID]],Table119[], MATCH(B$4,Table119[#Headers],0), 0)","v":{"$error":"#N/A"}},{"$f":"VLOOKUP(Blank[[#This Row],[File ID]],Table119[], MATCH(C$4,Table119[#Headers],0), 0)","v":{"$error":"#N/A"}}]
[25,{"$f":"VLOOKUP(Blank[[#This Row],[File ID]],Table119[], MATCH(B$4,Table119[#Headers],0), 0)","v":{"$error":"#N/A"}},{"$f":"VLOOKUP(Blank[[#This Row],[File ID]],Table119[], MATCH(C$4,Table119[#Headers],0), 0)","v":{"$error":"#N/A"}}]
[26,{"$f":"VLOOKUP(Blank[[#This Row],[File ID]],Table119[], MATCH(B$4,Table119[#Headers],0), 0)","v":{"$error":"#N/A"}},{"$f":"VLOOKUP(Blank[[#This Row],[File ID]],Table119[], MATCH(C$4,Table119[#Headers],0), 0)","v":{"$error":"#N/A"}}]
[27,{"$f":"VLOOKUP(Blank[[#This Row],[File ID]],Table119[], MATCH(B$4,Table119[#Headers],0), 0)","v":{"$error":"#N/A"}},{"$f":"VLOOKUP(Blank[[#This Row],[File ID]],Table119[], MATCH(C$4,Table119[#Headers],0), 0)","v":{"$error":"#N/A"}}]
[28,{"$f":"VLOOKUP(Blank[[#This Row],[File ID]],Table119[], MATCH(B$4,Table119[#Headers],0), 0)","v":{"$error":"#N/A"}},{"$f":"VLOOKUP(Blank[[#This Row],[File ID]],Table119[], MATCH(C$4,Table119[#Headers],0), 0)","v":{"$error":"#N/A"}}]
[29,{"$f":"VLOOKUP(Blank[[#This Row],[File ID]],Table119[], MATCH(B$4,Table119[#Headers],0), 0)","v":{"$error":"#N/A"}},{"$f":"VLOOKUP(Blank[[#This Row],[File ID]],Table119[], MATCH(C$4,Table119[#Headers],0), 0)","v":{"$error":"#N/A"}}]
[30,{"$f":"VLOOKUP(Blank[[#This Row],[File ID]],Table119[], MATCH(B$4,Table119[#Headers],0), 0)","v":{"$error":"#N/A"}},{"$f":"VLOOKUP(Blank[[#This Row],[File ID]],Table119[], MATCH(C$4,Table119[#Headers],0), 0)","v":{"$error":"#N/A"}}]
[31,{"$f":"VLOOKUP(Blank[[#This Row],[File ID]],Table119[], MATCH(B$4,Table119[#Headers],0), 0)","v":{"$error":"#N/A"}},{"$f":"VLOOKUP(Blank[[#This Row],[File ID]],Table119[], MATCH(C$4,Table119[#Headers],0), 0)","v":{"$error":"#N/A"}}]
[32,{"$f":"VLOOKUP(Blank[[#This Row],[File ID]],Table119[], MATCH(B$4,Table119[#Headers],0), 0)","v":{"$error":"#N/A"}},{"$f":"VLOOKUP(Blank[[#This Row],[File ID]],Table119[], MATCH(C$4,Table119[#Headers],0), 0)","v":{"$error":"#N/A"}}]
[33,{"$f":"VLOOKUP(Blank[[#This Row],[File ID]],Table119[], MATCH(B$4,Table119[#Headers],0), 0)","v":{"$error":"#N/A"}},{"$f":"VLOOKUP(Blank[[#This Row],[File ID]],Table119[], MATCH(C$4,Table119[#Headers],0), 0)","v":{"$error":"#N/A"}}]
[34,{"$f":"VLOOKUP(Blank[[#This Row],[File ID]],Table119[], MATCH(B$4,Table119[#Headers],0), 0)","v":{"$error":"#N/A"}},{"$f":"VLOOKUP(Blank[[#This Row],[File ID]],Table119[], MATCH(C$4,Table119[#Headers],0), 0)","v":{"$error":"#N/A"}}]
[35,{"$f":"VLOOKUP(Blank[[#This Row],[File ID]],Table119[], MATCH(B$4,Table119[#Headers],0), 0)","v":{"$error":"#N/A"}},{"$f":"VLOOKUP(Blank[[#This Row],[File ID]],Table119[], MATCH(C$4,Table119[#Headers],0), 0)","v":{"$error":"#N/A"}}]
[36,{"$f":"VLOOKUP(Blank[[#This Row],[File ID]],Table119[], MATCH(B$4,Table119[#Headers],0), 0)","v":{"$error":"#N/A"}},{"$f":"VLOOKUP(Blank[[#This Row],[File ID]],Table119[], MATCH(C$4,Table119[#Headers],0), 0)","v":{"$error":"#N/A"}}]
[37,{"$f":"VLOOKUP(Blank[[#This Row],[File ID]],Table119[], MATCH(B$4,Table119[#Headers],0), 0)","v":{"$error":"#N/A"}},{"$f":"VLOOKUP(Blank[[#This Row],[File ID]],Table119[], MATCH(C$4,Table119[#Headers],0), 0)","v":{"$error":"#N/A"}}]
[38,{"$f":"VLOOKUP(Blank[[#This Row],[File ID]],Table119[], MATCH(B$4,Table119[#Headers],0), 0)","v":{"$error":"#N/A"}},{"$f":"VLOOKUP(Blank[[#This Row],[File ID]],Table119[], MATCH(C$4,Table119[#Headers],0), 0)","v":{"$error":"#N/A"}}]
[39,{"$f":"VLOOKUP(Blank[[#This Row],[File ID]],Table119[], MATCH(B$4,Table119[#Headers],0), 0)","v":{"$error":"#N/A"}},{"$f":"VLOOKUP(Blank[[#This Row],[File ID]],Table119[], MATCH(C$4,Table119[#Headers],0), 0)","v":{"$error":"#N/A"}}]
[40,{"$f":"VLOOKUP(Blank[[#This Row],[File ID]],Table119[], MATCH(B$4,Table119[#Headers],0), 0)","v":{"$error":"#N/A"}},{"$f":"VLOOKUP(Blank[[#This Row],[File ID]],Table119[], MATCH(C$4,Table119[#Headers],0), 0)","v":{"$error":"#N/A"}}]
[41,{"$f":"VLOOKUP(Blank[[#This Row],[File ID]],Table119[], MATCH(B$4,Table119[#Headers],0), 0)","v":{"$error":"#N/A"}},{"$f":"VLOOKUP(Blank[[#This Row],[File ID]],Table119[], MATCH(C$4,Table119[#Headers],0), 0)","v":{"$error":"#N/A"}}]
[42,{"$f":"VLOOKUP(Blank[[#This Row],[File ID]],Table119[], MATCH(B$4,Table119[#Headers],0), 0)","v":{"$error":"#N/A"}},{"$f":"VLOOKUP(Blank[[#This Row],[File ID]],Table119[], MATCH(C$4,Table119[#Headers],0), 0)","v":{"$error":"#N/A"}}]
[43,{"$f":"VLOOKUP(Blank[[#This Row],[File ID]],Table119[], MATCH(B$4,Table119[#Headers],0), 0)","v":{"$error":"#N/A"}},{"$f":"VLOOKUP(Blank[[#This Row],[File ID]],Table119[], MATCH(C$4,Table119[#Headers],0), 0)","v":{"$error":"#N/A"}}]
[44,{"$f":"VLOOKUP(Blank[[#This Row],[File ID]],Table119[], MATCH(B$4,Table119[#Headers],0), 0)","v":{"$error":"#N/A"}},{"$f":"VLOOKUP(Blank[[#This Row],[File ID]],Table119[], MATCH(C$4,Table119[#Headers],0), 0)","v":{"$error":"#N/A"}}]
[45,{"$f":"VLOOKUP(Blank[[#This Row],[File ID]],Table119[], MATCH(B$4,Table119[#Headers],0), 0)","v":{"$error":"#N/A"}},{"$f":"VLOOKUP(Blank[[#This Row],[File ID]],Table119[], MATCH(C$4,Table119[#Headers],0), 0)","v":{"$error":"#N/A"}}]
[46,{"$f":"VLOOKUP(Blank[[#This Row],[File ID]],Table119[], MATCH(B$4,Table119[#Headers],0), 0)","v":{"$error":"#N/A"}},{"$f":"VLOOKUP(Blank[[#This Row],[File ID]],Table119[], MATCH(C$4,Table119[#Headers],0), 0)","v":{"$error":"#N/A"}}]
[47,{"$f":"VLOOKUP(Blank[[#This Row],[File ID]],Table119[], MATCH(B$4,Table119[#Headers],0), 0)","v":{"$error":"#N/A"}},{"$f":"VLOOKUP(Blank[[#This Row],[File ID]],Table119[], MATCH(C$4,Table119[#Headers],0), 0)","v":{"$error":"#N/A"}}]
[48,{"$f":"VLOOKUP(Blank[[#This Row],[File ID]],Table119[], MATCH(B$4,Table119[#Headers],0), 0)","v":{"$error":"#N/A"}},{"$f":"VLOOKUP(Blank[[#This Row],[File ID]],Table119[], MATCH(C$4,Table119[#Headers],0), 0)","v":{"$error":"#N/A"}}]
[49,{"$f":"VLOOKUP(Blank[[#This Row],[File ID]],Table119[], MATCH(B$4,Table119[#Headers],0), 0)","v":{"$error":"#N/A"}},{"$f":"VLOOKUP(Blank[[#This Row],[File ID]],Table119[], MATCH(C$4,Table119[#Headers],0), 0)","v":{"$error":"#N/A"}}]
[50,{"$f":"VLOOKUP(Blank[[#This Row],[File ID]],Table119[], MATCH(B$4,Table119[#Headers],0), 0)","v":{"$error":"#N/A"}},{"$f":"VLOOKUP(Blank[[#This Row],[File ID]],Table119[], MATCH(C$4,Table119[#Headers],0), 0)","v":{"$error":"#N/A"}}]
[51,{"$f":"VLOOKUP(Blank[[#This Row],[File ID]],Table119[], MATCH(B$4,Table119[#Headers],0), 0)","v":{"$error":"#N/A"}},{"$f":"VLOOKUP(Blank[[#This Row],[File ID]],Table119[], MATCH(C$4,Table119[#Headers],0), 0)","v":{"$error":"#N/A"}}]
[52,{"$f":"VLOOKUP(Blank[[#This Row],[File ID]],Table119[], MATCH(B$4,Table119[#Headers],0), 0)","v":{"$error":"#N/A"}},{"$f":"VLOOKUP(Blank[[#This Row],[File ID]],Table119[], MATCH(C$4,Table119[#Headers],0), 0)","v":{"$error":"#N/A"}}]
[53,{"$f":"VLOOKUP(Blank[[#This Row],[File ID]],Table119[], MATCH(B$4,Table119[#Headers],0), 0)","v":{"$error":"#N/A"}},{"$f":"VLOOKUP(Blank[[#This Row],[File ID]],Table119[], MATCH(C$4,Table119[#Headers],0), 0)","v":{"$error":"#N/A"}}]
[54,{"$f":"VLOOKUP(Blank[[#This Row],[File ID]],Table119[], MATCH(B$4,Table119[#Headers],0), 0)","v":{"$error":"#N/A"}},{"$f":"VLOOKUP(Blank[[#This Row],[File ID]],Table119[], MATCH(C$4,Table119[#Headers],0), 0)","v":{"$error":"#N/A"}}]
[55,{"$f":"VLOOKUP(Blank[[#This Row],[File ID]],Table119[], MATCH(B$4,Table119[#Headers],0), 0)","v":{"$error":"#N/A"}},{"$f":"VLOOKUP(Blank[[#This Row],[File ID]],Table119[], MATCH(C$4,Table119[#Headers],0), 0)","v":{"$error":"#N/A"}}]
[56,{"$f":"VLOOKUP(Blank[[#This Row],[File ID]],Table119[], MATCH(B$4,Table119[#Headers],0), 0)","v":{"$error":"#N/A"}},{"$f":"VLOOKUP(Blank[[#This Row],[File ID]],Table119[], MATCH(C$4,Table119[#Headers],0), 0)","v":{"$error":"#N/A"}}]
[57,{"$f":"VLOOKUP(Blank[[#This Row],[File ID]],Table119[], MATCH(B$4,Table119[#Headers],0), 0)","v":{"$error":"#N/A"}},{"$f":"VLOOKUP(Blank[[#This Row],[File ID]],Table119[], MATCH(C$4,Table119[#Headers],0), 0)","v":{"$error":"#N/A"}}]
[58,{"$f":"VLOOKUP(Blank[[#This Row],[File ID]],Table119[], MATCH(B$4,Table119[#Headers],0), 0)","v":{"$error":"#N/A"}},{"$f":"VLOOKUP(Blank[[#This Row],[File ID]],Table119[], MATCH(C$4,Table119[#Headers],0), 0)","v":{"$error":"#N/A"}}]
[59,{"$f":"VLOOKUP(Blank[[#This Row],[File ID]],Table119[], MATCH(B$4,Table119[#Headers],0), 0)","v":{"$error":"#N/A"}},{"$f":"VLOOKUP(Blank[[#This Row],[File ID]],Table119[], MATCH(C$4,Table119[#Headers],0), 0)","v":{"$error":"#N/A"}}]
[60,{"$f":"VLOOKUP(Blank[[#This Row],[File ID]],Table119[], MATCH(B$4,Table119[#Headers],0), 0)","v":{"$error":"#N/A"}},{"$f":"VLOOKUP(Blank[[#This Row],[File ID]],Table119[], MATCH(C$4,Table119[#Headers],0), 0)","v":{"$error":"#N/A"}}]
[61,{"$f":"VLOOKUP(Blank[[#This Row],[File ID]],Table119[], MATCH(B$4,Table119[#Headers],0), 0)","v":{"$error":"#N/A"}},{"$f":"VLOOKUP(Blank[[#This Row],[File ID]],Table119[], MATCH(C$4,Table119[#Headers],0), 0)","v":{"$error":"#N/A"}}]
[62,{"$f":"VLOOKUP(Blank[[#This Row],[File ID]],Table119[], MATCH(B$4,Table119[#Headers],0), 0)","v":{"$error":"#N/A"}},{"$f":"VLOOKUP(Blank[[#This Row],[File ID]],Table119[], MATCH(C$4,Table119[#Headers],0), 0)","v":{"$error":"#N/A"}}]
[63,{"$f":"VLOOKUP(Blank[[#This Row],[File ID]],Table119[], MATCH(B$4,Table119[#Headers],0), 0)","v":{"$error":"#N/A"}},{"$f":"VLOOKUP(Blank[[#This Row],[File ID]],Table119[], MATCH(C$4,Table119[#Headers],0), 0)","v":{"$error":"#N/A"}}]
[64,{"$f":"VLOOKUP(Blank[[#This Row],[File ID]],Table119[], MATCH(B$4,Table119[#Headers],0), 0)","v":{"$error":"#N/A"}},{"$f":"VLOOKUP(Blank[[#This Row],[File ID]],Table119[], MATCH(C$4,Table119[#Headers],0), 0)","v":{"$error":"#N/A"}}]
[65,{"$f":"VLOOKUP(Blank[[#This Row],[File ID]],Table119[], MATCH(B$4,Table119[#Headers],0), 0)","v":{"$error":"#N/A"}},{"$f":"VLOOKUP(Blank[[#This Row],[File ID]],Table119[], MATCH(C$4,Table119[#Headers],0), 0)","v":{"$error":"#N/A"}}]
[{"$f":"ROW()-4","v":66},{"$f":"VLOOKUP(Blank[[#This Row],[File ID]],Table119[], MATCH(B$4,Table119[#Headers],0), 0)","v":{"$error":"#N/A"}},{"$f":"VLOOKUP(Blank[[#This Row],[File ID]],Table119[], MATCH(C$4,Table119[#Headers],0), 0)","v":{"$error":"#N/A"}}]
[67,{"$f":"VLOOKUP(Blank[[#This Row],[File ID]],Table119[], MATCH(B$4,Table119[#Headers],0), 0)","v":{"$error":"#N/A"}},{"$f":"VLOOKUP(Blank[[#This Row],[File ID]],Table119[], MATCH(C$4,Table119[#Headers],0), 0)","v":{"$error":"#N/A"}}]
[68,{"$f":"VLOOKUP(Blank[[#This Row],[File ID]],Table119[], MATCH(B$4,Table119[#Headers],0), 0)","v":{"$error":"#N/A"}},{"$f":"VLOOKUP(Blank[[#This Row],[File ID]],Table119[], MATCH(C$4,Table119[#Headers],0), 0)","v":{"$error":"#N/A"}}]
[69,{"$f":"VLOOKUP(Blank[[#This Row],[File ID]],Table119[], MATCH(B$4,Table119[#Headers],0), 0)","v":{"$error":"#N/A"}},{"$f":"VLOOKUP(Blank[[#This Row],[File ID]],Table119[], MATCH(C$4,Table119[#Headers],0), 0)","v":{"$error":"#N/A"}}]
[70,{"$f":"VLOOKUP(Blank[[#This Row],[File ID]],Table119[], MATCH(B$4,Table119[#Headers],0), 0)","v":{"$error":"#N/A"}},{"$f":"VLOOKUP(Blank[[#This Row],[File ID]],Table119[], MATCH(C$4,Table119[#Headers],0), 0)","v":{"$error":"#N/A"}}]
[71,{"$f":"VLOOKUP(Blank[[#This Row],[File ID]],Table119[], MATCH(B$4,Table119[#Headers],0), 0)","v":{"$error":"#N/A"}},{"$f":"VLOOKUP(Blank[[#This Row],[File ID]],Table119[], MATCH(C$4,Table119[#Headers],0), 0)","v":{"$error":"#N/A"}}]
[72,{"$f":"VLOOKUP(Blank[[#This Row],[File ID]],Table119[], MATCH(B$4,Table119[#Headers],0), 0)","v":{"$error":"#N/A"}},{"$f":"VLOOKUP(Blank[[#This Row],[File ID]],Table119[], MATCH(C$4,Table119[#Headers],0), 0)","v":{"$error":"#N/A"}}]
[73,{"$f":"VLOOKUP(Blank[[#This Row],[File ID]],Table119[], MATCH(B$4,Table119[#Headers],0), 0)","v":{"$error":"#N/A"}},{"$f":"VLOOKUP(Blank[[#This Row],[File ID]],Table119[], MATCH(C$4,Table119[#Headers],0), 0)","v":{"$error":"#N/A"}}]
[74,{"$f":"VLOOKUP(Blank[[#This Row],[File ID]],Table119[], MATCH(B$4,Table119[#Headers],0), 0)","v":{"$error":"#N/A"}},{"$f":"VLOOKUP(Blank[[#This Row],[File ID]],Table119[], MATCH(C$4,Table119[#Headers],0), 0)","v":{"$error":"#N/A"}}]
[75,{"$f":"VLOOKUP(Blank[[#This Row],[File ID]],Table119[], MATCH(B$4,Table119[#Headers],0), 0)","v":{"$error":"#N/A"}},{"$f":"VLOOKUP(Blank[[#This Row],[File ID]],Table119[], MATCH(C$4,Table119[#Headers],0), 0)","v":{"$error":"#N/A"}}]
[76,{"$f":"VLOOKUP(Blank[[#This Row],[File ID]],Table119[], MATCH(B$4,Table119[#Headers],0), 0)","v":{"$error":"#N/A"}},{"$f":"VLOOKUP(Blank[[#This Row],[File ID]],Table119[], MATCH(C$4,Table119[#Headers],0), 0)","v":{"$error":"#N/A"}}]
[77,{"$f":"VLOOKUP(Blank[[#This Row],[File ID]],Table119[], MATCH(B$4,Table119[#Headers],0), 0)","v":{"$error":"#N/A"}},{"$f":"VLOOKUP(Blank[[#This Row],[File ID]],Table119[], MATCH(C$4,Table119[#Headers],0), 0)","v":{"$error":"#N/A"}}]
[78,{"$f":"VLOOKUP(Blank[[#This Row],[File ID]],Table119[], MATCH(B$4,Table119[#Headers],0), 0)","v":{"$error":"#N/A"}},{"$f":"VLOOKUP(Blank[[#This Row],[File ID]],Table119[], MATCH(C$4,Table119[#Headers],0), 0)","v":{"$error":"#N/A"}}]
[79,{"$f":"VLOOKUP(Blank[[#This Row],[File ID]],Table119[], MATCH(B$4,Table119[#Headers],0), 0)","v":{"$error":"#N/A"}},{"$f":"VLOOKUP(Blank[[#This Row],[File ID]],Table119[], MATCH(C$4,Table119[#Headers],0), 0)","v":{"$error":"#N/A"}}]
[80,{"$f":"VLOOKUP(Blank[[#This Row],[File ID]],Table119[], MATCH(B$4,Table119[#Headers],0), 0)","v":{"$error":"#N/A"}},{"$f":"VLOOKUP(Blank[[#This Row],[File ID]],Table119[], MATCH(C$4,Table119[#Headers],0), 0)","v":{"$error":"#N/A"}}]
[81,{"$f":"VLOOKUP(Blank[[#This Row],[File ID]],Table119[], MATCH(B$4,Table119[#Headers],0), 0)","v":{"$error":"#N/A"}},{"$f":"VLOOKUP(Blank[[#This Row],[File ID]],Table119[], MATCH(C$4,Table119[#Headers],0), 0)","v":{"$error":"#N/A"}}]
[82,{"$f":"VLOOKUP(Blank[[#This Row],[File ID]],Table119[], MATCH(B$4,Table119[#Headers],0), 0)","v":{"$error":"#N/A"}},{"$f":"VLOOKUP(Blank[[#This Row],[File ID]],Table119[], MATCH(C$4,Table119[#Headers],0), 0)","v":{"$error":"#N/A"}}]
[83,{"$f":"VLOOKUP(Blank[[#This Row],[File ID]],Table119[], MATCH(B$4,Table119[#Headers],0), 0)","v":{"$error":"#N/A"}},{"$f":"VLOOKUP(Blank[[#This Row],[File ID]],Table119[], MATCH(C$4,Table119[#Headers],0), 0)","v":{"$error":"#N/A"}}]
[84,{"$f":"VLOOKUP(Blank[[#This Row],[File ID]],Table119[], MATCH(B$4,Table119[#Headers],0), 0)","v":{"$error":"#N/A"}},{"$f":"VLOOKUP(Blank[[#This Row],[File ID]],Table119[], MATCH(C$4,Table119[#Headers],0), 0)","v":{"$error":"#N/A"}}]
[85,{"$f":"VLOOKUP(Blank[[#This Row],[File ID]],Table119[], MATCH(B$4,Table119[#Headers],0), 0)","v":{"$error":"#N/A"}},{"$f":"VLOOKUP(Blank[[#This Row],[File ID]],Table119[], MATCH(C$4,Table119[#Headers],0), 0)","v":{"$error":"#N/A"}}]
[86,{"$f":"VLOOKUP(Blank[[#This Row],[File ID]],Table119[], MATCH(B$4,Table119[#Headers],0), 0)","v":{"$error":"#N/A"}},{"$f":"VLOOKUP(Blank[[#This Row],[File ID]],Table119[], MATCH(C$4,Table119[#Headers],0), 0)","v":{"$error":"#N/A"}}]
[87,{"$f":"VLOOKUP(Blank[[#This Row],[File ID]],Table119[], MATCH(B$4,Table119[#Headers],0), 0)","v":{"$error":"#N/A"}},{"$f":"VLOOKUP(Blank[[#This Row],[File ID]],Table119[], MATCH(C$4,Table119[#Headers],0), 0)","v":{"$error":"#N/A"}}]
[88,{"$f":"VLOOKUP(Blank[[#This Row],[File ID]],Table119[], MATCH(B$4,Table119[#Headers],0), 0)","v":{"$error":"#N/A"}},{"$f":"VLOOKUP(Blank[[#This Row],[File ID]],Table119[], MATCH(C$4,Table119[#Headers],0), 0)","v":{"$error":"#N/A"}}]
[89,{"$f":"VLOOKUP(Blank[[#This Row],[File ID]],Table119[], MATCH(B$4,Table119[#Headers],0), 0)","v":{"$error":"#N/A"}},{"$f":"VLOOKUP(Blank[[#This Row],[File ID]],Table119[], MATCH(C$4,Table119[#Headers],0), 0)","v":{"$error":"#N/A"}}]
[90,{"$f":"VLOOKUP(Blank[[#This Row],[File ID]],Table119[], MATCH(B$4,Table119[#Headers],0), 0)","v":{"$error":"#N/A"}},{"$f":"VLOOKUP(Blank[[#This Row],[File ID]],Table119[], MATCH(C$4,Table119[#Headers],0), 0)","v":{"$error":"#N/A"}}]
[91,{"$f":"VLOOKUP(Blank[[#This Row],[File ID]],Table119[], MATCH(B$4,Table119[#Headers],0), 0)","v":{"$error":"#N/A"}},{"$f":"VLOOKUP(Blank[[#This Row],[File ID]],Table119[], MATCH(C$4,Table119[#Headers],0), 0)","v":{"$error":"#N/A"}}]
[92,{"$f":"VLOOKUP(Blank[[#This Row],[File ID]],Table119[], MATCH(B$4,Table119[#Headers],0), 0)","v":{"$error":"#N/A"}},{"$f":"VLOOKUP(Blank[[#This Row],[File ID]],Table119[], MATCH(C$4,Table119[#Headers],0), 0)","v":{"$error":"#N/A"}}]
[93,{"$f":"VLOOKUP(Blank[[#This Row],[File ID]],Table119[], MATCH(B$4,Table119[#Headers],0), 0)","v":{"$error":"#N/A"}},{"$f":"VLOOKUP(Blank[[#This Row],[File ID]],Table119[], MATCH(C$4,Table119[#Headers],0), 0)","v":{"$error":"#N/A"}}]
[94,{"$f":"VLOOKUP(Blank[[#This Row],[File ID]],Table119[], MATCH(B$4,Table119[#Headers],0), 0)","v":{"$error":"#N/A"}},{"$f":"VLOOKUP(Blank[[#This Row],[File ID]],Table119[], MATCH(C$4,Table119[#Headers],0), 0)","v":{"$error":"#N/A"}}]
[95,{"$f":"VLOOKUP(Blank[[#This Row],[File ID]],Table119[], MATCH(B$4,Table119[#Headers],0), 0)","v":{"$error":"#N/A"}},{"$f":"VLOOKUP(Blank[[#This Row],[File ID]],Table119[], MATCH(C$4,Table119[#Headers],0), 0)","v":{"$error":"#N/A"}}]
[96,{"$f":"VLOOKUP(Blank[[#This Row],[File ID]],Table119[], MATCH(B$4,Table119[#Headers],0), 0)","v":{"$error":"#N/A"}},{"$f":"VLOOKUP(Blank[[#This Row],[File ID]],Table119[], MATCH(C$4,Table119[#Headers],0), 0)","v":{"$error":"#N/A"}}]
[97,{"$f":"VLOOKUP(Blank[[#This Row],[File ID]],Table119[], MATCH(B$4,Table119[#Headers],0), 0)","v":{"$error":"#N/A"}},{"$f":"VLOOKUP(Blank[[#This Row],[File ID]],Table119[], MATCH(C$4,Table119[#Headers],0), 0)","v":{"$error":"#N/A"}}]
[98,{"$f":"VLOOKUP(Blank[[#This Row],[File ID]],Table119[], MATCH(B$4,Table119[#Headers],0), 0)","v":{"$error":"#N/A"}},{"$f":"VLOOKUP(Blank[[#This Row],[File ID]],Table119[], MATCH(C$4,Table119[#Headers],0), 0)","v":{"$error":"#N/A"}}]
[99,{"$f":"VLOOKUP(Blank[[#This Row],[File ID]],Table119[], MATCH(B$4,Table119[#Headers],0), 0)","v":{"$error":"#N/A"}},{"$f":"VLOOKUP(Blank[[#This Row],[File ID]],Table119[], MATCH(C$4,Table119[#Headers],0), 0)","v":{"$error":"#N/A"}}]
[100,{"$f":"VLOOKUP(Blank[[#This Row],[File ID]],Table119[], MATCH(B$4,Table119[#Headers],0), 0)","v":{"$error":"#N/A"}},{"$f":"VLOOKUP(Blank[[#This Row],[File ID]],Table119[], MATCH(C$4,Table119[#Headers],0), 0)","v":{"$error":"#N/A"}}]
[101,{"$f":"VLOOKUP(Blank[[#This Row],[File ID]],Table119[], MATCH(B$4,Table119[#Headers],0), 0)","v":{"$error":"#N/A"}},{"$f":"VLOOKUP(Blank[[#This Row],[File ID]],Table119[], MATCH(C$4,Table119[#Headers],0), 0)","v":{"$error":"#N/A"}}]
[102,{"$f":"VLOOKUP(Blank[[#This Row],[File ID]],Table119[], MATCH(B$4,Table119[#Headers],0), 0)","v":{"$error":"#N/A"}},{"$f":"VLOOKUP(Blank[[#This Row],[File ID]],Table119[], MATCH(C$4,Table119[#Headers],0), 0)","v":{"$error":"#N/A"}}]
[103,{"$f":"VLOOKUP(Blank[[#This Row],[File ID]],Table119[], MATCH(B$4,Table119[#Headers],0), 0)","v":{"$error":"#N/A"}},{"$f":"VLOOKUP(Blank[[#This Row],[File ID]],Table119[], MATCH(C$4,Table119[#Headers],0), 0)","v":{"$error":"#N/A"}}]
[104,{"$f":"VLOOKUP(Blank[[#This Row],[File ID]],Table119[], MATCH(B$4,Table119[#Headers],0), 0)","v":{"$error":"#N/A"}},{"$f":"VLOOKUP(Blank[[#This Row],[File ID]],Table119[], MATCH(C$4,Table119[#Headers],0), 0)","v":{"$error":"#N/A"}}]
[105,{"$f":"VLOOKUP(Blank[[#This Row],[File ID]],Table119[], MATCH(B$4,Table119[#Headers],0), 0)","v":{"$error":"#N/A"}},{"$f":"VLOOKUP(Blank[[#This Row],[File ID]],Table119[], MATCH(C$4,Table119[#Headers],0), 0)","v":{"$error":"#N/A"}}]
[106,{"$f":"VLOOKUP(Blank[[#This Row],[File ID]],Table119[], MATCH(B$4,Table119[#Headers],0), 0)","v":{"$error":"#N/A"}},{"$f":"VLOOKUP(Blank[[#This Row],[File ID]],Table119[], MATCH(C$4,Table119[#Headers],0), 0)","v":{"$error":"#N/A"}}]
[107,{"$f":"VLOOKUP(Blank[[#This Row],[File ID]],Table119[], MATCH(B$4,Table119[#Headers],0), 0)","v":{"$error":"#N/A"}},{"$f":"VLOOKUP(Blank[[#This Row],[File ID]],Table119[], MATCH(C$4,Table119[#Headers],0), 0)","v":{"$error":"#N/A"}}]
[108,{"$f":"VLOOKUP(Blank[[#This Row],[File ID]],Table119[], MATCH(B$4,Table119[#Headers],0), 0)","v":{"$error":"#N/A"}},{"$f":"VLOOKUP(Blank[[#This Row],[File ID]],Table119[], MATCH(C$4,Table119[#Headers],0), 0)","v":{"$error":"#N/A"}}]
[109,{"$f":"VLOOKUP(Blank[[#This Row],[File ID]],Table119[], MATCH(B$4,Table119[#Headers],0), 0)","v":{"$error":"#N/A"}},{"$f":"VLOOKUP(Blank[[#This Row],[File ID]],Table119[], MATCH(C$4,Table119[#Headers],0), 0)","v":{"$error":"#N/A"}}]
[110,{"$f":"VLOOKUP(Blank[[#This Row],[File ID]],Table119[], MATCH(B$4,Table119[#Headers],0), 0)","v":{"$error":"#N/A"}},{"$f":"VLOOKUP(Blank[[#This Row],[File ID]],Table119[], MATCH(C$4,Table119[#Headers],0), 0)","v":{"$error":"#N/A"}}]
[111,{"$f":"VLOOKUP(Blank[[#This Row],[File ID]],Table119[], MATCH(B$4,Table119[#Headers],0), 0)","v":{"$error":"#N/A"}},{"$f":"VLOOKUP(Blank[[#This Row],[File ID]],Table119[], MATCH(C$4,Table119[#Headers],0), 0)","v":{"$error":"#N/A"}}]
[112,{"$f":"VLOOKUP(Blank[[#This Row],[File ID]],Table119[], MATCH(B$4,Table119[#Headers],0), 0)","v":{"$error":"#N/A"}},{"$f":"VLOOKUP(Blank[[#This Row],[File ID]],Table119[], MATCH(C$4,Table119[#Headers],0), 0)","v":{"$error":"#N/A"}}]
[113,{"$f":"VLOOKUP(Blank[[#This Row],[File ID]],Table119[], MATCH(B$4,Table119[#Headers],0), 0)","v":{"$error":"#N/A"}},{"$f":"VLOOKUP(Blank[[#This Row],[File ID]],Table119[], MATCH(C$4,Table119[#Headers],0), 0)","v":{"$error":"#N/A"}}]
[114,{"$f":"VLOOKUP(Blank[[#This Row],[File ID]],Table119[], MATCH(B$4,Table119[#Headers],0), 0)","v":{"$error":"#N/A"}},{"$f":"VLOOKUP(Blank[[#This Row],[File ID]],Table119[], MATCH(C$4,Table119[#Headers],0), 0)","v":{"$error":"#N/A"}}]
[115,{"$f":"VLOOKUP(Blank[[#This Row],[File ID]],Table119[], MATCH(B$4,Table119[#Headers],0), 0)","v":{"$error":"#N/A"}},{"$f":"VLOOKUP(Blank[[#This Row],[File ID]],Table119[], MATCH(C$4,Table119[#Headers],0), 0)","v":{"$error":"#N/A"}}]
[116,{"$f":"VLOOKUP(Blank[[#This Row],[File ID]],Table119[], MATCH(B$4,Table119[#Headers],0), 0)","v":{"$error":"#N/A"}},{"$f":"VLOOKUP(Blank[[#This Row],[File ID]],Table119[], MATCH(C$4,Table119[#Headers],0), 0)","v":{"$error":"#N/A"}}]
[117,{"$f":"VLOOKUP(Blank[[#This Row],[File ID]],Table119[], MATCH(B$4,Table119[#Headers],0), 0)","v":{"$error":"#N/A"}},{"$f":"VLOOKUP(Blank[[#This Row],[File ID]],Table119[], MATCH(C$4,Table119[#Headers],0), 0)","v":{"$error":"#N/A"}}]
[118,{"$f":"VLOOKUP(Blank[[#This Row],[File ID]],Table119[], MATCH(B$4,Table119[#Headers],0), 0)","v":{"$error":"#N/A"}},{"$f":"VLOOKUP(Blank[[#This Row],[File ID]],Table119[], MATCH(C$4,Table119[#Headers],0), 0)","v":{"$error":"#N/A"}}]
[119,{"$f":"VLOOKUP(Blank[[#This Row],[File ID]],Table119[], MATCH(B$4,Table119[#Headers],0), 0)","v":{"$error":"#N/A"}},{"$f":"VLOOKUP(Blank[[#This Row],[File ID]],Table119[], MATCH(C$4,Table119[#Headers],0), 0)","v":{"$error":"#N/A"}}]
[120,{"$f":"VLOOKUP(Blank[[#This Row],[File ID]],Table119[], MATCH(B$4,Table119[#Headers],0), 0)","v":{"$error":"#N/A"}},{"$f":"VLOOKUP(Blank[[#This Row],[File ID]],Table119[], MATCH(C$4,Table119[#Headers],0), 0)","v":{"$error":"#N/A"}}]
[121,{"$f":"VLOOKUP(Blank[[#This Row],[File ID]],Table119[], MATCH(B$4,Table119[#Headers],0), 0)","v":{"$error":"#N/A"}},{"$f":"VLOOKUP(Blank[[#This Row],[File ID]],Table119[], MATCH(C$4,Table119[#Headers],0), 0)","v":{"$error":"#N/A"}}]
[122,{"$f":"VLOOKUP(Blank[[#This Row],[File ID]],Table119[], MATCH(B$4,Table119[#Headers],0), 0)","v":{"$error":"#N/A"}},{"$f":"VLOOKUP(Blank[[#This Row],[File ID]],Table119[], MATCH(C$4,Table119[#Headers],0), 0)","v":{"$error":"#N/A"}}]
[123,{"$f":"VLOOKUP(Blank[[#This Row],[File ID]],Table119[], MATCH(B$4,Table119[#Headers],0), 0)","v":{"$error":"#N/A"}},{"$f":"VLOOKUP(Blank[[#This Row],[File ID]],Table119[], MATCH(C$4,Table119[#Headers],0), 0)","v":{"$error":"#N/A"}}]
[124,{"$f":"VLOOKUP(Blank[[#This Row],[File ID]],Table119[], MATCH(B$4,Table119[#Headers],0), 0)","v":{"$error":"#N/A"}},{"$f":"VLOOKUP(Blank[[#This Row],[File ID]],Table119[], MATCH(C$4,Table119[#Headers],0), 0)","v":{"$error":"#N/A"}}]
[125,{"$f":"VLOOKUP(Blank[[#This Row],[File ID]],Table119[], MATCH(B$4,Table119[#Headers],0), 0)","v":{"$error":"#N/A"}},{"$f":"VLOOKUP(Blank[[#This Row],[File ID]],Table119[], MATCH(C$4,Table119[#Headers],0), 0)","v":{"$error":"#N/A"}}]
[126,{"$f":"VLOOKUP(Blank[[#This Row],[File ID]],Table119[], MATCH(B$4,Table119[#Headers],0), 0)","v":{"$error":"#N/A"}},{"$f":"VLOOKUP(Blank[[#This Row],[File ID]],Table119[], MATCH(C$4,Table119[#Headers],0), 0)","v":{"$error":"#N/A"}}]
[127,{"$f":"VLOOKUP(Blank[[#This Row],[File ID]],Table119[], MATCH(B$4,Table119[#Headers],0), 0)","v":{"$error":"#N/A"}},{"$f":"VLOOKUP(Blank[[#This Row],[File ID]],Table119[], MATCH(C$4,Table119[#Headers],0), 0)","v":{"$error":"#N/A"}}]
[128,{"$f":"VLOOKUP(Blank[[#This Row],[File ID]],Table119[], MATCH(B$4,Table119[#Headers],0), 0)","v":{"$error":"#N/A"}},{"$f":"VLOOKUP(Blank[[#This Row],[File ID]],Table119[], MATCH(C$4,Table119[#Headers],0), 0)","v":{"$error":"#N/A"}}]
[129,{"$f":"VLOOKUP(Blank[[#This Row],[File ID]],Table119[], MATCH(B$4,Table119[#Headers],0), 0)","v":{"$error":"#N/A"}},{"$f":"VLOOKUP(Blank[[#This Row],[File ID]],Table119[], MATCH(C$4,Table119[#Headers],0), 0)","v":{"$error":"#N/A"}}]
[{"$f":"ROW()-4","v":130},{"$f":"VLOOKUP(Blank[[#This Row],[File ID]],Table119[], MATCH(B$4,Table119[#Headers],0), 0)","v":{"$error":"#N/A"}},{"$f":"VLOOKUP(Blank[[#This Row],[File ID]],Table119[], MATCH(C$4,Table119[#Headers],0), 0)","v":{"$error":"#N/A"}}]
[131,{"$f":"VLOOKUP(Blank[[#This Row],[File ID]],Table119[], MATCH(B$4,Table119[#Headers],0), 0)","v":{"$error":"#N/A"}},{"$f":"VLOOKUP(Blank[[#This Row],[File ID]],Table119[], MATCH(C$4,Table119[#Headers],0), 0)","v":{"$error":"#N/A"}}]
[132,{"$f":"VLOOKUP(Blank[[#This Row],[File ID]],Table119[], MATCH(B$4,Table119[#Headers],0), 0)","v":{"$error":"#N/A"}},{"$f":"VLOOKUP(Blank[[#This Row],[File ID]],Table119[], MATCH(C$4,Table119[#Headers],0), 0)","v":{"$error":"#N/A"}}]
[133,{"$f":"VLOOKUP(Blank[[#This Row],[File ID]],Table119[], MATCH(B$4,Table119[#Headers],0), 0)","v":{"$error":"#N/A"}},{"$f":"VLOOKUP(Blank[[#This Row],[File ID]],Table119[], MATCH(C$4,Table119[#Headers],0), 0)","v":{"$error":"#N/A"}}]
[134,{"$f":"VLOOKUP(Blank[[#This Row],[File ID]],Table119[], MATCH(B$4,Table119[#Headers],0), 0)","v":{"$error":"#N/A"}},{"$f":"VLOOKUP(Blank[[#This Row],[File ID]],Table119[], MATCH(C$4,Table119[#Headers],0), 0)","v":{"$error":"#N/A"}}]
[135,{"$f":"VLOOKUP(Blank[[#This Row],[File ID]],Table119[], MATCH(B$4,Table119[#Headers],0), 0)","v":{"$error":"#N/A"}},{"$f":"VLOOKUP(Blank[[#This Row],[File ID]],Table119[], MATCH(C$4,Table119[#Headers],0), 0)","v":{"$error":"#N/A"}}]
[136,{"$f":"VLOOKUP(Blank[[#This Row],[File ID]],Table119[], MATCH(B$4,Table119[#Headers],0), 0)","v":{"$error":"#N/A"}},{"$f":"VLOOKUP(Blank[[#This Row],[File ID]],Table119[], MATCH(C$4,Table119[#Headers],0), 0)","v":{"$error":"#N/A"}}]
[137,{"$f":"VLOOKUP(Blank[[#This Row],[File ID]],Table119[], MATCH(B$4,Table119[#Headers],0), 0)","v":{"$error":"#N/A"}},{"$f":"VLOOKUP(Blank[[#This Row],[File ID]],Table119[], MATCH(C$4,Table119[#Headers],0), 0)","v":{"$error":"#N/A"}}]
[138,{"$f":"VLOOKUP(Blank[[#This Row],[File ID]],Table119[], MATCH(B$4,Table119[#Headers],0), 0)","v":{"$error":"#N/A"}},{"$f":"VLOOKUP(Blank[[#This Row],[File ID]],Table119[], MATCH(C$4,Table119[#Headers],0), 0)","v":{"$error":"#N/A"}}]
[139,{"$f":"VLOOKUP(Blank[[#This Row],[File ID]],Table119[], MATCH(B$4,Table119[#Headers],0), 0)","v":{"$error":"#N/A"}},{"$f":"VLOOKUP(Blank[[#This Row],[File ID]],Table119[], MATCH(C$4,Table119[#Headers],0), 0)","v":{"$error":"#N/A"}}]
[140,{"$f":"VLOOKUP(Blank[[#This Row],[File ID]],Table119[], MATCH(B$4,Table119[#Headers],0), 0)","v":{"$error":"#N/A"}},{"$f":"VLOOKUP(Blank[[#This Row],[File ID]],Table119[], MATCH(C$4,Table119[#Headers],0), 0)","v":{"$error":"#N/A"}}]
[141,{"$f":"VLOOKUP(Blank[[#This Row],[File ID]],Table119[], MATCH(B$4,Table119[#Headers],0), 0)","v":{"$error":"#N/A"}},{"$f":"VLOOKUP(Blank[[#This Row],[File ID]],Table119[], MATCH(C$4,Table119[#Headers],0), 0)","v":{"$error":"#N/A"}}]
[142,{"$f":"VLOOKUP(Blank[[#This Row],[File ID]],Table119[], MATCH(B$4,Table119[#Headers],0), 0)","v":{"$error":"#N/A"}},{"$f":"VLOOKUP(Blank[[#This Row],[File ID]],Table119[], MATCH(C$4,Table119[#Headers],0), 0)","v":{"$error":"#N/A"}}]
[143,{"$f":"VLOOKUP(Blank[[#This Row],[File ID]],Table119[], MATCH(B$4,Table119[#Headers],0), 0)","v":{"$error":"#N/A"}},{"$f":"VLOOKUP(Blank[[#This Row],[File ID]],Table119[], MATCH(C$4,Table119[#Headers],0), 0)","v":{"$error":"#N/A"}}]
[144,{"$f":"VLOOKUP(Blank[[#This Row],[File ID]],Table119[], MATCH(B$4,Table119[#Headers],0), 0)","v":{"$error":"#N/A"}},{"$f":"VLOOKUP(Blank[[#This Row],[File ID]],Table119[], MATCH(C$4,Table119[#Headers],0), 0)","v":{"$error":"#N/A"}}]
[145,{"$f":"VLOOKUP(Blank[[#This Row],[File ID]],Table119[], MATCH(B$4,Table119[#Headers],0), 0)","v":{"$error":"#N/A"}},{"$f":"VLOOKUP(Blank[[#This Row],[File ID]],Table119[], MATCH(C$4,Table119[#Headers],0), 0)","v":{"$error":"#N/A"}}]
[146,{"$f":"VLOOKUP(Blank[[#This Row],[File ID]],Table119[], MATCH(B$4,Table119[#Headers],0), 0)","v":{"$error":"#N/A"}},{"$f":"VLOOKUP(Blank[[#This Row],[File ID]],Table119[], MATCH(C$4,Table119[#Headers],0), 0)","v":{"$error":"#N/A"}}]
[147,{"$f":"VLOOKUP(Blank[[#This Row],[File ID]],Table119[], MATCH(B$4,Table119[#Headers],0), 0)","v":{"$error":"#N/A"}},{"$f":"VLOOKUP(Blank[[#This Row],[File ID]],Table119[], MATCH(C$4,Table119[#Headers],0), 0)","v":{"$error":"#N/A"}}]
[148,{"$f":"VLOOKUP(Blank[[#This Row],[File ID]],Table119[], MATCH(B$4,Table119[#Headers],0), 0)","v":{"$error":"#N/A"}},{"$f":"VLOOKUP(Blank[[#This Row],[File ID]],Table119[], MATCH(C$4,Table119[#Headers],0), 0)","v":{"$error":"#N/A"}}]
[149,{"$f":"VLOOKUP(Blank[[#This Row],[File ID]],Table119[], MATCH(B$4,Table119[#Headers],0), 0)","v":{"$error":"#N/A"}},{"$f":"VLOOKUP(Blank[[#This Row],[File ID]],Table119[], MATCH(C$4,Table119[#Headers],0), 0)","v":{"$error":"#N/A"}}]
[150,{"$f":"VLOOKUP(Blank[[#This Row],[File ID]],Table119[], MATCH(B$4,Table119[#Headers],0), 0)","v":{"$error":"#N/A"}},{"$f":"VLOOKUP(Blank[[#This Row],[File ID]],Table119[], MATCH(C$4,Table119[#Headers],0), 0)","v":{"$error":"#N/A"}}]
[151,{"$f":"VLOOKUP(Blank[[#This Row],[File ID]],Table119[], MATCH(B$4,Table119[#Headers],0), 0)","v":{"$error":"#N/A"}},{"$f":"VLOOKUP(Blank[[#This Row],[File ID]],Table119[], MATCH(C$4,Table119[#Headers],0), 0)","v":{"$error":"#N/A"}}]
[152,{"$f":"VLOOKUP(Blank[[#This Row],[File ID]],Table119[], MATCH(B$4,Table119[#Headers],0), 0)","v":{"$error":"#N/A"}},{"$f":"VLOOKUP(Blank[[#This Row],[File ID]],Table119[], MATCH(C$4,Table119[#Headers],0), 0)","v":{"$error":"#N/A"}}]
[153,{"$f":"VLOOKUP(Blank[[#This Row],[File ID]],Table119[], MATCH(B$4,Table119[#Headers],0), 0)","v":{"$error":"#N/A"}},{"$f":"VLOOKUP(Blank[[#This Row],[File ID]],Table119[], MATCH(C$4,Table119[#Headers],0), 0)","v":{"$error":"#N/A"}}]
[154,{"$f":"VLOOKUP(Blank[[#This Row],[File ID]],Table119[], MATCH(B$4,Table119[#Headers],0), 0)","v":{"$error":"#N/A"}},{"$f":"VLOOKUP(Blank[[#This Row],[File ID]],Table119[], MATCH(C$4,Table119[#Headers],0), 0)","v":{"$error":"#N/A"}}]
[155,{"$f":"VLOOKUP(Blank[[#This Row],[File ID]],Table119[], MATCH(B$4,Table119[#Headers],0), 0)","v":{"$error":"#N/A"}},{"$f":"VLOOKUP(Blank[[#This Row],[File ID]],Table119[], MATCH(C$4,Table119[#Headers],0), 0)","v":{"$error":"#N/A"}}]
[156,{"$f":"VLOOKUP(Blank[[#This Row],[File ID]],Table119[], MATCH(B$4,Table119[#Headers],0), 0)","v":{"$error":"#N/A"}},{"$f":"VLOOKUP(Blank[[#This Row],[File ID]],Table119[], MATCH(C$4,Table119[#Headers],0), 0)","v":{"$error":"#N/A"}}]
[157,{"$f":"VLOOKUP(Blank[[#This Row],[File ID]],Table119[], MATCH(B$4,Table119[#Headers],0), 0)","v":{"$error":"#N/A"}},{"$f":"VLOOKUP(Blank[[#This Row],[File ID]],Table119[], MATCH(C$4,Table119[#Headers],0), 0)","v":{"$error":"#N/A"}}]
[158,{"$f":"VLOOKUP(Blank[[#This Row],[File ID]],Table119[], MATCH(B$4,Table119[#Headers],0), 0)","v":{"$error":"#N/A"}},{"$f":"VLOOKUP(Blank[[#This Row],[File ID]],Table119[], MATCH(C$4,Table119[#Headers],0), 0)","v":{"$error":"#N/A"}}]
[159,{"$f":"VLOOKUP(Blank[[#This Row],[File ID]],Table119[], MATCH(B$4,Table119[#Headers],0), 0)","v":{"$error":"#N/A"}},{"$f":"VLOOKUP(Blank[[#This Row],[File ID]],Table119[], MATCH(C$4,Table119[#Headers],0), 0)","v":{"$error":"#N/A"}}]
[160,{"$f":"VLOOKUP(Blank[[#This Row],[File ID]],Table119[], MATCH(B$4,Table119[#Headers],0), 0)","v":{"$error":"#N/A"}},{"$f":"VLOOKUP(Blank[[#This Row],[File ID]],Table119[], MATCH(C$4,Table119[#Headers],0), 0)","v":{"$error":"#N/A"}}]
[161,{"$f":"VLOOKUP(Blank[[#This Row],[File ID]],Table119[], MATCH(B$4,Table119[#Headers],0), 0)","v":{"$error":"#N/A"}},{"$f":"VLOOKUP(Blank[[#This Row],[File ID]],Table119[], MATCH(C$4,Table119[#Headers],0), 0)","v":{"$error":"#N/A"}}]
[162,{"$f":"VLOOKUP(Blank[[#This Row],[File ID]],Table119[], MATCH(B$4,Table119[#Headers],0), 0)","v":{"$error":"#N/A"}},{"$f":"VLOOKUP(Blank[[#This Row],[File ID]],Table119[], MATCH(C$4,Table119[#Headers],0), 0)","v":{"$error":"#N/A"}}]
[163,{"$f":"VLOOKUP(Blank[[#This Row],[File ID]],Table119[], MATCH(B$4,Table119[#Headers],0), 0)","v":{"$error":"#N/A"}},{"$f":"VLOOKUP(Blank[[#This Row],[File ID]],Table119[], MATCH(C$4,Table119[#Headers],0), 0)","v":{"$error":"#N/A"}}]
[164,{"$f":"VLOOKUP(Blank[[#This Row],[File ID]],Table119[], MATCH(B$4,Table119[#Headers],0), 0)","v":{"$error":"#N/A"}},{"$f":"VLOOKUP(Blank[[#This Row],[File ID]],Table119[], MATCH(C$4,Table119[#Headers],0), 0)","v":{"$error":"#N/A"}}]
[165,{"$f":"VLOOKUP(Blank[[#This Row],[File ID]],Table119[], MATCH(B$4,Table119[#Headers],0), 0)","v":{"$error":"#N/A"}},{"$f":"VLOOKUP(Blank[[#This Row],[File ID]],Table119[], MATCH(C$4,Table119[#Headers],0), 0)","v":{"$error":"#N/A"}}]
[166,{"$f":"VLOOKUP(Blank[[#This Row],[File ID]],Table119[], MATCH(B$4,Table119[#Headers],0), 0)","v":{"$error":"#N/A"}},{"$f":"VLOOKUP(Blank[[#This Row],[File ID]],Table119[], MATCH(C$4,Table119[#Headers],0), 0)","v":{"$error":"#N/A"}}]
[167,{"$f":"VLOOKUP(Blank[[#This Row],[File ID]],Table119[], MATCH(B$4,Table119[#Headers],0), 0)","v":{"$error":"#N/A"}},{"$f":"VLOOKUP(Blank[[#This Row],[File ID]],Table119[], MATCH(C$4,Table119[#Headers],0), 0)","v":{"$error":"#N/A"}}]
[168,{"$f":"VLOOKUP(Blank[[#This Row],[File ID]],Table119[], MATCH(B$4,Table119[#Headers],0), 0)","v":{"$error":"#N/A"}},{"$f":"VLOOKUP(Blank[[#This Row],[File ID]],Table119[], MATCH(C$4,Table119[#Headers],0), 0)","v":{"$error":"#N/A"}}]
[169,{"$f":"VLOOKUP(Blank[[#This Row],[File ID]],Table119[], MATCH(B$4,Table119[#Headers],0), 0)","v":{"$error":"#N/A"}},{"$f":"VLOOKUP(Blank[[#This Row],[File ID]],Table119[], MATCH(C$4,Table119[#Headers],0), 0)","v":{"$error":"#N/A"}}]
[170,{"$f":"VLOOKUP(Blank[[#This Row],[File ID]],Table119[], MATCH(B$4,Table119[#Headers],0), 0)","v":{"$error":"#N/A"}},{"$f":"VLOOKUP(Blank[[#This Row],[File ID]],Table119[], MATCH(C$4,Table119[#Headers],0), 0)","v":{"$error":"#N/A"}}]
[171,{"$f":"VLOOKUP(Blank[[#This Row],[File ID]],Table119[], MATCH(B$4,Table119[#Headers],0), 0)","v":{"$error":"#N/A"}},{"$f":"VLOOKUP(Blank[[#This Row],[File ID]],Table119[], MATCH(C$4,Table119[#Headers],0), 0)","v":{"$error":"#N/A"}}]
[172,{"$f":"VLOOKUP(Blank[[#This Row],[File ID]],Table119[], MATCH(B$4,Table119[#Headers],0), 0)","v":{"$error":"#N/A"}},{"$f":"VLOOKUP(Blank[[#This Row],[File ID]],Table119[], MATCH(C$4,Table119[#Headers],0), 0)","v":{"$error":"#N/A"}}]
[173,{"$f":"VLOOKUP(Blank[[#This Row],[File ID]],Table119[], MATCH(B$4,Table119[#Headers],0), 0)","v":{"$error":"#N/A"}},{"$f":"VLOOKUP(Blank[[#This Row],[File ID]],Table119[], MATCH(C$4,Table119[#Headers],0), 0)","v":{"$error":"#N/A"}}]
[174,{"$f":"VLOOKUP(Blank[[#This Row],[File ID]],Table119[], MATCH(B$4,Table119[#Headers],0), 0)","v":{"$error":"#N/A"}},{"$f":"VLOOKUP(Blank[[#This Row],[File ID]],Table119[], MATCH(C$4,Table119[#Headers],0), 0)","v":{"$error":"#N/A"}}]
[175,{"$f":"VLOOKUP(Blank[[#This Row],[File ID]],Table119[], MATCH(B$4,Table119[#Headers],0), 0)","v":{"$error":"#N/A"}},{"$f":"VLOOKUP(Blank[[#This Row],[File ID]],Table119[], MATCH(C$4,Table119[#Headers],0), 0)","v":{"$error":"#N/A"}}]
[176,{"$f":"VLOOKUP(Blank[[#This Row],[File ID]],Table119[], MATCH(B$4,Table119[#Headers],0), 0)","v":{"$error":"#N/A"}},{"$f":"VLOOKUP(Blank[[#This Row],[File ID]],Table119[], MATCH(C$4,Table119[#Headers],0), 0)","v":{"$error":"#N/A"}}]
[177,{"$f":"VLOOKUP(Blank[[#This Row],[File ID]],Table119[], MATCH(B$4,Table119[#Headers],0), 0)","v":{"$error":"#N/A"}},{"$f":"VLOOKUP(Blank[[#This Row],[File ID]],Table119[], MATCH(C$4,Table119[#Headers],0), 0)","v":{"$error":"#N/A"}}]
[178,{"$f":"VLOOKUP(Blank[[#This Row],[File ID]],Table119[], MATCH(B$4,Table119[#Headers],0), 0)","v":{"$error":"#N/A"}},{"$f":"VLOOKUP(Blank[[#This Row],[File ID]],Table119[], MATCH(C$4,Table119[#Headers],0), 0)","v":{"$error":"#N/A"}}]
[179,{"$f":"VLOOKUP(Blank[[#This Row],[File ID]],Table119[], MATCH(B$4,Table119[#Headers],0), 0)","v":{"$error":"#N/A"}},{"$f":"VLOOKUP(Blank[[#This Row],[File ID]],Table119[], MATCH(C$4,Table119[#Headers],0), 0)","v":{"$error":"#N/A"}}]
[180,{"$f":"VLOOKUP(Blank[[#This Row],[File ID]],Table119[], MATCH(B$4,Table119[#Headers],0), 0)","v":{"$error":"#N/A"}},{"$f":"VLOOKUP(Blank[[#This Row],[File ID]],Table119[], MATCH(C$4,Table119[#Headers],0), 0)","v":{"$error":"#N/A"}}]
[181,{"$f":"VLOOKUP(Blank[[#This Row],[File ID]],Table119[], MATCH(B$4,Table119[#Headers],0), 0)","v":{"$error":"#N/A"}},{"$f":"VLOOKUP(Blank[[#This Row],[File ID]],Table119[], MATCH(C$4,Table119[#Headers],0), 0)","v":{"$error":"#N/A"}}]
[182,{"$f":"VLOOKUP(Blank[[#This Row],[File ID]],Table119[], MATCH(B$4,Table119[#Headers],0), 0)","v":{"$error":"#N/A"}},{"$f":"VLOOKUP(Blank[[#This Row],[File ID]],Table119[], MATCH(C$4,Table119[#Headers],0), 0)","v":{"$error":"#N/A"}}]
[183,{"$f":"VLOOKUP(Blank[[#This Row],[File ID]],Table119[], MATCH(B$4,Table119[#Headers],0), 0)","v":{"$error":"#N/A"}},{"$f":"VLOOKUP(Blank[[#This Row],[File ID]],Table119[], MATCH(C$4,Table119[#Headers],0), 0)","v":{"$error":"#N/A"}}]
[184,{"$f":"VLOOKUP(Blank[[#This Row],[File ID]],Table119[], MATCH(B$4,Table119[#Headers],0), 0)","v":{"$error":"#N/A"}},{"$f":"VLOOKUP(Blank[[#This Row],[File ID]],Table119[], MATCH(C$4,Table119[#Headers],0), 0)","v":{"$error":"#N/A"}}]
[185,{"$f":"VLOOKUP(Blank[[#This Row],[File ID]],Table119[], MATCH(B$4,Table119[#Headers],0), 0)","v":{"$error":"#N/A"}},{"$f":"VLOOKUP(Blank[[#This Row],[File ID]],Table119[], MATCH(C$4,Table119[#Headers],0), 0)","v":{"$error":"#N/A"}}]
[186,{"$f":"VLOOKUP(Blank[[#This Row],[File ID]],Table119[], MATCH(B$4,Table119[#Headers],0), 0)","v":{"$error":"#N/A"}},{"$f":"VLOOKUP(Blank[[#This Row],[File ID]],Table119[], MATCH(C$4,Table119[#Headers],0), 0)","v":{"$error":"#N/A"}}]
[187,{"$f":"VLOOKUP(Blank[[#This Row],[File ID]],Table119[], MATCH(B$4,Table119[#Headers],0), 0)","v":{"$error":"#N/A"}},{"$f":"VLOOKUP(Blank[[#This Row],[File ID]],Table119[], MATCH(C$4,Table119[#Headers],0), 0)","v":{"$error":"#N/A"}}]
[188,{"$f":"VLOOKUP(Blank[[#This Row],[File ID]],Table119[], MATCH(B$4,Table119[#Headers],0), 0)","v":{"$error":"#N/A"}},{"$f":"VLOOKUP(Blank[[#This Row],[File ID]],Table119[], MATCH(C$4,Table119[#Headers],0), 0)","v":{"$error":"#N/A"}}]
[189,{"$f":"VLOOKUP(Blank[[#This Row],[File ID]],Table119[], MATCH(B$4,Table119[#Headers],0), 0)","v":{"$error":"#N/A"}},{"$f":"VLOOKUP(Blank[[#This Row],[File ID]],Table119[], MATCH(C$4,Table119[#Headers],0), 0)","v":{"$error":"#N/A"}}]
[190,{"$f":"VLOOKUP(Blank[[#This Row],[File ID]],Table119[], MATCH(B$4,Table119[#Headers],0), 0)","v":{"$error":"#N/A"}},{"$f":"VLOOKUP(Blank[[#This Row],[File ID]],Table119[], MATCH(C$4,Table119[#Headers],0), 0)","v":{"$error":"#N/A"}}]
[191,{"$f":"VLOOKUP(Blank[[#This Row],[File ID]],Table119[], MATCH(B$4,Table119[#Headers],0), 0)","v":{"$error":"#N/A"}},{"$f":"VLOOKUP(Blank[[#This Row],[File ID]],Table119[], MATCH(C$4,Table119[#Headers],0), 0)","v":{"$error":"#N/A"}}]
[192,{"$f":"VLOOKUP(Blank[[#This Row],[File ID]],Table119[], MATCH(B$4,Table119[#Headers],0), 0)","v":{"$error":"#N/A"}},{"$f":"VLOOKUP(Blank[[#This Row],[File ID]],Table119[], MATCH(C$4,Table119[#Headers],0), 0)","v":{"$error":"#N/A"}}]
[193,{"$f":"VLOOKUP(Blank[[#This Row],[File ID]],Table119[], MATCH(B$4,Table119[#Headers],0), 0)","v":{"$error":"#N/A"}},{"$f":"VLOOKUP(Blank[[#This Row],[File ID]],Table119[], MATCH(C$4,Table119[#Headers],0), 0)","v":{"$error":"#N/A"}}]
[{"$f":"ROW()-4","v":194},{"$f":"VLOOKUP(Blank[[#This Row],[File ID]],Table119[], MATCH(B$4,Table119[#Headers],0), 0)","v":{"$error":"#N/A"}},{"$f":"VLOOKUP(Blank[[#This Row],[File ID]],Table119[], MATCH(C$4,Table119[#Headers],0), 0)","v":{"$error":"#N/A"}}]
[195,{"$f":"VLOOKUP(Blank[[#This Row],[File ID]],Table119[], MATCH(B$4,Table119[#Headers],0), 0)","v":{"$error":"#N/A"}},{"$f":"VLOOKUP(Blank[[#This Row],[File ID]],Table119[], MATCH(C$4,Table119[#Headers],0), 0)","v":{"$error":"#N/A"}}]
[196,{"$f":"VLOOKUP(Blank[[#This Row],[File ID]],Table119[], MATCH(B$4,Table119[#Headers],0), 0)","v":{"$error":"#N/A"}},{"$f":"VLOOKUP(Blank[[#This Row],[File ID]],Table119[], MATCH(C$4,Table119[#Headers],0), 0)","v":{"$error":"#N/A"}}]
[197,{"$f":"VLOOKUP(Blank[[#This Row],[File ID]],Table119[], MATCH(B$4,Table119[#Headers],0), 0)","v":{"$error":"#N/A"}},{"$f":"VLOOKUP(Blank[[#This Row],[File ID]],Table119[], MATCH(C$4,Table119[#Headers],0), 0)","v":{"$error":"#N/A"}}]
[198,{"$f":"VLOOKUP(Blank[[#This Row],[File ID]],Table119[], MATCH(B$4,Table119[#Headers],0), 0)","v":{"$error":"#N/A"}},{"$f":"VLOOKUP(Blank[[#This Row],[File ID]],Table119[], MATCH(C$4,Table119[#Headers],0), 0)","v":{"$error":"#N/A"}}]
[199,{"$f":"VLOOKUP(Blank[[#This Row],[File ID]],Table119[], MATCH(B$4,Table119[#Headers],0), 0)","v":{"$error":"#N/A"}},{"$f":"VLOOKUP(Blank[[#This Row],[File ID]],Table119[], MATCH(C$4,Table119[#Headers],0), 0)","v":{"$error":"#N/A"}}]
[200,{"$f":"VLOOKUP(Blank[[#This Row],[File ID]],Table119[], MATCH(B$4,Table119[#Headers],0), 0)","v":{"$error":"#N/A"}},{"$f":"VLOOKUP(Blank[[#This Row],[File ID]],Table119[], MATCH(C$4,Table119[#Headers],0), 0)","v":{"$error":"#N/A"}}]
[201,{"$f":"VLOOKUP(Blank[[#This Row],[File ID]],Table119[], MATCH(B$4,Table119[#Headers],0), 0)","v":{"$error":"#N/A"}},{"$f":"VLOOKUP(Blank[[#This Row],[File ID]],Table119[], MATCH(C$4,Table119[#Headers],0), 0)","v":{"$error":"#N/A"}}]
[202,{"$f":"VLOOKUP(Blank[[#This Row],[File ID]],Table119[], MATCH(B$4,Table119[#Headers],0), 0)","v":{"$error":"#N/A"}},{"$f":"VLOOKUP(Blank[[#This Row],[File ID]],Table119[], MATCH(C$4,Table119[#Headers],0), 0)","v":{"$error":"#N/A"}}]
[203,{"$f":"VLOOKUP(Blank[[#This Row],[File ID]],Table119[], MATCH(B$4,Table119[#Headers],0), 0)","v":{"$error":"#N/A"}},{"$f":"VLOOKUP(Blank[[#This Row],[File ID]],Table119[], MATCH(C$4,Table119[#Headers],0), 0)","v":{"$error":"#N/A"}}]
[204,{"$f":"VLOOKUP(Blank[[#This Row],[File ID]],Table119[], MATCH(B$4,Table119[#Headers],0), 0)","v":{"$error":"#N/A"}},{"$f":"VLOOKUP(Blank[[#This Row],[File ID]],Table119[], MATCH(C$4,Table119[#Headers],0), 0)","v":{"$error":"#N/A"}}]
[205,{"$f":"VLOOKUP(Blank[[#This Row],[File ID]],Table119[], MATCH(B$4,Table119[#Headers],0), 0)","v":{"$error":"#N/A"}},{"$f":"VLOOKUP(Blank[[#This Row],[File ID]],Table119[], MATCH(C$4,Table119[#Headers],0), 0)","v":{"$error":"#N/A"}}]
[206,{"$f":"VLOOKUP(Blank[[#This Row],[File ID]],Table119[], MATCH(B$4,Table119[#Headers],0), 0)","v":{"$error":"#N/A"}},{"$f":"VLOOKUP(Blank[[#This Row],[File ID]],Table119[], MATCH(C$4,Table119[#Headers],0), 0)","v":{"$error":"#N/A"}}]
[207,{"$f":"VLOOKUP(Blank[[#This Row],[File ID]],Table119[], MATCH(B$4,Table119[#Headers],0), 0)","v":{"$error":"#N/A"}},{"$f":"VLOOKUP(Blank[[#This Row],[File ID]],Table119[], MATCH(C$4,Table119[#Headers],0), 0)","v":{"$error":"#N/A"}}]
[208,{"$f":"VLOOKUP(Blank[[#This Row],[File ID]],Table119[], MATCH(B$4,Table119[#Headers],0), 0)","v":{"$error":"#N/A"}},{"$f":"VLOOKUP(Blank[[#This Row],[File ID]],Table119[], MATCH(C$4,Table119[#Headers],0), 0)","v":{"$error":"#N/A"}}]
[209,{"$f":"VLOOKUP(Blank[[#This Row],[File ID]],Table119[], MATCH(B$4,Table119[#Headers],0), 0)","v":{"$error":"#N/A"}},{"$f":"VLOOKUP(Blank[[#This Row],[File ID]],Table119[], MATCH(C$4,Table119[#Headers],0), 0)","v":{"$error":"#N/A"}}]
[210,{"$f":"VLOOKUP(Blank[[#This Row],[File ID]],Table119[], MATCH(B$4,Table119[#Headers],0), 0)","v":{"$error":"#N/A"}},{"$f":"VLOOKUP(Blank[[#This Row],[File ID]],Table119[], MATCH(C$4,Table119[#Headers],0), 0)","v":{"$error":"#N/A"}}]
[211,{"$f":"VLOOKUP(Blank[[#This Row],[File ID]],Table119[], MATCH(B$4,Table119[#Headers],0), 0)","v":{"$error":"#N/A"}},{"$f":"VLOOKUP(Blank[[#This Row],[File ID]],Table119[], MATCH(C$4,Table119[#Headers],0), 0)","v":{"$error":"#N/A"}}]
[212,{"$f":"VLOOKUP(Blank[[#This Row],[File ID]],Table119[], MATCH(B$4,Table119[#Headers],0), 0)","v":{"$error":"#N/A"}},{"$f":"VLOOKUP(Blank[[#This Row],[File ID]],Table119[], MATCH(C$4,Table119[#Headers],0), 0)","v":{"$error":"#N/A"}}]
[213,{"$f":"VLOOKUP(Blank[[#This Row],[File ID]],Table119[], MATCH(B$4,Table119[#Headers],0), 0)","v":{"$error":"#N/A"}},{"$f":"VLOOKUP(Blank[[#This Row],[File ID]],Table119[], MATCH(C$4,Table119[#Headers],0), 0)","v":{"$error":"#N/A"}}]
[214,{"$f":"VLOOKUP(Blank[[#This Row],[File ID]],Table119[], MATCH(B$4,Table119[#Headers],0), 0)","v":{"$error":"#N/A"}},{"$f":"VLOOKUP(Blank[[#This Row],[File ID]],Table119[], MATCH(C$4,Table119[#Headers],0), 0)","v":{"$error":"#N/A"}}]
[215,{"$f":"VLOOKUP(Blank[[#This Row],[File ID]],Table119[], MATCH(B$4,Table119[#Headers],0), 0)","v":{"$error":"#N/A"}},{"$f":"VLOOKUP(Blank[[#This Row],[File ID]],Table119[], MATCH(C$4,Table119[#Headers],0), 0)","v":{"$error":"#N/A"}}]
[216,{"$f":"VLOOKUP(Blank[[#This Row],[File ID]],Table119[], MATCH(B$4,Table119[#Headers],0), 0)","v":{"$error":"#N/A"}},{"$f":"VLOOKUP(Blank[[#This Row],[File ID]],Table119[], MATCH(C$4,Table119[#Headers],0), 0)","v":{"$error":"#N/A"}}]
[217,{"$f":"VLOOKUP(Blank[[#This Row],[File ID]],Table119[], MATCH(B$4,Table119[#Headers],0), 0)","v":{"$error":"#N/A"}},{"$f":"VLOOKUP(Blank[[#This Row],[File ID]],Table119[], MATCH(C$4,Table119[#Headers],0), 0)","v":{"$error":"#N/A"}}]
[218,{"$f":"VLOOKUP(Blank[[#This Row],[File ID]],Table119[], MATCH(B$4,Table119[#Headers],0), 0)","v":{"$error":"#N/A"}},{"$f":"VLOOKUP(Blank[[#This Row],[File ID]],Table119[], MATCH(C$4,Table119[#Headers],0), 0)","v":{"$error":"#N/A"}}]
[219,{"$f":"VLOOKUP(Blank[[#This Row],[File ID]],Table119[], MATCH(B$4,Table119[#Headers],0), 0)","v":{"$error":"#N/A"}},{"$f":"VLOOKUP(Blank[[#This Row],[File ID]],Table119[], MATCH(C$4,Table119[#Headers],0), 0)","v":{"$error":"#N/A"}}]
[220,{"$f":"VLOOKUP(Blank[[#This Row],[File ID]],Table119[], MATCH(B$4,Table119[#Headers],0), 0)","v":{"$error":"#N/A"}},{"$f":"VLOOKUP(Blank[[#This Row],[File ID]],Table119[], MATCH(C$4,Table119[#Headers],0), 0)","v":{"$error":"#N/A"}}]
[221,{"$f":"VLOOKUP(Blank[[#This Row],[File ID]],Table119[], MATCH(B$4,Table119[#Headers],0), 0)","v":{"$error":"#N/A"}},{"$f":"VLOOKUP(Blank[[#This Row],[File ID]],Table119[], MATCH(C$4,Table119[#Headers],0), 0)","v":{"$error":"#N/A"}}]
[222,{"$f":"VLOOKUP(Blank[[#This Row],[File ID]],Table119[], MATCH(B$4,Table119[#Headers],0), 0)","v":{"$error":"#N/A"}},{"$f":"VLOOKUP(Blank[[#This Row],[File ID]],Table119[], MATCH(C$4,Table119[#Headers],0), 0)","v":{"$error":"#N/A"}}]
[223,{"$f":"VLOOKUP(Blank[[#This Row],[File ID]],Table119[], MATCH(B$4,Table119[#Headers],0), 0)","v":{"$error":"#N/A"}},{"$f":"VLOOKUP(Blank[[#This Row],[File ID]],Table119[], MATCH(C$4,Table119[#Headers],0), 0)","v":{"$error":"#N/A"}}]
[224,{"$f":"VLOOKUP(Blank[[#This Row],[File ID]],Table119[], MATCH(B$4,Table119[#Headers],0), 0)","v":{"$error":"#N/A"}},{"$f":"VLOOKUP(Blank[[#This Row],[File ID]],Table119[], MATCH(C$4,Table119[#Headers],0), 0)","v":{"$error":"#N/A"}}]
[225,{"$f":"VLOOKUP(Blank[[#This Row],[File ID]],Table119[], MATCH(B$4,Table119[#Headers],0), 0)","v":{"$error":"#N/A"}},{"$f":"VLOOKUP(Blank[[#This Row],[File ID]],Table119[], MATCH(C$4,Table119[#Headers],0), 0)","v":{"$error":"#N/A"}}]
[226,{"$f":"VLOOKUP(Blank[[#This Row],[File ID]],Table119[], MATCH(B$4,Table119[#Headers],0), 0)","v":{"$error":"#N/A"}},{"$f":"VLOOKUP(Blank[[#This Row],[File ID]],Table119[], MATCH(C$4,Table119[#Headers],0), 0)","v":{"$error":"#N/A"}}]
[227,{"$f":"VLOOKUP(Blank[[#This Row],[File ID]],Table119[], MATCH(B$4,Table119[#Headers],0), 0)","v":{"$error":"#N/A"}},{"$f":"VLOOKUP(Blank[[#This Row],[File ID]],Table119[], MATCH(C$4,Table119[#Headers],0), 0)","v":{"$error":"#N/A"}}]
[228,{"$f":"VLOOKUP(Blank[[#This Row],[File ID]],Table119[], MATCH(B$4,Table119[#Headers],0), 0)","v":{"$error":"#N/A"}},{"$f":"VLOOKUP(Blank[[#This Row],[File ID]],Table119[], MATCH(C$4,Table119[#Headers],0), 0)","v":{"$error":"#N/A"}}]
[229,{"$f":"VLOOKUP(Blank[[#This Row],[File ID]],Table119[], MATCH(B$4,Table119[#Headers],0), 0)","v":{"$error":"#N/A"}},{"$f":"VLOOKUP(Blank[[#This Row],[File ID]],Table119[], MATCH(C$4,Table119[#Headers],0), 0)","v":{"$error":"#N/A"}}]
[230,{"$f":"VLOOKUP(Blank[[#This Row],[File ID]],Table119[], MATCH(B$4,Table119[#Headers],0), 0)","v":{"$error":"#N/A"}},{"$f":"VLOOKUP(Blank[[#This Row],[File ID]],Table119[], MATCH(C$4,Table119[#Headers],0), 0)","v":{"$error":"#N/A"}}]
[231,{"$f":"VLOOKUP(Blank[[#This Row],[File ID]],Table119[], MATCH(B$4,Table119[#Headers],0), 0)","v":{"$error":"#N/A"}},{"$f":"VLOOKUP(Blank[[#This Row],[File ID]],Table119[], MATCH(C$4,Table119[#Headers],0), 0)","v":{"$error":"#N/A"}}]
[232,{"$f":"VLOOKUP(Blank[[#This Row],[File ID]],Table119[], MATCH(B$4,Table119[#Headers],0), 0)","v":{"$error":"#N/A"}},{"$f":"VLOOKUP(Blank[[#This Row],[File ID]],Table119[], MATCH(C$4,Table119[#Headers],0), 0)","v":{"$error":"#N/A"}}]
[233,{"$f":"VLOOKUP(Blank[[#This Row],[File ID]],Table119[], MATCH(B$4,Table119[#Headers],0), 0)","v":{"$error":"#N/A"}},{"$f":"VLOOKUP(Blank[[#This Row],[File ID]],Table119[], MATCH(C$4,Table119[#Headers],0), 0)","v":{"$error":"#N/A"}}]
[234,{"$f":"VLOOKUP(Blank[[#This Row],[File ID]],Table119[], MATCH(B$4,Table119[#Headers],0), 0)","v":{"$error":"#N/A"}},{"$f":"VLOOKUP(Blank[[#This Row],[File ID]],Table119[], MATCH(C$4,Table119[#Headers],0), 0)","v":{"$error":"#N/A"}}]
[235,{"$f":"VLOOKUP(Blank[[#This Row],[File ID]],Table119[], MATCH(B$4,Table119[#Headers],0), 0)","v":{"$error":"#N/A"}},{"$f":"VLOOKUP(Blank[[#This Row],[File ID]],Table119[], MATCH(C$4,Table119[#Headers],0), 0)","v":{"$error":"#N/A"}}]
[236,{"$f":"VLOOKUP(Blank[[#This Row],[File ID]],Table119[], MATCH(B$4,Table119[#Headers],0), 0)","v":{"$error":"#N/A"}},{"$f":"VLOOKUP(Blank[[#This Row],[File ID]],Table119[], MATCH(C$4,Table119[#Headers],0), 0)","v":{"$error":"#N/A"}}]
[237,{"$f":"VLOOKUP(Blank[[#This Row],[File ID]],Table119[], MATCH(B$4,Table119[#Headers],0), 0)","v":{"$error":"#N/A"}},{"$f":"VLOOKUP(Blank[[#This Row],[File ID]],Table119[], MATCH(C$4,Table119[#Headers],0), 0)","v":{"$error":"#N/A"}}]
[238,{"$f":"VLOOKUP(Blank[[#This Row],[File ID]],Table119[], MATCH(B$4,Table119[#Headers],0), 0)","v":{"$error":"#N/A"}},{"$f":"VLOOKUP(Blank[[#This Row],[File ID]],Table119[], MATCH(C$4,Table119[#Headers],0), 0)","v":{"$error":"#N/A"}}]
[239,{"$f":"VLOOKUP(Blank[[#This Row],[File ID]],Table119[], MATCH(B$4,Table119[#Headers],0), 0)","v":{"$error":"#N/A"}},{"$f":"VLOOKUP(Blank[[#This Row],[File ID]],Table119[], MATCH(C$4,Table119[#Headers],0), 0)","v":{"$error":"#N/A"}}]
[240,{"$f":"VLOOKUP(Blank[[#This Row],[File ID]],Table119[], MATCH(B$4,Table119[#Headers],0), 0)","v":{"$error":"#N/A"}},{"$f":"VLOOKUP(Blank[[#This Row],[File ID]],Table119[], MATCH(C$4,Table119[#Headers],0), 0)","v":{"$error":"#N/A"}}]
[241,{"$f":"VLOOKUP(Blank[[#This Row],[File ID]],Table119[], MATCH(B$4,Table119[#Headers],0), 0)","v":{"$error":"#N/A"}},{"$f":"VLOOKUP(Blank[[#This Row],[File ID]],Table119[], MATCH(C$4,Table119[#Headers],0), 0)","v":{"$error":"#N/A"}}]
[242,{"$f":"VLOOKUP(Blank[[#This Row],[File ID]],Table119[], MATCH(B$4,Table119[#Headers],0), 0)","v":{"$error":"#N/A"}},{"$f":"VLOOKUP(Blank[[#This Row],[File ID]],Table119[], MATCH(C$4,Table119[#Headers],0), 0)","v":{"$error":"#N/A"}}]
[243,{"$f":"VLOOKUP(Blank[[#This Row],[File ID]],Table119[], MATCH(B$4,Table119[#Headers],0), 0)","v":{"$error":"#N/A"}},{"$f":"VLOOKUP(Blank[[#This Row],[File ID]],Table119[], MATCH(C$4,Table119[#Headers],0), 0)","v":{"$error":"#N/A"}}]
[244,{"$f":"VLOOKUP(Blank[[#This Row],[File ID]],Table119[], MATCH(B$4,Table119[#Headers],0), 0)","v":{"$error":"#N/A"}},{"$f":"VLOOKUP(Blank[[#This Row],[File ID]],Table119[], MATCH(C$4,Table119[#Headers],0), 0)","v":{"$error":"#N/A"}}]
[245,{"$f":"VLOOKUP(Blank[[#This Row],[File ID]],Table119[], MATCH(B$4,Table119[#Headers],0), 0)","v":{"$error":"#N/A"}},{"$f":"VLOOKUP(Blank[[#This Row],[File ID]],Table119[], MATCH(C$4,Table119[#Headers],0), 0)","v":{"$error":"#N/A"}}]
[246,{"$f":"VLOOKUP(Blank[[#This Row],[File ID]],Table119[], MATCH(B$4,Table119[#Headers],0), 0)","v":{"$error":"#N/A"}},{"$f":"VLOOKUP(Blank[[#This Row],[File ID]],Table119[], MATCH(C$4,Table119[#Headers],0), 0)","v":{"$error":"#N/A"}}]
[247,{"$f":"VLOOKUP(Blank[[#This Row],[File ID]],Table119[], MATCH(B$4,Table119[#Headers],0), 0)","v":{"$error":"#N/A"}},{"$f":"VLOOKUP(Blank[[#This Row],[File ID]],Table119[], MATCH(C$4,Table119[#Headers],0), 0)","v":{"$error":"#N/A"}}]
[248,{"$f":"VLOOKUP(Blank[[#This Row],[File ID]],Table119[], MATCH(B$4,Table119[#Headers],0), 0)","v":{"$error":"#N/A"}},{"$f":"VLOOKUP(Blank[[#This Row],[File ID]],Table119[], MATCH(C$4,Table119[#Headers],0), 0)","v":{"$error":"#N/A"}}]
[249,{"$f":"VLOOKUP(Blank[[#This Row],[File ID]],Table119[], MATCH(B$4,Table119[#Headers],0), 0)","v":{"$error":"#N/A"}},{"$f":"VLOOKUP(Blank[[#This Row],[File ID]],Table119[], MATCH(C$4,Table119[#Headers],0), 0)","v":{"$error":"#N/A"}}]
[250,{"$f":"VLOOKUP(Blank[[#This Row],[File ID]],Table119[], MATCH(B$4,Table119[#Headers],0), 0)","v":{"$error":"#N/A"}},{"$f":"VLOOKUP(Blank[[#This Row],[File ID]],Table119[], MATCH(C$4,Table119[#Headers],0), 0)","v":{"$error":"#N/A"}}]
[251,{"$f":"VLOOKUP(Blank[[#This Row],[File ID]],Table119[], MATCH(B$4,Table119[#Headers],0), 0)","v":{"$error":"#N/A"}},{"$f":"VLOOKUP(Blank[[#This Row],[File ID]],Table119[], MATCH(C$4,Table119[#Headers],0), 0)","v":{"$error":"#N/A"}}]
[252,{"$f":"VLOOKUP(Blank[[#This Row],[File ID]],Table119[], MATCH(B$4,Table119[#Headers],0), 0)","v":{"$error":"#N/A"}},{"$f":"VLOOKUP(Blank[[#This Row],[File ID]],Table119[], MATCH(C$4,Table119[#Headers],0), 0)","v":{"$error":"#N/A"}}]
[253,{"$f":"VLOOKUP(Blank[[#This Row],[File ID]],Table119[], MATCH(B$4,Table119[#Headers],0), 0)","v":{"$error":"#N/A"}},{"$f":"VLOOKUP(Blank[[#This Row],[File ID]],Table119[], MATCH(C$4,Table119[#Headers],0), 0)","v":{"$error":"#N/A"}}]
[254,{"$f":"VLOOKUP(Blank[[#This Row],[File ID]],Table119[], MATCH(B$4,Table119[#Headers],0), 0)","v":{"$error":"#N/A"}},{"$f":"VLOOKUP(Blank[[#This Row],[File ID]],Table119[], MATCH(C$4,Table119[#Headers],0), 0)","v":{"$error":"#N/A"}}]
[255,{"$f":"VLOOKUP(Blank[[#This Row],[File ID]],Table119[], MATCH(B$4,Table119[#Headers],0), 0)","v":{"$error":"#N/A"}},{"$f":"VLOOKUP(Blank[[#This Row],[File ID]],Table119[], MATCH(C$4,Table119[#Headers],0), 0)","v":{"$error":"#N/A"}}]
[256,{"$f":"VLOOKUP(Blank[[#This Row],[File ID]],Table119[], MATCH(B$4,Table119[#Headers],0), 0)","v":{"$error":"#N/A"}},{"$f":"VLOOKUP(Blank[[#This Row],[File ID]],Table119[], MATCH(C$4,Table119[#Headers],0), 0)","v":{"$error":"#N/A"}}]
[257,{"$f":"VLOOKUP(Blank[[#This Row],[File ID]],Table119[], MATCH(B$4,Table119[#Headers],0), 0)","v":{"$error":"#N/A"}},{"$f":"VLOOKUP(Blank[[#This Row],[File ID]],Table119[], MATCH(C$4,Table119[#Headers],0), 0)","v":{"$error":"#N/A"}}]
[{"$f":"ROW()-4","v":258},{"$f":"VLOOKUP(Blank[[#This Row],[File ID]],Table119[], MATCH(B$4,Table119[#Headers],0), 0)","v":{"$error":"#N/A"}},{"$f":"VLOOKUP(Blank[[#This Row],[File ID]],Table119[], MATCH(C$4,Table119[#Headers],0), 0)","v":{"$error":"#N/A"}}]
[259,{"$f":"VLOOKUP(Blank[[#This Row],[File ID]],Table119[], MATCH(B$4,Table119[#Headers],0), 0)","v":{"$error":"#N/A"}},{"$f":"VLOOKUP(Blank[[#This Row],[File ID]],Table119[], MATCH(C$4,Table119[#Headers],0), 0)","v":{"$error":"#N/A"}}]
[260,{"$f":"VLOOKUP(Blank[[#This Row],[File ID]],Table119[], MATCH(B$4,Table119[#Headers],0), 0)","v":{"$error":"#N/A"}},{"$f":"VLOOKUP(Blank[[#This Row],[File ID]],Table119[], MATCH(C$4,Table119[#Headers],0), 0)","v":{"$error":"#N/A"}}]
[261,{"$f":"VLOOKUP(Blank[[#This Row],[File ID]],Table119[], MATCH(B$4,Table119[#Headers],0), 0)","v":{"$error":"#N/A"}},{"$f":"VLOOKUP(Blank[[#This Row],[File ID]],Table119[], MATCH(C$4,Table119[#Headers],0), 0)","v":{"$error":"#N/A"}}]
[262,{"$f":"VLOOKUP(Blank[[#This Row],[File ID]],Table119[], MATCH(B$4,Table119[#Headers],0), 0)","v":{"$error":"#N/A"}},{"$f":"VLOOKUP(Blank[[#This Row],[File ID]],Table119[], MATCH(C$4,Table119[#Headers],0), 0)","v":{"$error":"#N/A"}}]
[263,{"$f":"VLOOKUP(Blank[[#This Row],[File ID]],Table119[], MATCH(B$4,Table119[#Headers],0), 0)","v":{"$error":"#N/A"}},{"$f":"VLOOKUP(Blank[[#This Row],[File ID]],Table119[], MATCH(C$4,Table119[#Headers],0), 0)","v":{"$error":"#N/A"}}]
[264,{"$f":"VLOOKUP(Blank[[#This Row],[File ID]],Table119[], MATCH(B$4,Table119[#Headers],0), 0)","v":{"$error":"#N/A"}},{"$f":"VLOOKUP(Blank[[#This Row],[File ID]],Table119[], MATCH(C$4,Table119[#Headers],0), 0)","v":{"$error":"#N/A"}}]
[265,{"$f":"VLOOKUP(Blank[[#This Row],[File ID]],Table119[], MATCH(B$4,Table119[#Headers],0), 0)","v":{"$error":"#N/A"}},{"$f":"VLOOKUP(Blank[[#This Row],[File ID]],Table119[], MATCH(C$4,Table119[#Headers],0), 0)","v":{"$error":"#N/A"}}]
[266,{"$f":"VLOOKUP(Blank[[#This Row],[File ID]],Table119[], MATCH(B$4,Table119[#Headers],0), 0)","v":{"$error":"#N/A"}},{"$f":"VLOOKUP(Blank[[#This Row],[File ID]],Table119[], MATCH(C$4,Table119[#Headers],0), 0)","v":{"$error":"#N/A"}}]
[267,{"$f":"VLOOKUP(Blank[[#This Row],[File ID]],Table119[], MATCH(B$4,Table119[#Headers],0), 0)","v":{"$error":"#N/A"}},{"$f":"VLOOKUP(Blank[[#This Row],[File ID]],Table119[], MATCH(C$4,Table119[#Headers],0), 0)","v":{"$error":"#N/A"}}]
[268,{"$f":"VLOOKUP(Blank[[#This Row],[File ID]],Table119[], MATCH(B$4,Table119[#Headers],0), 0)","v":{"$error":"#N/A"}},{"$f":"VLOOKUP(Blank[[#This Row],[File ID]],Table119[], MATCH(C$4,Table119[#Headers],0), 0)","v":{"$error":"#N/A"}}]
[269,{"$f":"VLOOKUP(Blank[[#This Row],[File ID]],Table119[], MATCH(B$4,Table119[#Headers],0), 0)","v":{"$error":"#N/A"}},{"$f":"VLOOKUP(Blank[[#This Row],[File ID]],Table119[], MATCH(C$4,Table119[#Headers],0), 0)","v":{"$error":"#N/A"}}]
[270,{"$f":"VLOOKUP(Blank[[#This Row],[File ID]],Table119[], MATCH(B$4,Table119[#Headers],0), 0)","v":{"$error":"#N/A"}},{"$f":"VLOOKUP(Blank[[#This Row],[File ID]],Table119[], MATCH(C$4,Table119[#Headers],0), 0)","v":{"$error":"#N/A"}}]
[271,{"$f":"VLOOKUP(Blank[[#This Row],[File ID]],Table119[], MATCH(B$4,Table119[#Headers],0), 0)","v":{"$error":"#N/A"}},{"$f":"VLOOKUP(Blank[[#This Row],[File ID]],Table119[], MATCH(C$4,Table119[#Headers],0), 0)","v":{"$error":"#N/A"}}]
[272,{"$f":"VLOOKUP(Blank[[#This Row],[File ID]],Table119[], MATCH(B$4,Table119[#Headers],0), 0)","v":{"$error":"#N/A"}},{"$f":"VLOOKUP(Blank[[#This Row],[File ID]],Table119[], MATCH(C$4,Table119[#Headers],0), 0)","v":{"$error":"#N/A"}}]
[273,{"$f":"VLOOKUP(Blank[[#This Row],[File ID]],Table119[], MATCH(B$4,Table119[#Headers],0), 0)","v":{"$error":"#N/A"}},{"$f":"VLOOKUP(Blank[[#This Row],[File ID]],Table119[], MATCH(C$4,Table119[#Headers],0), 0)","v":{"$error":"#N/A"}}]
[274,{"$f":"VLOOKUP(Blank[[#This Row],[File ID]],Table119[], MATCH(B$4,Table119[#Headers],0), 0)","v":{"$error":"#N/A"}},{"$f":"VLOOKUP(Blank[[#This Row],[File ID]],Table119[], MATCH(C$4,Table119[#Headers],0), 0)","v":{"$error":"#N/A"}}]
[275,{"$f":"VLOOKUP(Blank[[#This Row],[File ID]],Table119[], MATCH(B$4,Table119[#Headers],0), 0)","v":{"$error":"#N/A"}},{"$f":"VLOOKUP(Blank[[#This Row],[File ID]],Table119[], MATCH(C$4,Table119[#Headers],0), 0)","v":{"$error":"#N/A"}}]
[276,{"$f":"VLOOKUP(Blank[[#This Row],[File ID]],Table119[], MATCH(B$4,Table119[#Headers],0), 0)","v":{"$error":"#N/A"}},{"$f":"VLOOKUP(Blank[[#This Row],[File ID]],Table119[], MATCH(C$4,Table119[#Headers],0), 0)","v":{"$error":"#N/A"}}]
[277,{"$f":"VLOOKUP(Blank[[#This Row],[File ID]],Table119[], MATCH(B$4,Table119[#Headers],0), 0)","v":{"$error":"#N/A"}},{"$f":"VLOOKUP(Blank[[#This Row],[File ID]],Table119[], MATCH(C$4,Table119[#Headers],0), 0)","v":{"$error":"#N/A"}}]
[278,{"$f":"VLOOKUP(Blank[[#This Row],[File ID]],Table119[], MATCH(B$4,Table119[#Headers],0), 0)","v":{"$error":"#N/A"}},{"$f":"VLOOKUP(Blank[[#This Row],[File ID]],Table119[], MATCH(C$4,Table119[#Headers],0), 0)","v":{"$error":"#N/A"}}]
[279,{"$f":"VLOOKUP(Blank[[#This Row],[File ID]],Table119[], MATCH(B$4,Table119[#Headers],0), 0)","v":{"$error":"#N/A"}},{"$f":"VLOOKUP(Blank[[#This Row],[File ID]],Table119[], MATCH(C$4,Table119[#Headers],0), 0)","v":{"$error":"#N/A"}}]
[280,{"$f":"VLOOKUP(Blank[[#This Row],[File ID]],Table119[], MATCH(B$4,Table119[#Headers],0), 0)","v":{"$error":"#N/A"}},{"$f":"VLOOKUP(Blank[[#This Row],[File ID]],Table119[], MATCH(C$4,Table119[#Headers],0), 0)","v":{"$error":"#N/A"}}]
[281,{"$f":"VLOOKUP(Blank[[#This Row],[File ID]],Table119[], MATCH(B$4,Table119[#Headers],0), 0)","v":{"$error":"#N/A"}},{"$f":"VLOOKUP(Blank[[#This Row],[File ID]],Table119[], MATCH(C$4,Table119[#Headers],0), 0)","v":{"$error":"#N/A"}}]
[282,{"$f":"VLOOKUP(Blank[[#This Row],[File ID]],Table119[], MATCH(B$4,Table119[#Headers],0), 0)","v":{"$error":"#N/A"}},{"$f":"VLOOKUP(Blank[[#This Row],[File ID]],Table119[], MATCH(C$4,Table119[#Headers],0), 0)","v":{"$error":"#N/A"}}]
[283,{"$f":"VLOOKUP(Blank[[#This Row],[File ID]],Table119[], MATCH(B$4,Table119[#Headers],0), 0)","v":{"$error":"#N/A"}},{"$f":"VLOOKUP(Blank[[#This Row],[File ID]],Table119[], MATCH(C$4,Table119[#Headers],0), 0)","v":{"$error":"#N/A"}}]
[284,{"$f":"VLOOKUP(Blank[[#This Row],[File ID]],Table119[], MATCH(B$4,Table119[#Headers],0), 0)","v":{"$error":"#N/A"}},{"$f":"VLOOKUP(Blank[[#This Row],[File ID]],Table119[], MATCH(C$4,Table119[#Headers],0), 0)","v":{"$error":"#N/A"}}]
[285,{"$f":"VLOOKUP(Blank[[#This Row],[File ID]],Table119[], MATCH(B$4,Table119[#Headers],0), 0)","v":{"$error":"#N/A"}},{"$f":"VLOOKUP(Blank[[#This Row],[File ID]],Table119[], MATCH(C$4,Table119[#Headers],0), 0)","v":{"$error":"#N/A"}}]
[286,{"$f":"VLOOKUP(Blank[[#This Row],[File ID]],Table119[], MATCH(B$4,Table119[#Headers],0), 0)","v":{"$error":"#N/A"}},{"$f":"VLOOKUP(Blank[[#This Row],[File ID]],Table119[], MATCH(C$4,Table119[#Headers],0), 0)","v":{"$error":"#N/A"}}]
[287,{"$f":"VLOOKUP(Blank[[#This Row],[File ID]],Table119[], MATCH(B$4,Table119[#Headers],0), 0)","v":{"$error":"#N/A"}},{"$f":"VLOOKUP(Blank[[#This Row],[File ID]],Table119[], MATCH(C$4,Table119[#Headers],0), 0)","v":{"$error":"#N/A"}}]
[288,{"$f":"VLOOKUP(Blank[[#This Row],[File ID]],Table119[], MATCH(B$4,Table119[#Headers],0), 0)","v":{"$error":"#N/A"}},{"$f":"VLOOKUP(Blank[[#This Row],[File ID]],Table119[], MATCH(C$4,Table119[#Headers],0), 0)","v":{"$error":"#N/A"}}]
[289,{"$f":"VLOOKUP(Blank[[#This Row],[File ID]],Table119[], MATCH(B$4,Table119[#Headers],0), 0)","v":{"$error":"#N/A"}},{"$f":"VLOOKUP(Blank[[#This Row],[File ID]],Table119[], MATCH(C$4,Table119[#Headers],0), 0)","v":{"$error":"#N/A"}}]
[290,{"$f":"VLOOKUP(Blank[[#This Row],[File ID]],Table119[], MATCH(B$4,Table119[#Headers],0), 0)","v":{"$error":"#N/A"}},{"$f":"VLOOKUP(Blank[[#This Row],[File ID]],Table119[], MATCH(C$4,Table119[#Headers],0), 0)","v":{"$error":"#N/A"}}]
[291,{"$f":"VLOOKUP(Blank[[#This Row],[File ID]],Table119[], MATCH(B$4,Table119[#Headers],0), 0)","v":{"$error":"#N/A"}},{"$f":"VLOOKUP(Blank[[#This Row],[File ID]],Table119[], MATCH(C$4,Table119[#Headers],0), 0)","v":{"$error":"#N/A"}}]
[292,{"$f":"VLOOKUP(Blank[[#This Row],[File ID]],Table119[], MATCH(B$4,Table119[#Headers],0), 0)","v":{"$error":"#N/A"}},{"$f":"VLOOKUP(Blank[[#This Row],[File ID]],Table119[], MATCH(C$4,Table119[#Headers],0), 0)","v":{"$error":"#N/A"}}]
[293,{"$f":"VLOOKUP(Blank[[#This Row],[File ID]],Table119[], MATCH(B$4,Table119[#Headers],0), 0)","v":{"$error":"#N/A"}},{"$f":"VLOOKUP(Blank[[#This Row],[File ID]],Table119[], MATCH(C$4,Table119[#Headers],0), 0)","v":{"$error":"#N/A"}}]
[294,{"$f":"VLOOKUP(Blank[[#This Row],[File ID]],Table119[], MATCH(B$4,Table119[#Headers],0), 0)","v":{"$error":"#N/A"}},{"$f":"VLOOKUP(Blank[[#This Row],[File ID]],Table119[], MATCH(C$4,Table119[#Headers],0), 0)","v":{"$error":"#N/A"}}]
[295,{"$f":"VLOOKUP(Blank[[#This Row],[File ID]],Table119[], MATCH(B$4,Table119[#Headers],0), 0)","v":{"$error":"#N/A"}},{"$f":"VLOOKUP(Blank[[#This Row],[File ID]],Table119[], MATCH(C$4,Table119[#Headers],0), 0)","v":{"$error":"#N/A"}}]
[296,{"$f":"VLOOKUP(Blank[[#This Row],[File ID]],Table119[], MATCH(B$4,Table119[#Headers],0), 0)","v":{"$error":"#N/A"}},{"$f":"VLOOKUP(Blank[[#This Row],[File ID]],Table119[], MATCH(C$4,Table119[#Headers],0), 0)","v":{"$error":"#N/A"}}]
[297,{"$f":"VLOOKUP(Blank[[#This Row],[File ID]],Table119[], MATCH(B$4,Table119[#Headers],0), 0)","v":{"$error":"#N/A"}},{"$f":"VLOOKUP(Blank[[#This Row],[File ID]],Table119[], MATCH(C$4,Table119[#Headers],0), 0)","v":{"$error":"#N/A"}}]
[298,{"$f":"VLOOKUP(Blank[[#This Row],[File ID]],Table119[], MATCH(B$4,Table119[#Headers],0), 0)","v":{"$error":"#N/A"}},{"$f":"VLOOKUP(Blank[[#This Row],[File ID]],Table119[], MATCH(C$4,Table119[#Headers],0), 0)","v":{"$error":"#N/A"}}]
[299,{"$f":"VLOOKUP(Blank[[#This Row],[File ID]],Table119[], MATCH(B$4,Table119[#Headers],0), 0)","v":{"$error":"#N/A"}},{"$f":"VLOOKUP(Blank[[#This Row],[File ID]],Table119[], MATCH(C$4,Table119[#Headers],0), 0)","v":{"$error":"#N/A"}}]
[300,{"$f":"VLOOKUP(Blank[[#This Row],[File ID]],Table119[], MATCH(B$4,Table119[#Headers],0), 0)","v":{"$error":"#N/A"}},{"$f":"VLOOKUP(Blank[[#This Row],[File ID]],Table119[], MATCH(C$4,Table119[#Headers],0), 0)","v":{"$error":"#N/A"}}]
[301,{"$f":"VLOOKUP(Blank[[#This Row],[File ID]],Table119[], MATCH(B$4,Table119[#Headers],0), 0)","v":{"$error":"#N/A"}},{"$f":"VLOOKUP(Blank[[#This Row],[File ID]],Table119[], MATCH(C$4,Table119[#Headers],0), 0)","v":{"$error":"#N/A"}}]
[302,{"$f":"VLOOKUP(Blank[[#This Row],[File ID]],Table119[], MATCH(B$4,Table119[#Headers],0), 0)","v":{"$error":"#N/A"}},{"$f":"VLOOKUP(Blank[[#This Row],[File ID]],Table119[], MATCH(C$4,Table119[#Headers],0), 0)","v":{"$error":"#N/A"}}]
[303,{"$f":"VLOOKUP(Blank[[#This Row],[File ID]],Table119[], MATCH(B$4,Table119[#Headers],0), 0)","v":{"$error":"#N/A"}},{"$f":"VLOOKUP(Blank[[#This Row],[File ID]],Table119[], MATCH(C$4,Table119[#Headers],0), 0)","v":{"$error":"#N/A"}}]
[304,{"$f":"VLOOKUP(Blank[[#This Row],[File ID]],Table119[], MATCH(B$4,Table119[#Headers],0), 0)","v":{"$error":"#N/A"}},{"$f":"VLOOKUP(Blank[[#This Row],[File ID]],Table119[], MATCH(C$4,Table119[#Headers],0), 0)","v":{"$error":"#N/A"}}]
[305,{"$f":"VLOOKUP(Blank[[#This Row],[File ID]],Table119[], MATCH(B$4,Table119[#Headers],0), 0)","v":{"$error":"#N/A"}},{"$f":"VLOOKUP(Blank[[#This Row],[File ID]],Table119[], MATCH(C$4,Table119[#Headers],0), 0)","v":{"$error":"#N/A"}}]
[306,{"$f":"VLOOKUP(Blank[[#This Row],[File ID]],Table119[], MATCH(B$4,Table119[#Headers],0), 0)","v":{"$error":"#N/A"}},{"$f":"VLOOKUP(Blank[[#This Row],[File ID]],Table119[], MATCH(C$4,Table119[#Headers],0), 0)","v":{"$error":"#N/A"}}]
[307,{"$f":"VLOOKUP(Blank[[#This Row],[File ID]],Table119[], MATCH(B$4,Table119[#Headers],0), 0)","v":{"$error":"#N/A"}},{"$f":"VLOOKUP(Blank[[#This Row],[File ID]],Table119[], MATCH(C$4,Table119[#Headers],0), 0)","v":{"$error":"#N/A"}}]
[308,{"$f":"VLOOKUP(Blank[[#This Row],[File ID]],Table119[], MATCH(B$4,Table119[#Headers],0), 0)","v":{"$error":"#N/A"}},{"$f":"VLOOKUP(Blank[[#This Row],[File ID]],Table119[], MATCH(C$4,Table119[#Headers],0), 0)","v":{"$error":"#N/A"}}]
[309,{"$f":"VLOOKUP(Blank[[#This Row],[File ID]],Table119[], MATCH(B$4,Table119[#Headers],0), 0)","v":{"$error":"#N/A"}},{"$f":"VLOOKUP(Blank[[#This Row],[File ID]],Table119[], MATCH(C$4,Table119[#Headers],0), 0)","v":{"$error":"#N/A"}}]
[310,{"$f":"VLOOKUP(Blank[[#This Row],[File ID]],Table119[], MATCH(B$4,Table119[#Headers],0), 0)","v":{"$error":"#N/A"}},{"$f":"VLOOKUP(Blank[[#This Row],[File ID]],Table119[], MATCH(C$4,Table119[#Headers],0), 0)","v":{"$error":"#N/A"}}]
[311,{"$f":"VLOOKUP(Blank[[#This Row],[File ID]],Table119[], MATCH(B$4,Table119[#Headers],0), 0)","v":{"$error":"#N/A"}},{"$f":"VLOOKUP(Blank[[#This Row],[File ID]],Table119[], MATCH(C$4,Table119[#Headers],0), 0)","v":{"$error":"#N/A"}}]
[312,{"$f":"VLOOKUP(Blank[[#This Row],[File ID]],Table119[], MATCH(B$4,Table119[#Headers],0), 0)","v":{"$error":"#N/A"}},{"$f":"VLOOKUP(Blank[[#This Row],[File ID]],Table119[], MATCH(C$4,Table119[#Headers],0), 0)","v":{"$error":"#N/A"}}]
[313,{"$f":"VLOOKUP(Blank[[#This Row],[File ID]],Table119[], MATCH(B$4,Table119[#Headers],0), 0)","v":{"$error":"#N/A"}},{"$f":"VLOOKUP(Blank[[#This Row],[File ID]],Table119[], MATCH(C$4,Table119[#Headers],0), 0)","v":{"$error":"#N/A"}}]
[314,{"$f":"VLOOKUP(Blank[[#This Row],[File ID]],Table119[], MATCH(B$4,Table119[#Headers],0), 0)","v":{"$error":"#N/A"}},{"$f":"VLOOKUP(Blank[[#This Row],[File ID]],Table119[], MATCH(C$4,Table119[#Headers],0), 0)","v":{"$error":"#N/A"}}]
[315,{"$f":"VLOOKUP(Blank[[#This Row],[File ID]],Table119[], MATCH(B$4,Table119[#Headers],0), 0)","v":{"$error":"#N/A"}},{"$f":"VLOOKUP(Blank[[#This Row],[File ID]],Table119[], MATCH(C$4,Table119[#Headers],0), 0)","v":{"$error":"#N/A"}}]
[316,{"$f":"VLOOKUP(Blank[[#This Row],[File ID]],Table119[], MATCH(B$4,Table119[#Headers],0), 0)","v":{"$error":"#N/A"}},{"$f":"VLOOKUP(Blank[[#This Row],[File ID]],Table119[], MATCH(C$4,Table119[#Headers],0), 0)","v":{"$error":"#N/A"}}]
[317,{"$f":"VLOOKUP(Blank[[#This Row],[File ID]],Table119[], MATCH(B$4,Table119[#Headers],0), 0)","v":{"$error":"#N/A"}},{"$f":"VLOOKUP(Blank[[#This Row],[File ID]],Table119[], MATCH(C$4,Table119[#Headers],0), 0)","v":{"$error":"#N/A"}}]
[318,{"$f":"VLOOKUP(Blank[[#This Row],[File ID]],Table119[], MATCH(B$4,Table119[#Headers],0), 0)","v":{"$error":"#N/A"}},{"$f":"VLOOKUP(Blank[[#This Row],[File ID]],Table119[], MATCH(C$4,Table119[#Headers],0), 0)","v":{"$error":"#N/A"}}]
[319,{"$f":"VLOOKUP(Blank[[#This Row],[File ID]],Table119[], MATCH(B$4,Table119[#Headers],0), 0)","v":{"$error":"#N/A"}},{"$f":"VLOOKUP(Blank[[#This Row],[File ID]],Table119[], MATCH(C$4,Table119[#Headers],0), 0)","v":{"$error":"#N/A"}}]
[320,{"$f":"VLOOKUP(Blank[[#This Row],[File ID]],Table119[], MATCH(B$4,Table119[#Headers],0), 0)","v":{"$error":"#N/A"}},{"$f":"VLOOKUP(Blank[[#This Row],[File ID]],Table119[], MATCH(C$4,Table119[#Headers],0), 0)","v":{"$error":"#N/A"}}]
[321,{"$f":"VLOOKUP(Blank[[#This Row],[File ID]],Table119[], MATCH(B$4,Table119[#Headers],0), 0)","v":{"$error":"#N/A"}},{"$f":"VLOOKUP(Blank[[#This Row],[File ID]],Table119[], MATCH(C$4,Table119[#Headers],0), 0)","v":{"$error":"#N/A"}}]
[{"$f":"ROW()-4","v":322},{"$f":"VLOOKUP(Blank[[#This Row],[File ID]],Table119[], MATCH(B$4,Table119[#Headers],0), 0)","v":{"$error":"#N/A"}},{"$f":"VLOOKUP(Blank[[#This Row],[File ID]],Table119[], MATCH(C$4,Table119[#Headers],0), 0)","v":{"$error":"#N/A"}}]
[323,{"$f":"VLOOKUP(Blank[[#This Row],[File ID]],Table119[], MATCH(B$4,Table119[#Headers],0), 0)","v":{"$error":"#N/A"}},{"$f":"VLOOKUP(Blank[[#This Row],[File ID]],Table119[], MATCH(C$4,Table119[#Headers],0), 0)","v":{"$error":"#N/A"}}]
[324,{"$f":"VLOOKUP(Blank[[#This Row],[File ID]],Table119[], MATCH(B$4,Table119[#Headers],0), 0)","v":{"$error":"#N/A"}},{"$f":"VLOOKUP(Blank[[#This Row],[File ID]],Table119[], MATCH(C$4,Table119[#Headers],0), 0)","v":{"$error":"#N/A"}}]
[325,{"$f":"VLOOKUP(Blank[[#This Row],[File ID]],Table119[], MATCH(B$4,Table119[#Headers],0), 0)","v":{"$error":"#N/A"}},{"$f":"VLOOKUP(Blank[[#This Row],[File ID]],Table119[], MATCH(C$4,Table119[#Headers],0), 0)","v":{"$error":"#N/A"}}]
[326,{"$f":"VLOOKUP(Blank[[#This Row],[File ID]],Table119[], MATCH(B$4,Table119[#Headers],0), 0)","v":{"$error":"#N/A"}},{"$f":"VLOOKUP(Blank[[#This Row],[File ID]],Table119[], MATCH(C$4,Table119[#Headers],0), 0)","v":{"$error":"#N/A"}}]
[327,{"$f":"VLOOKUP(Blank[[#This Row],[File ID]],Table119[], MATCH(B$4,Table119[#Headers],0), 0)","v":{"$error":"#N/A"}},{"$f":"VLOOKUP(Blank[[#This Row],[File ID]],Table119[], MATCH(C$4,Table119[#Headers],0), 0)","v":{"$error":"#N/A"}}]
[328,{"$f":"VLOOKUP(Blank[[#This Row],[File ID]],Table119[], MATCH(B$4,Table119[#Headers],0), 0)","v":{"$error":"#N/A"}},{"$f":"VLOOKUP(Blank[[#This Row],[File ID]],Table119[], MATCH(C$4,Table119[#Headers],0), 0)","v":{"$error":"#N/A"}}]
[329,{"$f":"VLOOKUP(Blank[[#This Row],[File ID]],Table119[], MATCH(B$4,Table119[#Headers],0), 0)","v":{"$error":"#N/A"}},{"$f":"VLOOKUP(Blank[[#This Row],[File ID]],Table119[], MATCH(C$4,Table119[#Headers],0), 0)","v":{"$error":"#N/A"}}]
[330,{"$f":"VLOOKUP(Blank[[#This Row],[File ID]],Table119[], MATCH(B$4,Table119[#Headers],0), 0)","v":{"$error":"#N/A"}},{"$f":"VLOOKUP(Blank[[#This Row],[File ID]],Table119[], MATCH(C$4,Table119[#Headers],0), 0)","v":{"$error":"#N/A"}}]
[331,{"$f":"VLOOKUP(Blank[[#This Row],[File ID]],Table119[], MATCH(B$4,Table119[#Headers],0), 0)","v":{"$error":"#N/A"}},{"$f":"VLOOKUP(Blank[[#This Row],[File ID]],Table119[], MATCH(C$4,Table119[#Headers],0), 0)","v":{"$error":"#N/A"}}]
[332,{"$f":"VLOOKUP(Blank[[#This Row],[File ID]],Table119[], MATCH(B$4,Table119[#Headers],0), 0)","v":{"$error":"#N/A"}},{"$f":"VLOOKUP(Blank[[#This Row],[File ID]],Table119[], MATCH(C$4,Table119[#Headers],0), 0)","v":{"$error":"#N/A"}}]
[333,{"$f":"VLOOKUP(Blank[[#This Row],[File ID]],Table119[], MATCH(B$4,Table119[#Headers],0), 0)","v":{"$error":"#N/A"}},{"$f":"VLOOKUP(Blank[[#This Row],[File ID]],Table119[], MATCH(C$4,Table119[#Headers],0), 0)","v":{"$error":"#N/A"}}]
[334,{"$f":"VLOOKUP(Blank[[#This Row],[File ID]],Table119[], MATCH(B$4,Table119[#Headers],0), 0)","v":{"$error":"#N/A"}},{"$f":"VLOOKUP(Blank[[#This Row],[File ID]],Table119[], MATCH(C$4,Table119[#Headers],0), 0)","v":{"$error":"#N/A"}}]
[335,{"$f":"VLOOKUP(Blank[[#This Row],[File ID]],Table119[], MATCH(B$4,Table119[#Headers],0), 0)","v":{"$error":"#N/A"}},{"$f":"VLOOKUP(Blank[[#This Row],[File ID]],Table119[], MATCH(C$4,Table119[#Headers],0), 0)","v":{"$error":"#N/A"}}]
[336,{"$f":"VLOOKUP(Blank[[#This Row],[File ID]],Table119[], MATCH(B$4,Table119[#Headers],0), 0)","v":{"$error":"#N/A"}},{"$f":"VLOOKUP(Blank[[#This Row],[File ID]],Table119[], MATCH(C$4,Table119[#Headers],0), 0)","v":{"$error":"#N/A"}}]
[337,{"$f":"VLOOKUP(Blank[[#This Row],[File ID]],Table119[], MATCH(B$4,Table119[#Headers],0), 0)","v":{"$error":"#N/A"}},{"$f":"VLOOKUP(Blank[[#This Row],[File ID]],Table119[], MATCH(C$4,Table119[#Headers],0), 0)","v":{"$error":"#N/A"}}]
[338,{"$f":"VLOOKUP(Blank[[#This Row],[File ID]],Table119[], MATCH(B$4,Table119[#Headers],0), 0)","v":{"$error":"#N/A"}},{"$f":"VLOOKUP(Blank[[#This Row],[File ID]],Table119[], MATCH(C$4,Table119[#Headers],0), 0)","v":{"$error":"#N/A"}}]
[339,{"$f":"VLOOKUP(Blank[[#This Row],[File ID]],Table119[], MATCH(B$4,Table119[#Headers],0), 0)","v":{"$error":"#N/A"}},{"$f":"VLOOKUP(Blank[[#This Row],[File ID]],Table119[], MATCH(C$4,Table119[#Headers],0), 0)","v":{"$error":"#N/A"}}]
[340,{"$f":"VLOOKUP(Blank[[#This Row],[File ID]],Table119[], MATCH(B$4,Table119[#Headers],0), 0)","v":{"$error":"#N/A"}},{"$f":"VLOOKUP(Blank[[#This Row],[File ID]],Table119[], MATCH(C$4,Table119[#Headers],0), 0)","v":{"$error":"#N/A"}}]
[341,{"$f":"VLOOKUP(Blank[[#This Row],[File ID]],Table119[], MATCH(B$4,Table119[#Headers],0), 0)","v":{"$error":"#N/A"}},{"$f":"VLOOKUP(Blank[[#This Row],[File ID]],Table119[], MATCH(C$4,Table119[#Headers],0), 0)","v":{"$error":"#N/A"}}]
[342,{"$f":"VLOOKUP(Blank[[#This Row],[File ID]],Table119[], MATCH(B$4,Table119[#Headers],0), 0)","v":{"$error":"#N/A"}},{"$f":"VLOOKUP(Blank[[#This Row],[File ID]],Table119[], MATCH(C$4,Table119[#Headers],0), 0)","v":{"$error":"#N/A"}}]
[343,{"$f":"VLOOKUP(Blank[[#This Row],[File ID]],Table119[], MATCH(B$4,Table119[#Headers],0), 0)","v":{"$error":"#N/A"}},{"$f":"VLOOKUP(Blank[[#This Row],[File ID]],Table119[], MATCH(C$4,Table119[#Headers],0), 0)","v":{"$error":"#N/A"}}]
[344,{"$f":"VLOOKUP(Blank[[#This Row],[File ID]],Table119[], MATCH(B$4,Table119[#Headers],0), 0)","v":{"$error":"#N/A"}},{"$f":"VLOOKUP(Blank[[#This Row],[File ID]],Table119[], MATCH(C$4,Table119[#Headers],0), 0)","v":{"$error":"#N/A"}}]
[345,{"$f":"VLOOKUP(Blank[[#This Row],[File ID]],Table119[], MATCH(B$4,Table119[#Headers],0), 0)","v":{"$error":"#N/A"}},{"$f":"VLOOKUP(Blank[[#This Row],[File ID]],Table119[], MATCH(C$4,Table119[#Headers],0), 0)","v":{"$error":"#N/A"}}]
[346,{"$f":"VLOOKUP(Blank[[#This Row],[File ID]],Table119[], MATCH(B$4,Table119[#Headers],0), 0)","v":{"$error":"#N/A"}},{"$f":"VLOOKUP(Blank[[#This Row],[File ID]],Table119[], MATCH(C$4,Table119[#Headers],0), 0)","v":{"$error":"#N/A"}}]
[347,{"$f":"VLOOKUP(Blank[[#This Row],[File ID]],Table119[], MATCH(B$4,Table119[#Headers],0), 0)","v":{"$error":"#N/A"}},{"$f":"VLOOKUP(Blank[[#This Row],[File ID]],Table119[], MATCH(C$4,Table119[#Headers],0), 0)","v":{"$error":"#N/A"}}]
[348,{"$f":"VLOOKUP(Blank[[#This Row],[File ID]],Table119[], MATCH(B$4,Table119[#Headers],0), 0)","v":{"$error":"#N/A"}},{"$f":"VLOOKUP(Blank[[#This Row],[File ID]],Table119[], MATCH(C$4,Table119[#Headers],0), 0)","v":{"$error":"#N/A"}}]
[349,{"$f":"VLOOKUP(Blank[[#This Row],[File ID]],Table119[], MATCH(B$4,Table119[#Headers],0), 0)","v":{"$error":"#N/A"}},{"$f":"VLOOKUP(Blank[[#This Row],[File ID]],Table119[], MATCH(C$4,Table119[#Headers],0), 0)","v":{"$error":"#N/A"}}]
[350,{"$f":"VLOOKUP(Blank[[#This Row],[File ID]],Table119[], MATCH(B$4,Table119[#Headers],0), 0)","v":{"$error":"#N/A"}},{"$f":"VLOOKUP(Blank[[#This Row],[File ID]],Table119[], MATCH(C$4,Table119[#Headers],0), 0)","v":{"$error":"#N/A"}}]
[351,{"$f":"VLOOKUP(Blank[[#This Row],[File ID]],Table119[], MATCH(B$4,Table119[#Headers],0), 0)","v":{"$error":"#N/A"}},{"$f":"VLOOKUP(Blank[[#This Row],[File ID]],Table119[], MATCH(C$4,Table119[#Headers],0), 0)","v":{"$error":"#N/A"}}]
[352,{"$f":"VLOOKUP(Blank[[#This Row],[File ID]],Table119[], MATCH(B$4,Table119[#Headers],0), 0)","v":{"$error":"#N/A"}},{"$f":"VLOOKUP(Blank[[#This Row],[File ID]],Table119[], MATCH(C$4,Table119[#Headers],0), 0)","v":{"$error":"#N/A"}}]
[353,{"$f":"VLOOKUP(Blank[[#This Row],[File ID]],Table119[], MATCH(B$4,Table119[#Headers],0), 0)","v":{"$error":"#N/A"}},{"$f":"VLOOKUP(Blank[[#This Row],[File ID]],Table119[], MATCH(C$4,Table119[#Headers],0), 0)","v":{"$error":"#N/A"}}]
[354,{"$f":"VLOOKUP(Blank[[#This Row],[File ID]],Table119[], MATCH(B$4,Table119[#Headers],0), 0)","v":{"$error":"#N/A"}},{"$f":"VLOOKUP(Blank[[#This Row],[File ID]],Table119[], MATCH(C$4,Table119[#Headers],0), 0)","v":{"$error":"#N/A"}}]
[355,{"$f":"VLOOKUP(Blank[[#This Row],[File ID]],Table119[], MATCH(B$4,Table119[#Headers],0), 0)","v":{"$error":"#N/A"}},{"$f":"VLOOKUP(Blank[[#This Row],[File ID]],Table119[], MATCH(C$4,Table119[#Headers],0), 0)","v":{"$error":"#N/A"}}]
[356,{"$f":"VLOOKUP(Blank[[#This Row],[File ID]],Table119[], MATCH(B$4,Table119[#Headers],0), 0)","v":{"$error":"#N/A"}},{"$f":"VLOOKUP(Blank[[#This Row],[File ID]],Table119[], MATCH(C$4,Table119[#Headers],0), 0)","v":{"$error":"#N/A"}}]
[357,{"$f":"VLOOKUP(Blank[[#This Row],[File ID]],Table119[], MATCH(B$4,Table119[#Headers],0), 0)","v":{"$error":"#N/A"}},{"$f":"VLOOKUP(Blank[[#This Row],[File ID]],Table119[], MATCH(C$4,Table119[#Headers],0), 0)","v":{"$error":"#N/A"}}]
[358,{"$f":"VLOOKUP(Blank[[#This Row],[File ID]],Table119[], MATCH(B$4,Table119[#Headers],0), 0)","v":{"$error":"#N/A"}},{"$f":"VLOOKUP(Blank[[#This Row],[File ID]],Table119[], MATCH(C$4,Table119[#Headers],0), 0)","v":{"$error":"#N/A"}}]
[359,{"$f":"VLOOKUP(Blank[[#This Row],[File ID]],Table119[], MATCH(B$4,Table119[#Headers],0), 0)","v":{"$error":"#N/A"}},{"$f":"VLOOKUP(Blank[[#This Row],[File ID]],Table119[], MATCH(C$4,Table119[#Headers],0), 0)","v":{"$error":"#N/A"}}]
[360,{"$f":"VLOOKUP(Blank[[#This Row],[File ID]],Table119[], MATCH(B$4,Table119[#Headers],0), 0)","v":{"$error":"#N/A"}},{"$f":"VLOOKUP(Blank[[#This Row],[File ID]],Table119[], MATCH(C$4,Table119[#Headers],0), 0)","v":{"$error":"#N/A"}}]
[361,{"$f":"VLOOKUP(Blank[[#This Row],[File ID]],Table119[], MATCH(B$4,Table119[#Headers],0), 0)","v":{"$error":"#N/A"}},{"$f":"VLOOKUP(Blank[[#This Row],[File ID]],Table119[], MATCH(C$4,Table119[#Headers],0), 0)","v":{"$error":"#N/A"}}]
[362,{"$f":"VLOOKUP(Blank[[#This Row],[File ID]],Table119[], MATCH(B$4,Table119[#Headers],0), 0)","v":{"$error":"#N/A"}},{"$f":"VLOOKUP(Blank[[#This Row],[File ID]],Table119[], MATCH(C$4,Table119[#Headers],0), 0)","v":{"$error":"#N/A"}}]
[363,{"$f":"VLOOKUP(Blank[[#This Row],[File ID]],Table119[], MATCH(B$4,Table119[#Headers],0), 0)","v":{"$error":"#N/A"}},{"$f":"VLOOKUP(Blank[[#This Row],[File ID]],Table119[], MATCH(C$4,Table119[#Headers],0), 0)","v":{"$error":"#N/A"}}]
[364,{"$f":"VLOOKUP(Blank[[#This Row],[File ID]],Table119[], MATCH(B$4,Table119[#Headers],0), 0)","v":{"$error":"#N/A"}},{"$f":"VLOOKUP(Blank[[#This Row],[File ID]],Table119[], MATCH(C$4,Table119[#Headers],0), 0)","v":{"$error":"#N/A"}}]
[365,{"$f":"VLOOKUP(Blank[[#This Row],[File ID]],Table119[], MATCH(B$4,Table119[#Headers],0), 0)","v":{"$error":"#N/A"}},{"$f":"VLOOKUP(Blank[[#This Row],[File ID]],Table119[], MATCH(C$4,Table119[#Headers],0), 0)","v":{"$error":"#N/A"}}]
[366,{"$f":"VLOOKUP(Blank[[#This Row],[File ID]],Table119[], MATCH(B$4,Table119[#Headers],0), 0)","v":{"$error":"#N/A"}},{"$f":"VLOOKUP(Blank[[#This Row],[File ID]],Table119[], MATCH(C$4,Table119[#Headers],0), 0)","v":{"$error":"#N/A"}}]
[367,{"$f":"VLOOKUP(Blank[[#This Row],[File ID]],Table119[], MATCH(B$4,Table119[#Headers],0), 0)","v":{"$error":"#N/A"}},{"$f":"VLOOKUP(Blank[[#This Row],[File ID]],Table119[], MATCH(C$4,Table119[#Headers],0), 0)","v":{"$error":"#N/A"}}]
[368,{"$f":"VLOOKUP(Blank[[#This Row],[File ID]],Table119[], MATCH(B$4,Table119[#Headers],0), 0)","v":{"$error":"#N/A"}},{"$f":"VLOOKUP(Blank[[#This Row],[File ID]],Table119[], MATCH(C$4,Table119[#Headers],0), 0)","v":{"$error":"#N/A"}}]
[369,{"$f":"VLOOKUP(Blank[[#This Row],[File ID]],Table119[], MATCH(B$4,Table119[#Headers],0), 0)","v":{"$error":"#N/A"}},{"$f":"VLOOKUP(Blank[[#This Row],[File ID]],Table119[], MATCH(C$4,Table119[#Headers],0), 0)","v":{"$error":"#N/A"}}]
[370,{"$f":"VLOOKUP(Blank[[#This Row],[File ID]],Table119[], MATCH(B$4,Table119[#Headers],0), 0)","v":{"$error":"#N/A"}},{"$f":"VLOOKUP(Blank[[#This Row],[File ID]],Table119[], MATCH(C$4,Table119[#Headers],0), 0)","v":{"$error":"#N/A"}}]
[371,{"$f":"VLOOKUP(Blank[[#This Row],[File ID]],Table119[], MATCH(B$4,Table119[#Headers],0), 0)","v":{"$error":"#N/A"}},{"$f":"VLOOKUP(Blank[[#This Row],[File ID]],Table119[], MATCH(C$4,Table119[#Headers],0), 0)","v":{"$error":"#N/A"}}]
[372,{"$f":"VLOOKUP(Blank[[#This Row],[File ID]],Table119[], MATCH(B$4,Table119[#Headers],0), 0)","v":{"$error":"#N/A"}},{"$f":"VLOOKUP(Blank[[#This Row],[File ID]],Table119[], MATCH(C$4,Table119[#Headers],0), 0)","v":{"$error":"#N/A"}}]
[373,{"$f":"VLOOKUP(Blank[[#This Row],[File ID]],Table119[], MATCH(B$4,Table119[#Headers],0), 0)","v":{"$error":"#N/A"}},{"$f":"VLOOKUP(Blank[[#This Row],[File ID]],Table119[], MATCH(C$4,Table119[#Headers],0), 0)","v":{"$error":"#N/A"}}]
[374,{"$f":"VLOOKUP(Blank[[#This Row],[File ID]],Table119[], MATCH(B$4,Table119[#Headers],0), 0)","v":{"$error":"#N/A"}},{"$f":"VLOOKUP(Blank[[#This Row],[File ID]],Table119[], MATCH(C$4,Table119[#Headers],0), 0)","v":{"$error":"#N/A"}}]
[375,{"$f":"VLOOKUP(Blank[[#This Row],[File ID]],Table119[], MATCH(B$4,Table119[#Headers],0), 0)","v":{"$error":"#N/A"}},{"$f":"VLOOKUP(Blank[[#This Row],[File ID]],Table119[], MATCH(C$4,Table119[#Headers],0), 0)","v":{"$error":"#N/A"}}]
[376,{"$f":"VLOOKUP(Blank[[#This Row],[File ID]],Table119[], MATCH(B$4,Table119[#Headers],0), 0)","v":{"$error":"#N/A"}},{"$f":"VLOOKUP(Blank[[#This Row],[File ID]],Table119[], MATCH(C$4,Table119[#Headers],0), 0)","v":{"$error":"#N/A"}}]
[377,{"$f":"VLOOKUP(Blank[[#This Row],[File ID]],Table119[], MATCH(B$4,Table119[#Headers],0), 0)","v":{"$error":"#N/A"}},{"$f":"VLOOKUP(Blank[[#This Row],[File ID]],Table119[], MATCH(C$4,Table119[#Headers],0), 0)","v":{"$error":"#N/A"}}]
[378,{"$f":"VLOOKUP(Blank[[#This Row],[File ID]],Table119[], MATCH(B$4,Table119[#Headers],0), 0)","v":{"$error":"#N/A"}},{"$f":"VLOOKUP(Blank[[#This Row],[File ID]],Table119[], MATCH(C$4,Table119[#Headers],0), 0)","v":{"$error":"#N/A"}}]
[379,{"$f":"VLOOKUP(Blank[[#This Row],[File ID]],Table119[], MATCH(B$4,Table119[#Headers],0), 0)","v":{"$error":"#N/A"}},{"$f":"VLOOKUP(Blank[[#This Row],[File ID]],Table119[], MATCH(C$4,Table119[#Headers],0), 0)","v":{"$error":"#N/A"}}]
[380,{"$f":"VLOOKUP(Blank[[#This Row],[File ID]],Table119[], MATCH(B$4,Table119[#Headers],0), 0)","v":{"$error":"#N/A"}},{"$f":"VLOOKUP(Blank[[#This Row],[File ID]],Table119[], MATCH(C$4,Table119[#Headers],0), 0)","v":{"$error":"#N/A"}}]
[381,{"$f":"VLOOKUP(Blank[[#This Row],[File ID]],Table119[], MATCH(B$4,Table119[#Headers],0), 0)","v":{"$error":"#N/A"}},{"$f":"VLOOKUP(Blank[[#This Row],[File ID]],Table119[], MATCH(C$4,Table119[#Headers],0), 0)","v":{"$error":"#N/A"}}]
[382,{"$f":"VLOOKUP(Blank[[#This Row],[File ID]],Table119[], MATCH(B$4,Table119[#Headers],0), 0)","v":{"$error":"#N/A"}},{"$f":"VLOOKUP(Blank[[#This Row],[File ID]],Table119[], MATCH(C$4,Table119[#Headers],0), 0)","v":{"$error":"#N/A"}}]
[383,{"$f":"VLOOKUP(Blank[[#This Row],[File ID]],Table119[], MATCH(B$4,Table119[#Headers],0), 0)","v":{"$error":"#N/A"}},{"$f":"VLOOKUP(Blank[[#This Row],[File ID]],Table119[], MATCH(C$4,Table119[#Headers],0), 0)","v":{"$error":"#N/A"}}]
[384,{"$f":"VLOOKUP(Blank[[#This Row],[File ID]],Table119[], MATCH(B$4,Table119[#Headers],0), 0)","v":{"$error":"#N/A"}},{"$f":"VLOOKUP(Blank[[#This Row],[File ID]],Table119[], MATCH(C$4,Table119[#Headers],0), 0)","v":{"$error":"#N/A"}}]
[385,{"$f":"VLOOKUP(Blank[[#This Row],[File ID]],Table119[], MATCH(B$4,Table119[#Headers],0), 0)","v":{"$error":"#N/A"}},{"$f":"VLOOKUP(Blank[[#This Row],[File ID]],Table119[], MATCH(C$4,Table119[#Headers],0), 0)","v":{"$error":"#N/A"}}]
[{"$f":"ROW()-4","v":386},{"$f":"VLOOKUP(Blank[[#This Row],[File ID]],Table119[], MATCH(B$4,Table119[#Headers],0), 0)","v":{"$error":"#N/A"}},{"$f":"VLOOKUP(Blank[[#This Row],[File ID]],Table119[], MATCH(C$4,Table119[#Headers],0), 0)","v":{"$error":"#N/A"}}]
[387,{"$f":"VLOOKUP(Blank[[#This Row],[File ID]],Table119[], MATCH(B$4,Table119[#Headers],0), 0)","v":{"$error":"#N/A"}},{"$f":"VLOOKUP(Blank[[#This Row],[File ID]],Table119[], MATCH(C$4,Table119[#Headers],0), 0)","v":{"$error":"#N/A"}}]
[388,{"$f":"VLOOKUP(Blank[[#This Row],[File ID]],Table119[], MATCH(B$4,Table119[#Headers],0), 0)","v":{"$error":"#N/A"}},{"$f":"VLOOKUP(Blank[[#This Row],[File ID]],Table119[], MATCH(C$4,Table119[#Headers],0), 0)","v":{"$error":"#N/A"}}]
[389,{"$f":"VLOOKUP(Blank[[#This Row],[File ID]],Table119[], MATCH(B$4,Table119[#Headers],0), 0)","v":{"$error":"#N/A"}},{"$f":"VLOOKUP(Blank[[#This Row],[File ID]],Table119[], MATCH(C$4,Table119[#Headers],0), 0)","v":{"$error":"#N/A"}}]
[390,{"$f":"VLOOKUP(Blank[[#This Row],[File ID]],Table119[], MATCH(B$4,Table119[#Headers],0), 0)","v":{"$error":"#N/A"}},{"$f":"VLOOKUP(Blank[[#This Row],[File ID]],Table119[], MATCH(C$4,Table119[#Headers],0), 0)","v":{"$error":"#N/A"}}]
[391,{"$f":"VLOOKUP(Blank[[#This Row],[File ID]],Table119[], MATCH(B$4,Table119[#Headers],0), 0)","v":{"$error":"#N/A"}},{"$f":"VLOOKUP(Blank[[#This Row],[File ID]],Table119[], MATCH(C$4,Table119[#Headers],0), 0)","v":{"$error":"#N/A"}}]
[392,{"$f":"VLOOKUP(Blank[[#This Row],[File ID]],Table119[], MATCH(B$4,Table119[#Headers],0), 0)","v":{"$error":"#N/A"}},{"$f":"VLOOKUP(Blank[[#This Row],[File ID]],Table119[], MATCH(C$4,Table119[#Headers],0), 0)","v":{"$error":"#N/A"}}]
[393,{"$f":"VLOOKUP(Blank[[#This Row],[File ID]],Table119[], MATCH(B$4,Table119[#Headers],0), 0)","v":{"$error":"#N/A"}},{"$f":"VLOOKUP(Blank[[#This Row],[File ID]],Table119[], MATCH(C$4,Table119[#Headers],0), 0)","v":{"$error":"#N/A"}}]
[394,{"$f":"VLOOKUP(Blank[[#This Row],[File ID]],Table119[], MATCH(B$4,Table119[#Headers],0), 0)","v":{"$error":"#N/A"}},{"$f":"VLOOKUP(Blank[[#This Row],[File ID]],Table119[], MATCH(C$4,Table119[#Headers],0), 0)","v":{"$error":"#N/A"}}]
[395,{"$f":"VLOOKUP(Blank[[#This Row],[File ID]],Table119[], MATCH(B$4,Table119[#Headers],0), 0)","v":{"$error":"#N/A"}},{"$f":"VLOOKUP(Blank[[#This Row],[File ID]],Table119[], MATCH(C$4,Table119[#Headers],0), 0)","v":{"$error":"#N/A"}}]
[396,{"$f":"VLOOKUP(Blank[[#This Row],[File ID]],Table119[], MATCH(B$4,Table119[#Headers],0), 0)","v":{"$error":"#N/A"}},{"$f":"VLOOKUP(Blank[[#This Row],[File ID]],Table119[], MATCH(C$4,Table119[#Headers],0), 0)","v":{"$error":"#N/A"}}]
[397,{"$f":"VLOOKUP(Blank[[#This Row],[File ID]],Table119[], MATCH(B$4,Table119[#Headers],0), 0)","v":{"$error":"#N/A"}},{"$f":"VLOOKUP(Blank[[#This Row],[File ID]],Table119[], MATCH(C$4,Table119[#Headers],0), 0)","v":{"$error":"#N/A"}}]
[398,{"$f":"VLOOKUP(Blank[[#This Row],[File ID]],Table119[], MATCH(B$4,Table119[#Headers],0), 0)","v":{"$error":"#N/A"}},{"$f":"VLOOKUP(Blank[[#This Row],[File ID]],Table119[], MATCH(C$4,Table119[#Headers],0), 0)","v":{"$error":"#N/A"}}]
[399,{"$f":"VLOOKUP(Blank[[#This Row],[File ID]],Table119[], MATCH(B$4,Table119[#Headers],0), 0)","v":{"$error":"#N/A"}},{"$f":"VLOOKUP(Blank[[#This Row],[File ID]],Table119[], MATCH(C$4,Table119[#Headers],0), 0)","v":{"$error":"#N/A"}}]
[400,{"$f":"VLOOKUP(Blank[[#This Row],[File ID]],Table119[], MATCH(B$4,Table119[#Headers],0), 0)","v":{"$error":"#N/A"}},{"$f":"VLOOKUP(Blank[[#This Row],[File ID]],Table119[], MATCH(C$4,Table119[#Headers],0), 0)","v":{"$error":"#N/A"}}]
[401,{"$f":"VLOOKUP(Blank[[#This Row],[File ID]],Table119[], MATCH(B$4,Table119[#Headers],0), 0)","v":{"$error":"#N/A"}},{"$f":"VLOOKUP(Blank[[#This Row],[File ID]],Table119[], MATCH(C$4,Table119[#Headers],0), 0)","v":{"$error":"#N/A"}}]
[402,{"$f":"VLOOKUP(Blank[[#This Row],[File ID]],Table119[], MATCH(B$4,Table119[#Headers],0), 0)","v":{"$error":"#N/A"}},{"$f":"VLOOKUP(Blank[[#This Row],[File ID]],Table119[], MATCH(C$4,Table119[#Headers],0), 0)","v":{"$error":"#N/A"}}]
[403,{"$f":"VLOOKUP(Blank[[#This Row],[File ID]],Table119[], MATCH(B$4,Table119[#Headers],0), 0)","v":{"$error":"#N/A"}},{"$f":"VLOOKUP(Blank[[#This Row],[File ID]],Table119[], MATCH(C$4,Table119[#Headers],0), 0)","v":{"$error":"#N/A"}}]
[404,{"$f":"VLOOKUP(Blank[[#This Row],[File ID]],Table119[], MATCH(B$4,Table119[#Headers],0), 0)","v":{"$error":"#N/A"}},{"$f":"VLOOKUP(Blank[[#This Row],[File ID]],Table119[], MATCH(C$4,Table119[#Headers],0), 0)","v":{"$error":"#N/A"}}]
[405,{"$f":"VLOOKUP(Blank[[#This Row],[File ID]],Table119[], MATCH(B$4,Table119[#Headers],0), 0)","v":{"$error":"#N/A"}},{"$f":"VLOOKUP(Blank[[#This Row],[File ID]],Table119[], MATCH(C$4,Table119[#Headers],0), 0)","v":{"$error":"#N/A"}}]
[406,{"$f":"VLOOKUP(Blank[[#This Row],[File ID]],Table119[], MATCH(B$4,Table119[#Headers],0), 0)","v":{"$error":"#N/A"}},{"$f":"VLOOKUP(Blank[[#This Row],[File ID]],Table119[], MATCH(C$4,Table119[#Headers],0), 0)","v":{"$error":"#N/A"}}]
[407,{"$f":"VLOOKUP(Blank[[#This Row],[File ID]],Table119[], MATCH(B$4,Table119[#Headers],0), 0)","v":{"$error":"#N/A"}},{"$f":"VLOOKUP(Blank[[#This Row],[File ID]],Table119[], MATCH(C$4,Table119[#Headers],0), 0)","v":{"$error":"#N/A"}}]
[408,{"$f":"VLOOKUP(Blank[[#This Row],[File ID]],Table119[], MATCH(B$4,Table119[#Headers],0), 0)","v":{"$error":"#N/A"}},{"$f":"VLOOKUP(Blank[[#This Row],[File ID]],Table119[], MATCH(C$4,Table119[#Headers],0), 0)","v":{"$error":"#N/A"}}]
[409,{"$f":"VLOOKUP(Blank[[#This Row],[File ID]],Table119[], MATCH(B$4,Table119[#Headers],0), 0)","v":{"$error":"#N/A"}},{"$f":"VLOOKUP(Blank[[#This Row],[File ID]],Table119[], MATCH(C$4,Table119[#Headers],0), 0)","v":{"$error":"#N/A"}}]
[410,{"$f":"VLOOKUP(Blank[[#This Row],[File ID]],Table119[], MATCH(B$4,Table119[#Headers],0), 0)","v":{"$error":"#N/A"}},{"$f":"VLOOKUP(Blank[[#This Row],[File ID]],Table119[], MATCH(C$4,Table119[#Headers],0), 0)","v":{"$error":"#N/A"}}]
[411,{"$f":"VLOOKUP(Blank[[#This Row],[File ID]],Table119[], MATCH(B$4,Table119[#Headers],0), 0)","v":{"$error":"#N/A"}},{"$f":"VLOOKUP(Blank[[#This Row],[File ID]],Table119[], MATCH(C$4,Table119[#Headers],0), 0)","v":{"$error":"#N/A"}}]
[412,{"$f":"VLOOKUP(Blank[[#This Row],[File ID]],Table119[], MATCH(B$4,Table119[#Headers],0), 0)","v":{"$error":"#N/A"}},{"$f":"VLOOKUP(Blank[[#This Row],[File ID]],Table119[], MATCH(C$4,Table119[#Headers],0), 0)","v":{"$error":"#N/A"}}]
[413,{"$f":"VLOOKUP(Blank[[#This Row],[File ID]],Table119[], MATCH(B$4,Table119[#Headers],0), 0)","v":{"$error":"#N/A"}},{"$f":"VLOOKUP(Blank[[#This Row],[File ID]],Table119[], MATCH(C$4,Table119[#Headers],0), 0)","v":{"$error":"#N/A"}}]
[414,{"$f":"VLOOKUP(Blank[[#This Row],[File ID]],Table119[], MATCH(B$4,Table119[#Headers],0), 0)","v":{"$error":"#N/A"}},{"$f":"VLOOKUP(Blank[[#This Row],[File ID]],Table119[], MATCH(C$4,Table119[#Headers],0), 0)","v":{"$error":"#N/A"}}]
[415,{"$f":"VLOOKUP(Blank[[#This Row],[File ID]],Table119[], MATCH(B$4,Table119[#Headers],0), 0)","v":{"$error":"#N/A"}},{"$f":"VLOOKUP(Blank[[#This Row],[File ID]],Table119[], MATCH(C$4,Table119[#Headers],0), 0)","v":{"$error":"#N/A"}}]
[416,{"$f":"VLOOKUP(Blank[[#This Row],[File ID]],Table119[], MATCH(B$4,Table119[#Headers],0), 0)","v":{"$error":"#N/A"}},{"$f":"VLOOKUP(Blank[[#This Row],[File ID]],Table119[], MATCH(C$4,Table119[#Headers],0), 0)","v":{"$error":"#N/A"}}]
[417,{"$f":"VLOOKUP(Blank[[#This Row],[File ID]],Table119[], MATCH(B$4,Table119[#Headers],0), 0)","v":{"$error":"#N/A"}},{"$f":"VLOOKUP(Blank[[#This Row],[File ID]],Table119[], MATCH(C$4,Table119[#Headers],0), 0)","v":{"$error":"#N/A"}}]
[418,{"$f":"VLOOKUP(Blank[[#This Row],[File ID]],Table119[], MATCH(B$4,Table119[#Headers],0), 0)","v":{"$error":"#N/A"}},{"$f":"VLOOKUP(Blank[[#This Row],[File ID]],Table119[], MATCH(C$4,Table119[#Headers],0), 0)","v":{"$error":"#N/A"}}]
[419,{"$f":"VLOOKUP(Blank[[#This Row],[File ID]],Table119[], MATCH(B$4,Table119[#Headers],0), 0)","v":{"$error":"#N/A"}},{"$f":"VLOOKUP(Blank[[#This Row],[File ID]],Table119[], MATCH(C$4,Table119[#Headers],0), 0)","v":{"$error":"#N/A"}}]
[420,{"$f":"VLOOKUP(Blank[[#This Row],[File ID]],Table119[], MATCH(B$4,Table119[#Headers],0), 0)","v":{"$error":"#N/A"}},{"$f":"VLOOKUP(Blank[[#This Row],[File ID]],Table119[], MATCH(C$4,Table119[#Headers],0), 0)","v":{"$error":"#N/A"}}]
[421,{"$f":"VLOOKUP(Blank[[#This Row],[File ID]],Table119[], MATCH(B$4,Table119[#Headers],0), 0)","v":{"$error":"#N/A"}},{"$f":"VLOOKUP(Blank[[#This Row],[File ID]],Table119[], MATCH(C$4,Table119[#Headers],0), 0)","v":{"$error":"#N/A"}}]
[422,{"$f":"VLOOKUP(Blank[[#This Row],[File ID]],Table119[], MATCH(B$4,Table119[#Headers],0), 0)","v":{"$error":"#N/A"}},{"$f":"VLOOKUP(Blank[[#This Row],[File ID]],Table119[], MATCH(C$4,Table119[#Headers],0), 0)","v":{"$error":"#N/A"}}]
[423,{"$f":"VLOOKUP(Blank[[#This Row],[File ID]],Table119[], MATCH(B$4,Table119[#Headers],0), 0)","v":{"$error":"#N/A"}},{"$f":"VLOOKUP(Blank[[#This Row],[File ID]],Table119[], MATCH(C$4,Table119[#Headers],0), 0)","v":{"$error":"#N/A"}}]
[424,{"$f":"VLOOKUP(Blank[[#This Row],[File ID]],Table119[], MATCH(B$4,Table119[#Headers],0), 0)","v":{"$error":"#N/A"}},{"$f":"VLOOKUP(Blank[[#This Row],[File ID]],Table119[], MATCH(C$4,Table119[#Headers],0), 0)","v":{"$error":"#N/A"}}]
[425,{"$f":"VLOOKUP(Blank[[#This Row],[File ID]],Table119[], MATCH(B$4,Table119[#Headers],0), 0)","v":{"$error":"#N/A"}},{"$f":"VLOOKUP(Blank[[#This Row],[File ID]],Table119[], MATCH(C$4,Table119[#Headers],0), 0)","v":{"$error":"#N/A"}}]
[426,{"$f":"VLOOKUP(Blank[[#This Row],[File ID]],Table119[], MATCH(B$4,Table119[#Headers],0), 0)","v":{"$error":"#N/A"}},{"$f":"VLOOKUP(Blank[[#This Row],[File ID]],Table119[], MATCH(C$4,Table119[#Headers],0), 0)","v":{"$error":"#N/A"}}]
[427,{"$f":"VLOOKUP(Blank[[#This Row],[File ID]],Table119[], MATCH(B$4,Table119[#Headers],0), 0)","v":{"$error":"#N/A"}},{"$f":"VLOOKUP(Blank[[#This Row],[File ID]],Table119[], MATCH(C$4,Table119[#Headers],0), 0)","v":{"$error":"#N/A"}}]
[428,{"$f":"VLOOKUP(Blank[[#This Row],[File ID]],Table119[], MATCH(B$4,Table119[#Headers],0), 0)","v":{"$error":"#N/A"}},{"$f":"VLOOKUP(Blank[[#This Row],[File ID]],Table119[], MATCH(C$4,Table119[#Headers],0), 0)","v":{"$error":"#N/A"}}]
[429,{"$f":"VLOOKUP(Blank[[#This Row],[File ID]],Table119[], MATCH(B$4,Table119[#Headers],0), 0)","v":{"$error":"#N/A"}},{"$f":"VLOOKUP(Blank[[#This Row],[File ID]],Table119[], MATCH(C$4,Table119[#Headers],0), 0)","v":{"$error":"#N/A"}}]
[430,{"$f":"VLOOKUP(Blank[[#This Row],[File ID]],Table119[], MATCH(B$4,Table119[#Headers],0), 0)","v":{"$error":"#N/A"}},{"$f":"VLOOKUP(Blank[[#This Row],[File ID]],Table119[], MATCH(C$4,Table119[#Headers],0), 0)","v":{"$error":"#N/A"}}]
[431,{"$f":"VLOOKUP(Blank[[#This Row],[File ID]],Table119[], MATCH(B$4,Table119[#Headers],0), 0)","v":{"$error":"#N/A"}},{"$f":"VLOOKUP(Blank[[#This Row],[File ID]],Table119[], MATCH(C$4,Table119[#Headers],0), 0)","v":{"$error":"#N/A"}}]
[432,{"$f":"VLOOKUP(Blank[[#This Row],[File ID]],Table119[], MATCH(B$4,Table119[#Headers],0), 0)","v":{"$error":"#N/A"}},{"$f":"VLOOKUP(Blank[[#This Row],[File ID]],Table119[], MATCH(C$4,Table119[#Headers],0), 0)","v":{"$error":"#N/A"}}]
[433,{"$f":"VLOOKUP(Blank[[#This Row],[File ID]],Table119[], MATCH(B$4,Table119[#Headers],0), 0)","v":{"$error":"#N/A"}},{"$f":"VLOOKUP(Blank[[#This Row],[File ID]],Table119[], MATCH(C$4,Table119[#Headers],0), 0)","v":{"$error":"#N/A"}}]
[434,{"$f":"VLOOKUP(Blank[[#This Row],[File ID]],Table119[], MATCH(B$4,Table119[#Headers],0), 0)","v":{"$error":"#N/A"}},{"$f":"VLOOKUP(Blank[[#This Row],[File ID]],Table119[], MATCH(C$4,Table119[#Headers],0), 0)","v":{"$error":"#N/A"}}]
[435,{"$f":"VLOOKUP(Blank[[#This Row],[File ID]],Table119[], MATCH(B$4,Table119[#Headers],0), 0)","v":{"$error":"#N/A"}},{"$f":"VLOOKUP(Blank[[#This Row],[File ID]],Table119[], MATCH(C$4,Table119[#Headers],0), 0)","v":{"$error":"#N/A"}}]
[436,{"$f":"VLOOKUP(Blank[[#This Row],[File ID]],Table119[], MATCH(B$4,Table119[#Headers],0), 0)","v":{"$error":"#N/A"}},{"$f":"VLOOKUP(Blank[[#This Row],[File ID]],Table119[], MATCH(C$4,Table119[#Headers],0), 0)","v":{"$error":"#N/A"}}]
[437,{"$f":"VLOOKUP(Blank[[#This Row],[File ID]],Table119[], MATCH(B$4,Table119[#Headers],0), 0)","v":{"$error":"#N/A"}},{"$f":"VLOOKUP(Blank[[#This Row],[File ID]],Table119[], MATCH(C$4,Table119[#Headers],0), 0)","v":{"$error":"#N/A"}}]
[438,{"$f":"VLOOKUP(Blank[[#This Row],[File ID]],Table119[], MATCH(B$4,Table119[#Headers],0), 0)","v":{"$error":"#N/A"}},{"$f":"VLOOKUP(Blank[[#This Row],[File ID]],Table119[], MATCH(C$4,Table119[#Headers],0), 0)","v":{"$error":"#N/A"}}]
[439,{"$f":"VLOOKUP(Blank[[#This Row],[File ID]],Table119[], MATCH(B$4,Table119[#Headers],0), 0)","v":{"$error":"#N/A"}},{"$f":"VLOOKUP(Blank[[#This Row],[File ID]],Table119[], MATCH(C$4,Table119[#Headers],0), 0)","v":{"$error":"#N/A"}}]
[440,{"$f":"VLOOKUP(Blank[[#This Row],[File ID]],Table119[], MATCH(B$4,Table119[#Headers],0), 0)","v":{"$error":"#N/A"}},{"$f":"VLOOKUP(Blank[[#This Row],[File ID]],Table119[], MATCH(C$4,Table119[#Headers],0), 0)","v":{"$error":"#N/A"}}]
[441,{"$f":"VLOOKUP(Blank[[#This Row],[File ID]],Table119[], MATCH(B$4,Table119[#Headers],0), 0)","v":{"$error":"#N/A"}},{"$f":"VLOOKUP(Blank[[#This Row],[File ID]],Table119[], MATCH(C$4,Table119[#Headers],0), 0)","v":{"$error":"#N/A"}}]
[442,{"$f":"VLOOKUP(Blank[[#This Row],[File ID]],Table119[], MATCH(B$4,Table119[#Headers],0), 0)","v":{"$error":"#N/A"}},{"$f":"VLOOKUP(Blank[[#This Row],[File ID]],Table119[], MATCH(C$4,Table119[#Headers],0), 0)","v":{"$error":"#N/A"}}]
[443,{"$f":"VLOOKUP(Blank[[#This Row],[File ID]],Table119[], MATCH(B$4,Table119[#Headers],0), 0)","v":{"$error":"#N/A"}},{"$f":"VLOOKUP(Blank[[#This Row],[File ID]],Table119[], MATCH(C$4,Table119[#Headers],0), 0)","v":{"$error":"#N/A"}}]
[444,{"$f":"VLOOKUP(Blank[[#This Row],[File ID]],Table119[], MATCH(B$4,Table119[#Headers],0), 0)","v":{"$error":"#N/A"}},{"$f":"VLOOKUP(Blank[[#This Row],[File ID]],Table119[], MATCH(C$4,Table119[#Headers],0), 0)","v":{"$error":"#N/A"}}]
[445,{"$f":"VLOOKUP(Blank[[#This Row],[File ID]],Table119[], MATCH(B$4,Table119[#Headers],0), 0)","v":{"$error":"#N/A"}},{"$f":"VLOOKUP(Blank[[#This Row],[File ID]],Table119[], MATCH(C$4,Table119[#Headers],0), 0)","v":{"$error":"#N/A"}}]
[446,{"$f":"VLOOKUP(Blank[[#This Row],[File ID]],Table119[], MATCH(B$4,Table119[#Headers],0), 0)","v":{"$error":"#N/A"}},{"$f":"VLOOKUP(Blank[[#This Row],[File ID]],Table119[], MATCH(C$4,Table119[#Headers],0), 0)","v":{"$error":"#N/A"}}]
[447,{"$f":"VLOOKUP(Blank[[#This Row],[File ID]],Table119[], MATCH(B$4,Table119[#Headers],0), 0)","v":{"$error":"#N/A"}},{"$f":"VLOOKUP(Blank[[#This Row],[File ID]],Table119[], MATCH(C$4,Table119[#Headers],0), 0)","v":{"$error":"#N/A"}}]
[448,{"$f":"VLOOKUP(Blank[[#This Row],[File ID]],Table119[], MATCH(B$4,Table119[#Headers],0), 0)","v":{"$error":"#N/A"}},{"$f":"VLOOKUP(Blank[[#This Row],[File ID]],Table119[], MATCH(C$4,Table119[#Headers],0), 0)","v":{"$error":"#N/A"}}]
[449,{"$f":"VLOOKUP(Blank[[#This Row],[File ID]],Table119[], MATCH(B$4,Table119[#Headers],0), 0)","v":{"$error":"#N/A"}},{"$f":"VLOOKUP(Blank[[#This Row],[File ID]],Table119[], MATCH(C$4,Table119[#Headers],0), 0)","v":{"$error":"#N/A"}}]
[{"$f":"ROW()-4","v":450},{"$f":"VLOOKUP(Blank[[#This Row],[File ID]],Table119[], MATCH(B$4,Table119[#Headers],0), 0)","v":{"$error":"#N/A"}},{"$f":"VLOOKUP(Blank[[#This Row],[File ID]],Table119[], MATCH(C$4,Table119[#Headers],0), 0)","v":{"$error":"#N/A"}}]
[451,{"$f":"VLOOKUP(Blank[[#This Row],[File ID]],Table119[], MATCH(B$4,Table119[#Headers],0), 0)","v":{"$error":"#N/A"}},{"$f":"VLOOKUP(Blank[[#This Row],[File ID]],Table119[], MATCH(C$4,Table119[#Headers],0), 0)","v":{"$error":"#N/A"}}]
[452,{"$f":"VLOOKUP(Blank[[#This Row],[File ID]],Table119[], MATCH(B$4,Table119[#Headers],0), 0)","v":{"$error":"#N/A"}},{"$f":"VLOOKUP(Blank[[#This Row],[File ID]],Table119[], MATCH(C$4,Table119[#Headers],0), 0)","v":{"$error":"#N/A"}}]
[453,{"$f":"VLOOKUP(Blank[[#This Row],[File ID]],Table119[], MATCH(B$4,Table119[#Headers],0), 0)","v":{"$error":"#N/A"}},{"$f":"VLOOKUP(Blank[[#This Row],[File ID]],Table119[], MATCH(C$4,Table119[#Headers],0), 0)","v":{"$error":"#N/A"}}]
[454,{"$f":"VLOOKUP(Blank[[#This Row],[File ID]],Table119[], MATCH(B$4,Table119[#Headers],0), 0)","v":{"$error":"#N/A"}},{"$f":"VLOOKUP(Blank[[#This Row],[File ID]],Table119[], MATCH(C$4,Table119[#Headers],0), 0)","v":{"$error":"#N/A"}}]
[455,{"$f":"VLOOKUP(Blank[[#This Row],[File ID]],Table119[], MATCH(B$4,Table119[#Headers],0), 0)","v":{"$error":"#N/A"}},{"$f":"VLOOKUP(Blank[[#This Row],[File ID]],Table119[], MATCH(C$4,Table119[#Headers],0), 0)","v":{"$error":"#N/A"}}]
[456,{"$f":"VLOOKUP(Blank[[#This Row],[File ID]],Table119[], MATCH(B$4,Table119[#Headers],0), 0)","v":{"$error":"#N/A"}},{"$f":"VLOOKUP(Blank[[#This Row],[File ID]],Table119[], MATCH(C$4,Table119[#Headers],0), 0)","v":{"$error":"#N/A"}}]
[457,{"$f":"VLOOKUP(Blank[[#This Row],[File ID]],Table119[], MATCH(B$4,Table119[#Headers],0), 0)","v":{"$error":"#N/A"}},{"$f":"VLOOKUP(Blank[[#This Row],[File ID]],Table119[], MATCH(C$4,Table119[#Headers],0), 0)","v":{"$error":"#N/A"}}]
[458,{"$f":"VLOOKUP(Blank[[#This Row],[File ID]],Table119[], MATCH(B$4,Table119[#Headers],0), 0)","v":{"$error":"#N/A"}},{"$f":"VLOOKUP(Blank[[#This Row],[File ID]],Table119[], MATCH(C$4,Table119[#Headers],0), 0)","v":{"$error":"#N/A"}}]
[459,{"$f":"VLOOKUP(Blank[[#This Row],[File ID]],Table119[], MATCH(B$4,Table119[#Headers],0), 0)","v":{"$error":"#N/A"}},{"$f":"VLOOKUP(Blank[[#This Row],[File ID]],Table119[], MATCH(C$4,Table119[#Headers],0), 0)","v":{"$error":"#N/A"}}]
[460,{"$f":"VLOOKUP(Blank[[#This Row],[File ID]],Table119[], MATCH(B$4,Table119[#Headers],0), 0)","v":{"$error":"#N/A"}},{"$f":"VLOOKUP(Blank[[#This Row],[File ID]],Table119[], MATCH(C$4,Table119[#Headers],0), 0)","v":{"$error":"#N/A"}}]
[461,{"$f":"VLOOKUP(Blank[[#This Row],[File ID]],Table119[], MATCH(B$4,Table119[#Headers],0), 0)","v":{"$error":"#N/A"}},{"$f":"VLOOKUP(Blank[[#This Row],[File ID]],Table119[], MATCH(C$4,Table119[#Headers],0), 0)","v":{"$error":"#N/A"}}]
[462,{"$f":"VLOOKUP(Blank[[#This Row],[File ID]],Table119[], MATCH(B$4,Table119[#Headers],0), 0)","v":{"$error":"#N/A"}},{"$f":"VLOOKUP(Blank[[#This Row],[File ID]],Table119[], MATCH(C$4,Table119[#Headers],0), 0)","v":{"$error":"#N/A"}}]
[463,{"$f":"VLOOKUP(Blank[[#This Row],[File ID]],Table119[], MATCH(B$4,Table119[#Headers],0), 0)","v":{"$error":"#N/A"}},{"$f":"VLOOKUP(Blank[[#This Row],[File ID]],Table119[], MATCH(C$4,Table119[#Headers],0), 0)","v":{"$error":"#N/A"}}]
[464,{"$f":"VLOOKUP(Blank[[#This Row],[File ID]],Table119[], MATCH(B$4,Table119[#Headers],0), 0)","v":{"$error":"#N/A"}},{"$f":"VLOOKUP(Blank[[#This Row],[File ID]],Table119[], MATCH(C$4,Table119[#Headers],0), 0)","v":{"$error":"#N/A"}}]
[465,{"$f":"VLOOKUP(Blank[[#This Row],[File ID]],Table119[], MATCH(B$4,Table119[#Headers],0), 0)","v":{"$error":"#N/A"}},{"$f":"VLOOKUP(Blank[[#This Row],[File ID]],Table119[], MATCH(C$4,Table119[#Headers],0), 0)","v":{"$error":"#N/A"}}]
[466,{"$f":"VLOOKUP(Blank[[#This Row],[File ID]],Table119[], MATCH(B$4,Table119[#Headers],0), 0)","v":{"$error":"#N/A"}},{"$f":"VLOOKUP(Blank[[#This Row],[File ID]],Table119[], MATCH(C$4,Table119[#Headers],0), 0)","v":{"$error":"#N/A"}}]
[467,{"$f":"VLOOKUP(Blank[[#This Row],[File ID]],Table119[], MATCH(B$4,Table119[#Headers],0), 0)","v":{"$error":"#N/A"}},{"$f":"VLOOKUP(Blank[[#This Row],[File ID]],Table119[], MATCH(C$4,Table119[#Headers],0), 0)","v":{"$error":"#N/A"}}]
[468,{"$f":"VLOOKUP(Blank[[#This Row],[File ID]],Table119[], MATCH(B$4,Table119[#Headers],0), 0)","v":{"$error":"#N/A"}},{"$f":"VLOOKUP(Blank[[#This Row],[File ID]],Table119[], MATCH(C$4,Table119[#Headers],0), 0)","v":{"$error":"#N/A"}}]
[469,{"$f":"VLOOKUP(Blank[[#This Row],[File ID]],Table119[], MATCH(B$4,Table119[#Headers],0), 0)","v":{"$error":"#N/A"}},{"$f":"VLOOKUP(Blank[[#This Row],[File ID]],Table119[], MATCH(C$4,Table119[#Headers],0), 0)","v":{"$error":"#N/A"}}]
[470,{"$f":"VLOOKUP(Blank[[#This Row],[File ID]],Table119[], MATCH(B$4,Table119[#Headers],0), 0)","v":{"$error":"#N/A"}},{"$f":"VLOOKUP(Blank[[#This Row],[File ID]],Table119[], MATCH(C$4,Table119[#Headers],0), 0)","v":{"$error":"#N/A"}}]
[471,{"$f":"VLOOKUP(Blank[[#This Row],[File ID]],Table119[], MATCH(B$4,Table119[#Headers],0), 0)","v":{"$error":"#N/A"}},{"$f":"VLOOKUP(Blank[[#This Row],[File ID]],Table119[], MATCH(C$4,Table119[#Headers],0), 0)","v":{"$error":"#N/A"}}]
[472,{"$f":"VLOOKUP(Blank[[#This Row],[File ID]],Table119[], MATCH(B$4,Table119[#Headers],0), 0)","v":{"$error":"#N/A"}},{"$f":"VLOOKUP(Blank[[#This Row],[File ID]],Table119[], MATCH(C$4,Table119[#Headers],0), 0)","v":{"$error":"#N/A"}}]
[473,{"$f":"VLOOKUP(Blank[[#This Row],[File ID]],Table119[], MATCH(B$4,Table119[#Headers],0), 0)","v":{"$error":"#N/A"}},{"$f":"VLOOKUP(Blank[[#This Row],[File ID]],Table119[], MATCH(C$4,Table119[#Headers],0), 0)","v":{"$error":"#N/A"}}]
[474,{"$f":"VLOOKUP(Blank[[#This Row],[File ID]],Table119[], MATCH(B$4,Table119[#Headers],0), 0)","v":{"$error":"#N/A"}},{"$f":"VLOOKUP(Blank[[#This Row],[File ID]],Table119[], MATCH(C$4,Table119[#Headers],0), 0)","v":{"$error":"#N/A"}}]
[475,{"$f":"VLOOKUP(Blank[[#This Row],[File ID]],Table119[], MATCH(B$4,Table119[#Headers],0), 0)","v":{"$error":"#N/A"}},{"$f":"VLOOKUP(Blank[[#This Row],[File ID]],Table119[], MATCH(C$4,Table119[#Headers],0), 0)","v":{"$error":"#N/A"}}]
[476,{"$f":"VLOOKUP(Blank[[#This Row],[File ID]],Table119[], MATCH(B$4,Table119[#Headers],0), 0)","v":{"$error":"#N/A"}},{"$f":"VLOOKUP(Blank[[#This Row],[File ID]],Table119[], MATCH(C$4,Table119[#Headers],0), 0)","v":{"$error":"#N/A"}}]
[477,{"$f":"VLOOKUP(Blank[[#This Row],[File ID]],Table119[], MATCH(B$4,Table119[#Headers],0), 0)","v":{"$error":"#N/A"}},{"$f":"VLOOKUP(Blank[[#This Row],[File ID]],Table119[], MATCH(C$4,Table119[#Headers],0), 0)","v":{"$error":"#N/A"}}]
[478,{"$f":"VLOOKUP(Blank[[#This Row],[File ID]],Table119[], MATCH(B$4,Table119[#Headers],0), 0)","v":{"$error":"#N/A"}},{"$f":"VLOOKUP(Blank[[#This Row],[File ID]],Table119[], MATCH(C$4,Table119[#Headers],0), 0)","v":{"$error":"#N/A"}}]
[479,{"$f":"VLOOKUP(Blank[[#This Row],[File ID]],Table119[], MATCH(B$4,Table119[#Headers],0), 0)","v":{"$error":"#N/A"}},{"$f":"VLOOKUP(Blank[[#This Row],[File ID]],Table119[], MATCH(C$4,Table119[#Headers],0), 0)","v":{"$error":"#N/A"}}]
[480,{"$f":"VLOOKUP(Blank[[#This Row],[File ID]],Table119[], MATCH(B$4,Table119[#Headers],0), 0)","v":{"$error":"#N/A"}},{"$f":"VLOOKUP(Blank[[#This Row],[File ID]],Table119[], MATCH(C$4,Table119[#Headers],0), 0)","v":{"$error":"#N/A"}}]
[481,{"$f":"VLOOKUP(Blank[[#This Row],[File ID]],Table119[], MATCH(B$4,Table119[#Headers],0), 0)","v":{"$error":"#N/A"}},{"$f":"VLOOKUP(Blank[[#This Row],[File ID]],Table119[], MATCH(C$4,Table119[#Headers],0), 0)","v":{"$error":"#N/A"}}]
[482,{"$f":"VLOOKUP(Blank[[#This Row],[File ID]],Table119[], MATCH(B$4,Table119[#Headers],0), 0)","v":{"$error":"#N/A"}},{"$f":"VLOOKUP(Blank[[#This Row],[File ID]],Table119[], MATCH(C$4,Table119[#Headers],0), 0)","v":{"$error":"#N/A"}}]
[483,{"$f":"VLOOKUP(Blank[[#This Row],[File ID]],Table119[], MATCH(B$4,Table119[#Headers],0), 0)","v":{"$error":"#N/A"}},{"$f":"VLOOKUP(Blank[[#This Row],[File ID]],Table119[], MATCH(C$4,Table119[#Headers],0), 0)","v":{"$error":"#N/A"}}]
[484,{"$f":"VLOOKUP(Blank[[#This Row],[File ID]],Table119[], MATCH(B$4,Table119[#Headers],0), 0)","v":{"$error":"#N/A"}},{"$f":"VLOOKUP(Blank[[#This Row],[File ID]],Table119[], MATCH(C$4,Table119[#Headers],0), 0)","v":{"$error":"#N/A"}}]
[485,{"$f":"VLOOKUP(Blank[[#This Row],[File ID]],Table119[], MATCH(B$4,Table119[#Headers],0), 0)","v":{"$error":"#N/A"}},{"$f":"VLOOKUP(Blank[[#This Row],[File ID]],Table119[], MATCH(C$4,Table119[#Headers],0), 0)","v":{"$error":"#N/A"}}]
[486,{"$f":"VLOOKUP(Blank[[#This Row],[File ID]],Table119[], MATCH(B$4,Table119[#Headers],0), 0)","v":{"$error":"#N/A"}},{"$f":"VLOOKUP(Blank[[#This Row],[File ID]],Table119[], MATCH(C$4,Table119[#Headers],0), 0)","v":{"$error":"#N/A"}}]
[487,{"$f":"VLOOKUP(Blank[[#This Row],[File ID]],Table119[], MATCH(B$4,Table119[#Headers],0), 0)","v":{"$error":"#N/A"}},{"$f":"VLOOKUP(Blank[[#This Row],[File ID]],Table119[], MATCH(C$4,Table119[#Headers],0), 0)","v":{"$error":"#N/A"}}]
[488,{"$f":"VLOOKUP(Blank[[#This Row],[File ID]],Table119[], MATCH(B$4,Table119[#Headers],0), 0)","v":{"$error":"#N/A"}},{"$f":"VLOOKUP(Blank[[#This Row],[File ID]],Table119[], MATCH(C$4,Table119[#Headers],0), 0)","v":{"$error":"#N/A"}}]
[489,{"$f":"VLOOKUP(Blank[[#This Row],[File ID]],Table119[], MATCH(B$4,Table119[#Headers],0), 0)","v":{"$error":"#N/A"}},{"$f":"VLOOKUP(Blank[[#This Row],[File ID]],Table119[], MATCH(C$4,Table119[#Headers],0), 0)","v":{"$error":"#N/A"}}]
[490,{"$f":"VLOOKUP(Blank[[#This Row],[File ID]],Table119[], MATCH(B$4,Table119[#Headers],0), 0)","v":{"$error":"#N/A"}},{"$f":"VLOOKUP(Blank[[#This Row],[File ID]],Table119[], MATCH(C$4,Table119[#Headers],0), 0)","v":{"$error":"#N/A"}}]
[491,{"$f":"VLOOKUP(Blank[[#This Row],[File ID]],Table119[], MATCH(B$4,Table119[#Headers],0), 0)","v":{"$error":"#N/A"}},{"$f":"VLOOKUP(Blank[[#This Row],[File ID]],Table119[], MATCH(C$4,Table119[#Headers],0), 0)","v":{"$error":"#N/A"}}]
[492,{"$f":"VLOOKUP(Blank[[#This Row],[File ID]],Table119[], MATCH(B$4,Table119[#Headers],0), 0)","v":{"$error":"#N/A"}},{"$f":"VLOOKUP(Blank[[#This Row],[File ID]],Table119[], MATCH(C$4,Table119[#Headers],0), 0)","v":{"$error":"#N/A"}}]
[493,{"$f":"VLOOKUP(Blank[[#This Row],[File ID]],Table119[], MATCH(B$4,Table119[#Headers],0), 0)","v":{"$error":"#N/A"}},{"$f":"VLOOKUP(Blank[[#This Row],[File ID]],Table119[], MATCH(C$4,Table119[#Headers],0), 0)","v":{"$error":"#N/A"}}]

{"sheet":"6(c). Coding tables","index":18,"n_rows":9,"n_cols":14,"rows_kept":9,"cut":false,"hidden":true,"merged":[[0,0,0,16]]}
["6(c). Coding tables"]
[]
[]
[]
["Pivot tables ",null,null,null,null,"Pivot charts"]
["Broad topic codes","N","%",null,"Broad topic code frequencies, N=",{"$f":"GETPIVOTDATA(\"Broad code \",$A$6)","v":5},null,null,"Specific codes","N","%",null,"Specific code frequencies, N=",{"$f":"GETPIVOTDATA(\"Broad code \",$A$6)","v":5}]
["(blank)",null,0,null,null,null,null,null,"Sub-placeholder 4",5,1]
["_3_Placeholder",5,1,null,null,null,null,null,"(blank)",null,0]
["Grand Total",5,1,null,null,null,null,null,"Grand Total",5,1]

{"sheet":"7(c). Quotes","index":19,"n_rows":12,"n_cols":5,"rows_kept":12,"cut":false,"hidden":true,"merged":[[0,0,0,15]]}
["7(c). Quotes"]
[]
[]
[]
[null,null,null,null,"Quotes "]
[]
[null,null,null,null,"Text quotes sorted by broad topic codes and specific codes"]
[null,null,null,null,"(blank)"]
[null,null,null,null,"(blank)"]
[null,null,null,null,"_3_Placeholder"]
[null,null,null,null,"Sub-placeholder 4"]
[null,null,null,null,"(blank)"]

{"sheet":"8(c). Grouping codes","index":20,"n_rows":19,"n_cols":11,"rows_kept":19,"cut":false,"hidden":true,"merged":[[12,4,12,10],[0,0,0,10],[1,0,1,10],[4,8,4,10],[6,6,9,6],[6,8,7,8],[6,10,7,10],[8,8,9,8],[8,10,9,10]]}
["8(c). Grouping codes"]
[]
[]
[]
[null,null,null,null,null,null,null,null,"Questions you posed in the planning phase… "]
[]
[null,null,null,null,null,null,"Keep in mind your original questions. They will help shape your themes. ",null,{"$f":"'1. Planning'!C6","v":"1. example: what are the most common questions people have about the situation? "},null,{"$f":"'1. Planning'!C7","v":"2. example: what are ways we could share information more effectively?"}]
[]
[null,null,null,null,null,null,null,null,{"$f":"'1. Planning'!C8","v":0},null,{"$f":"'1. Planning'!C9","v":0}]
[]
["2. Codes and quotes will appear below… "]
["Row Labels","Count"]
["(blank)",null,null,null,"3. Copy and paste codes and quotes from box 2 (left) into the boxes below. Put codes and quotes that seem related in the same box. "]
["(blank)",null,null,null,"Board A - what goes together ",null,"Board B - what goes together",null,"Board C - what goes together",null,"Board D - what goes together"]
["(blank)",null,null,null,"Theme: ",null,"Theme:",null,"Theme:",null,"Theme:"]
["_3_Placeholder"]
["Sub-placeholder 4"]
["(blank)"]
["Grand Total"]

{"sheet":"9(c). Building themes","index":21,"n_rows":26,"n_cols":13,"rows_kept":26,"cut":false,"hidden":true,"merged":[[2,4,25,4],[2,8,17,8],[7,6,8,6]]}
[null,"Step 1: Paste Boards below, one below the next","Step 2: Describing. \nWrite a sentence that describes what each text quote says, or what you see as important about it. ","Step 3: Summarizing & Representative quotes. \nWrite 1-2 sentences that summarizes the sentences in each preliminary theme group  ","Step 4: Synthesizing. \nName the broad topic area and how common it was, then bring your summaries in step 4 together.",null,"Your original analytic goals are shown here [Linked from Define your analytic goals worksheet]",null,"Step 5: Interpreting. \nReflect back on your original analytic goals as you write up what the results mean for action"]
[]
[null,null,null,null,null,null,{"$f":"'1. Planning'!C6","v":"1. example: what are the most common questions people have about the situation? "}]
[null,null,null,null,null,null,{"$f":"'1. Planning'!C7","v":"2. example: what are ways we could share information more effectively?"}]
[null,null,null,null,null,null,{"$f":"'1. Planning'!C8","v":0}]
[null,null,null,null,null,null,{"$f":"'1. Planning'!C9","v":0}]
[null,null,null,null,null,null,null,null,null,null,null,null,"Representative quote:   "]
[]
[]
[]
[null,null,null,"Representative quote:   "]
[]
[]
[]
[]
[]
[]
[]
[null,null,null,"Representative quote:   "]
[]
[]
[]
[]
[]
[]
[null,null,null,"Representative quote:   "]

{"sheet":"9(a). Building themes","index":22,"n_rows":57,"n_cols":13,"rows_kept":57,"cut":false,"hidden":false,"merged":[[33,4,56,4],[33,8,48,8],[38,6,39,6],[30,1,30,3],[8,3,10,3],[21,3,25,3],[15,3,18,3],[2,8,18,8],[7,6,8,6],[3,3,7,3],[2,4,26,4]]}
[null,"Step 1: Paste Boards below, one below the next","Step 2: Describing. \nWrite a sentence that describes what each text quote says, or what you see as important about it. ","Step 3: Summarizing & Representative quotes. \nWrite 1-2 sentences that summarizes the sentences in each preliminary theme group  ","Step 4: Synthesizing. \nName the broad topic area and how common it was, then bring your summaries in step 4 together.",null,"Your original analytic goals are shown here [Linked from Define your analytic goals worksheet]",null,"Step 5: Interpreting. \nReflect back on your original analytic goals as you write up what the results mean for action"]
[]
[null,"Board A - what goes together ","Self-protection Theme","Self-protection Theme","\"People dealing with the epidemic\" was the topic area with the most codings. (12/37). Within this area, three themes emerged. The first centered around self-protection behavior, that some people staying at home to prevent spread, but others are not; also there are some unmet needs for self-protection materials. One respondent described her daily lift this way, \"And we just been home I mean, ninety percent of the time home alone only the kids go to school and we get groceries delivered.\" \n\nThe second focused on concern and sense of threat: Concern or feelings of risk seem to increase as more is learned about the disease. One example is the statement, \"I learned yesterday that people can get reinfected even after having it one time. You know, that kind of thing that makes me really scared.\"  Feelings of risk are driving social distancing, while having been vaccinated reduces the feeling of risk. People also report feeling risk about seeking health care.  \n\nThe third area was information.  People continue to learn more about the disease, which affects their sense of risk, but still do not know all of the protection measures. There is a concern that not having internet access might be a barrier to having the needed information. One comment suggests that health centers are a source of prevention information. One respondent described accessing self-protection information this way:  \"Every time I [go]- by the clinic. I pick up the pamphlet and that stuff.\"      ",null,{"$f":"'1. Planning'!C6","v":"1. example: what are the most common questions people have about the situation? "},null,"Our data suggests that people are most focused on how they and others are protecting themselves, about how a sense ot threat or risk motivates people to take self protection action, and what kind of support (education, self protection materials) they need.  While we see discussion about social distancing and quarantine, we don't see mention of other measures, such as masking. These data support the notion that feeling concern or threat from disease X increases likelihood of taking self prorection measures, and that being vaccinated reduced that concern.  That area should be explored furhther. "]
[null,"Potential Theme: Self-protection, what it is, who does it",null,"Some people staying at home to prevent spread, but others are not; also there are some unmet needs for self-protection materials.  ",null,null,{"$f":"'1. Planning'!C7","v":"2. example: what are ways we could share information more effectively?"}]
[null,"Challenges in protecting self or others","Challenges in protecting self or others",null,null,null,{"$f":"'1. Planning'!C8","v":0}]
[null,"Disease X will not be eradicated because people who are cured continue to infect others because people are selfish and won’t stay home when they are sick ","People are spreading disease x by not staying home.",null,null,null,{"$f":"'1. Planning'!C9","v":0}]
[null,"•Hard to get hand sanitizer","People don't have the materials they need for protection.",null,null,null,null,null,null,null,null,null,"Representative quote:   "]
[null,"Action - personal self-protective steps","Action - personal self-protective steps"]
[null,"•Hand washing","Hand hygeine is important ","Representative quote: \"...And we just been home I mean, ninety percent of the time home alone only the kids go to school and we get groceries delivered…\""]
[null,"Strategy - how to protect oneself ","Strategy - how to protect oneself "]
[null,"And we just been home I mean, ninety percent of the time home alone only the kids go to school and we get groceries delivered so we don’t feel a lot of risk. ","Staying home except for necessities is protective"]
[null,"•Thinks HS is better than soap","People don't know all of the protection measures.[fits better w/ INFORMATION]"]
[null,"Action - reporting others' self-protective steps","Action - reporting others' self-protective steps"]
[null,"•People don’t go near each other on sidewalk, fear","Concern is driving people to socially distance"]
[null,"Board B - what goes together","Concern Theme","Concern Theme"]
[null,"Theme: Concerns around self, loved ones ",null,"Concern or feelings of risk seem to increase as more is learned about the disease. Feelings of risk are driving social distancing, while having been vaccinated reduces the feeling of risk. People also report feeling risk about seeking health care. "]
[null,"Concern - personal vulnerability or loved ones","Concern - personal vulnerability or loved ones"]
[null,"[R] 2: I learned yesterday that people can get reinfected even after having it one time. You know, that kind of thing that makes me really scared.","Learning more about disease X increases feelings of risk. "]
[null,"[R] 1: I mean, at first, I did but now that I’m vaccinated and my kids are vaccinated? ","Being vaccinated makes people feel less risk "]
[null,"[R] 3: I'm less concerned about getting infected but about being treated for it.","Some feel more concern about getting medical care if sick than about infection itself. ","Representative quote: \"I learned yesterday that people can get reinfected even after having it one time. You know, that kind of thing that makes me really scared.\""]
[null,"Board C - what goes together","Information Theme","Information Theme"]
[null,"Theme: Information - quality, availability",null,"People continue to learn more about the disease, which affects their sense of risk, but still do not know all of the protection measures. There is a concern that not having internet access might be a barrier to having the needed information. One comment suggests that health centers are a source of prevention information. "]
[null,"Awareness - level of awareness about epidemic","Awareness - level of awareness about epidemic"]
[null,"[R] 2: I learned yesterday that people can get reinfected even after having it one time [R] 3: I didn’t know that. ","People are learning more about the disease"]
[null,"Information - how/ where people get information","Information - how/ where people get information"]
[null," [R] 1: Every time I -- by the clinic. I pick up the pamphlet and that stuff                             ","Health care center is an information source"]
[null,"•Thinks HS is better than soap","People don't know all of the protection measures.[moved from SELF-PROTECTION]","Representative quote: \"Every time I [go]- by the clinic. I pick up the pamphlet and that stuff          "]
[]
[]
[]
[null,"Blank thematic analysis: use this blank template for new analyses"]
[null,"Step 1: Paste Boards below, one below the next","Step 2: Describing. \nWrite a sentence that describes what each text quote says, or what you see as important about it. ","Step 3: Summarizing & Representative quotes. \nWrite 1-2 sentences that summarizes the sentences in each preliminary theme group  ","Step 4: Synthesizing. \nName the broad topic area and how common it was, then bring your summaries in step 4 together.",null,"Your original analytic goals are shown here [Linked from Define your analytic goals worksheet]",null,"Step 5: Interpreting. \nReflect back on your original analytic goals as you write up what the results mean for action"]
[]
[null,null,null,null,null,null,{"$f":"'1. Planning'!C6","v":"1. example: what are the most common questions people have about the situation? "}]
[null,null,null,null,null,null,{"$f":"'1. Planning'!C7","v":"2. example: what are ways we could share information more effectively?"}]
[null,null,null,null,null,null,{"$f":"'1. Planning'!C8","v":0}]
[null,null,null,null,null,null,{"$f":"'1. Planning'!C9","v":0}]
[]
[]
[]
[]
[null,null,null,"Representative quote:   "]
[]
[]
[]
[]
[]
[]
[]
[null,null,null,"Representative quote:   "]
[]
[]
[]
[]
[]
[]
[null,null,null,"Representative quote:   "]

{"sheet":"10. Results & planning ","index":23,"n_rows":14,"n_cols":8,"rows_kept":14,"cut":false,"hidden":false,"merged":[[4,1,12,1],[0,3,0,7]]}
[null,null,null,"10. Results & planning"]
[]
[]
[null,null,"Column1","Write your questions","List uses for this information to improve response efforts","Name the pillars, teams, partners, agencies who can take each action","Describe the communication with these groups. Are they ready to act? ","Who are the contacts for the groups you listened to? How to reach them?"]
[null,"Strategic informaiton Needs",null,"Answers to key questions","Recommendations","Partners who need this information","Catalyzing action ","Community leaders"]
[null,null,null,"1. example: what are the most common questions people have about the situation? ","example: create a document of answers to frequently asked questions for dissemination","example: MOH communications team for emergency response","example: we have not been in communications with this team. ","example: neighborhood leaders can be reached via WhatsApp. We will organize an event to share findings. "]
[null,null,null,"2. example: what are ways we could share information more effectively?","example: prepare answers for leaders who will be at a \"question and answer\" public meeting","example: UNHCR refugee facility communications specialist","example:  communications specialist (name), has asked us for this information. They are planning radio messaging. ","example:  we have shared the community concerns with the logistics team, they are going to address the problems.  "]
[]
[]
[]
[]
[]
[]
[null,null,null,"(right click and select \"insert rows\" to add more rows)"]

{"sheet":"About us","index":24,"n_rows":0,"n_cols":0,"rows_kept":0,"cut":false,"hidden":false,"merged":[]}